Workbook

Sheet CostCalculation
A1: Simulation | F1: Itemanzahl | I1: Beachte: Es ist möglich, bis zu ~350.000 Items zu berechnen, aber 5.000 sind ausreichend für eine ordentliche Berechnung. Blaue Zellen sind Dropdowns und grüne Zellen sind veränderbar.
A2: Itemart | B2: von | C2: nach | F2: 2000
A3: Waffe | B3: Top +6 | C3: Top +7 | E3: 2000
A4: =HLOOKUP(B3,'calculation Stuff, dont change '!A1:AO2,2,FALSE) -> 33 | B4: =HLOOKUP(C3,'calculation Stuff, dont change '!A1:AO2,2,FALSE) -> 34 | C4: =VLOOKUP(A6,'calculation Stuff, dont change '!N8:O11,2,FALSE) -> 69978 | D4: =HLOOKUP(A3,'calculation Stuff, dont change '!N4:P5,2,FALSE) -> 1 | E4: =F2 -> 2000
A5: Item XP
A6: Volle XP | K6: Ergebnisse
A7: Mögliche XP | B7: % XP | C7: total XP
A8: =HLOOKUP(IF(B4>6,B4+3,B4),EnchantmentcostWeapon!C3:AP28,26,FALSE)-HLOOKUP(IF(A4>6,A4+3,A4),EnchantmentcostWeapon!C3:AP28,26,FALSE) -> 19978 | B8: 0.5 | C8: 0
H9: Quantil 1 | I9: Quantil 2
C10: Min | D10: Max | E10: Mittelwert | F10: Durchschnitt | G10: Variante | H10: 0.01 | I10: 0.99 | L10: Goldwert | N10: =VLOOKUP(L10,'calculation Stuff, dont change '!J5:K28,2,FALSE) -> x | O10: =VLOOKUP(L10,'calculation Stuff, dont change '!J5:L28,3,FALSE) -> 34
A11: Goldkristall | C11: =MIN(MonteCarlo!$A$3:INDIRECT("MonteCarlo!A"&$E$4+2,TRUE)) -> 0 | D11: =MAX(MonteCarlo!$A$3:INDIRECT("MonteCarlo!A"&$E$4+2,TRUE)) -> 0 | E11: =MEDIAN(MonteCarlo!$A$3:INDIRECT("MonteCarlo!A"&$E$4+2,TRUE)) -> 0 | F11: =AVERAGE(MonteCarlo!$A$3:INDIRECT("MonteCarlo!A"&$E$4+2,TRUE)) -> 0 | G11: =STDEVA(MonteCarlo!$A$3:INDIRECT("MonteCarlo!A"&$E$4+2,TRUE)) -> 0 | H11: =_xlfn.PERCENTILE.INC(MonteCarlo!$A$3:INDIRECT("MonteCarlo!A"&$E$4+2,TRUE),$H$10) -> 0 | I11: =_xlfn.PERCENTILE.INC(MonteCarlo!$A$3:INDIRECT("MonteCarlo!a"&$E$4+2,TRUE),$I$10) -> 0
A12: Gewöhnliches Holzstück | C12: =MIN(MonteCarlo!$B$3:INDIRECT("MonteCarlo!B"&$E$4+2,TRUE)) -> 0 | D12: =MAX(MonteCarlo!$B$3:INDIRECT("MonteCarlo!B"&$E$4+2,TRUE)) -> 0 | E12: =MEDIAN(MonteCarlo!$B$3:INDIRECT("MonteCarlo!B"&$E$4+2,TRUE)) -> 0 | F12: =AVERAGE(MonteCarlo!$B$3:INDIRECT("MonteCarlo!B"&$E$4+2,TRUE)) -> 0 | G12: =STDEVA(MonteCarlo!$B$3:INDIRECT("MonteCarlo!B"&$E$4+2,TRUE)) -> 0 | H12: =_xlfn.PERCENTILE.INC(MonteCarlo!$B$3:INDIRECT("MonteCarlo!b"&$E$4+2,TRUE),$H$10) -> 0 | I12: =_xlfn.PERCENTILE.INC(MonteCarlo!$B$3:INDIRECT("MonteCarlo!b"&$E$4+2,TRUE),$I$10) -> 0
A13: Minderwertige Erzdevaner-Flüssigkeit | C13: =MIN(MonteCarlo!$C$3:INDIRECT("MonteCarlo!C"&$E$4+2,TRUE)) -> 0 | D13: =MAX(MonteCarlo!$C$3:INDIRECT("MonteCarlo!C"&$E$4+2,TRUE)) -> 0 | E13: =MEDIAN(MonteCarlo!$C$3:INDIRECT("MonteCarlo!C"&$E$4+2,TRUE)) -> 0 | F13: =AVERAGE(MonteCarlo!$C$3:INDIRECT("MonteCarlo!C"&$E$4+2,TRUE)) -> 0 | G13: =STDEVA(MonteCarlo!$C$3:INDIRECT("MonteCarlo!C"&$E$4+2,TRUE)) -> 0 | H13: =_xlfn.PERCENTILE.INC(MonteCarlo!$C$3:INDIRECT("MonteCarlo!c"&$E$4+2,TRUE),$H$10) -> 0 | I13: =_xlfn.PERCENTILE.INC(MonteCarlo!$C$3:INDIRECT("MonteCarlo!c"&$E$4+2,TRUE),$I$10) -> 0
A14: Gereinigtes Erzdevaner-Erz | C14: =MIN(MonteCarlo!$D$3:INDIRECT("MonteCarlo!D"&$E$4+2,TRUE)) -> 0 | D14: =MAX(MonteCarlo!$D$3:INDIRECT("MonteCarlo!D"&$E$4+2,TRUE)) -> 0 | E14: =MEDIAN(MonteCarlo!$D$3:INDIRECT("MonteCarlo!D"&$E$4+2,TRUE)) -> 0 | F14: =AVERAGE(MonteCarlo!$D$3:INDIRECT("MonteCarlo!D"&$E$4+2,TRUE)) -> 0 | G14: =STDEVA(MonteCarlo!$D$3:INDIRECT("MonteCarlo!D"&$E$4+2,TRUE)) -> 0 | H14: =_xlfn.PERCENTILE.INC(MonteCarlo!$D$3:INDIRECT("MonteCarlo!d"&$E$4+2,TRUE),$H$10) -> 0 | I14: =_xlfn.PERCENTILE.INC(MonteCarlo!$D$3:INDIRECT("MonteCarlo!d"&$E$4+2,TRUE),$I$10) -> 0
A15: Normale Erzdevaner-Flüssigkeit | C15: =MIN(MonteCarlo!$E$3:INDIRECT("MonteCarlo!E"&$E$4+2,TRUE)) -> 0 | D15: =MAX(MonteCarlo!$E$3:INDIRECT("MonteCarlo!E"&$E$4+2,TRUE)) -> 0 | E15: =MEDIAN(MonteCarlo!$E$3:INDIRECT("MonteCarlo!E"&$E$4+2,TRUE)) -> 0 | F15: =AVERAGE(MonteCarlo!$E$3:INDIRECT("MonteCarlo!E"&$E$4+2,TRUE)) -> 0 | G15: =STDEVA(MonteCarlo!$E$3:INDIRECT("MonteCarlo!E"&$E$4+2,TRUE)) -> 0 | H15: =_xlfn.PERCENTILE.INC(MonteCarlo!$E$3:INDIRECT("MonteCarlo!e"&$E$4+2,TRUE),$H$10) -> 0 | I15: =_xlfn.PERCENTILE.INC(MonteCarlo!$E$3:INDIRECT("MonteCarlo!e"&$E$4+2,TRUE),$I$10) -> 0
A16: Arboreas Goldstück | C16: =MIN(MonteCarlo!$F$3:INDIRECT("MonteCarlo!F"&$E$4+2,TRUE)) -> 0 | D16: =MAX(MonteCarlo!$F$3:INDIRECT("MonteCarlo!F"&$E$4+2,TRUE)) -> 0 | E16: =MEDIAN(MonteCarlo!$F$3:INDIRECT("MonteCarlo!F"&$E$4+2,TRUE)) -> 0 | F16: =AVERAGE(MonteCarlo!$F$3:INDIRECT("MonteCarlo!F"&$E$4+2,TRUE)) -> 0 | G16: =STDEVA(MonteCarlo!$F$3:INDIRECT("MonteCarlo!F"&$E$4+2,TRUE)) -> 0 | H16: =_xlfn.PERCENTILE.INC(MonteCarlo!$F$3:INDIRECT("MonteCarlo!f"&$E$4+2,TRUE),$H$10) -> 0 | I16: =_xlfn.PERCENTILE.INC(MonteCarlo!$F$3:INDIRECT("MonteCarlo!f"&$E$4+2,TRUE),$I$10) -> 0
A17: Unbekannte metallische Flüssigkeit | C17: =MIN(MonteCarlo!$G$3:INDIRECT("MonteCarlo!G"&$E$4+2,TRUE)) -> 0 | D17: =MAX(MonteCarlo!$G$3:INDIRECT("MonteCarlo!G"&$E$4+2,TRUE)) -> 0 | E17: =MEDIAN(MonteCarlo!$G$3:INDIRECT("MonteCarlo!G"&$E$4+2,TRUE)) -> 0 | F17: =AVERAGE(MonteCarlo!$G$3:INDIRECT("MonteCarlo!G"&$E$4+2,TRUE)) -> 0 | G17: =STDEVA(MonteCarlo!$G$3:INDIRECT("MonteCarlo!G"&$E$4+2,TRUE)) -> 0 | H17: =_xlfn.PERCENTILE.INC(MonteCarlo!$G$3:INDIRECT("MonteCarlo!G"&$E$4+2,TRUE),$H$10) -> 0 | I17: =_xlfn.PERCENTILE.INC(MonteCarlo!$G$3:INDIRECT("MonteCarlo!G"&$E$4+2,TRUE),$I$10) -> 0
A18: Dunkler Unterwerfer | C18: =MIN(MonteCarlo!$H$3:INDIRECT("MonteCarlo!h"&$E$4+2,TRUE)) -> 0 | D18: =MAX(MonteCarlo!$H$3:INDIRECT("MonteCarlo!h"&$E$4+2,TRUE)) -> 0 | E18: =MEDIAN(MonteCarlo!$H$3:INDIRECT("MonteCarlo!h"&$E$4+2,TRUE)) -> 0 | F18: =AVERAGE(MonteCarlo!$H$3:INDIRECT("MonteCarlo!h"&$E$4+2,TRUE)) -> 0 | G18: =STDEVA(MonteCarlo!$H$3:INDIRECT("MonteCarlo!h"&$E$4+2,TRUE)) -> 0 | H18: =_xlfn.PERCENTILE.INC(MonteCarlo!$H$3:INDIRECT("MonteCarlo!H"&$E$4+2,TRUE),$H$10) -> 0 | I18: =_xlfn.PERCENTILE.INC(MonteCarlo!$H$3:INDIRECT("MonteCarlo!H"&$E$4+2,TRUE),$I$10) -> 0
A19: Herausragende Erzdevaner-Flüssigkeit | C19: =MIN(MonteCarlo!I$3:INDIRECT("MonteCarlo!i"&$E$4+2,TRUE)) -> 0 | D19: =MAX(MonteCarlo!I$3:INDIRECT("MonteCarlo!i"&$E$4+2,TRUE)) -> 0 | E19: =MEDIAN(MonteCarlo!H$3:INDIRECT("MonteCarlo!i"&$E$4+2,TRUE)) -> 0 | F19: =AVERAGE(MonteCarlo!I$3:INDIRECT("MonteCarlo!i"&$E$4+2,TRUE)) -> 0 | G19: =STDEVA(MonteCarlo!I$3:INDIRECT("MonteCarlo!i"&$E$4+2,TRUE)) -> 0 | H19: =_xlfn.PERCENTILE.INC(MonteCarlo!$I$3:INDIRECT("MonteCarlo!i"&$E$4+2,TRUE),$H$10) -> 0 | I19: =_xlfn.PERCENTILE.INC(MonteCarlo!$I$3:INDIRECT("MonteCarlo!i"&$E$4+2,TRUE),$I$10) -> 0
A20: Arboreas Goldbarren | C20: =MIN(MonteCarlo!$J$3:INDIRECT("MonteCarlo!j"&$E$4+2,TRUE)) -> 53 | D20: =MAX(MonteCarlo!$J$3:INDIRECT("MonteCarlo!j"&$E$4+2,TRUE)) -> 795 | E20: =MEDIAN(MonteCarlo!$J$3:INDIRECT("MonteCarlo!j"&$E$4+2,TRUE)) -> 159 | F20: =AVERAGE(MonteCarlo!$J$3:INDIRECT("MonteCarlo!j"&$E$4+2,TRUE)) -> 176.808 | G20: =STDEVA(MonteCarlo!$J$3:INDIRECT("MonteCarlo!j"&$E$4+2,TRUE)) -> 114.9679431 | H20: =_xlfn.PERCENTILE.INC(MonteCarlo!$J$3:INDIRECT("MonteCarlo!j"&$E$4+2,TRUE),$H$10) -> 53 | I20: =_xlfn.PERCENTILE.INC(MonteCarlo!$J$3:INDIRECT("MonteCarlo!j"&$E$4+2,TRUE),$I$10) -> 530
A21: Verzauberungsverkzeug des Meisters | C21: =MIN(MonteCarlo!$K$3:INDIRECT("MonteCarlo!k"&$E$4+2,TRUE)) -> 12 | D21: =MAX(MonteCarlo!$K$3:INDIRECT("MonteCarlo!k"&$E$4+2,TRUE)) -> 180 | E21: =MEDIAN(MonteCarlo!$K$3:INDIRECT("MonteCarlo!k"&$E$4+2,TRUE)) -> 36 | F21: =AVERAGE(MonteCarlo!$K$3:INDIRECT("MonteCarlo!k"&$E$4+2,TRUE)) -> 40.032 | G21: =STDEVA(MonteCarlo!$K$3:INDIRECT("MonteCarlo!k"&$E$4+2,TRUE)) -> 26.03047769 | H21: =_xlfn.PERCENTILE.INC(MonteCarlo!$K$3:INDIRECT("MonteCarlo!k"&$E$4+2,TRUE),$H$10) -> 12 | I21: =_xlfn.PERCENTILE.INC(MonteCarlo!$K$3:INDIRECT("MonteCarlo!k"&$E$4+2,TRUE),$I$10) -> 120
A22: Blutige Metallstruktur | C22: =MIN(MonteCarlo!$L$3:INDIRECT("MonteCarlo!l"&$E$4+2,TRUE)) -> 9 | D22: =MAX(MonteCarlo!$L$3:INDIRECT("MonteCarlo!l"&$E$4+2,TRUE)) -> 135 | E22: =MEDIAN(MonteCarlo!$L$3:INDIRECT("MonteCarlo!l"&$E$4+2,TRUE)) -> 27 | F22: =AVERAGE(MonteCarlo!$L$3:INDIRECT("MonteCarlo!l"&$E$4+2,TRUE)) -> 30.024 | G22: =STDEVA(MonteCarlo!$L$3:INDIRECT("MonteCarlo!l"&$E$4+2,TRUE)) -> 19.52285827 | H22: =_xlfn.PERCENTILE.INC(MonteCarlo!$L$3:INDIRECT("MonteCarlo!l"&$E$4+2,TRUE),$H$10) -> 9 | I22: =_xlfn.PERCENTILE.INC(MonteCarlo!$L$3:INDIRECT("MonteCarlo!l"&$E$4+2,TRUE),$I$10) -> 90
A23: Staub der Stille | C23: =MIN(MonteCarlo!$M$3:INDIRECT("MonteCarlo!m"&$E$4+2,TRUE)) -> 6 | D23: =MAX(MonteCarlo!$M$3:INDIRECT("MonteCarlo!m"&$E$4+2,TRUE)) -> 90 | E23: =MEDIAN(MonteCarlo!$M$3:INDIRECT("MonteCarlo!m"&$E$4+2,TRUE)) -> 18 | F23: =AVERAGE(MonteCarlo!$M$3:INDIRECT("MonteCarlo!m"&$E$4+2,TRUE)) -> 20.016 | G23: =STDEVA(MonteCarlo!$M$3:INDIRECT("MonteCarlo!m"&$E$4+2,TRUE)) -> 13.01523885 | H23: =_xlfn.PERCENTILE.INC(MonteCarlo!$M$3:INDIRECT("MonteCarlo!m"&$E$4+2,TRUE),$H$10) -> 6 | I23: =_xlfn.PERCENTILE.INC(MonteCarlo!$M$3:INDIRECT("MonteCarlo!m"&$E$4+2,TRUE),$I$10) -> 60
A24: Rätselhafter Trank | C24: =MIN(MonteCarlo!$N$3:INDIRECT("MonteCarlo!n"&$E$4+2,TRUE)) -> 0 | D24: =MAX(MonteCarlo!$N$3:INDIRECT("MonteCarlo!n"&$E$4+2,TRUE)) -> 0 | E24: =MEDIAN(MonteCarlo!$N$3:INDIRECT("MonteCarlo!n"&$E$4+2,TRUE)) -> 0 | F24: =AVERAGE(MonteCarlo!$N$3:INDIRECT("MonteCarlo!n"&$E$4+2,TRUE)) -> 0 | G24: =STDEVA(MonteCarlo!$N$3:INDIRECT("MonteCarlo!n"&$E$4+2,TRUE)) -> 0 | H24: =_xlfn.PERCENTILE.INC(MonteCarlo!$N$3:INDIRECT("MonteCarlo!n"&$E$4+2,TRUE),$H$10) -> 0 | I24: =_xlfn.PERCENTILE.INC(MonteCarlo!$N$3:INDIRECT("MonteCarlo!n"&$E$4+2,TRUE),$I$10) -> 0
A25: Letztes Element | C25: =MIN(MonteCarlo!$O$3:INDIRECT("MonteCarlo!o"&$E$4+2,TRUE)) -> 0 | D25: =MAX(MonteCarlo!$O$3:INDIRECT("MonteCarlo!o"&$E$4+2,TRUE)) -> 0 | E25: =MEDIAN(MonteCarlo!$O$3:INDIRECT("MonteCarlo!o"&$E$4+2,TRUE)) -> 0 | F25: =AVERAGE(MonteCarlo!$O$3:INDIRECT("MonteCarlo!o"&$E$4+2,TRUE)) -> 0 | G25: =STDEVA(MonteCarlo!$O$3:INDIRECT("MonteCarlo!o"&$E$4+2,TRUE)) -> 0 | H25: =_xlfn.PERCENTILE.INC(MonteCarlo!$O$3:INDIRECT("MonteCarlo!o"&$E$4+2,TRUE),$H$10) -> 0 | I25: =_xlfn.PERCENTILE.INC(MonteCarlo!$O$3:INDIRECT("MonteCarlo!o"&$E$4+2,TRUE),$I$10) -> 0 | L25: Graphik 1 | R25: Graphik 2
A26: Placeholder_2 | C26: =MIN(MonteCarlo!$P$3:INDIRECT("MonteCarlo!p"&$E$4+2,TRUE)) -> 0 | D26: =MAX(MonteCarlo!$P$3:INDIRECT("MonteCarlo!p"&$E$4+2,TRUE)) -> 0 | E26: =MEDIAN(MonteCarlo!$P$3:INDIRECT("MonteCarlo!p"&$E$4+2,TRUE)) -> 0 | F26: =AVERAGE(MonteCarlo!$P$3:INDIRECT("MonteCarlo!p"&$E$4+2,TRUE)) -> 0 | G26: =STDEVA(MonteCarlo!$P$3:INDIRECT("MonteCarlo!p"&$E$4+2,TRUE)) -> 0 | H26: =_xlfn.PERCENTILE.INC(MonteCarlo!$P$3:INDIRECT("MonteCarlo!p"&$E$4+2,TRUE),$H$10) -> 0 | I26: =_xlfn.PERCENTILE.INC(MonteCarlo!$P$3:INDIRECT("MonteCarlo!p"&$E$4+2,TRUE),$I$10) -> 0
A27: Placeholder_3 | C27: =MIN(MonteCarlo!$Q$3:INDIRECT("MonteCarlo!q"&$E$4+2,TRUE)) -> 0 | D27: =MAX(MonteCarlo!$Q$3:INDIRECT("MonteCarlo!q"&$E$4+2,TRUE)) -> 0 | E27: =MEDIAN(MonteCarlo!$Q$3:INDIRECT("MonteCarlo!q"&$E$4+2,TRUE)) -> 0 | F27: =AVERAGE(MonteCarlo!$Q$3:INDIRECT("MonteCarlo!q"&$E$4+2,TRUE)) -> 0 | G27: =STDEVA(MonteCarlo!$Q$3:INDIRECT("MonteCarlo!q"&$E$4+2,TRUE)) -> 0 | H27: =_xlfn.PERCENTILE.INC(MonteCarlo!$Q$3:INDIRECT("MonteCarlo!q"&$E$4+2,TRUE),$H$10) -> 0 | I27: =_xlfn.PERCENTILE.INC(MonteCarlo!$Q$3:INDIRECT("MonteCarlo!q"&$E$4+2,TRUE),$I$10) -> 0 | R27: Graphik 3
A28: Placeholder_4 | C28: =MIN(MonteCarlo!$R$3:INDIRECT("MonteCarlo!r"&$E$4+2,TRUE)) -> 0 | D28: =MAX(MonteCarlo!$R$3:INDIRECT("MonteCarlo!r"&$E$4+2,TRUE)) -> 0 | E28: =MEDIAN(MonteCarlo!$R$3:INDIRECT("MonteCarlo!r"&$E$4+2,TRUE)) -> 0 | F28: =AVERAGE(MonteCarlo!$R$3:INDIRECT("MonteCarlo!r"&$E$4+2,TRUE)) -> 0 | G28: =STDEVA(MonteCarlo!$R$3:INDIRECT("MonteCarlo!r"&$E$4+2,TRUE)) -> 0 | H28: =_xlfn.PERCENTILE.INC(MonteCarlo!$R$3:INDIRECT("MonteCarlo!r"&$E$4+2,TRUE),$H$10) -> 0 | I28: =_xlfn.PERCENTILE.INC(MonteCarlo!$R$3:INDIRECT("MonteCarlo!r"&$E$4+2,TRUE),$I$10) -> 0
A29: Placeholder_5 | C29: =MIN(MonteCarlo!$S$3:INDIRECT("MonteCarlo!s"&$E$4+2,TRUE)) -> 0 | D29: =MAX(MonteCarlo!$S$3:INDIRECT("MonteCarlo!s"&$E$4+2,TRUE)) -> 0 | E29: =MEDIAN(MonteCarlo!$S$3:INDIRECT("MonteCarlo!s"&$E$4+2,TRUE)) -> 0 | F29: =AVERAGE(MonteCarlo!$S$3:INDIRECT("MonteCarlo!s"&$E$4+2,TRUE)) -> 0 | G29: =STDEVA(MonteCarlo!$S$3:INDIRECT("MonteCarlo!s"&$E$4+2,TRUE)) -> 0 | H29: =_xlfn.PERCENTILE.INC(MonteCarlo!$S$3:INDIRECT("MonteCarlo!s"&$E$4+2,TRUE),$H$10) -> 0 | I29: =_xlfn.PERCENTILE.INC(MonteCarlo!$S$3:INDIRECT("MonteCarlo!s"&$E$4+2,TRUE),$I$10) -> 0
A30: Smaragd | C30: =MIN(MonteCarlo!$T$3:INDIRECT("MonteCarlo!t"&$E$4+2,TRUE)) -> 0 | D30: =MAX(MonteCarlo!$T$3:INDIRECT("MonteCarlo!t"&$E$4+2,TRUE)) -> 0 | E30: =MEDIAN(MonteCarlo!$T$3:INDIRECT("MonteCarlo!t"&$E$4+2,TRUE)) -> 0 | F30: =AVERAGE(MonteCarlo!$T$3:INDIRECT("MonteCarlo!t"&$E$4+2,TRUE)) -> 0 | G30: =STDEVA(MonteCarlo!$T$3:INDIRECT("MonteCarlo!t"&$E$4+2,TRUE)) -> 0 | H30: =_xlfn.PERCENTILE.INC(MonteCarlo!$T$3:INDIRECT("MonteCarlo!t"&$E$4+2,TRUE),$H$10) -> 0 | I30: =_xlfn.PERCENTILE.INC(MonteCarlo!$T$3:INDIRECT("MonteCarlo!t"&$E$4+2,TRUE),$I$10) -> 0
A31: Diamant | C31: =MIN(MonteCarlo!$U$3:INDIRECT("MonteCarlo!u"&$E$4+2,TRUE)) -> 1 | D31: =MAX(MonteCarlo!$U$3:INDIRECT("MonteCarlo!u"&$E$4+2,TRUE)) -> 15 | E31: =MEDIAN(MonteCarlo!$U$3:INDIRECT("MonteCarlo!u"&$E$4+2,TRUE)) -> 3 | F31: =AVERAGE(MonteCarlo!$U$3:INDIRECT("MonteCarlo!u"&$E$4+2,TRUE)) -> 3.336 | G31: =STDEVA(MonteCarlo!$U$3:INDIRECT("MonteCarlo!u"&$E$4+2,TRUE)) -> 2.169206474 | H31: =_xlfn.PERCENTILE.INC(MonteCarlo!$U$3:INDIRECT("MonteCarlo!u"&$E$4+2,TRUE),$H$10) -> 1 | I31: =_xlfn.PERCENTILE.INC(MonteCarlo!$U$3:INDIRECT("MonteCarlo!u"&$E$4+2,TRUE),$I$10) -> 10
A32: Gold | C32: =MIN(MonteCarlo!$V$3:INDIRECT("MonteCarlo!v"&$E$4+2,TRUE)) -> 6334 | D32: =MAX(MonteCarlo!$V$3:INDIRECT("MonteCarlo!v"&$E$4+2,TRUE)) -> 95010 | E32: =MEDIAN(MonteCarlo!$V$3:INDIRECT("MonteCarlo!v"&$E$4+2,TRUE)) -> 19002 | F32: =AVERAGE(MonteCarlo!$V$3:INDIRECT("MonteCarlo!v"&$E$4+2,TRUE)) -> 21130.224 | G32: =STDEVA(MonteCarlo!$V$3:INDIRECT("MonteCarlo!v"&$E$4+2,TRUE)) -> 13739.75381 | H32: =_xlfn.PERCENTILE.INC(MonteCarlo!$V$3:INDIRECT("MonteCarlo!v"&$E$4+2,TRUE),$H$10) -> 6334 | I32: =_xlfn.PERCENTILE.INC(MonteCarlo!$V$3:INDIRECT("MonteCarlo!v"&$E$4+2,TRUE),$I$10) -> 63340
A33: Metamorph | C33: =MIN(MonteCarlo!$W$3:INDIRECT("MonteCarlo!w"&$E$4+2,TRUE)) -> 45720 | D33: =MAX(MonteCarlo!$W$3:INDIRECT("MonteCarlo!w"&$E$4+2,TRUE)) -> 685800 | E33: =MEDIAN(MonteCarlo!$W$3:INDIRECT("MonteCarlo!w"&$E$4+2,TRUE)) -> 137160 | F33: =AVERAGE(MonteCarlo!$W$3:INDIRECT("MonteCarlo!w"&$E$4+2,TRUE)) -> 152521.92 | G33: =STDEVA(MonteCarlo!$W$3:INDIRECT("MonteCarlo!w"&$E$4+2,TRUE)) -> 99176.12001 | H33: =_xlfn.PERCENTILE.INC(MonteCarlo!$W$3:INDIRECT("MonteCarlo!w"&$E$4+2,TRUE),$H$10) -> 45720 | I33: =_xlfn.PERCENTILE.INC(MonteCarlo!$W$3:INDIRECT("MonteCarlo!w"&$E$4+2,TRUE),$I$10) -> 457200
A34: Goldwert | C34: =MIN(MonteCarlo!$X$3:INDIRECT("MonteCarlo!x"&$E$4+2,TRUE)) -> 32683 | D34: =MAX(MonteCarlo!$X$3:INDIRECT("MonteCarlo!x"&$E$4+2,TRUE)) -> 490245 | E34: =MEDIAN(MonteCarlo!$X$3:INDIRECT("MonteCarlo!x"&$E$4+2,TRUE)) -> 98049 | F34: =AVERAGE(MonteCarlo!$X$3:INDIRECT("MonteCarlo!x"&$E$4+2,TRUE)) -> 109030.488 | G34: =STDEVA(MonteCarlo!$X$3:INDIRECT("MonteCarlo!x"&$E$4+2,TRUE)) -> 70896.1752 | H34: =_xlfn.PERCENTILE.INC(MonteCarlo!$X$3:INDIRECT("MonteCarlo!x"&$E$4+2,TRUE),$H$10) -> 32683 | I34: =_xlfn.PERCENTILE.INC(MonteCarlo!$X$3:INDIRECT("MonteCarlo!x"&$E$4+2,TRUE),$I$10) -> 326830
C37: Goldvalue | D37: Metamorphic
A38: Goldkristall | C38: 15 | D38: 0 | K38: s
A39: Gewöhnliches Holzstück | C39: 0 | D39: 30
A40: Minderwertige Erzdevaner-Flüssigkeit | C40: 0 | D40: 30
A41: Gereinigtes Erzdevaner-Erz | C41: 0 | D41: 90
A42: Normale Erzdevaner-Flüssigkeit | C42: 0 | D42: 300 | R42: Dieses Diagramm braucht eine hohe Anzahl von Simulationen (mind. 50.000) für eine hohe Genauigkeit.
A43: Arboreas Goldstück | C43: 64 | D43: 0
A44: Unbekannte metallische Flüssigkeit | C44: 0 | D44: 300
A45: Dunkler Unterwerfer | C45: 0 | D45: 600
A46: Herausragende Erzdevaner-Flüssigkeit | C46: 0 | D46: 3000
A47: Arboreas Goldbarren | C47: 233 | D47: 0
A48: Verzauberungsverkzeug des Meisters | C48: 0 | D48: 960
A49: Blutige Metallstruktur | C49: 0 | D49: 1800
A50: Staub der Stille | C50: 0 | D50: 3000
A51: Rätselhafter Trank | C51: 0 | D51: 0
A52: Letztes Element | C52: 0 | D52: 0
A53: Placeholder_2 | C53: 0 | D53: 0
A54: Placeholder_3 | C54: 0 | D54: 0
A55: Placeholder_4 | C55: 0 | D55: 0
A56: Placeholder_5 | C56: 0 | D56: 0
A57: Smaragd | C57: 1300 | D57: 0
A58: Diamant | C58: 14000 | D58: 0

Sheet MonteCarlo
A1: Goldkristall | B1: Gewöhnliches Holzstück | C1: Minderwertige Erzdevaner-Flüssigkeit | D1: Gereinigtes Erzdevaner-Erz | E1: Normale Erzdevaner-Flüssigkeit | F1: Arboreas Goldstück | G1: Unbekannte metallische Flüssigkeit | H1: Dunkler Unterwerfer | I1: Herausragende Erzdevaner-Flüssigkeit | J1: Arboreas Goldbarren | K1: Verzauberungsverkzeug des Meisters | L1: Blutige Metallstruktur | M1: Staub der Stille | N1: Rätselhafter Trank | O1: Letztes Element | P1: Placeholder_2 | Q1: Placeholder_3 | R1: Placeholder_4 | S1: Placeholder_5 | T1: Smaragd | U1: Diamant | V1: Gold | W1: Metamorph | X1: Goldwert
A3: 0 | B3: 0 | C3: 0 | D3: 0 | E3: 0 | F3: 0 | G3: 0 | H3: 0 | I3: 0 | J3: 106 | K3: 24 | L3: 18 | M3: 12 | N3: 0 | O3: 0 | P3: 0 | Q3: 0 | R3: 0 | S3: 0 | T3: 0 | U3: 2 | V3: 12668 | W3: =SUM(A3:U3*(TRANSPOSE(CostCalculation!$D$38:$D$58))) -> 91440 | X3: =V3+SUM(A3:U3*(TRANSPOSE(CostCalculation!$C$38:$C$58))) -> 65366
A4: 0 | B4: 0 | C4: 0 | D4: 0 | E4: 0 | F4: 0 | G4: 0 | H4: 0 | I4: 0 | J4: 159 | K4: 36 | L4: 27 | M4: 18 | N4: 0 | O4: 0 | P4: 0 | Q4: 0 | R4: 0 | S4: 0 | T4: 0 | U4: 3 | V4: 19002 | W4: =SUM(A4:U4*(TRANSPOSE(CostCalculation!$D$38:$D$58))) -> 137160 | X4: =V4+SUM(A4:U4*(TRANSPOSE(CostCalculation!$C$38:$C$58))) -> 98049
A5: 0 | B5: 0 | C5: 0 | D5: 0 | E5: 0 | F5: 0 | G5: 0 | H5: 0 | I5: 0 | J5: 106 | K5: 24 | L5: 18 | M5: 12 | N5: 0 | O5: 0 | P5: 0 | Q5: 0 | R5: 0 | S5: 0 | T5: 0 | U5: 2 | V5: 12668 | W5: =SUM(A5:U5*(TRANSPOSE(CostCalculation!$D$38:$D$58))) -> 91440 | X5: =V5+SUM(A5:U5*(TRANSPOSE(CostCalculation!$C$38:$C$58))) -> 65366
A6: 0 | B6: 0 | C6: 0 | D6: 0 | E6: 0 | F6: 0 | G6: 0 | H6: 0 | I6: 0 | J6: 212 | K6: 48 | L6: 36 | M6: 24 | N6: 0 | O6: 0 | P6: 0 | Q6: 0 | R6: 0 | S6: 0 | T6: 0 | U6: 4 | V6: 25336 | W6: =SUM(A6:U6*(TRANSPOSE(CostCalculation!$D$38:$D$58))) -> 182880 | X6: =V6+SUM(A6:U6*(TRANSPOSE(CostCalculation!$C$38:$C$58))) -> 130732
A7: 0 | B7: 0 | C7: 0 | D7: 0 | E7: 0 | F7: 0 | G7: 0 | H7: 0 | I7: 0 | J7: 212 | K7: 48 | L7: 36 | M7: 24 | N7: 0 | O7: 0 | P7: 0 | Q7: 0 | R7: 0 | S7: 0 | T7: 0 | U7: 4 | V7: 25336 | W7: =SUM(A7:U7*(TRANSPOSE(CostCalculation!$D$38:$D$58))) -> 182880 | X7: =V7+SUM(A7:U7*(TRANSPOSE(CostCalculation!$C$38:$C$58))) -> 130732
A8: 0 | B8: 0 | C8: 0 | D8: 0 | E8: 0 | F8: 0 | G8: 0 | H8: 0 | I8: 0 | J8: 53 | K8: 12 | L8: 9 | M8: 6 | N8: 0 | O8: 0 | P8: 0 | Q8: 0 | R8: 0 | S8: 0 | T8: 0 | U8: 1 | V8: 6334 | W8: =SUM(A8:U8*(TRANSPOSE(CostCalculation!$D$38:$D$58))) -> 45720 | X8: =V8+SUM(A8:U8*(TRANSPOSE(CostCalculation!$C$38:$C$58))) -> 32683
A9: 0 | B9: 0 | C9: 0 | D9: 0 | E9: 0 | F9: 0 | G9: 0 | H9: 0 | I9: 0 | J9: 530 | K9: 120 | L9: 90 | M9: 60 | N9: 0 | O9: 0 | P9: 0 | Q9: 0 | R9: 0 | S9: 0 | T9: 0 | U9: 10 | V9: 63340 | W9: =SUM(A9:U9*(TRANSPOSE(CostCalculation!$D$38:$D$58))) -> 457200 | X9: =V9+SUM(A9:U9*(TRANSPOSE(CostCalculation!$C$38:$C$58))) -> 326830
A10: 0 | B10: 0 | C10: 0 | D10: 0 | E10: 0 | F10: 0 | G10: 0 | H10: 0 | I10: 0 | J10: 53 | K10: 12 | L10: 9 | M10: 6 | N10: 0 | O10: 0 | P10: 0 | Q10: 0 | R10: 0 | S10: 0 | T10: 0 | U10: 1 | V10: 6334 | W10: =SUM(A10:U10*(TRANSPOSE(CostCalculation!$D$38:$D$58))) -> 45720 | X10: =V10+SUM(A10:U10*(TRANSPOSE(CostCalculation!$C$38:$C$58))) -> 32683
A11: 0 | B11: 0 | C11: 0 | D11: 0 | E11: 0 | F11: 0 | G11: 0 | H11: 0 | I11: 0 | J11: 53 | K11: 12 | L11: 9 | M11: 6 | N11: 0 | O11: 0 | P11: 0 | Q11: 0 | R11: 0 | S11: 0 | T11: 0 | U11: 1 | V11: 6334 | W11: =SUM(A11:U11*(TRANSPOSE(CostCalculation!$D$38:$D$58))) -> 45720 | X11: =V11+SUM(A11:U11*(TRANSPOSE(CostCalculation!$C$38:$C$58))) -> 32683
A12: 0 | B12: 0 | C12: 0 | D12: 0 | E12: 0 | F12: 0 | G12: 0 | H12: 0 | I12: 0 | J12: 106 | K12: 24 | L12: 18 | M12: 12 | N12: 0 | O12: 0 | P12: 0 | Q12: 0 | R12: 0 | S12: 0 | T12: 0 | U12: 2 | V12: 12668 | W12: =SUM(A12:U12*(TRANSPOSE(CostCalculation!$D$38:$D$58))) -> 91440 | X12: =V12+SUM(A12:U12*(TRANSPOSE(CostCalculation!$C$38:$C$58))) -> 65366
A13: 0 | B13: 0 | C13: 0 | D13: 0 | E13: 0 | F13: 0 | G13: 0 | H13: 0 | I13: 0 | J13: 424 | K13: 96 | L13: 72 | M13: 48 | N13: 0 | O13: 0 | P13: 0 | Q13: 0 | R13: 0 | S13: 0 | T13: 0 | U13: 8 | V13: 50672 | W13: =SUM(A13:U13*(TRANSPOSE(CostCalculation!$D$38:$D$58))) -> 365760 | X13: =V13+SUM(A13:U13*(TRANSPOSE(CostCalculation!$C$38:$C$58))) -> 261464
A14: 0 | B14: 0 | C14: 0 | D14: 0 | E14: 0 | F14: 0 | G14: 0 | H14: 0 | I14: 0 | J14: 159 | K14: 36 | L14: 27 | M14: 18 | N14: 0 | O14: 0 | P14: 0 | Q14: 0 | R14: 0 | S14: 0 | T14: 0 | U14: 3 | V14: 19002 | W14: =SUM(A14:U14*(TRANSPOSE(CostCalculation!$D$38:$D$58))) -> 137160 | X14: =V14+SUM(A14:U14*(TRANSPOSE(CostCalculation!$C$38:$C$58))) -> 98049
A15: 0 | B15: 0 | C15: 0 | D15: 0 | E15: 0 | F15: 0 | G15: 0 | H15: 0 | I15: 0 | J15: 53 | K15: 12 | L15: 9 | M15: 6 | N15: 0 | O15: 0 | P15: 0 | Q15: 0 | R15: 0 | S15: 0 | T15: 0 | U15: 1 | V15: 6334 | W15: =SUM(A15:U15*(TRANSPOSE(CostCalculation!$D$38:$D$58))) -> 45720 | X15: =V15+SUM(A15:U15*(TRANSPOSE(CostCalculation!$C$38:$C$58))) -> 32683
A16: 0 | B16: 0 | C16: 0 | D16: 0 | E16: 0 | F16: 0 | G16: 0 | H16: 0 | I16: 0 | J16: 53 | K16: 12 | L16: 9 | M16: 6 | N16: 0 | O16: 0 | P16: 0 | Q16: 0 | R16: 0 | S16: 0 | T16: 0 | U16: 1 | V16: 6334 | W16: =SUM(A16:U16*(TRANSPOSE(CostCalculation!$D$38:$D$58))) -> 45720 | X16: =V16+SUM(A16:U16*(TRANSPOSE(CostCalculation!$C$38:$C$58))) -> 32683
A17: 0 | B17: 0 | C17: 0 | D17: 0 | E17: 0 | F17: 0 | G17: 0 | H17: 0 | I17: 0 | J17: 212 | K17: 48 | L17: 36 | M17: 24 | N17: 0 | O17: 0 | P17: 0 | Q17: 0 | R17: 0 | S17: 0 | T17: 0 | U17: 4 | V17: 25336 | W17: =SUM(A17:U17*(TRANSPOSE(CostCalculation!$D$38:$D$58))) -> 182880 | X17: =V17+SUM(A17:U17*(TRANSPOSE(CostCalculation!$C$38:$C$58))) -> 130732
A18: 0 | B18: 0 | C18: 0 | D18: 0 | E18: 0 | F18: 0 | G18: 0 | H18: 0 | I18: 0 | J18: 53 | K18: 12 | L18: 9 | M18: 6 | N18: 0 | O18: 0 | P18: 0 | Q18: 0 | R18: 0 | S18: 0 | T18: 0 | U18: 1 | V18: 6334 | W18: =SUM(A18:U18*(TRANSPOSE(CostCalculation!$D$38:$D$58))) -> 45720 | X18: =V18+SUM(A18:U18*(TRANSPOSE(CostCalculation!$C$38:$C$58))) -> 32683
A19: 0 | B19: 0 | C19: 0 | D19: 0 | E19: 0 | F19: 0 | G19: 0 | H19: 0 | I19: 0 | J19: 53 | K19: 12 | L19: 9 | M19: 6 | N19: 0 | O19: 0 | P19: 0 | Q19: 0 | R19: 0 | S19: 0 | T19: 0 | U19: 1 | V19: 6334 | W19: =SUM(A19:U19*(TRANSPOSE(CostCalculation!$D$38:$D$58))) -> 45720 | X19: =V19+SUM(A19:U19*(TRANSPOSE(CostCalculation!$C$38:$C$58))) -> 32683
A20: 0 | B20: 0 | C20: 0 | D20: 0 | E20: 0 | F20: 0 | G20: 0 | H20: 0 | I20: 0 | J20: 424 | K20: 96 | L20: 72 | M20: 48 | N20: 0 | O20: 0 | P20: 0 | Q20: 0 | R20: 0 | S20: 0 | T20: 0 | U20: 8 | V20: 50672 | W20: =SUM(A20:U20*(TRANSPOSE(CostCalculation!$D$38:$D$58))) -> 365760 | X20: =V20+SUM(A20:U20*(TRANSPOSE(CostCalculation!$C$38:$C$58))) -> 261464
A21: 0 | B21: 0 | C21: 0 | D21: 0 | E21: 0 | F21: 0 | G21: 0 | H21: 0 | I21: 0 | J21: 53 | K21: 12 | L21: 9 | M21: 6 | N21: 0 | O21: 0 | P21: 0 | Q21: 0 | R21: 0 | S21: 0 | T21: 0 | U21: 1 | V21: 6334 | W21: =SUM(A21:U21*(TRANSPOSE(CostCalculation!$D$38:$D$58))) -> 45720 | X21: =V21+SUM(A21:U21*(TRANSPOSE(CostCalculation!$C$38:$C$58))) -> 32683
A22: 0 | B22: 0 | C22: 0 | D22: 0 | E22: 0 | F22: 0 | G22: 0 | H22: 0 | I22: 0 | J22: 212 | K22: 48 | L22: 36 | M22: 24 | N22: 0 | O22: 0 | P22: 0 | Q22: 0 | R22: 0 | S22: 0 | T22: 0 | U22: 4 | V22: 25336 | W22: =SUM(A22:U22*(TRANSPOSE(CostCalculation!$D$38:$D$58))) -> 182880 | X22: =V22+SUM(A22:U22*(TRANSPOSE(CostCalculation!$C$38:$C$58))) -> 130732
A23: 0 | B23: 0 | C23: 0 | D23: 0 | E23: 0 | F23: 0 | G23: 0 | H23: 0 | I23: 0 | J23: 159 | K23: 36 | L23: 27 | M23: 18 | N23: 0 | O23: 0 | P23: 0 | Q23: 0 | R23: 0 | S23: 0 | T23: 0 | U23: 3 | V23: 19002 | W23: =SUM(A23:U23*(TRANSPOSE(CostCalculation!$D$38:$D$58))) -> 137160 | X23: =V23+SUM(A23:U23*(TRANSPOSE(CostCalculation!$C$38:$C$58))) -> 98049
A24: 0 | B24: 0 | C24: 0 | D24: 0 | E24: 0 | F24: 0 | G24: 0 | H24: 0 | I24: 0 | J24: 53 | K24: 12 | L24: 9 | M24: 6 | N24: 0 | O24: 0 | P24: 0 | Q24: 0 | R24: 0 | S24: 0 | T24: 0 | U24: 1 | V24: 6334 | W24: =SUM(A24:U24*(TRANSPOSE(CostCalculation!$D$38:$D$58))) -> 45720 | X24: =V24+SUM(A24:U24*(TRANSPOSE(CostCalculation!$C$38:$C$58))) -> 32683
A25: 0 | B25: 0 | C25: 0 | D25: 0 | E25: 0 | F25: 0 | G25: 0 | H25: 0 | I25: 0 | J25: 424 | K25: 96 | L25: 72 | M25: 48 | N25: 0 | O25: 0 | P25: 0 | Q25: 0 | R25: 0 | S25: 0 | T25: 0 | U25: 8 | V25: 50672 | W25: =SUM(A25:U25*(TRANSPOSE(CostCalculation!$D$38:$D$58))) -> 365760 | X25: =V25+SUM(A25:U25*(TRANSPOSE(CostCalculation!$C$38:$C$58))) -> 261464
A26: 0 | B26: 0 | C26: 0 | D26: 0 | E26: 0 | F26: 0 | G26: 0 | H26: 0 | I26: 0 | J26: 106 | K26: 24 | L26: 18 | M26: 12 | N26: 0 | O26: 0 | P26: 0 | Q26: 0 | R26: 0 | S26: 0 | T26: 0 | U26: 2 | V26: 12668 | W26: =SUM(A26:U26*(TRANSPOSE(CostCalculation!$D$38:$D$58))) -> 91440 | X26: =V26+SUM(A26:U26*(TRANSPOSE(CostCalculation!$C$38:$C$58))) -> 65366
A27: 0 | B27: 0 | C27: 0 | D27: 0 | E27: 0 | F27: 0 | G27: 0 | H27: 0 | I27: 0 | J27: 159 | K27: 36 | L27: 27 | M27: 18 | N27: 0 | O27: 0 | P27: 0 | Q27: 0 | R27: 0 | S27: 0 | T27: 0 | U27: 3 | V27: 19002 | W27: =SUM(A27:U27*(TRANSPOSE(CostCalculation!$D$38:$D$58))) -> 137160 | X27: =V27+SUM(A27:U27*(TRANSPOSE(CostCalculation!$C$38:$C$58))) -> 98049
A28: 0 | B28: 0 | C28: 0 | D28: 0 | E28: 0 | F28: 0 | G28: 0 | H28: 0 | I28: 0 | J28: 212 | K28: 48 | L28: 36 | M28: 24 | N28: 0 | O28: 0 | P28: 0 | Q28: 0 | R28: 0 | S28: 0 | T28: 0 | U28: 4 | V28: 25336 | W28: =SUM(A28:U28*(TRANSPOSE(CostCalculation!$D$38:$D$58))) -> 182880 | X28: =V28+SUM(A28:U28*(TRANSPOSE(CostCalculation!$C$38:$C$58))) -> 130732
A29: 0 | B29: 0 | C29: 0 | D29: 0 | E29: 0 | F29: 0 | G29: 0 | H29: 0 | I29: 0 | J29: 106 | K29: 24 | L29: 18 | M29: 12 | N29: 0 | O29: 0 | P29: 0 | Q29: 0 | R29: 0 | S29: 0 | T29: 0 | U29: 2 | V29: 12668 | W29: =SUM(A29:U29*(TRANSPOSE(CostCalculation!$D$38:$D$58))) -> 91440 | X29: =V29+SUM(A29:U29*(TRANSPOSE(CostCalculation!$C$38:$C$58))) -> 65366
A30: 0 | B30: 0 | C30: 0 | D30: 0 | E30: 0 | F30: 0 | G30: 0 | H30: 0 | I30: 0 | J30: 106 | K30: 24 | L30: 18 | M30: 12 | N30: 0 | O30: 0 | P30: 0 | Q30: 0 | R30: 0 | S30: 0 | T30: 0 | U30: 2 | V30: 12668 | W30: =SUM(A30:U30*(TRANSPOSE(CostCalculation!$D$38:$D$58))) -> 91440 | X30: =V30+SUM(A30:U30*(TRANSPOSE(CostCalculation!$C$38:$C$58))) -> 65366
A31: 0 | B31: 0 | C31: 0 | D31: 0 | E31: 0 | F31: 0 | G31: 0 | H31: 0 | I31: 0 | J31: 212 | K31: 48 | L31: 36 | M31: 24 | N31: 0 | O31: 0 | P31: 0 | Q31: 0 | R31: 0 | S31: 0 | T31: 0 | U31: 4 | V31: 25336 | W31: =SUM(A31:U31*(TRANSPOSE(CostCalculation!$D$38:$D$58))) -> 182880 | X31: =V31+SUM(A31:U31*(TRANSPOSE(CostCalculation!$C$38:$C$58))) -> 130732
A32: 0 | B32: 0 | C32: 0 | D32: 0 | E32: 0 | F32: 0 | G32: 0 | H32: 0 | I32: 0 | J32: 212 | K32: 48 | L32: 36 | M32: 24 | N32: 0 | O32: 0 | P32: 0 | Q32: 0 | R32: 0 | S32: 0 | T32: 0 | U32: 4 | V32: 25336 | W32: =SUM(A32:U32*(TRANSPOSE(CostCalculation!$D$38:$D$58))) -> 182880 | X32: =V32+SUM(A32:U32*(TRANSPOSE(CostCalculation!$C$38:$C$58))) -> 130732
A33: 0 | B33: 0 | C33: 0 | D33: 0 | E33: 0 | F33: 0 | G33: 0 | H33: 0 | I33: 0 | J33: 53 | K33: 12 | L33: 9 | M33: 6 | N33: 0 | O33: 0 | P33: 0 | Q33: 0 | R33: 0 | S33: 0 | T33: 0 | U33: 1 | V33: 6334 | W33: =SUM(A33:U33*(TRANSPOSE(CostCalculation!$D$38:$D$58))) -> 45720 | X33: =V33+SUM(A33:U33*(TRANSPOSE(CostCalculation!$C$38:$C$58))) -> 32683
A34: 0 | B34: 0 | C34: 0 | D34: 0 | E34: 0 | F34: 0 | G34: 0 | H34: 0 | I34: 0 | J34: 53 | K34: 12 | L34: 9 | M34: 6 | N34: 0 | O34: 0 | P34: 0 | Q34: 0 | R34: 0 | S34: 0 | T34: 0 | U34: 1 | V34: 6334 | W34: =SUM(A34:U34*(TRANSPOSE(CostCalculation!$D$38:$D$58))) -> 45720 | X34: =V34+SUM(A34:U34*(TRANSPOSE(CostCalculation!$C$38:$C$58))) -> 32683
A35: 0 | B35: 0 | C35: 0 | D35: 0 | E35: 0 | F35: 0 | G35: 0 | H35: 0 | I35: 0 | J35: 106 | K35: 24 | L35: 18 | M35: 12 | N35: 0 | O35: 0 | P35: 0 | Q35: 0 | R35: 0 | S35: 0 | T35: 0 | U35: 2 | V35: 12668 | W35: =SUM(A35:U35*(TRANSPOSE(CostCalculation!$D$38:$D$58))) -> 91440 | X35: =V35+SUM(A35:U35*(TRANSPOSE(CostCalculation!$C$38:$C$58))) -> 65366
A36: 0 | B36: 0 | C36: 0 | D36: 0 | E36: 0 | F36: 0 | G36: 0 | H36: 0 | I36: 0 | J36: 53 | K36: 12 | L36: 9 | M36: 6 | N36: 0 | O36: 0 | P36: 0 | Q36: 0 | R36: 0 | S36: 0 | T36: 0 | U36: 1 | V36: 6334 | W36: =SUM(A36:U36*(TRANSPOSE(CostCalculation!$D$38:$D$58))) -> 45720 | X36: =V36+SUM(A36:U36*(TRANSPOSE(CostCalculation!$C$38:$C$58))) -> 32683
A37: 0 | B37: 0 | C37: 0 | D37: 0 | E37: 0 | F37: 0 | G37: 0 | H37: 0 | I37: 0 | J37: 53 | K37: 12 | L37: 9 | M37: 6 | N37: 0 | O37: 0 | P37: 0 | Q37: 0 | R37: 0 | S37: 0 | T37: 0 | U37: 1 | V37: 6334 | W37: =SUM(A37:U37*(TRANSPOSE(CostCalculation!$D$38:$D$58))) -> 45720 | X37: =V37+SUM(A37:U37*(TRANSPOSE(CostCalculation!$C$38:$C$58))) -> 32683
A38: 0 | B38: 0 | C38: 0 | D38: 0 | E38: 0 | F38: 0 | G38: 0 | H38: 0 | I38: 0 | J38: 265 | K38: 60 | L38: 45 | M38: 30 | N38: 0 | O38: 0 | P38: 0 | Q38: 0 | R38: 0 | S38: 0 | T38: 0 | U38: 5 | V38: 31670 | W38: =SUM(A38:U38*(TRANSPOSE(CostCalculation!$D$38:$D$58))) -> 228600 | X38: =V38+SUM(A38:U38*(TRANSPOSE(CostCalculation!$C$38:$C$58))) -> 163415
A39: 0 | B39: 0 | C39: 0 | D39: 0 | E39: 0 | F39: 0 | G39: 0 | H39: 0 | I39: 0 | J39: 106 | K39: 24 | L39: 18 | M39: 12 | N39: 0 | O39: 0 | P39: 0 | Q39: 0 | R39: 0 | S39: 0 | T39: 0 | U39: 2 | V39: 12668 | W39: =SUM(A39:U39*(TRANSPOSE(CostCalculation!$D$38:$D$58))) -> 91440 | X39: =V39+SUM(A39:U39*(TRANSPOSE(CostCalculation!$C$38:$C$58))) -> 65366
A40: 0 | B40: 0 | C40: 0 | D40: 0 | E40: 0 | F40: 0 | G40: 0 | H40: 0 | I40: 0 | J40: 53 | K40: 12 | L40: 9 | M40: 6 | N40: 0 | O40: 0 | P40: 0 | Q40: 0 | R40: 0 | S40: 0 | T40: 0 | U40: 1 | V40: 6334 | W40: =SUM(A40:U40*(TRANSPOSE(CostCalculation!$D$38:$D$58))) -> 45720 | X40: =V40+SUM(A40:U40*(TRANSPOSE(CostCalculation!$C$38:$C$58))) -> 32683
A41: 0 | B41: 0 | C41: 0 | D41: 0 | E41: 0 | F41: 0 | G41: 0 | H41: 0 | I41: 0 | J41: 265 | K41: 60 | L41: 45 | M41: 30 | N41: 0 | O41: 0 | P41: 0 | Q41: 0 | R41: 0 | S41: 0 | T41: 0 | U41: 5 | V41: 31670 | W41: =SUM(A41:U41*(TRANSPOSE(CostCalculation!$D$38:$D$58))) -> 228600 | X41: =V41+SUM(A41:U41*(TRANSPOSE(CostCalculation!$C$38:$C$58))) -> 163415
A42: 0 | B42: 0 | C42: 0 | D42: 0 | E42: 0 | F42: 0 | G42: 0 | H42: 0 | I42: 0 | J42: 159 | K42: 36 | L42: 27 | M42: 18 | N42: 0 | O42: 0 | P42: 0 | Q42: 0 | R42: 0 | S42: 0 | T42: 0 | U42: 3 | V42: 19002 | W42: =SUM(A42:U42*(TRANSPOSE(CostCalculation!$D$38:$D$58))) -> 137160 | X42: =V42+SUM(A42:U42*(TRANSPOSE(CostCalculation!$C$38:$C$58))) -> 98049
A43: 0 | B43: 0 | C43: 0 | D43: 0 | E43: 0 | F43: 0 | G43: 0 | H43: 0 | I43: 0 | J43: 318 | K43: 72 | L43: 54 | M43: 36 | N43: 0 | O43: 0 | P43: 0 | Q43: 0 | R43: 0 | S43: 0 | T43: 0 | U43: 6 | V43: 38004 | W43: =SUM(A43:U43*(TRANSPOSE(CostCalculation!$D$38:$D$58))) -> 274320 | X43: =V43+SUM(A43:U43*(TRANSPOSE(CostCalculation!$C$38:$C$58))) -> 196098
A44: 0 | B44: 0 | C44: 0 | D44: 0 | E44: 0 | F44: 0 | G44: 0 | H44: 0 | I44: 0 | J44: 53 | K44: 12 | L44: 9 | M44: 6 | N44: 0 | O44: 0 | P44: 0 | Q44: 0 | R44: 0 | S44: 0 | T44: 0 | U44: 1 | V44: 6334 | W44: =SUM(A44:U44*(TRANSPOSE(CostCalculation!$D$38:$D$58))) -> 45720 | X44: =V44+SUM(A44:U44*(TRANSPOSE(CostCalculation!$C$38:$C$58))) -> 32683
A45: 0 | B45: 0 | C45: 0 | D45: 0 | E45: 0 | F45: 0 | G45: 0 | H45: 0 | I45: 0 | J45: 106 | K45: 24 | L45: 18 | M45: 12 | N45: 0 | O45: 0 | P45: 0 | Q45: 0 | R45: 0 | S45: 0 | T45: 0 | U45: 2 | V45: 12668 | W45: =SUM(A45:U45*(TRANSPOSE(CostCalculation!$D$38:$D$58))) -> 91440 | X45: =V45+SUM(A45:U45*(TRANSPOSE(CostCalculation!$C$38:$C$58))) -> 65366
A46: 0 | B46: 0 | C46: 0 | D46: 0 | E46: 0 | F46: 0 | G46: 0 | H46: 0 | I46: 0 | J46: 530 | K46: 120 | L46: 90 | M46: 60 | N46: 0 | O46: 0 | P46: 0 | Q46: 0 | R46: 0 | S46: 0 | T46: 0 | U46: 10 | V46: 63340 | W46: =SUM(A46:U46*(TRANSPOSE(CostCalculation!$D$38:$D$58))) -> 457200 | X46: =V46+SUM(A46:U46*(TRANSPOSE(CostCalculation!$C$38:$C$58))) -> 326830
A47: 0 | B47: 0 | C47: 0 | D47: 0 | E47: 0 | F47: 0 | G47: 0 | H47: 0 | I47: 0 | J47: 106 | K47: 24 | L47: 18 | M47: 12 | N47: 0 | O47: 0 | P47: 0 | Q47: 0 | R47: 0 | S47: 0 | T47: 0 | U47: 2 | V47: 12668 | W47: =SUM(A47:U47*(TRANSPOSE(CostCalculation!$D$38:$D$58))) -> 91440 | X47: =V47+SUM(A47:U47*(TRANSPOSE(CostCalculation!$C$38:$C$58))) -> 65366
A48: 0 | B48: 0 | C48: 0 | D48: 0 | E48: 0 | F48: 0 | G48: 0 | H48: 0 | I48: 0 | J48: 371 | K48: 84 | L48: 63 | M48: 42 | N48: 0 | O48: 0 | P48: 0 | Q48: 0 | R48: 0 | S48: 0 | T48: 0 | U48: 7 | V48: 44338 | W48: =SUM(A48:U48*(TRANSPOSE(CostCalculation!$D$38:$D$58))) -> 320040 | X48: =V48+SUM(A48:U48*(TRANSPOSE(CostCalculation!$C$38:$C$58))) -> 228781
A49: 0 | B49: 0 | C49: 0 | D49: 0 | E49: 0 | F49: 0 | G49: 0 | H49: 0 | I49: 0 | J49: 318 | K49: 72 | L49: 54 | M49: 36 | N49: 0 | O49: 0 | P49: 0 | Q49: 0 | R49: 0 | S49: 0 | T49: 0 | U49: 6 | V49: 38004 | W49: =SUM(A49:U49*(TRANSPOSE(CostCalculation!$D$38:$D$58))) -> 274320 | X49: =V49+SUM(A49:U49*(TRANSPOSE(CostCalculation!$C$38:$C$58))) -> 196098
A50: 0 | B50: 0 | C50: 0 | D50: 0 | E50: 0 | F50: 0 | G50: 0 | H50: 0 | I50: 0 | J50: 53 | K50: 12 | L50: 9 | M50: 6 | N50: 0 | O50: 0 | P50: 0 | Q50: 0 | R50: 0 | S50: 0 | T50: 0 | U50: 1 | V50: 6334 | W50: =SUM(A50:U50*(TRANSPOSE(CostCalculation!$D$38:$D$58))) -> 45720 | X50: =V50+SUM(A50:U50*(TRANSPOSE(CostCalculation!$C$38:$C$58))) -> 32683
A51: 0 | B51: 0 | C51: 0 | D51: 0 | E51: 0 | F51: 0 | G51: 0 | H51: 0 | I51: 0 | J51: 212 | K51: 48 | L51: 36 | M51: 24 | N51: 0 | O51: 0 | P51: 0 | Q51: 0 | R51: 0 | S51: 0 | T51: 0 | U51: 4 | V51: 25336 | W51: =SUM(A51:U51*(TRANSPOSE(CostCalculation!$D$38:$D$58))) -> 182880 | X51: =V51+SUM(A51:U51*(TRANSPOSE(CostCalculation!$C$38:$C$58))) -> 130732
A52: 0 | B52: 0 | C52: 0 | D52: 0 | E52: 0 | F52: 0 | G52: 0 | H52: 0 | I52: 0 | J52: 424 | K52: 96 | L52: 72 | M52: 48 | N52: 0 | O52: 0 | P52: 0 | Q52: 0 | R52: 0 | S52: 0 | T52: 0 | U52: 8 | V52: 50672 | W52: =SUM(A52:U52*(TRANSPOSE(CostCalculation!$D$38:$D$58))) -> 365760 | X52: =V52+SUM(A52:U52*(TRANSPOSE(CostCalculation!$C$38:$C$58))) -> 261464
A53: 0 | B53: 0 | C53: 0 | D53: 0 | E53: 0 | F53: 0 | G53: 0 | H53: 0 | I53: 0 | J53: 212 | K53: 48 | L53: 36 | M53: 24 | N53: 0 | O53: 0 | P53: 0 | Q53: 0 | R53: 0 | S53: 0 | T53: 0 | U53: 4 | V53: 25336 | W53: =SUM(A53:U53*(TRANSPOSE(CostCalculation!$D$38:$D$58))) -> 182880 | X53: =V53+SUM(A53:U53*(TRANSPOSE(CostCalculation!$C$38:$C$58))) -> 130732
A54: 0 | B54: 0 | C54: 0 | D54: 0 | E54: 0 | F54: 0 | G54: 0 | H54: 0 | I54: 0 | J54: 212 | K54: 48 | L54: 36 | M54: 24 | N54: 0 | O54: 0 | P54: 0 | Q54: 0 | R54: 0 | S54: 0 | T54: 0 | U54: 4 | V54: 25336 | W54: =SUM(A54:U54*(TRANSPOSE(CostCalculation!$D$38:$D$58))) -> 182880 | X54: =V54+SUM(A54:U54*(TRANSPOSE(CostCalculation!$C$38:$C$58))) -> 130732
A55: 0 | B55: 0 | C55: 0 | D55: 0 | E55: 0 | F55: 0 | G55: 0 | H55: 0 | I55: 0 | J55: 212 | K55: 48 | L55: 36 | M55: 24 | N55: 0 | O55: 0 | P55: 0 | Q55: 0 | R55: 0 | S55: 0 | T55: 0 | U55: 4 | V55: 25336 | W55: =SUM(A55:U55*(TRANSPOSE(CostCalculation!$D$38:$D$58))) -> 182880 | X55: =V55+SUM(A55:U55*(TRANSPOSE(CostCalculation!$C$38:$C$58))) -> 130732
A56: 0 | B56: 0 | C56: 0 | D56: 0 | E56: 0 | F56: 0 | G56: 0 | H56: 0 | I56: 0 | J56: 53 | K56: 12 | L56: 9 | M56: 6 | N56: 0 | O56: 0 | P56: 0 | Q56: 0 | R56: 0 | S56: 0 | T56: 0 | U56: 1 | V56: 6334 | W56: =SUM(A56:U56*(TRANSPOSE(CostCalculation!$D$38:$D$58))) -> 45720 | X56: =V56+SUM(A56:U56*(TRANSPOSE(CostCalculation!$C$38:$C$58))) -> 32683
A57: 0 | B57: 0 | C57: 0 | D57: 0 | E57: 0 | F57: 0 | G57: 0 | H57: 0 | I57: 0 | J57: 53 | K57: 12 | L57: 9 | M57: 6 | N57: 0 | O57: 0 | P57: 0 | Q57: 0 | R57: 0 | S57: 0 | T57: 0 | U57: 1 | V57: 6334 | W57: =SUM(A57:U57*(TRANSPOSE(CostCalculation!$D$38:$D$58))) -> 45720 | X57: =V57+SUM(A57:U57*(TRANSPOSE(CostCalculation!$C$38:$C$58))) -> 32683
A58: 0 | B58: 0 | C58: 0 | D58: 0 | E58: 0 | F58: 0 | G58: 0 | H58: 0 | I58: 0 | J58: 159 | K58: 36 | L58: 27 | M58: 18 | N58: 0 | O58: 0 | P58: 0 | Q58: 0 | R58: 0 | S58: 0 | T58: 0 | U58: 3 | V58: 19002 | W58: =SUM(A58:U58*(TRANSPOSE(CostCalculation!$D$38:$D$58))) -> 137160 | X58: =V58+SUM(A58:U58*(TRANSPOSE(CostCalculation!$C$38:$C$58))) -> 98049
A59: 0 | B59: 0 | C59: 0 | D59: 0 | E59: 0 | F59: 0 | G59: 0 | H59: 0 | I59: 0 | J59: 212 | K59: 48 | L59: 36 | M59: 24 | N59: 0 | O59: 0 | P59: 0 | Q59: 0 | R59: 0 | S59: 0 | T59: 0 | U59: 4 | V59: 25336 | W59: =SUM(A59:U59*(TRANSPOSE(CostCalculation!$D$38:$D$58))) -> 182880 | X59: =V59+SUM(A59:U59*(TRANSPOSE(CostCalculation!$C$38:$C$58))) -> 130732
A60: 0 | B60: 0 | C60: 0 | D60: 0 | E60: 0 | F60: 0 | G60: 0 | H60: 0 | I60: 0 | J60: 318 | K60: 72 | L60: 54 | M60: 36 | N60: 0 | O60: 0 | P60: 0 | Q60: 0 | R60: 0 | S60: 0 | T60: 0 | U60: 6 | V60: 38004 | W60: =SUM(A60:U60*(TRANSPOSE(CostCalculation!$D$38:$D$58))) -> 274320 | X60: =V60+SUM(A60:U60*(TRANSPOSE(CostCalculation!$C$38:$C$58))) -> 196098
A61: 0 | B61: 0 | C61: 0 | D61: 0 | E61: 0 | F61: 0 | G61: 0 | H61: 0 | I61: 0 | J61: 318 | K61: 72 | L61: 54 | M61: 36 | N61: 0 | O61: 0 | P61: 0 | Q61: 0 | R61: 0 | S61: 0 | T61: 0 | U61: 6 | V61: 38004 | W61: =SUM(A61:U61*(TRANSPOSE(CostCalculation!$D$38:$D$58))) -> 274320 | X61: =V61+SUM(A61:U61*(TRANSPOSE(CostCalculation!$C$38:$C$58))) -> 196098
A62: 0 | B62: 0 | C62: 0 | D62: 0 | E62: 0 | F62: 0 | G62: 0 | H62: 0 | I62: 0 | J62: 106 | K62: 24 | L62: 18 | M62: 12 | N62: 0 | O62: 0 | P62: 0 | Q62: 0 | R62: 0 | S62: 0 | T62: 0 | U62: 2 | V62: 12668 | W62: =SUM(A62:U62*(TRANSPOSE(CostCalculation!$D$38:$D$58))) -> 91440 | X62: =V62+SUM(A62:U62*(TRANSPOSE(CostCalculation!$C$38:$C$58))) -> 65366
A63: 0 | B63: 0 | C63: 0 | D63: 0 | E63: 0 | F63: 0 | G63: 0 | H63: 0 | I63: 0 | J63: 159 | K63: 36 | L63: 27 | M63: 18 | N63: 0 | O63: 0 | P63: 0 | Q63: 0 | R63: 0 | S63: 0 | T63: 0 | U63: 3 | V63: 19002 | W63: =SUM(A63:U63*(TRANSPOSE(CostCalculation!$D$38:$D$58))) -> 137160 | X63: =V63+SUM(A63:U63*(TRANSPOSE(CostCalculation!$C$38:$C$58))) -> 98049
A64: 0 | B64: 0 | C64: 0 | D64: 0 | E64: 0 | F64: 0 | G64: 0 | H64: 0 | I64: 0 | J64: 159 | K64: 36 | L64: 27 | M64: 18 | N64: 0 | O64: 0 | P64: 0 | Q64: 0 | R64: 0 | S64: 0 | T64: 0 | U64: 3 | V64: 19002 | W64: =SUM(A64:U64*(TRANSPOSE(CostCalculation!$D$38:$D$58))) -> 137160 | X64: =V64+SUM(A64:U64*(TRANSPOSE(CostCalculation!$C$38:$C$58))) -> 98049
A65: 0 | B65: 0 | C65: 0 | D65: 0 | E65: 0 | F65: 0 | G65: 0 | H65: 0 | I65: 0 | J65: 106 | K65: 24 | L65: 18 | M65: 12 | N65: 0 | O65: 0 | P65: 0 | Q65: 0 | R65: 0 | S65: 0 | T65: 0 | U65: 2 | V65: 12668 | W65: =SUM(A65:U65*(TRANSPOSE(CostCalculation!$D$38:$D$58))) -> 91440 | X65: =V65+SUM(A65:U65*(TRANSPOSE(CostCalculation!$C$38:$C$58))) -> 65366
A66: 0 | B66: 0 | C66: 0 | D66: 0 | E66: 0 | F66: 0 | G66: 0 | H66: 0 | I66: 0 | J66: 212 | K66: 48 | L66: 36 | M66: 24 | N66: 0 | O66: 0 | P66: 0 | Q66: 0 | R66: 0 | S66: 0 | T66: 0 | U66: 4 | V66: 25336 | W66: =SUM(A66:U66*(TRANSPOSE(CostCalculation!$D$38:$D$58))) -> 182880 | X66: =V66+SUM(A66:U66*(TRANSPOSE(CostCalculation!$C$38:$C$58))) -> 130732
A67: 0 | B67: 0 | C67: 0 | D67: 0 | E67: 0 | F67: 0 | G67: 0 | H67: 0 | I67: 0 | J67: 106 | K67: 24 | L67: 18 | M67: 12 | N67: 0 | O67: 0 | P67: 0 | Q67: 0 | R67: 0 | S67: 0 | T67: 0 | U67: 2 | V67: 12668 | W67: =SUM(A67:U67*(TRANSPOSE(CostCalculation!$D$38:$D$58))) -> 91440 | X67: =V67+SUM(A67:U67*(TRANSPOSE(CostCalculation!$C$38:$C$58))) -> 65366
A68: 0 | B68: 0 | C68: 0 | D68: 0 | E68: 0 | F68: 0 | G68: 0 | H68: 0 | I68: 0 | J68: 265 | K68: 60 | L68: 45 | M68: 30 | N68: 0 | O68: 0 | P68: 0 | Q68: 0 | R68: 0 | S68: 0 | T68: 0 | U68: 5 | V68: 31670 | W68: =SUM(A68:U68*(TRANSPOSE(CostCalculation!$D$38:$D$58))) -> 228600 | X68: =V68+SUM(A68:U68*(TRANSPOSE(CostCalculation!$C$38:$C$58))) -> 163415
A69: 0 | B69: 0 | C69: 0 | D69: 0 | E69: 0 | F69: 0 | G69: 0 | H69: 0 | I69: 0 | J69: 265 | K69: 60 | L69: 45 | M69: 30 | N69: 0 | O69: 0 | P69: 0 | Q69: 0 | R69: 0 | S69: 0 | T69: 0 | U69: 5 | V69: 31670 | W69: =SUM(A69:U69*(TRANSPOSE(CostCalculation!$D$38:$D$58))) -> 228600 | X69: =V69+SUM(A69:U69*(TRANSPOSE(CostCalculation!$C$38:$C$58))) -> 163415
A70: 0 | B70: 0 | C70: 0 | D70: 0 | E70: 0 | F70: 0 | G70: 0 | H70: 0 | I70: 0 | J70: 106 | K70: 24 | L70: 18 | M70: 12 | N70: 0 | O70: 0 | P70: 0 | Q70: 0 | R70: 0 | S70: 0 | T70: 0 | U70: 2 | V70: 12668 | W70: =SUM(A70:U70*(TRANSPOSE(CostCalculation!$D$38:$D$58))) -> 91440 | X70: =V70+SUM(A70:U70*(TRANSPOSE(CostCalculation!$C$38:$C$58))) -> 65366
A71: 0 | B71: 0 | C71: 0 | D71: 0 | E71: 0 | F71: 0 | G71: 0 | H71: 0 | I71: 0 | J71: 371 | K71: 84 | L71: 63 | M71: 42 | N71: 0 | O71: 0 | P71: 0 | Q71: 0 | R71: 0 | S71: 0 | T71: 0 | U71: 7 | V71: 44338 | W71: =SUM(A71:U71*(TRANSPOSE(CostCalculation!$D$38:$D$58))) -> 320040 | X71: =V71+SUM(A71:U71*(TRANSPOSE(CostCalculation!$C$38:$C$58))) -> 228781
A72: 0 | B72: 0 | C72: 0 | D72: 0 | E72: 0 | F72: 0 | G72: 0 | H72: 0 | I72: 0 | J72: 159 | K72: 36 | L72: 27 | M72: 18 | N72: 0 | O72: 0 | P72: 0 | Q72: 0 | R72: 0 | S72: 0 | T72: 0 | U72: 3 | V72: 19002 | W72: =SUM(A72:U72*(TRANSPOSE(CostCalculation!$D$38:$D$58))) -> 137160 | X72: =V72+SUM(A72:U72*(TRANSPOSE(CostCalculation!$C$38:$C$58))) -> 98049
A73: 0 | B73: 0 | C73: 0 | D73: 0 | E73: 0 | F73: 0 | G73: 0 | H73: 0 | I73: 0 | J73: 53 | K73: 12 | L73: 9 | M73: 6 | N73: 0 | O73: 0 | P73: 0 | Q73: 0 | R73: 0 | S73: 0 | T73: 0 | U73: 1 | V73: 6334 | W73: =SUM(A73:U73*(TRANSPOSE(CostCalculation!$D$38:$D$58))) -> 45720 | X73: =V73+SUM(A73:U73*(TRANSPOSE(CostCalculation!$C$38:$C$58))) -> 32683
A74: 0 | B74: 0 | C74: 0 | D74: 0 | E74: 0 | F74: 0 | G74: 0 | H74: 0 | I74: 0 | J74: 212 | K74: 48 | L74: 36 | M74: 24 | N74: 0 | O74: 0 | P74: 0 | Q74: 0 | R74: 0 | S74: 0 | T74: 0 | U74: 4 | V74: 25336 | W74: =SUM(A74:U74*(TRANSPOSE(CostCalculation!$D$38:$D$58))) -> 182880 | X74: =V74+SUM(A74:U74*(TRANSPOSE(CostCalculation!$C$38:$C$58))) -> 130732
A75: 0 | B75: 0 | C75: 0 | D75: 0 | E75: 0 | F75: 0 | G75: 0 | H75: 0 | I75: 0 | J75: 53 | K75: 12 | L75: 9 | M75: 6 | N75: 0 | O75: 0 | P75: 0 | Q75: 0 | R75: 0 | S75: 0 | T75: 0 | U75: 1 | V75: 6334 | W75: =SUM(A75:U75*(TRANSPOSE(CostCalculation!$D$38:$D$58))) -> 45720 | X75: =V75+SUM(A75:U75*(TRANSPOSE(CostCalculation!$C$38:$C$58))) -> 32683
A76: 0 | B76: 0 | C76: 0 | D76: 0 | E76: 0 | F76: 0 | G76: 0 | H76: 0 | I76: 0 | J76: 212 | K76: 48 | L76: 36 | M76: 24 | N76: 0 | O76: 0 | P76: 0 | Q76: 0 | R76: 0 | S76: 0 | T76: 0 | U76: 4 | V76: 25336 | W76: =SUM(A76:U76*(TRANSPOSE(CostCalculation!$D$38:$D$58))) -> 182880 | X76: =V76+SUM(A76:U76*(TRANSPOSE(CostCalculation!$C$38:$C$58))) -> 130732
A77: 0 | B77: 0 | C77: 0 | D77: 0 | E77: 0 | F77: 0 | G77: 0 | H77: 0 | I77: 0 | J77: 212 | K77: 48 | L77: 36 | M77: 24 | N77: 0 | O77: 0 | P77: 0 | Q77: 0 | R77: 0 | S77: 0 | T77: 0 | U77: 4 | V77: 25336 | W77: =SUM(A77:U77*(TRANSPOSE(CostCalculation!$D$38:$D$58))) -> 182880 | X77: =V77+SUM(A77:U77*(TRANSPOSE(CostCalculation!$C$38:$C$58))) -> 130732
A78: 0 | B78: 0 | C78: 0 | D78: 0 | E78: 0 | F78: 0 | G78: 0 | H78: 0 | I78: 0 | J78: 53 | K78: 12 | L78: 9 | M78: 6 | N78: 0 | O78: 0 | P78: 0 | Q78: 0 | R78: 0 | S78: 0 | T78: 0 | U78: 1 | V78: 6334 | W78: =SUM(A78:U78*(TRANSPOSE(CostCalculation!$D$38:$D$58))) -> 45720 | X78: =V78+SUM(A78:U78*(TRANSPOSE(CostCalculation!$C$38:$C$58))) -> 32683
A79: 0 | B79: 0 | C79: 0 | D79: 0 | E79: 0 | F79: 0 | G79: 0 | H79: 0 | I79: 0 | J79: 106 | K79: 24 | L79: 18 | M79: 12 | N79: 0 | O79: 0 | P79: 0 | Q79: 0 | R79: 0 | S79: 0 | T79: 0 | U79: 2 | V79: 12668 | W79: =SUM(A79:U79*(TRANSPOSE(CostCalculation!$D$38:$D$58))) -> 91440 | X79: =V79+SUM(A79:U79*(TRANSPOSE(CostCalculation!$C$38:$C$58))) -> 65366
A80: 0 | B80: 0 | C80: 0 | D80: 0 | E80: 0 | F80: 0 | G80: 0 | H80: 0 | I80: 0 | J80: 106 | K80: 24 | L80: 18 | M80: 12 | N80: 0 | O80: 0 | P80: 0 | Q80: 0 | R80: 0 | S80: 0 | T80: 0 | U80: 2 | V80: 12668 | W80: =SUM(A80:U80*(TRANSPOSE(CostCalculation!$D$38:$D$58))) -> 91440 | X80: =V80+SUM(A80:U80*(TRANSPOSE(CostCalculation!$C$38:$C$58))) -> 65366
A81: 0 | B81: 0 | C81: 0 | D81: 0 | E81: 0 | F81: 0 | G81: 0 | H81: 0 | I81: 0 | J81: 159 | K81: 36 | L81: 27 | M81: 18 | N81: 0 | O81: 0 | P81: 0 | Q81: 0 | R81: 0 | S81: 0 | T81: 0 | U81: 3 | V81: 19002 | W81: =SUM(A81:U81*(TRANSPOSE(CostCalculation!$D$38:$D$58))) -> 137160 | X81: =V81+SUM(A81:U81*(TRANSPOSE(CostCalculation!$C$38:$C$58))) -> 98049
A82: 0 | B82: 0 | C82: 0 | D82: 0 | E82: 0 | F82: 0 | G82: 0 | H82: 0 | I82: 0 | J82: 371 | K82: 84 | L82: 63 | M82: 42 | N82: 0 | O82: 0 | P82: 0 | Q82: 0 | R82: 0 | S82: 0 | T82: 0 | U82: 7 | V82: 44338 | W82: =SUM(A82:U82*(TRANSPOSE(CostCalculation!$D$38:$D$58))) -> 320040 | X82: =V82+SUM(A82:U82*(TRANSPOSE(CostCalculation!$C$38:$C$58))) -> 228781
A83: 0 | B83: 0 | C83: 0 | D83: 0 | E83: 0 | F83: 0 | G83: 0 | H83: 0 | I83: 0 | J83: 106 | K83: 24 | L83: 18 | M83: 12 | N83: 0 | O83: 0 | P83: 0 | Q83: 0 | R83: 0 | S83: 0 | T83: 0 | U83: 2 | V83: 12668 | W83: =SUM(A83:U83*(TRANSPOSE(CostCalculation!$D$38:$D$58))) -> 91440 | X83: =V83+SUM(A83:U83*(TRANSPOSE(CostCalculation!$C$38:$C$58))) -> 65366
A84: 0 | B84: 0 | C84: 0 | D84: 0 | E84: 0 | F84: 0 | G84: 0 | H84: 0 | I84: 0 | J84: 106 | K84: 24 | L84: 18 | M84: 12 | N84: 0 | O84: 0 | P84: 0 | Q84: 0 | R84: 0 | S84: 0 | T84: 0 | U84: 2 | V84: 12668 | W84: =SUM(A84:U84*(TRANSPOSE(CostCalculation!$D$38:$D$58))) -> 91440 | X84: =V84+SUM(A84:U84*(TRANSPOSE(CostCalculation!$C$38:$C$58))) -> 65366
A85: 0 | B85: 0 | C85: 0 | D85: 0 | E85: 0 | F85: 0 | G85: 0 | H85: 0 | I85: 0 | J85: 53 | K85: 12 | L85: 9 | M85: 6 | N85: 0 | O85: 0 | P85: 0 | Q85: 0 | R85: 0 | S85: 0 | T85: 0 | U85: 1 | V85: 6334 | W85: =SUM(A85:U85*(TRANSPOSE(CostCalculation!$D$38:$D$58))) -> 45720 | X85: =V85+SUM(A85:U85*(TRANSPOSE(CostCalculation!$C$38:$C$58))) -> 32683
A86: 0 | B86: 0 | C86: 0 | D86: 0 | E86: 0 | F86: 0 | G86: 0 | H86: 0 | I86: 0 | J86: 53 | K86: 12 | L86: 9 | M86: 6 | N86: 0 | O86: 0 | P86: 0 | Q86: 0 | R86: 0 | S86: 0 | T86: 0 | U86: 1 | V86: 6334 | W86: =SUM(A86:U86*(TRANSPOSE(CostCalculation!$D$38:$D$58))) -> 45720 | X86: =V86+SUM(A86:U86*(TRANSPOSE(CostCalculation!$C$38:$C$58))) -> 32683
A87: 0 | B87: 0 | C87: 0 | D87: 0 | E87: 0 | F87: 0 | G87: 0 | H87: 0 | I87: 0 | J87: 477 | K87: 108 | L87: 81 | M87: 54 | N87: 0 | O87: 0 | P87: 0 | Q87: 0 | R87: 0 | S87: 0 | T87: 0 | U87: 9 | V87: 57006 | W87: =SUM(A87:U87*(TRANSPOSE(CostCalculation!$D$38:$D$58))) -> 411480 | X87: =V87+SUM(A87:U87*(TRANSPOSE(CostCalculation!$C$38:$C$58))) -> 294147
A88: 0 | B88: 0 | C88: 0 | D88: 0 | E88: 0 | F88: 0 | G88: 0 | H88: 0 | I88: 0 | J88: 159 | K88: 36 | L88: 27 | M88: 18 | N88: 0 | O88: 0 | P88: 0 | Q88: 0 | R88: 0 | S88: 0 | T88: 0 | U88: 3 | V88: 19002 | W88: =SUM(A88:U88*(TRANSPOSE(CostCalculation!$D$38:$D$58))) -> 137160 | X88: =V88+SUM(A88:U88*(TRANSPOSE(CostCalculation!$C$38:$C$58))) -> 98049
A89: 0 | B89: 0 | C89: 0 | D89: 0 | E89: 0 | F89: 0 | G89: 0 | H89: 0 | I89: 0 | J89: 53 | K89: 12 | L89: 9 | M89: 6 | N89: 0 | O89: 0 | P89: 0 | Q89: 0 | R89: 0 | S89: 0 | T89: 0 | U89: 1 | V89: 6334 | W89: =SUM(A89:U89*(TRANSPOSE(CostCalculation!$D$38:$D$58))) -> 45720 | X89: =V89+SUM(A89:U89*(TRANSPOSE(CostCalculation!$C$38:$C$58))) -> 32683
A90: 0 | B90: 0 | C90: 0 | D90: 0 | E90: 0 | F90: 0 | G90: 0 | H90: 0 | I90: 0 | J90: 159 | K90: 36 | L90: 27 | M90: 18 | N90: 0 | O90: 0 | P90: 0 | Q90: 0 | R90: 0 | S90: 0 | T90: 0 | U90: 3 | V90: 19002 | W90: =SUM(A90:U90*(TRANSPOSE(CostCalculation!$D$38:$D$58))) -> 137160 | X90: =V90+SUM(A90:U90*(TRANSPOSE(CostCalculation!$C$38:$C$58))) -> 98049
A91: 0 | B91: 0 | C91: 0 | D91: 0 | E91: 0 | F91: 0 | G91: 0 | H91: 0 | I91: 0 | J91: 106 | K91: 24 | L91: 18 | M91: 12 | N91: 0 | O91: 0 | P91: 0 | Q91: 0 | R91: 0 | S91: 0 | T91: 0 | U91: 2 | V91: 12668 | W91: =SUM(A91:U91*(TRANSPOSE(CostCalculation!$D$38:$D$58))) -> 91440 | X91: =V91+SUM(A91:U91*(TRANSPOSE(CostCalculation!$C$38:$C$58))) -> 65366
A92: 0 | B92: 0 | C92: 0 | D92: 0 | E92: 0 | F92: 0 | G92: 0 | H92: 0 | I92: 0 | J92: 159 | K92: 36 | L92: 27 | M92: 18 | N92: 0 | O92: 0 | P92: 0 | Q92: 0 | R92: 0 | S92: 0 | T92: 0 | U92: 3 | V92: 19002 | W92: =SUM(A92:U92*(TRANSPOSE(CostCalculation!$D$38:$D$58))) -> 137160 | X92: =V92+SUM(A92:U92*(TRANSPOSE(CostCalculation!$C$38:$C$58))) -> 98049
A93: 0 | B93: 0 | C93: 0 | D93: 0 | E93: 0 | F93: 0 | G93: 0 | H93: 0 | I93: 0 | J93: 159 | K93: 36 | L93: 27 | M93: 18 | N93: 0 | O93: 0 | P93: 0 | Q93: 0 | R93: 0 | S93: 0 | T93: 0 | U93: 3 | V93: 19002 | W93: =SUM(A93:U93*(TRANSPOSE(CostCalculation!$D$38:$D$58))) -> 137160 | X93: =V93+SUM(A93:U93*(TRANSPOSE(CostCalculation!$C$38:$C$58))) -> 98049
A94: 0 | B94: 0 | C94: 0 | D94: 0 | E94: 0 | F94: 0 | G94: 0 | H94: 0 | I94: 0 | J94: 159 | K94: 36 | L94: 27 | M94: 18 | N94: 0 | O94: 0 | P94: 0 | Q94: 0 | R94: 0 | S94: 0 | T94: 0 | U94: 3 | V94: 19002 | W94: =SUM(A94:U94*(TRANSPOSE(CostCalculation!$D$38:$D$58))) -> 137160 | X94: =V94+SUM(A94:U94*(TRANSPOSE(CostCalculation!$C$38:$C$58))) -> 98049
A95: 0 | B95: 0 | C95: 0 | D95: 0 | E95: 0 | F95: 0 | G95: 0 | H95: 0 | I95: 0 | J95: 212 | K95: 48 | L95: 36 | M95: 24 | N95: 0 | O95: 0 | P95: 0 | Q95: 0 | R95: 0 | S95: 0 | T95: 0 | U95: 4 | V95: 25336 | W95: =SUM(A95:U95*(TRANSPOSE(CostCalculation!$D$38:$D$58))) -> 182880 | X95: =V95+SUM(A95:U95*(TRANSPOSE(CostCalculation!$C$38:$C$58))) -> 130732
A96: 0 | B96: 0 | C96: 0 | D96: 0 | E96: 0 | F96: 0 | G96: 0 | H96: 0 | I96: 0 | J96: 159 | K96: 36 | L96: 27 | M96: 18 | N96: 0 | O96: 0 | P96: 0 | Q96: 0 | R96: 0 | S96: 0 | T96: 0 | U96: 3 | V96: 19002 | W96: =SUM(A96:U96*(TRANSPOSE(CostCalculation!$D$38:$D$58))) -> 137160 | X96: =V96+SUM(A96:U96*(TRANSPOSE(CostCalculation!$C$38:$C$58))) -> 98049
A97: 0 | B97: 0 | C97: 0 | D97: 0 | E97: 0 | F97: 0 | G97: 0 | H97: 0 | I97: 0 | J97: 212 | K97: 48 | L97: 36 | M97: 24 | N97: 0 | O97: 0 | P97: 0 | Q97: 0 | R97: 0 | S97: 0 | T97: 0 | U97: 4 | V97: 25336 | W97: =SUM(A97:U97*(TRANSPOSE(CostCalculation!$D$38:$D$58))) -> 182880 | X97: =V97+SUM(A97:U97*(TRANSPOSE(CostCalculation!$C$38:$C$58))) -> 130732
A98: 0 | B98: 0 | C98: 0 | D98: 0 | E98: 0 | F98: 0 | G98: 0 | H98: 0 | I98: 0 | J98: 424 | K98: 96 | L98: 72 | M98: 48 | N98: 0 | O98: 0 | P98: 0 | Q98: 0 | R98: 0 | S98: 0 | T98: 0 | U98: 8 | V98: 50672 | W98: =SUM(A98:U98*(TRANSPOSE(CostCalculation!$D$38:$D$58))) -> 365760 | X98: =V98+SUM(A98:U98*(TRANSPOSE(CostCalculation!$C$38:$C$58))) -> 261464
A99: 0 | B99: 0 | C99: 0 | D99: 0 | E99: 0 | F99: 0 | G99: 0 | H99: 0 | I99: 0 | J99: 265 | K99: 60 | L99: 45 | M99: 30 | N99: 0 | O99: 0 | P99: 0 | Q99: 0 | R99: 0 | S99: 0 | T99: 0 | U99: 5 | V99: 31670 | W99: =SUM(A99:U99*(TRANSPOSE(CostCalculation!$D$38:$D$58))) -> 228600 | X99: =V99+SUM(A99:U99*(TRANSPOSE(CostCalculation!$C$38:$C$58))) -> 163415
A100: 0 | B100: 0 | C100: 0 | D100: 0 | E100: 0 | F100: 0 | G100: 0 | H100: 0 | I100: 0 | J100: 53 | K100: 12 | L100: 9 | M100: 6 | N100: 0 | O100: 0 | P100: 0 | Q100: 0 | R100: 0 | S100: 0 | T100: 0 | U100: 1 | V100: 6334 | W100: =SUM(A100:U100*(TRANSPOSE(CostCalculation!$D$38:$D$58))) -> 45720 | X100: =V100+SUM(A100:U100*(TRANSPOSE(CostCalculation!$C$38:$C$58))) -> 32683
A101: 0 | B101: 0 | C101: 0 | D101: 0 | E101: 0 | F101: 0 | G101: 0 | H101: 0 | I101: 0 | J101: 371 | K101: 84 | L101: 63 | M101: 42 | N101: 0 | O101: 0 | P101: 0 | Q101: 0 | R101: 0 | S101: 0 | T101: 0 | U101: 7 | V101: 44338 | W101: =SUM(A101:U101*(TRANSPOSE(CostCalculation!$D$38:$D$58))) -> 320040 | X101: =V101+SUM(A101:U101*(TRANSPOSE(CostCalculation!$C$38:$C$58))) -> 228781
A102: 0 | B102: 0 | C102: 0 | D102: 0 | E102: 0 | F102: 0 | G102: 0 | H102: 0 | I102: 0 | J102: 159 | K102: 36 | L102: 27 | M102: 18 | N102: 0 | O102: 0 | P102: 0 | Q102: 0 | R102: 0 | S102: 0 | T102: 0 | U102: 3 | V102: 19002 | W102: =SUM(A102:U102*(TRANSPOSE(CostCalculation!$D$38:$D$58))) -> 137160 | X102: =V102+SUM(A102:U102*(TRANSPOSE(CostCalculation!$C$38:$C$58))) -> 98049
A103: 0 | B103: 0 | C103: 0 | D103: 0 | E103: 0 | F103: 0 | G103: 0 | H103: 0 | I103: 0 | J103: 212 | K103: 48 | L103: 36 | M103: 24 | N103: 0 | O103: 0 | P103: 0 | Q103: 0 | R103: 0 | S103: 0 | T103: 0 | U103: 4 | V103: 25336 | W103: =SUM(A103:U103*(TRANSPOSE(CostCalculation!$D$38:$D$58))) -> 182880 | X103: =V103+SUM(A103:U103*(TRANSPOSE(CostCalculation!$C$38:$C$58))) -> 130732
A104: 0 | B104: 0 | C104: 0 | D104: 0 | E104: 0 | F104: 0 | G104: 0 | H104: 0 | I104: 0 | J104: 159 | K104: 36 | L104: 27 | M104: 18 | N104: 0 | O104: 0 | P104: 0 | Q104: 0 | R104: 0 | S104: 0 | T104: 0 | U104: 3 | V104: 19002 | W104: =SUM(A104:U104*(TRANSPOSE(CostCalculation!$D$38:$D$58))) -> 137160 | X104: =V104+SUM(A104:U104*(TRANSPOSE(CostCalculation!$C$38:$C$58))) -> 98049
A105: 0 | B105: 0 | C105: 0 | D105: 0 | E105: 0 | F105: 0 | G105: 0 | H105: 0 | I105: 0 | J105: 318 | K105: 72 | L105: 54 | M105: 36 | N105: 0 | O105: 0 | P105: 0 | Q105: 0 | R105: 0 | S105: 0 | T105: 0 | U105: 6 | V105: 38004 | W105: =SUM(A105:U105*(TRANSPOSE(CostCalculation!$D$38:$D$58))) -> 274320 | X105: =V105+SUM(A105:U105*(TRANSPOSE(CostCalculation!$C$38:$C$58))) -> 196098
A106: 0 | B106: 0 | C106: 0 | D106: 0 | E106: 0 | F106: 0 | G106: 0 | H106: 0 | I106: 0 | J106: 159 | K106: 36 | L106: 27 | M106: 18 | N106: 0 | O106: 0 | P106: 0 | Q106: 0 | R106: 0 | S106: 0 | T106: 0 | U106: 3 | V106: 19002 | W106: =SUM(A106:U106*(TRANSPOSE(CostCalculation!$D$38:$D$58))) -> 137160 | X106: =V106+SUM(A106:U106*(TRANSPOSE(CostCalculation!$C$38:$C$58))) -> 98049
A107: 0 | B107: 0 | C107: 0 | D107: 0 | E107: 0 | F107: 0 | G107: 0 | H107: 0 | I107: 0 | J107: 265 | K107: 60 | L107: 45 | M107: 30 | N107: 0 | O107: 0 | P107: 0 | Q107: 0 | R107: 0 | S107: 0 | T107: 0 | U107: 5 | V107: 31670 | W107: =SUM(A107:U107*(TRANSPOSE(CostCalculation!$D$38:$D$58))) -> 228600 | X107: =V107+SUM(A107:U107*(TRANSPOSE(CostCalculation!$C$38:$C$58))) -> 163415
A108: 0 | B108: 0 | C108: 0 | D108: 0 | E108: 0 | F108: 0 | G108: 0 | H108: 0 | I108: 0 | J108: 106 | K108: 24 | L108: 18 | M108: 12 | N108: 0 | O108: 0 | P108: 0 | Q108: 0 | R108: 0 | S108: 0 | T108: 0 | U108: 2 | V108: 12668 | W108: =SUM(A108:U108*(TRANSPOSE(CostCalculation!$D$38:$D$58))) -> 91440 | X108: =V108+SUM(A108:U108*(TRANSPOSE(CostCalculation!$C$38:$C$58))) -> 65366
A109: 0 | B109: 0 | C109: 0 | D109: 0 | E109: 0 | F109: 0 | G109: 0 | H109: 0 | I109: 0 | J109: 159 | K109: 36 | L109: 27 | M109: 18 | N109: 0 | O109: 0 | P109: 0 | Q109: 0 | R109: 0 | S109: 0 | T109: 0 | U109: 3 | V109: 19002 | W109: =SUM(A109:U109*(TRANSPOSE(CostCalculation!$D$38:$D$58))) -> 137160 | X109: =V109+SUM(A109:U109*(TRANSPOSE(CostCalculation!$C$38:$C$58))) -> 98049
A110: 0 | B110: 0 | C110: 0 | D110: 0 | E110: 0 | F110: 0 | G110: 0 | H110: 0 | I110: 0 | J110: 318 | K110: 72 | L110: 54 | M110: 36 | N110: 0 | O110: 0 | P110: 0 | Q110: 0 | R110: 0 | S110: 0 | T110: 0 | U110: 6 | V110: 38004 | W110: =SUM(A110:U110*(TRANSPOSE(CostCalculation!$D$38:$D$58))) -> 274320 | X110: =V110+SUM(A110:U110*(TRANSPOSE(CostCalculation!$C$38:$C$58))) -> 196098
A111: 0 | B111: 0 | C111: 0 | D111: 0 | E111: 0 | F111: 0 | G111: 0 | H111: 0 | I111: 0 | J111: 53 | K111: 12 | L111: 9 | M111: 6 | N111: 0 | O111: 0 | P111: 0 | Q111: 0 | R111: 0 | S111: 0 | T111: 0 | U111: 1 | V111: 6334 | W111: =SUM(A111:U111*(TRANSPOSE(CostCalculation!$D$38:$D$58))) -> 45720 | X111: =V111+SUM(A111:U111*(TRANSPOSE(CostCalculation!$C$38:$C$58))) -> 32683
A112: 0 | B112: 0 | C112: 0 | D112: 0 | E112: 0 | F112: 0 | G112: 0 | H112: 0 | I112: 0 | J112: 106 | K112: 24 | L112: 18 | M112: 12 | N112: 0 | O112: 0 | P112: 0 | Q112: 0 | R112: 0 | S112: 0 | T112: 0 | U112: 2 | V112: 12668 | W112: =SUM(A112:U112*(TRANSPOSE(CostCalculation!$D$38:$D$58))) -> 91440 | X112: =V112+SUM(A112:U112*(TRANSPOSE(CostCalculation!$C$38:$C$58))) -> 65366
A113: 0 | B113: 0 | C113: 0 | D113: 0 | E113: 0 | F113: 0 | G113: 0 | H113: 0 | I113: 0 | J113: 159 | K113: 36 | L113: 27 | M113: 18 | N113: 0 | O113: 0 | P113: 0 | Q113: 0 | R113: 0 | S113: 0 | T113: 0 | U113: 3 | V113: 19002 | W113: =SUM(A113:U113*(TRANSPOSE(CostCalculation!$D$38:$D$58))) -> 137160 | X113: =V113+SUM(A113:U113*(TRANSPOSE(CostCalculation!$C$38:$C$58))) -> 98049
A114: 0 | B114: 0 | C114: 0 | D114: 0 | E114: 0 | F114: 0 | G114: 0 | H114: 0 | I114: 0 | J114: 159 | K114: 36 | L114: 27 | M114: 18 | N114: 0 | O114: 0 | P114: 0 | Q114: 0 | R114: 0 | S114: 0 | T114: 0 | U114: 3 | V114: 19002 | W114: =SUM(A114:U114*(TRANSPOSE(CostCalculation!$D$38:$D$58))) -> 137160 | X114: =V114+SUM(A114:U114*(TRANSPOSE(CostCalculation!$C$38:$C$58))) -> 98049
A115: 0 | B115: 0 | C115: 0 | D115: 0 | E115: 0 | F115: 0 | G115: 0 | H115: 0 | I115: 0 | J115: 318 | K115: 72 | L115: 54 | M115: 36 | N115: 0 | O115: 0 | P115: 0 | Q115: 0 | R115: 0 | S115: 0 | T115: 0 | U115: 6 | V115: 38004 | W115: =SUM(A115:U115*(TRANSPOSE(CostCalculation!$D$38:$D$58))) -> 274320 | X115: =V115+SUM(A115:U115*(TRANSPOSE(CostCalculation!$C$38:$C$58))) -> 196098
A116: 0 | B116: 0 | C116: 0 | D116: 0 | E116: 0 | F116: 0 | G116: 0 | H116: 0 | I116: 0 | J116: 53 | K116: 12 | L116: 9 | M116: 6 | N116: 0 | O116: 0 | P116: 0 | Q116: 0 | R116: 0 | S116: 0 | T116: 0 | U116: 1 | V116: 6334 | W116: =SUM(A116:U116*(TRANSPOSE(CostCalculation!$D$38:$D$58))) -> 45720 | X116: =V116+SUM(A116:U116*(TRANSPOSE(CostCalculation!$C$38:$C$58))) -> 32683
A117: 0 | B117: 0 | C117: 0 | D117: 0 | E117: 0 | F117: 0 | G117: 0 | H117: 0 | I117: 0 | J117: 159 | K117: 36 | L117: 27 | M117: 18 | N117: 0 | O117: 0 | P117: 0 | Q117: 0 | R117: 0 | S117: 0 | T117: 0 | U117: 3 | V117: 19002 | W117: =SUM(A117:U117*(TRANSPOSE(CostCalculation!$D$38:$D$58))) -> 137160 | X117: =V117+SUM(A117:U117*(TRANSPOSE(CostCalculation!$C$38:$C$58))) -> 98049
A118: 0 | B118: 0 | C118: 0 | D118: 0 | E118: 0 | F118: 0 | G118: 0 | H118: 0 | I118: 0 | J118: 106 | K118: 24 | L118: 18 | M118: 12 | N118: 0 | O118: 0 | P118: 0 | Q118: 0 | R118: 0 | S118: 0 | T118: 0 | U118: 2 | V118: 12668 | W118: =SUM(A118:U118*(TRANSPOSE(CostCalculation!$D$38:$D$58))) -> 91440 | X118: =V118+SUM(A118:U118*(TRANSPOSE(CostCalculation!$C$38:$C$58))) -> 65366
A119: 0 | B119: 0 | C119: 0 | D119: 0 | E119: 0 | F119: 0 | G119: 0 | H119: 0 | I119: 0 | J119: 106 | K119: 24 | L119: 18 | M119: 12 | N119: 0 | O119: 0 | P119: 0 | Q119: 0 | R119: 0 | S119: 0 | T119: 0 | U119: 2 | V119: 12668 | W119: =SUM(A119:U119*(TRANSPOSE(CostCalculation!$D$38:$D$58))) -> 91440 | X119: =V119+SUM(A119:U119*(TRANSPOSE(CostCalculation!$C$38:$C$58))) -> 65366
A120: 0 | B120: 0 | C120: 0 | D120: 0 | E120: 0 | F120: 0 | G120: 0 | H120: 0 | I120: 0 | J120: 53 | K120: 12 | L120: 9 | M120: 6 | N120: 0 | O120: 0 | P120: 0 | Q120: 0 | R120: 0 | S120: 0 | T120: 0 | U120: 1 | V120: 6334 | W120: =SUM(A120:U120*(TRANSPOSE(CostCalculation!$D$38:$D$58))) -> 45720 | X120: =V120+SUM(A120:U120*(TRANSPOSE(CostCalculation!$C$38:$C$58))) -> 32683
A121: 0 | B121: 0 | C121: 0 | D121: 0 | E121: 0 | F121: 0 | G121: 0 | H121: 0 | I121: 0 | J121: 477 | K121: 108 | L121: 81 | M121: 54 | N121: 0 | O121: 0 | P121: 0 | Q121: 0 | R121: 0 | S121: 0 | T121: 0 | U121: 9 | V121: 57006 | W121: =SUM(A121:U121*(TRANSPOSE(CostCalculation!$D$38:$D$58))) -> 411480 | X121: =V121+SUM(A121:U121*(TRANSPOSE(CostCalculation!$C$38:$C$58))) -> 294147
A122: 0 | B122: 0 | C122: 0 | D122: 0 | E122: 0 | F122: 0 | G122: 0 | H122: 0 | I122: 0 | J122: 265 | K122: 60 | L122: 45 | M122: 30 | N122: 0 | O122: 0 | P122: 0 | Q122: 0 | R122: 0 | S122: 0 | T122: 0 | U122: 5 | V122: 31670 | W122: =SUM(A122:U122*(TRANSPOSE(CostCalculation!$D$38:$D$58))) -> 228600 | X122: =V122+SUM(A122:U122*(TRANSPOSE(CostCalculation!$C$38:$C$58))) -> 163415
A123: 0 | B123: 0 | C123: 0 | D123: 0 | E123: 0 | F123: 0 | G123: 0 | H123: 0 | I123: 0 | J123: 371 | K123: 84 | L123: 63 | M123: 42 | N123: 0 | O123: 0 | P123: 0 | Q123: 0 | R123: 0 | S123: 0 | T123: 0 | U123: 7 | V123: 44338 | W123: =SUM(A123:U123*(TRANSPOSE(CostCalculation!$D$38:$D$58))) -> 320040 | X123: =V123+SUM(A123:U123*(TRANSPOSE(CostCalculation!$C$38:$C$58))) -> 228781
A124: 0 | B124: 0 | C124: 0 | D124: 0 | E124: 0 | F124: 0 | G124: 0 | H124: 0 | I124: 0 | J124: 318 | K124: 72 | L124: 54 | M124: 36 | N124: 0 | O124: 0 | P124: 0 | Q124: 0 | R124: 0 | S124: 0 | T124: 0 | U124: 6 | V124: 38004 | W124: =SUM(A124:U124*(TRANSPOSE(CostCalculation!$D$38:$D$58))) -> 274320 | X124: =V124+SUM(A124:U124*(TRANSPOSE(CostCalculation!$C$38:$C$58))) -> 196098
A125: 0 | B125: 0 | C125: 0 | D125: 0 | E125: 0 | F125: 0 | G125: 0 | H125: 0 | I125: 0 | J125: 212 | K125: 48 | L125: 36 | M125: 24 | N125: 0 | O125: 0 | P125: 0 | Q125: 0 | R125: 0 | S125: 0 | T125: 0 | U125: 4 | V125: 25336 | W125: =SUM(A125:U125*(TRANSPOSE(CostCalculation!$D$38:$D$58))) -> 182880 | X125: =V125+SUM(A125:U125*(TRANSPOSE(CostCalculation!$C$38:$C$58))) -> 130732
A126: 0 | B126: 0 | C126: 0 | D126: 0 | E126: 0 | F126: 0 | G126: 0 | H126: 0 | I126: 0 | J126: 318 | K126: 72 | L126: 54 | M126: 36 | N126: 0 | O126: 0 | P126: 0 | Q126: 0 | R126: 0 | S126: 0 | T126: 0 | U126: 6 | V126: 38004 | W126: =SUM(A126:U126*(TRANSPOSE(CostCalculation!$D$38:$D$58))) -> 274320 | X126: =V126+SUM(A126:U126*(TRANSPOSE(CostCalculation!$C$38:$C$58))) -> 196098
A127: 0 | B127: 0 | C127: 0 | D127: 0 | E127: 0 | F127: 0 | G127: 0 | H127: 0 | I127: 0 | J127: 795 | K127: 180 | L127: 135 | M127: 90 | N127: 0 | O127: 0 | P127: 0 | Q127: 0 | R127: 0 | S127: 0 | T127: 0 | U127: 15 | V127: 95010 | W127: =SUM(A127:U127*(TRANSPOSE(CostCalculation!$D$38:$D$58))) -> 685800 | X127: =V127+SUM(A127:U127*(TRANSPOSE(CostCalculation!$C$38:$C$58))) -> 490245
A128: 0 | B128: 0 | C128: 0 | D128: 0 | E128: 0 | F128: 0 | G128: 0 | H128: 0 | I128: 0 | J128: 159 | K128: 36 | L128: 27 | M128: 18 | N128: 0 | O128: 0 | P128: 0 | Q128: 0 | R128: 0 | S128: 0 | T128: 0 | U128: 3 | V128: 19002 | W128: =SUM(A128:U128*(TRANSPOSE(CostCalculation!$D$38:$D$58))) -> 137160 | X128: =V128+SUM(A128:U128*(TRANSPOSE(CostCalculation!$C$38:$C$58))) -> 98049
A129: 0 | B129: 0 | C129: 0 | D129: 0 | E129: 0 | F129: 0 | G129: 0 | H129: 0 | I129: 0 | J129: 106 | K129: 24 | L129: 18 | M129: 12 | N129: 0 | O129: 0 | P129: 0 | Q129: 0 | R129: 0 | S129: 0 | T129: 0 | U129: 2 | V129: 12668 | W129: =SUM(A129:U129*(TRANSPOSE(CostCalculation!$D$38:$D$58))) -> 91440 | X129: =V129+SUM(A129:U129*(TRANSPOSE(CostCalculation!$C$38:$C$58))) -> 65366
A130: 0 | B130: 0 | C130: 0 | D130: 0 | E130: 0 | F130: 0 | G130: 0 | H130: 0 | I130: 0 | J130: 159 | K130: 36 | L130: 27 | M130: 18 | N130: 0 | O130: 0 | P130: 0 | Q130: 0 | R130: 0 | S130: 0 | T130: 0 | U130: 3 | V130: 19002 | W130: =SUM(A130:U130*(TRANSPOSE(CostCalculation!$D$38:$D$58))) -> 137160 | X130: =V130+SUM(A130:U130*(TRANSPOSE(CostCalculation!$C$38:$C$58))) -> 98049
A131: 0 | B131: 0 | C131: 0 | D131: 0 | E131: 0 | F131: 0 | G131: 0 | H131: 0 | I131: 0 | J131: 53 | K131: 12 | L131: 9 | M131: 6 | N131: 0 | O131: 0 | P131: 0 | Q131: 0 | R131: 0 | S131: 0 | T131: 0 | U131: 1 | V131: 6334 | W131: =SUM(A131:U131*(TRANSPOSE(CostCalculation!$D$38:$D$58))) -> 45720 | X131: =V131+SUM(A131:U131*(TRANSPOSE(CostCalculation!$C$38:$C$58))) -> 32683
A132: 0 | B132: 0 | C132: 0 | D132: 0 | E132: 0 | F132: 0 | G132: 0 | H132: 0 | I132: 0 | J132: 371 | K132: 84 | L132: 63 | M132: 42 | N132: 0 | O132: 0 | P132: 0 | Q132: 0 | R132: 0 | S132: 0 | T132: 0 | U132: 7 | V132: 44338 | W132: =SUM(A132:U132*(TRANSPOSE(CostCalculation!$D$38:$D$58))) -> 320040 | X132: =V132+SUM(A132:U132*(TRANSPOSE(CostCalculation!$C$38:$C$58))) -> 228781
A133: 0 | B133: 0 | C133: 0 | D133: 0 | E133: 0 | F133: 0 | G133: 0 | H133: 0 | I133: 0 | J133: 265 | K133: 60 | L133: 45 | M133: 30 | N133: 0 | O133: 0 | P133: 0 | Q133: 0 | R133: 0 | S133: 0 | T133: 0 | U133: 5 | V133: 31670 | W133: =SUM(A133:U133*(TRANSPOSE(CostCalculation!$D$38:$D$58))) -> 228600 | X133: =V133+SUM(A133:U133*(TRANSPOSE(CostCalculation!$C$38:$C$58))) -> 163415
A134: 0 | B134: 0 | C134: 0 | D134: 0 | E134: 0 | F134: 0 | G134: 0 | H134: 0 | I134: 0 | J134: 106 | K134: 24 | L134: 18 | M134: 12 | N134: 0 | O134: 0 | P134: 0 | Q134: 0 | R134: 0 | S134: 0 | T134: 0 | U134: 2 | V134: 12668 | W134: =SUM(A134:U134*(TRANSPOSE(CostCalculation!$D$38:$D$58))) -> 91440 | X134: =V134+SUM(A134:U134*(TRANSPOSE(CostCalculation!$C$38:$C$58))) -> 65366
A135: 0 | B135: 0 | C135: 0 | D135: 0 | E135: 0 | F135: 0 | G135: 0 | H135: 0 | I135: 0 | J135: 159 | K135: 36 | L135: 27 | M135: 18 | N135: 0 | O135: 0 | P135: 0 | Q135: 0 | R135: 0 | S135: 0 | T135: 0 | U135: 3 | V135: 19002 | W135: =SUM(A135:U135*(TRANSPOSE(CostCalculation!$D$38:$D$58))) -> 137160 | X135: =V135+SUM(A135:U135*(TRANSPOSE(CostCalculation!$C$38:$C$58))) -> 98049
A136: 0 | B136: 0 | C136: 0 | D136: 0 | E136: 0 | F136: 0 | G136: 0 | H136: 0 | I136: 0 | J136: 212 | K136: 48 | L136: 36 | M136: 24 | N136: 0 | O136: 0 | P136: 0 | Q136: 0 | R136: 0 | S136: 0 | T136: 0 | U136: 4 | V136: 25336 | W136: =SUM(A136:U136*(TRANSPOSE(CostCalculation!$D$38:$D$58))) -> 182880 | X136: =V136+SUM(A136:U136*(TRANSPOSE(CostCalculation!$C$38:$C$58))) -> 130732
A137: 0 | B137: 0 | C137: 0 | D137: 0 | E137: 0 | F137: 0 | G137: 0 | H137: 0 | I137: 0 | J137: 318 | K137: 72 | L137: 54 | M137: 36 | N137: 0 | O137: 0 | P137: 0 | Q137: 0 | R137: 0 | S137: 0 | T137: 0 | U137: 6 | V137: 38004 | W137: =SUM(A137:U137*(TRANSPOSE(CostCalculation!$D$38:$D$58))) -> 274320 | X137: =V137+SUM(A137:U137*(TRANSPOSE(CostCalculation!$C$38:$C$58))) -> 196098
A138: 0 | B138: 0 | C138: 0 | D138: 0 | E138: 0 | F138: 0 | G138: 0 | H138: 0 | I138: 0 | J138: 106 | K138: 24 | L138: 18 | M138: 12 | N138: 0 | O138: 0 | P138: 0 | Q138: 0 | R138: 0 | S138: 0 | T138: 0 | U138: 2 | V138: 12668 | W138: =SUM(A138:U138*(TRANSPOSE(CostCalculation!$D$38:$D$58))) -> 91440 | X138: =V138+SUM(A138:U138*(TRANSPOSE(CostCalculation!$C$38:$C$58))) -> 65366
A139: 0 | B139: 0 | C139: 0 | D139: 0 | E139: 0 | F139: 0 | G139: 0 | H139: 0 | I139: 0 | J139: 53 | K139: 12 | L139: 9 | M139: 6 | N139: 0 | O139: 0 | P139: 0 | Q139: 0 | R139: 0 | S139: 0 | T139: 0 | U139: 1 | V139: 6334 | W139: =SUM(A139:U139*(TRANSPOSE(CostCalculation!$D$38:$D$58))) -> 45720 | X139: =V139+SUM(A139:U139*(TRANSPOSE(CostCalculation!$C$38:$C$58))) -> 32683
A140: 0 | B140: 0 | C140: 0 | D140: 0 | E140: 0 | F140: 0 | G140: 0 | H140: 0 | I140: 0 | J140: 159 | K140: 36 | L140: 27 | M140: 18 | N140: 0 | O140: 0 | P140: 0 | Q140: 0 | R140: 0 | S140: 0 | T140: 0 | U140: 3 | V140: 19002 | W140: =SUM(A140:U140*(TRANSPOSE(CostCalculation!$D$38:$D$58))) -> 137160 | X140: =V140+SUM(A140:U140*(TRANSPOSE(CostCalculation!$C$38:$C$58))) -> 98049
A141: 0 | B141: 0 | C141: 0 | D141: 0 | E141: 0 | F141: 0 | G141: 0 | H141: 0 | I141: 0 | J141: 371 | K141: 84 | L141: 63 | M141: 42 | N141: 0 | O141: 0 | P141: 0 | Q141: 0 | R141: 0 | S141: 0 | T141: 0 | U141: 7 | V141: 44338 | W141: =SUM(A141:U141*(TRANSPOSE(CostCalculation!$D$38:$D$58))) -> 320040 | X141: =V141+SUM(A141:U141*(TRANSPOSE(CostCalculation!$C$38:$C$58))) -> 228781
A142: 0 | B142: 0 | C142: 0 | D142: 0 | E142: 0 | F142: 0 | G142: 0 | H142: 0 | I142: 0 | J142: 106 | K142: 24 | L142: 18 | M142: 12 | N142: 0 | O142: 0 | P142: 0 | Q142: 0 | R142: 0 | S142: 0 | T142: 0 | U142: 2 | V142: 12668 | W142: =SUM(A142:U142*(TRANSPOSE(CostCalculation!$D$38:$D$58))) -> 91440 | X142: =V142+SUM(A142:U142*(TRANSPOSE(CostCalculation!$C$38:$C$58))) -> 65366
A143: 0 | B143: 0 | C143: 0 | D143: 0 | E143: 0 | F143: 0 | G143: 0 | H143: 0 | I143: 0 | J143: 159 | K143: 36 | L143: 27 | M143: 18 | N143: 0 | O143: 0 | P143: 0 | Q143: 0 | R143: 0 | S143: 0 | T143: 0 | U143: 3 | V143: 19002 | W143: =SUM(A143:U143*(TRANSPOSE(CostCalculation!$D$38:$D$58))) -> 137160 | X143: =V143+SUM(A143:U143*(TRANSPOSE(CostCalculation!$C$38:$C$58))) -> 98049
A144: 0 | B144: 0 | C144: 0 | D144: 0 | E144: 0 | F144: 0 | G144: 0 | H144: 0 | I144: 0 | J144: 159 | K144: 36 | L144: 27 | M144: 18 | N144: 0 | O144: 0 | P144: 0 | Q144: 0 | R144: 0 | S144: 0 | T144: 0 | U144: 3 | V144: 19002 | W144: =SUM(A144:U144*(TRANSPOSE(CostCalculation!$D$38:$D$58))) -> 137160 | X144: =V144+SUM(A144:U144*(TRANSPOSE(CostCalculation!$C$38:$C$58))) -> 98049
A145: 0 | B145: 0 | C145: 0 | D145: 0 | E145: 0 | F145: 0 | G145: 0 | H145: 0 | I145: 0 | J145: 159 | K145: 36 | L145: 27 | M145: 18 | N145: 0 | O145: 0 | P145: 0 | Q145: 0 | R145: 0 | S145: 0 | T145: 0 | U145: 3 | V145: 19002 | W145: =SUM(A145:U145*(TRANSPOSE(CostCalculation!$D$38:$D$58))) -> 137160 | X145: =V145+SUM(A145:U145*(TRANSPOSE(CostCalculation!$C$38:$C$58))) -> 98049
A146: 0 | B146: 0 | C146: 0 | D146: 0 | E146: 0 | F146: 0 | G146: 0 | H146: 0 | I146: 0 | J146: 265 | K146: 60 | L146: 45 | M146: 30 | N146: 0 | O146: 0 | P146: 0 | Q146: 0 | R146: 0 | S146: 0 | T146: 0 | U146: 5 | V146: 31670 | W146: =SUM(A146:U146*(TRANSPOSE(CostCalculation!$D$38:$D$58))) -> 228600 | X146: =V146+SUM(A146:U146*(TRANSPOSE(CostCalculation!$C$38:$C$58))) -> 163415
A147: 0 | B147: 0 | C147: 0 | D147: 0 | E147: 0 | F147: 0 | G147: 0 | H147: 0 | I147: 0 | J147: 212 | K147: 48 | L147: 36 | M147: 24 | N147: 0 | O147: 0 | P147: 0 | Q147: 0 | R147: 0 | S147: 0 | T147: 0 | U147: 4 | V147: 25336 | W147: =SUM(A147:U147*(TRANSPOSE(CostCalculation!$D$38:$D$58))) -> 182880 | X147: =V147+SUM(A147:U147*(TRANSPOSE(CostCalculation!$C$38:$C$58))) -> 130732
A148: 0 | B148: 0 | C148: 0 | D148: 0 | E148: 0 | F148: 0 | G148: 0 | H148: 0 | I148: 0 | J148: 371 | K148: 84 | L148: 63 | M148: 42 | N148: 0 | O148: 0 | P148: 0 | Q148: 0 | R148: 0 | S148: 0 | T148: 0 | U148: 7 | V148: 44338 | W148: =SUM(A148:U148*(TRANSPOSE(CostCalculation!$D$38:$D$58))) -> 320040 | X148: =V148+SUM(A148:U148*(TRANSPOSE(CostCalculation!$C$38:$C$58))) -> 228781
A149: 0 | B149: 0 | C149: 0 | D149: 0 | E149: 0 | F149: 0 | G149: 0 | H149: 0 | I149: 0 | J149: 106 | K149: 24 | L149: 18 | M149: 12 | N149: 0 | O149: 0 | P149: 0 | Q149: 0 | R149: 0 | S149: 0 | T149: 0 | U149: 2 | V149: 12668 | W149: =SUM(A149:U149*(TRANSPOSE(CostCalculation!$D$38:$D$58))) -> 91440 | X149: =V149+SUM(A149:U149*(TRANSPOSE(CostCalculation!$C$38:$C$58))) -> 65366
A150: 0 | B150: 0 | C150: 0 | D150: 0 | E150: 0 | F150: 0 | G150: 0 | H150: 0 | I150: 0 | J150: 265 | K150: 60 | L150: 45 | M150: 30 | N150: 0 | O150: 0 | P150: 0 | Q150: 0 | R150: 0 | S150: 0 | T150: 0 | U150: 5 | V150: 31670 | W150: =SUM(A150:U150*(TRANSPOSE(CostCalculation!$D$38:$D$58))) -> 228600 | X150: =V150+SUM(A150:U150*(TRANSPOSE(CostCalculation!$C$38:$C$58))) -> 163415
A151: 0 | B151: 0 | C151: 0 | D151: 0 | E151: 0 | F151: 0 | G151: 0 | H151: 0 | I151: 0 | J151: 53 | K151: 12 | L151: 9 | M151: 6 | N151: 0 | O151: 0 | P151: 0 | Q151: 0 | R151: 0 | S151: 0 | T151: 0 | U151: 1 | V151: 6334 | W151: =SUM(A151:U151*(TRANSPOSE(CostCalculation!$D$38:$D$58))) -> 45720 | X151: =V151+SUM(A151:U151*(TRANSPOSE(CostCalculation!$C$38:$C$58))) -> 32683
A152: 0 | B152: 0 | C152: 0 | D152: 0 | E152: 0 | F152: 0 | G152: 0 | H152: 0 | I152: 0 | J152: 371 | K152: 84 | L152: 63 | M152: 42 | N152: 0 | O152: 0 | P152: 0 | Q152: 0 | R152: 0 | S152: 0 | T152: 0 | U152: 7 | V152: 44338 | W152: =SUM(A152:U152*(TRANSPOSE(CostCalculation!$D$38:$D$58))) -> 320040 | X152: =V152+SUM(A152:U152*(TRANSPOSE(CostCalculation!$C$38:$C$58))) -> 228781
A153: 0 | B153: 0 | C153: 0 | D153: 0 | E153: 0 | F153: 0 | G153: 0 | H153: 0 | I153: 0 | J153: 159 | K153: 36 | L153: 27 | M153: 18 | N153: 0 | O153: 0 | P153: 0 | Q153: 0 | R153: 0 | S153: 0 | T153: 0 | U153: 3 | V153: 19002 | W153: =SUM(A153:U153*(TRANSPOSE(CostCalculation!$D$38:$D$58))) -> 137160 | X153: =V153+SUM(A153:U153*(TRANSPOSE(CostCalculation!$C$38:$C$58))) -> 98049
A154: 0 | B154: 0 | C154: 0 | D154: 0 | E154: 0 | F154: 0 | G154: 0 | H154: 0 | I154: 0 | J154: 212 | K154: 48 | L154: 36 | M154: 24 | N154: 0 | O154: 0 | P154: 0 | Q154: 0 | R154: 0 | S154: 0 | T154: 0 | U154: 4 | V154: 25336 | W154: =SUM(A154:U154*(TRANSPOSE(CostCalculation!$D$38:$D$58))) -> 182880 | X154: =V154+SUM(A154:U154*(TRANSPOSE(CostCalculation!$C$38:$C$58))) -> 130732
A155: 0 | B155: 0 | C155: 0 | D155: 0 | E155: 0 | F155: 0 | G155: 0 | H155: 0 | I155: 0 | J155: 53 | K155: 12 | L155: 9 | M155: 6 | N155: 0 | O155: 0 | P155: 0 | Q155: 0 | R155: 0 | S155: 0 | T155: 0 | U155: 1 | V155: 6334 | W155: =SUM(A155:U155*(TRANSPOSE(CostCalculation!$D$38:$D$58))) -> 45720 | X155: =V155+SUM(A155:U155*(TRANSPOSE(CostCalculation!$C$38:$C$58))) -> 32683
A156: 0 | B156: 0 | C156: 0 | D156: 0 | E156: 0 | F156: 0 | G156: 0 | H156: 0 | I156: 0 | J156: 106 | K156: 24 | L156: 18 | M156: 12 | N156: 0 | O156: 0 | P156: 0 | Q156: 0 | R156: 0 | S156: 0 | T156: 0 | U156: 2 | V156: 12668 | W156: =SUM(A156:U156*(TRANSPOSE(CostCalculation!$D$38:$D$58))) -> 91440 | X156: =V156+SUM(A156:U156*(TRANSPOSE(CostCalculation!$C$38:$C$58))) -> 65366
A157: 0 | B157: 0 | C157: 0 | D157: 0 | E157: 0 | F157: 0 | G157: 0 | H157: 0 | I157: 0 | J157: 212 | K157: 48 | L157: 36 | M157: 24 | N157: 0 | O157: 0 | P157: 0 | Q157: 0 | R157: 0 | S157: 0 | T157: 0 | U157: 4 | V157: 25336 | W157: =SUM(A157:U157*(TRANSPOSE(CostCalculation!$D$38:$D$58))) -> 182880 | X157: =V157+SUM(A157:U157*(TRANSPOSE(CostCalculation!$C$38:$C$58))) -> 130732
A158: 0 | B158: 0 | C158: 0 | D158: 0 | E158: 0 | F158: 0 | G158: 0 | H158: 0 | I158: 0 | J158: 106 | K158: 24 | L158: 18 | M158: 12 | N158: 0 | O158: 0 | P158: 0 | Q158: 0 | R158: 0 | S158: 0 | T158: 0 | U158: 2 | V158: 12668 | W158: =SUM(A158:U158*(TRANSPOSE(CostCalculation!$D$38:$D$58))) -> 91440 | X158: =V158+SUM(A158:U158*(TRANSPOSE(CostCalculation!$C$38:$C$58))) -> 65366
A159: 0 | B159: 0 | C159: 0 | D159: 0 | E159: 0 | F159: 0 | G159: 0 | H159: 0 | I159: 0 | J159: 265 | K159: 60 | L159: 45 | M159: 30 | N159: 0 | O159: 0 | P159: 0 | Q159: 0 | R159: 0 | S159: 0 | T159: 0 | U159: 5 | V159: 31670 | W159: =SUM(A159:U159*(TRANSPOSE(CostCalculation!$D$38:$D$58))) -> 228600 | X159: =V159+SUM(A159:U159*(TRANSPOSE(CostCalculation!$C$38:$C$58))) -> 163415
A160: 0 | B160: 0 | C160: 0 | D160: 0 | E160: 0 | F160: 0 | G160: 0 | H160: 0 | I160: 0 | J160: 371 | K160: 84 | L160: 63 | M160: 42 | N160: 0 | O160: 0 | P160: 0 | Q160: 0 | R160: 0 | S160: 0 | T160: 0 | U160: 7 | V160: 44338 | W160: =SUM(A160:U160*(TRANSPOSE(CostCalculation!$D$38:$D$58))) -> 320040 | X160: =V160+SUM(A160:U160*(TRANSPOSE(CostCalculation!$C$38:$C$58))) -> 228781
A161: 0 | B161: 0 | C161: 0 | D161: 0 | E161: 0 | F161: 0 | G161: 0 | H161: 0 | I161: 0 | J161: 477 | K161: 108 | L161: 81 | M161: 54 | N161: 0 | O161: 0 | P161: 0 | Q161: 0 | R161: 0 | S161: 0 | T161: 0 | U161: 9 | V161: 57006 | W161: =SUM(A161:U161*(TRANSPOSE(CostCalculation!$D$38:$D$58))) -> 411480 | X161: =V161+SUM(A161:U161*(TRANSPOSE(CostCalculation!$C$38:$C$58))) -> 294147
A162: 0 | B162: 0 | C162: 0 | D162: 0 | E162: 0 | F162: 0 | G162: 0 | H162: 0 | I162: 0 | J162: 212 | K162: 48 | L162: 36 | M162: 24 | N162: 0 | O162: 0 | P162: 0 | Q162: 0 | R162: 0 | S162: 0 | T162: 0 | U162: 4 | V162: 25336 | W162: =SUM(A162:U162*(TRANSPOSE(CostCalculation!$D$38:$D$58))) -> 182880 | X162: =V162+SUM(A162:U162*(TRANSPOSE(CostCalculation!$C$38:$C$58))) -> 130732
A163: 0 | B163: 0 | C163: 0 | D163: 0 | E163: 0 | F163: 0 | G163: 0 | H163: 0 | I163: 0 | J163: 53 | K163: 12 | L163: 9 | M163: 6 | N163: 0 | O163: 0 | P163: 0 | Q163: 0 | R163: 0 | S163: 0 | T163: 0 | U163: 1 | V163: 6334 | W163: =SUM(A163:U163*(TRANSPOSE(CostCalculation!$D$38:$D$58))) -> 45720 | X163: =V163+SUM(A163:U163*(TRANSPOSE(CostCalculation!$C$38:$C$58))) -> 32683
A164: 0 | B164: 0 | C164: 0 | D164: 0 | E164: 0 | F164: 0 | G164: 0 | H164: 0 | I164: 0 | J164: 212 | K164: 48 | L164: 36 | M164: 24 | N164: 0 | O164: 0 | P164: 0 | Q164: 0 | R164: 0 | S164: 0 | T164: 0 | U164: 4 | V164: 25336 | W164: =SUM(A164:U164*(TRANSPOSE(CostCalculation!$D$38:$D$58))) -> 182880 | X164: =V164+SUM(A164:U164*(TRANSPOSE(CostCalculation!$C$38:$C$58))) -> 130732
A165: 0 | B165: 0 | C165: 0 | D165: 0 | E165: 0 | F165: 0 | G165: 0 | H165: 0 | I165: 0 | J165: 265 | K165: 60 | L165: 45 | M165: 30 | N165: 0 | O165: 0 | P165: 0 | Q165: 0 | R165: 0 | S165: 0 | T165: 0 | U165: 5 | V165: 31670 | W165: =SUM(A165:U165*(TRANSPOSE(CostCalculation!$D$38:$D$58))) -> 228600 | X165: =V165+SUM(A165:U165*(TRANSPOSE(CostCalculation!$C$38:$C$58))) -> 163415
A166: 0 | B166: 0 | C166: 0 | D166: 0 | E166: 0 | F166: 0 | G166: 0 | H166: 0 | I166: 0 | J166: 159 | K166: 36 | L166: 27 | M166: 18 | N166: 0 | O166: 0 | P166: 0 | Q166: 0 | R166: 0 | S166: 0 | T166: 0 | U166: 3 | V166: 19002 | W166: =SUM(A166:U166*(TRANSPOSE(CostCalculation!$D$38:$D$58))) -> 137160 | X166: =V166+SUM(A166:U166*(TRANSPOSE(CostCalculation!$C$38:$C$58))) -> 98049
A167: 0 | B167: 0 | C167: 0 | D167: 0 | E167: 0 | F167: 0 | G167: 0 | H167: 0 | I167: 0 | J167: 265 | K167: 60 | L167: 45 | M167: 30 | N167: 0 | O167: 0 | P167: 0 | Q167: 0 | R167: 0 | S167: 0 | T167: 0 | U167: 5 | V167: 31670 | W167: =SUM(A167:U167*(TRANSPOSE(CostCalculation!$D$38:$D$58))) -> 228600 | X167: =V167+SUM(A167:U167*(TRANSPOSE(CostCalculation!$C$38:$C$58))) -> 163415
A168: 0 | B168: 0 | C168: 0 | D168: 0 | E168: 0 | F168: 0 | G168: 0 | H168: 0 | I168: 0 | J168: 212 | K168: 48 | L168: 36 | M168: 24 | N168: 0 | O168: 0 | P168: 0 | Q168: 0 | R168: 0 | S168: 0 | T168: 0 | U168: 4 | V168: 25336 | W168: =SUM(A168:U168*(TRANSPOSE(CostCalculation!$D$38:$D$58))) -> 182880 | X168: =V168+SUM(A168:U168*(TRANSPOSE(CostCalculation!$C$38:$C$58))) -> 130732
A169: 0 | B169: 0 | C169: 0 | D169: 0 | E169: 0 | F169: 0 | G169: 0 | H169: 0 | I169: 0 | J169: 424 | K169: 96 | L169: 72 | M169: 48 | N169: 0 | O169: 0 | P169: 0 | Q169: 0 | R169: 0 | S169: 0 | T169: 0 | U169: 8 | V169: 50672 | W169: =SUM(A169:U169*(TRANSPOSE(CostCalculation!$D$38:$D$58))) -> 365760 | X169: =V169+SUM(A169:U169*(TRANSPOSE(CostCalculation!$C$38:$C$58))) -> 261464
A170: 0 | B170: 0 | C170: 0 | D170: 0 | E170: 0 | F170: 0 | G170: 0 | H170: 0 | I170: 0 | J170: 159 | K170: 36 | L170: 27 | M170: 18 | N170: 0 | O170: 0 | P170: 0 | Q170: 0 | R170: 0 | S170: 0 | T170: 0 | U170: 3 | V170: 19002 | W170: =SUM(A170:U170*(TRANSPOSE(CostCalculation!$D$38:$D$58))) -> 137160 | X170: =V170+SUM(A170:U170*(TRANSPOSE(CostCalculation!$C$38:$C$58))) -> 98049
A171: 0 | B171: 0 | C171: 0 | D171: 0 | E171: 0 | F171: 0 | G171: 0 | H171: 0 | I171: 0 | J171: 265 | K171: 60 | L171: 45 | M171: 30 | N171: 0 | O171: 0 | P171: 0 | Q171: 0 | R171: 0 | S171: 0 | T171: 0 | U171: 5 | V171: 31670 | W171: =SUM(A171:U171*(TRANSPOSE(CostCalculation!$D$38:$D$58))) -> 228600 | X171: =V171+SUM(A171:U171*(TRANSPOSE(CostCalculation!$C$38:$C$58))) -> 163415
A172: 0 | B172: 0 | C172: 0 | D172: 0 | E172: 0 | F172: 0 | G172: 0 | H172: 0 | I172: 0 | J172: 53 | K172: 12 | L172: 9 | M172: 6 | N172: 0 | O172: 0 | P172: 0 | Q172: 0 | R172: 0 | S172: 0 | T172: 0 | U172: 1 | V172: 6334 | W172: =SUM(A172:U172*(TRANSPOSE(CostCalculation!$D$38:$D$58))) -> 45720 | X172: =V172+SUM(A172:U172*(TRANSPOSE(CostCalculation!$C$38:$C$58))) -> 32683
A173: 0 | B173: 0 | C173: 0 | D173: 0 | E173: 0 | F173: 0 | G173: 0 | H173: 0 | I173: 0 | J173: 106 | K173: 24 | L173: 18 | M173: 12 | N173: 0 | O173: 0 | P173: 0 | Q173: 0 | R173: 0 | S173: 0 | T173: 0 | U173: 2 | V173: 12668 | W173: =SUM(A173:U173*(TRANSPOSE(CostCalculation!$D$38:$D$58))) -> 91440 | X173: =V173+SUM(A173:U173*(TRANSPOSE(CostCalculation!$C$38:$C$58))) -> 65366
A174: 0 | B174: 0 | C174: 0 | D174: 0 | E174: 0 | F174: 0 | G174: 0 | H174: 0 | I174: 0 | J174: 106 | K174: 24 | L174: 18 | M174: 12 | N174: 0 | O174: 0 | P174: 0 | Q174: 0 | R174: 0 | S174: 0 | T174: 0 | U174: 2 | V174: 12668 | W174: =SUM(A174:U174*(TRANSPOSE(CostCalculation!$D$38:$D$58))) -> 91440 | X174: =V174+SUM(A174:U174*(TRANSPOSE(CostCalculation!$C$38:$C$58))) -> 65366
A175: 0 | B175: 0 | C175: 0 | D175: 0 | E175: 0 | F175: 0 | G175: 0 | H175: 0 | I175: 0 | J175: 53 | K175: 12 | L175: 9 | M175: 6 | N175: 0 | O175: 0 | P175: 0 | Q175: 0 | R175: 0 | S175: 0 | T175: 0 | U175: 1 | V175: 6334 | W175: =SUM(A175:U175*(TRANSPOSE(CostCalculation!$D$38:$D$58))) -> 45720 | X175: =V175+SUM(A175:U175*(TRANSPOSE(CostCalculation!$C$38:$C$58))) -> 32683
A176: 0 | B176: 0 | C176: 0 | D176: 0 | E176: 0 | F176: 0 | G176: 0 | H176: 0 | I176: 0 | J176: 212 | K176: 48 | L176: 36 | M176: 24 | N176: 0 | O176: 0 | P176: 0 | Q176: 0 | R176: 0 | S176: 0 | T176: 0 | U176: 4 | V176: 25336 | W176: =SUM(A176:U176*(TRANSPOSE(CostCalculation!$D$38:$D$58))) -> 182880 | X176: =V176+SUM(A176:U176*(TRANSPOSE(CostCalculation!$C$38:$C$58))) -> 130732
A177: 0 | B177: 0 | C177: 0 | D177: 0 | E177: 0 | F177: 0 | G177: 0 | H177: 0 | I177: 0 | J177: 159 | K177: 36 | L177: 27 | M177: 18 | N177: 0 | O177: 0 | P177: 0 | Q177: 0 | R177: 0 | S177: 0 | T177: 0 | U177: 3 | V177: 19002 | W177: =SUM(A177:U177*(TRANSPOSE(CostCalculation!$D$38:$D$58))) -> 137160 | X177: =V177+SUM(A177:U177*(TRANSPOSE(CostCalculation!$C$38:$C$58))) -> 98049
A178: 0 | B178: 0 | C178: 0 | D178: 0 | E178: 0 | F178: 0 | G178: 0 | H178: 0 | I178: 0 | J178: 371 | K178: 84 | L178: 63 | M178: 42 | N178: 0 | O178: 0 | P178: 0 | Q178: 0 | R178: 0 | S178: 0 | T178: 0 | U178: 7 | V178: 44338 | W178: =SUM(A178:U178*(TRANSPOSE(CostCalculation!$D$38:$D$58))) -> 320040 | X178: =V178+SUM(A178:U178*(TRANSPOSE(CostCalculation!$C$38:$C$58))) -> 228781
A179: 0 | B179: 0 | C179: 0 | D179: 0 | E179: 0 | F179: 0 | G179: 0 | H179: 0 | I179: 0 | J179: 106 | K179: 24 | L179: 18 | M179: 12 | N179: 0 | O179: 0 | P179: 0 | Q179: 0 | R179: 0 | S179: 0 | T179: 0 | U179: 2 | V179: 12668 | W179: =SUM(A179:U179*(TRANSPOSE(CostCalculation!$D$38:$D$58))) -> 91440 | X179: =V179+SUM(A179:U179*(TRANSPOSE(CostCalculation!$C$38:$C$58))) -> 65366
A180: 0 | B180: 0 | C180: 0 | D180: 0 | E180: 0 | F180: 0 | G180: 0 | H180: 0 | I180: 0 | J180: 159 | K180: 36 | L180: 27 | M180: 18 | N180: 0 | O180: 0 | P180: 0 | Q180: 0 | R180: 0 | S180: 0 | T180: 0 | U180: 3 | V180: 19002 | W180: =SUM(A180:U180*(TRANSPOSE(CostCalculation!$D$38:$D$58))) -> 137160 | X180: =V180+SUM(A180:U180*(TRANSPOSE(CostCalculation!$C$38:$C$58))) -> 98049
A181: 0 | B181: 0 | C181: 0 | D181: 0 | E181: 0 | F181: 0 | G181: 0 | H181: 0 | I181: 0 | J181: 53 | K181: 12 | L181: 9 | M181: 6 | N181: 0 | O181: 0 | P181: 0 | Q181: 0 | R181: 0 | S181: 0 | T181: 0 | U181: 1 | V181: 6334 | W181: =SUM(A181:U181*(TRANSPOSE(CostCalculation!$D$38:$D$58))) -> 45720 | X181: =V181+SUM(A181:U181*(TRANSPOSE(CostCalculation!$C$38:$C$58))) -> 32683
A182: 0 | B182: 0 | C182: 0 | D182: 0 | E182: 0 | F182: 0 | G182: 0 | H182: 0 | I182: 0 | J182: 318 | K182: 72 | L182: 54 | M182: 36 | N182: 0 | O182: 0 | P182: 0 | Q182: 0 | R182: 0 | S182: 0 | T182: 0 | U182: 6 | V182: 38004 | W182: =SUM(A182:U182*(TRANSPOSE(CostCalculation!$D$38:$D$58))) -> 274320 | X182: =V182+SUM(A182:U182*(TRANSPOSE(CostCalculation!$C$38:$C$58))) -> 196098
A183: 0 | B183: 0 | C183: 0 | D183: 0 | E183: 0 | F183: 0 | G183: 0 | H183: 0 | I183: 0 | J183: 53 | K183: 12 | L183: 9 | M183: 6 | N183: 0 | O183: 0 | P183: 0 | Q183: 0 | R183: 0 | S183: 0 | T183: 0 | U183: 1 | V183: 6334 | W183: =SUM(A183:U183*(TRANSPOSE(CostCalculation!$D$38:$D$58))) -> 45720 | X183: =V183+SUM(A183:U183*(TRANSPOSE(CostCalculation!$C$38:$C$58))) -> 32683
A184: 0 | B184: 0 | C184: 0 | D184: 0 | E184: 0 | F184: 0 | G184: 0 | H184: 0 | I184: 0 | J184: 106 | K184: 24 | L184: 18 | M184: 12 | N184: 0 | O184: 0 | P184: 0 | Q184: 0 | R184: 0 | S184: 0 | T184: 0 | U184: 2 | V184: 12668 | W184: =SUM(A184:U184*(TRANSPOSE(CostCalculation!$D$38:$D$58))) -> 91440 | X184: =V184+SUM(A184:U184*(TRANSPOSE(CostCalculation!$C$38:$C$58))) -> 65366
A185: 0 | B185: 0 | C185: 0 | D185: 0 | E185: 0 | F185: 0 | G185: 0 | H185: 0 | I185: 0 | J185: 212 | K185: 48 | L185: 36 | M185: 24 | N185: 0 | O185: 0 | P185: 0 | Q185: 0 | R185: 0 | S185: 0 | T185: 0 | U185: 4 | V185: 25336 | W185: =SUM(A185:U185*(TRANSPOSE(CostCalculation!$D$38:$D$58))) -> 182880 | X185: =V185+SUM(A185:U185*(TRANSPOSE(CostCalculation!$C$38:$C$58))) -> 130732
A186: 0 | B186: 0 | C186: 0 | D186: 0 | E186: 0 | F186: 0 | G186: 0 | H186: 0 | I186: 0 | J186: 318 | K186: 72 | L186: 54 | M186: 36 | N186: 0 | O186: 0 | P186: 0 | Q186: 0 | R186: 0 | S186: 0 | T186: 0 | U186: 6 | V186: 38004 | W186: =SUM(A186:U186*(TRANSPOSE(CostCalculation!$D$38:$D$58))) -> 274320 | X186: =V186+SUM(A186:U186*(TRANSPOSE(CostCalculation!$C$38:$C$58))) -> 196098
A187: 0 | B187: 0 | C187: 0 | D187: 0 | E187: 0 | F187: 0 | G187: 0 | H187: 0 | I187: 0 | J187: 159 | K187: 36 | L187: 27 | M187: 18 | N187: 0 | O187: 0 | P187: 0 | Q187: 0 | R187: 0 | S187: 0 | T187: 0 | U187: 3 | V187: 19002 | W187: =SUM(A187:U187*(TRANSPOSE(CostCalculation!$D$38:$D$58))) -> 137160 | X187: =V187+SUM(A187:U187*(TRANSPOSE(CostCalculation!$C$38:$C$58))) -> 98049
A188: 0 | B188: 0 | C188: 0 | D188: 0 | E188: 0 | F188: 0 | G188: 0 | H188: 0 | I188: 0 | J188: 265 | K188: 60 | L188: 45 | M188: 30 | N188: 0 | O188: 0 | P188: 0 | Q188: 0 | R188: 0 | S188: 0 | T188: 0 | U188: 5 | V188: 31670 | W188: =SUM(A188:U188*(TRANSPOSE(CostCalculation!$D$38:$D$58))) -> 228600 | X188: =V188+SUM(A188:U188*(TRANSPOSE(CostCalculation!$C$38:$C$58))) -> 163415
A189: 0 | B189: 0 | C189: 0 | D189: 0 | E189: 0 | F189: 0 | G189: 0 | H189: 0 | I189: 0 | J189: 53 | K189: 12 | L189: 9 | M189: 6 | N189: 0 | O189: 0 | P189: 0 | Q189: 0 | R189: 0 | S189: 0 | T189: 0 | U189: 1 | V189: 6334 | W189: =SUM(A189:U189*(TRANSPOSE(CostCalculation!$D$38:$D$58))) -> 45720 | X189: =V189+SUM(A189:U189*(TRANSPOSE(CostCalculation!$C$38:$C$58))) -> 32683
A190: 0 | B190: 0 | C190: 0 | D190: 0 | E190: 0 | F190: 0 | G190: 0 | H190: 0 | I190: 0 | J190: 318 | K190: 72 | L190: 54 | M190: 36 | N190: 0 | O190: 0 | P190: 0 | Q190: 0 | R190: 0 | S190: 0 | T190: 0 | U190: 6 | V190: 38004 | W190: =SUM(A190:U190*(TRANSPOSE(CostCalculation!$D$38:$D$58))) -> 274320 | X190: =V190+SUM(A190:U190*(TRANSPOSE(CostCalculation!$C$38:$C$58))) -> 196098
A191: 0 | B191: 0 | C191: 0 | D191: 0 | E191: 0 | F191: 0 | G191: 0 | H191: 0 | I191: 0 | J191: 477 | K191: 108 | L191: 81 | M191: 54 | N191: 0 | O191: 0 | P191: 0 | Q191: 0 | R191: 0 | S191: 0 | T191: 0 | U191: 9 | V191: 57006 | W191: =SUM(A191:U191*(TRANSPOSE(CostCalculation!$D$38:$D$58))) -> 411480 | X191: =V191+SUM(A191:U191*(TRANSPOSE(CostCalculation!$C$38:$C$58))) -> 294147
A192: 0 | B192: 0 | C192: 0 | D192: 0 | E192: 0 | F192: 0 | G192: 0 | H192: 0 | I192: 0 | J192: 212 | K192: 48 | L192: 36 | M192: 24 | N192: 0 | O192: 0 | P192: 0 | Q192: 0 | R192: 0 | S192: 0 | T192: 0 | U192: 4 | V192: 25336 | W192: =SUM(A192:U192*(TRANSPOSE(CostCalculation!$D$38:$D$58))) -> 182880 | X192: =V192+SUM(A192:U192*(TRANSPOSE(CostCalculation!$C$38:$C$58))) -> 130732
A193: 0 | B193: 0 | C193: 0 | D193: 0 | E193: 0 | F193: 0 | G193: 0 | H193: 0 | I193: 0 | J193: 159 | K193: 36 | L193: 27 | M193: 18 | N193: 0 | O193: 0 | P193: 0 | Q193: 0 | R193: 0 | S193: 0 | T193: 0 | U193: 3 | V193: 19002 | W193: =SUM(A193:U193*(TRANSPOSE(CostCalculation!$D$38:$D$58))) -> 137160 | X193: =V193+SUM(A193:U193*(TRANSPOSE(CostCalculation!$C$38:$C$58))) -> 98049
A194: 0 | B194: 0 | C194: 0 | D194: 0 | E194: 0 | F194: 0 | G194: 0 | H194: 0 | I194: 0 | J194: 53 | K194: 12 | L194: 9 | M194: 6 | N194: 0 | O194: 0 | P194: 0 | Q194: 0 | R194: 0 | S194: 0 | T194: 0 | U194: 1 | V194: 6334 | W194: =SUM(A194:U194*(TRANSPOSE(CostCalculation!$D$38:$D$58))) -> 45720 | X194: =V194+SUM(A194:U194*(TRANSPOSE(CostCalculation!$C$38:$C$58))) -> 32683
A195: 0 | B195: 0 | C195: 0 | D195: 0 | E195: 0 | F195: 0 | G195: 0 | H195: 0 | I195: 0 | J195: 159 | K195: 36 | L195: 27 | M195: 18 | N195: 0 | O195: 0 | P195: 0 | Q195: 0 | R195: 0 | S195: 0 | T195: 0 | U195: 3 | V195: 19002 | W195: =SUM(A195:U195*(TRANSPOSE(CostCalculation!$D$38:$D$58))) -> 137160 | X195: =V195+SUM(A195:U195*(TRANSPOSE(CostCalculation!$C$38:$C$58))) -> 98049
A196: 0 | B196: 0 | C196: 0 | D196: 0 | E196: 0 | F196: 0 | G196: 0 | H196: 0 | I196: 0 | J196: 159 | K196: 36 | L196: 27 | M196: 18 | N196: 0 | O196: 0 | P196: 0 | Q196: 0 | R196: 0 | S196: 0 | T196: 0 | U196: 3 | V196: 19002 | W196: =SUM(A196:U196*(TRANSPOSE(CostCalculation!$D$38:$D$58))) -> 137160 | X196: =V196+SUM(A196:U196*(TRANSPOSE(CostCalculation!$C$38:$C$58))) -> 98049
A197: 0 | B197: 0 | C197: 0 | D197: 0 | E197: 0 | F197: 0 | G197: 0 | H197: 0 | I197: 0 | J197: 53 | K197: 12 | L197: 9 | M197: 6 | N197: 0 | O197: 0 | P197: 0 | Q197: 0 | R197: 0 | S197: 0 | T197: 0 | U197: 1 | V197: 6334 | W197: =SUM(A197:U197*(TRANSPOSE(CostCalculation!$D$38:$D$58))) -> 45720 | X197: =V197+SUM(A197:U197*(TRANSPOSE(CostCalculation!$C$38:$C$58))) -> 32683
A198: 0 | B198: 0 | C198: 0 | D198: 0 | E198: 0 | F198: 0 | G198: 0 | H198: 0 | I198: 0 | J198: 53 | K198: 12 | L198: 9 | M198: 6 | N198: 0 | O198: 0 | P198: 0 | Q198: 0 | R198: 0 | S198: 0 | T198: 0 | U198: 1 | V198: 6334 | W198: =SUM(A198:U198*(TRANSPOSE(CostCalculation!$D$38:$D$58))) -> 45720 | X198: =V198+SUM(A198:U198*(TRANSPOSE(CostCalculation!$C$38:$C$58))) -> 32683
A199: 0 | B199: 0 | C199: 0 | D199: 0 | E199: 0 | F199: 0 | G199: 0 | H199: 0 | I199: 0 | J199: 106 | K199: 24 | L199: 18 | M199: 12 | N199: 0 | O199: 0 | P199: 0 | Q199: 0 | R199: 0 | S199: 0 | T199: 0 | U199: 2 | V199: 12668 | W199: =SUM(A199:U199*(TRANSPOSE(CostCalculation!$D$38:$D$58))) -> 91440 | X199: =V199+SUM(A199:U199*(TRANSPOSE(CostCalculation!$C$38:$C$58))) -> 65366
A200: 0 | B200: 0 | C200: 0 | D200: 0 | E200: 0 | F200: 0 | G200: 0 | H200: 0 | I200: 0 | J200: 106 | K200: 24 | L200: 18 | M200: 12 | N200: 0 | O200: 0 | P200: 0 | Q200: 0 | R200: 0 | S200: 0 | T200: 0 | U200: 2 | V200: 12668 | W200: =SUM(A200:U200*(TRANSPOSE(CostCalculation!$D$38:$D$58))) -> 91440 | X200: =V200+SUM(A200:U200*(TRANSPOSE(CostCalculation!$C$38:$C$58))) -> 65366
A201: 0 | B201: 0 | C201: 0 | D201: 0 | E201: 0 | F201: 0 | G201: 0 | H201: 0 | I201: 0 | J201: 53 | K201: 12 | L201: 9 | M201: 6 | N201: 0 | O201: 0 | P201: 0 | Q201: 0 | R201: 0 | S201: 0 | T201: 0 | U201: 1 | V201: 6334 | W201: =SUM(A201:U201*(TRANSPOSE(CostCalculation!$D$38:$D$58))) -> 45720 | X201: =V201+SUM(A201:U201*(TRANSPOSE(CostCalculation!$C$38:$C$58))) -> 32683
... 1801 more rows

Sheet EnchantmentcostWeapon
C1: Weapon
C2: Low | I2: Mid | S2: High | AC2: Top | AM2: "Ultra"
A3: Materials | C3: 1 | D3: 2 | E3: 3 | F3: 4 | G3: 5 | H3: 6 | I3: 10 | J3: 11 | K3: 12 | L3: 13 | M3: 14 | N3: 15 | O3: 16 | P3: 17 | Q3: 18 | R3: 19 | S3: 20 | T3: 21 | U3: 22 | V3: 23 | W3: 24 | X3: 25 | Y3: 26 | Z3: 27 | AA3: 28 | AB3: 29 | AC3: 30 | AD3: 31 | AE3: 32 | AF3: 33 | AG3: 34 | AH3: 35 | AI3: 36 | AJ3: 37 | AK3: 38 | AL3: 39 | AM3: 40 | AN3: 41 | AO3: 42 | AP3: 43
A4: Goldkristall | C4: 9 | D4: 11 | E4: 16 | F4: 18 | G4: 20 | H4: 26 | I4: 9 | J4: 31 | K4: 29 | L4: 32 | M4: 37 | N4: 38 | O4: 36 | P4: 42 | Q4: 50 | R4: 51 | S4: 7 | T4: 0 | U4: 0 | V4: 0 | W4: 0 | X4: 0 | Y4: 0 | Z4: 0 | AA4: 0 | AB4: 0 | AC4: 0 | AD4: 0 | AE4: 0 | AF4: 0 | AG4: 0 | AH4: 0 | AI4: 0 | AJ4: 0 | AK4: 0 | AL4: 0 | AM4: 0 | AN4: 0 | AO4: 0 | AP4: 0
A5: Gewöhnliches Holzstück | C5: 6 | D5: 9 | E5: 10 | F5: 13 | G5: 18 | H5: 26 | I5: 39 | J5: 0 | K5: 0 | L5: 0 | M5: 0 | N5: 0 | O5: 0 | P5: 0 | Q5: 0 | R5: 0 | S5: 0 | T5: 0 | U5: 0 | V5: 0 | W5: 0 | X5: 0 | Y5: 0 | Z5: 0 | AA5: 0 | AB5: 0 | AC5: 0 | AD5: 0 | AE5: 0 | AF5: 0 | AG5: 0 | AH5: 0 | AI5: 0 | AJ5: 0 | AK5: 0 | AL5: 0 | AM5: 0 | AN5: 0 | AO5: 0 | AP5: 0
A6: Minderwertige Erzdevaner-Flüssigkeit | C6: 0 | D6: 0 | E6: 0 | F6: 0 | G6: 0 | H6: 0 | I6: 9 | J6: 0 | K6: 0 | L6: 0 | M6: 0 | N6: 0 | O6: 0 | P6: 0 | Q6: 0 | R6: 0 | S6: 0 | T6: 0 | U6: 0 | V6: 0 | W6: 0 | X6: 0 | Y6: 0 | Z6: 0 | AA6: 0 | AB6: 0 | AC6: 0 | AD6: 0 | AE6: 0 | AF6: 0 | AG6: 0 | AH6: 0 | AI6: 0 | AJ6: 0 | AK6: 0 | AL6: 0 | AM6: 0 | AN6: 0 | AO6: 0 | AP6: 0
A7: Gereinigtes Erzdevaner-Erz | C7: 0 | D7: 0 | E7: 0 | F7: 0 | G7: 0 | H7: 0 | I7: 0 | J7: 3 | K7: 4 | L7: 5 | M7: 6 | N7: 8 | O7: 11 | P7: 14 | Q7: 18 | R7: 24 | S7: 7 | T7: 0 | U7: 0 | V7: 0 | W7: 0 | X7: 0 | Y7: 0 | Z7: 0 | AA7: 0 | AB7: 0 | AC7: 0 | AD7: 0 | AE7: 0 | AF7: 0 | AG7: 0 | AH7: 0 | AI7: 0 | AJ7: 0 | AK7: 0 | AL7: 0 | AM7: 0 | AN7: 0 | AO7: 0 | AP7: 0
A8: Normale Erzdevaner-Flüssigkeit | C8: 0 | D8: 0 | E8: 0 | F8: 0 | G8: 0 | H8: 0 | I8: 0 | J8: 0 | K8: 0 | L8: 0 | M8: 0 | N8: 0 | O8: 0 | P8: 0 | Q8: 0 | R8: 0 | S8: 9 | T8: 0 | U8: 0 | V8: 0 | W8: 0 | X8: 0 | Y8: 0 | Z8: 0 | AA8: 0 | AB8: 0 | AC8: 0 | AD8: 0 | AE8: 0 | AF8: 0 | AG8: 0 | AH8: 0 | AI8: 0 | AJ8: 0 | AK8: 0 | AL8: 0 | AM8: 0 | AN8: 0 | AO8: 0 | AP8: 0
A9: Arboreas Goldstück | C9: 0 | D9: 0 | E9: 0 | F9: 0 | G9: 0 | H9: 0 | I9: 0 | J9: 0 | K9: 0 | L9: 0 | M9: 0 | N9: 0 | O9: 0 | P9: 0 | Q9: 0 | R9: 0 | S9: 0 | T9: 35 | U9: 37 | V9: 38 | W9: 39 | X9: 45 | Y9: 50 | Z9: 56 | AA9: 64 | AB9: 68 | AC9: 1 | AD9: 0 | AE9: 0 | AF9: 0 | AG9: 0 | AH9: 0 | AI9: 0 | AJ9: 0 | AK9: 0 | AL9: 0 | AM9: 0 | AN9: 0 | AO9: 0 | AP9: 0
A10: Unbekannte metallische Flüssigkeit | C10: 0 | D10: 0 | E10: 0 | F10: 0 | G10: 0 | H10: 0 | I10: 0 | J10: 0 | K10: 0 | L10: 0 | M10: 0 | N10: 0 | O10: 0 | P10: 0 | Q10: 0 | R10: 0 | S10: 0 | T10: 5 | U10: 5 | V10: 5 | W10: 6 | X10: 6 | Y10: 6 | Z10: 6 | AA10: 8 | AB10: 10 | AC10: 1 | AD10: 0 | AE10: 0 | AF10: 0 | AG10: 0 | AH10: 0 | AI10: 0 | AJ10: 0 | AK10: 0 | AL10: 0 | AM10: 0 | AN10: 0 | AO10: 0 | AP10: 0
A11: Dunkler Unterwerfer | C11: 0 | D11: 0 | E11: 0 | F11: 0 | G11: 0 | H11: 0 | I11: 0 | J11: 0 | K11: 0 | L11: 0 | M11: 0 | N11: 0 | O11: 0 | P11: 0 | Q11: 0 | R11: 0 | S11: 0 | T11: 3 | U11: 3 | V11: 3 | W11: 3 | X11: 3 | Y11: 4 | Z11: 5 | AA11: 6 | AB11: 9 | AC11: 1 | AD11: 0 | AE11: 0 | AF11: 0 | AG11: 0 | AH11: 0 | AI11: 0 | AJ11: 0 | AK11: 0 | AL11: 0 | AM11: 0 | AN11: 0 | AO11: 0 | AP11: 0
A12: Herausragende Erzdevaner-Flüssigkeit | C12: 0 | D12: 0 | E12: 0 | F12: 0 | G12: 0 | H12: 0 | I12: 0 | J12: 0 | K12: 0 | L12: 0 | M12: 0 | N12: 0 | O12: 0 | P12: 0 | Q12: 0 | R12: 0 | S12: 0 | T12: 0 | U12: 0 | V12: 0 | W12: 0 | X12: 0 | Y12: 0 | Z12: 0 | AA12: 0 | AB12: 0 | AC12: 5 | AD12: 0 | AE12: 0 | AF12: 0 | AG12: 0 | AH12: 0 | AI12: 0 | AJ12: 0 | AK12: 0 | AL12: 0 | AM12: 0 | AN12: 0 | AO12: 0 | AP12: 0
A13: Arboreas Goldbarren | C13: 0 | D13: 0 | E13: 0 | F13: 0 | G13: 0 | H13: 0 | I13: 0 | J13: 0 | K13: 0 | L13: 0 | M13: 0 | N13: 0 | O13: 0 | P13: 0 | Q13: 0 | R13: 0 | S13: 0 | T13: 0 | U13: 0 | V13: 0 | W13: 0 | X13: 0 | Y13: 0 | Z13: 0 | AA13: 0 | AB13: 0 | AC13: 0 | AD13: 20 | AE13: 23 | AF13: 36 | AG13: 48 | AH13: 56 | AI13: 64 | AJ13: 79 | AK13: 85 | AL13: 93 | AM13: 244 | AN13: 0 | AO13: 0 | AP13: 0
A14: Verzauberungsverkzeug des Meisters | C14: 0 | D14: 0 | E14: 0 | F14: 0 | G14: 0 | H14: 0 | I14: 0 | J14: 0 | K14: 0 | L14: 0 | M14: 0 | N14: 0 | O14: 0 | P14: 0 | Q14: 0 | R14: 0 | S14: 0 | T14: 0 | U14: 0 | V14: 0 | W14: 0 | X14: 0 | Y14: 0 | Z14: 0 | AA14: 0 | AB14: 0 | AC14: 0 | AD14: 7 | AE14: 7 | AF14: 7 | AG14: 7 | AH14: 8 | AI14: 11 | AJ14: 18 | AK14: 15 | AL14: 16 | AM14: 30 | AN14: 0 | AO14: 0 | AP14: 0
A15: Blutige Metallstruktur | C15: 0 | D15: 0 | E15: 0 | F15: 0 | G15: 0 | H15: 0 | I15: 0 | J15: 0 | K15: 0 | L15: 0 | M15: 0 | N15: 0 | O15: 0 | P15: 0 | Q15: 0 | R15: 0 | S15: 0 | T15: 0 | U15: 0 | V15: 0 | W15: 0 | X15: 0 | Y15: 0 | Z15: 0 | AA15: 0 | AB15: 0 | AC15: 0 | AD15: 3 | AE15: 3 | AF15: 3 | AG15: 3 | AH15: 5 | AI15: 7 | AJ15: 12 | AK15: 9 | AL15: 10 | AM15: 18 | AN15: 0 | AO15: 0 | AP15: 0
A16: Staub der Stille | C16: 0 | D16: 0 | E16: 0 | F16: 0 | G16: 0 | H16: 0 | I16: 0 | J16: 0 | K16: 0 | L16: 0 | M16: 0 | N16: 0 | O16: 0 | P16: 0 | Q16: 0 | R16: 0 | S16: 0 | T16: 0 | U16: 0 | V16: 0 | W16: 0 | X16: 0 | Y16: 0 | Z16: 0 | AA16: 0 | AB16: 0 | AC16: 0 | AD16: 0 | AE16: 0 | AF16: 0 | AG16: 0 | AH16: 0 | AI16: 5 | AJ16: 8 | AK16: 7 | AL16: 8 | AM16: 14 | AN16: 0 | AO16: 0 | AP16: 0
A17: Rätselhafter Trank | C17: 0 | D17: 0 | E17: 0 | F17: 0 | G17: 0 | H17: 0 | I17: 0 | J17: 0 | K17: 0 | L17: 0 | M17: 0 | N17: 0 | O17: 0 | P17: 0 | Q17: 0 | R17: 0 | S17: 0 | T17: 0 | U17: 0 | V17: 0 | W17: 0 | X17: 0 | Y17: 0 | Z17: 0 | AA17: 0 | AB17: 0 | AC17: 0 | AD17: 0 | AE17: 0 | AF17: 0 | AG17: 0 | AH17: 0 | AI17: 0 | AJ17: 0 | AK17: 3 | AL17: 6 | AM17: 7 | AN17: 0 | AO17: 0 | AP17: 0
A18: Letztes Element | C18: 0 | D18: 0 | E18: 0 | F18: 0 | G18: 0 | H18: 0 | I18: 0 | J18: 0 | K18: 0 | L18: 0 | M18: 0 | N18: 0 | O18: 0 | P18: 0 | Q18: 0 | R18: 0 | S18: 0 | T18: 0 | U18: 0 | V18: 0 | W18: 0 | X18: 0 | Y18: 0 | Z18: 0 | AA18: 0 | AB18: 0 | AC18: 0 | AD18: 0 | AE18: 0 | AF18: 0 | AG18: 0 | AH18: 0 | AI18: 0 | AJ18: 0 | AK18: 0 | AL18: 0 | AM18: 4 | AN18: 0 | AO18: 0 | AP18: 0
A19: Placeholder_2 | C19: 0 | D19: 0 | E19: 0 | F19: 0 | G19: 0 | H19: 0 | I19: 0 | J19: 0 | K19: 0 | L19: 0 | M19: 0 | N19: 0 | O19: 0 | P19: 0 | Q19: 0 | R19: 0 | S19: 0 | T19: 0 | U19: 0 | V19: 0 | W19: 0 | X19: 0 | Y19: 0 | Z19: 0 | AA19: 0 | AB19: 0 | AC19: 0 | AD19: 0 | AE19: 0 | AF19: 0 | AG19: 0 | AH19: 0 | AI19: 0 | AJ19: 0 | AK19: 0 | AL19: 0 | AM19: 0 | AN19: 0 | AO19: 0 | AP19: 0
A20: Placeholder_3 | C20: 0 | D20: 0 | E20: 0 | F20: 0 | G20: 0 | H20: 0 | I20: 0 | J20: 0 | K20: 0 | L20: 0 | M20: 0 | N20: 0 | O20: 0 | P20: 0 | Q20: 0 | R20: 0 | S20: 0 | T20: 0 | U20: 0 | V20: 0 | W20: 0 | X20: 0 | Y20: 0 | Z20: 0 | AA20: 0 | AB20: 0 | AC20: 0 | AD20: 0 | AE20: 0 | AF20: 0 | AG20: 0 | AH20: 0 | AI20: 0 | AJ20: 0 | AK20: 0 | AL20: 0 | AM20: 0 | AN20: 0 | AO20: 0 | AP20: 0
A21: Placeholder_4 | C21: 0 | D21: 0 | E21: 0 | F21: 0 | G21: 0 | H21: 0 | I21: 0 | J21: 0 | K21: 0 | L21: 0 | M21: 0 | N21: 0 | O21: 0 | P21: 0 | Q21: 0 | R21: 0 | S21: 0 | T21: 0 | U21: 0 | V21: 0 | W21: 0 | X21: 0 | Y21: 0 | Z21: 0 | AA21: 0 | AB21: 0 | AC21: 0 | AD21: 0 | AE21: 0 | AF21: 0 | AG21: 0 | AH21: 0 | AI21: 0 | AJ21: 0 | AK21: 0 | AL21: 0 | AM21: 0 | AN21: 0 | AO21: 0 | AP21: 0
A22: Placeholder_5 | C22: 0 | D22: 0 | E22: 0 | F22: 0 | G22: 0 | H22: 0 | I22: 0 | J22: 0 | K22: 0 | L22: 0 | M22: 0 | N22: 0 | O22: 0 | P22: 0 | Q22: 0 | R22: 0 | S22: 0 | T22: 0 | U22: 0 | V22: 0 | W22: 0 | X22: 0 | Y22: 0 | Z22: 0 | AA22: 0 | AB22: 0 | AC22: 0 | AD22: 0 | AE22: 0 | AF22: 0 | AG22: 0 | AH22: 0 | AI22: 0 | AJ22: 0 | AK22: 0 | AL22: 0 | AM22: 0 | AN22: 0 | AO22: 0 | AP22: 0
A23: Smaragd | C23: 0 | D23: 0 | E23: 0 | F23: 0 | G23: 0 | H23: 0 | I23: 0 | J23: 0 | K23: 0 | L23: 0 | M23: 0 | N23: 0 | O23: 0 | P23: 0 | Q23: 0 | R23: 0 | S23: 0 | T23: 0 | U23: 3 | V23: 3 | W23: 3 | X23: 3 | Y23: 4 | Z23: 5 | AA23: 6 | AB23: 7 | AC23: 9 | AD23: 5 | AE23: 5 | AF23: 6 | AG23: 7 | AH23: 8 | AI23: 0 | AJ23: 0 | AK23: 0 | AL23: 0 | AM23: 0 | AN23: 0 | AO23: 0 | AP23: 0
A24: Diamant | C24: 0 | D24: 0 | E24: 0 | F24: 0 | G24: 0 | H24: 0 | I24: 0 | J24: 0 | K24: 0 | L24: 0 | M24: 0 | N24: 0 | O24: 0 | P24: 0 | Q24: 0 | R24: 0 | S24: 0 | T24: 0 | U24: 0 | V24: 0 | W24: 0 | X24: 0 | Y24: 0 | Z24: 0 | AA24: 0 | AB24: 0 | AC24: 0 | AD24: 0 | AE24: 0 | AF24: 0 | AG24: 0 | AH24: 0 | AI24: 1 | AJ24: 2 | AK24: 3 | AL24: 4 | AM24: 5 | AN24: 0 | AO24: 0 | AP24: 0
A25: Basic Success % | C25: 1 | D25: 1 | E25: 1 | F25: 1 | G25: 1 | H25: 1 | I25: 1 | J25: 0.5 | K25: 0.5 | L25: 0.5 | M25: 0.5 | N25: 0.5 | O25: 0.5 | P25: 0.5 | Q25: 0.5 | R25: 0.5 | S25: 0.5 | T25: 0.3 | U25: 0.3 | V25: 0.28 | W25: 0.28 | X25: 0.26 | Y25: 0.26 | Z25: 0.24 | AA25: 0.24 | AB25: 0.22 | AC25: 0.22 | AD25: 0.15 | AE25: 0.14 | AF25: 0.13 | AG25: 0.12 | AH25: 0.11 | AI25: 0.1 | AJ25: 0.09 | AK25: 0.07 | AL25: 0.05 | AM25: 0.05 | AN25: 0.05 | AO25: 0.05 | AP25: 0.05
A26: Gold | C26: 373 | D26: 527 | E26: 634 | F26: 789 | G26: 1029 | H26: 1449 | I26: 2173 | J26: 784 | K26: 887 | L26: 1054 | M26: 1247 | N26: 1517 | O26: 1877 | P26: 2340 | Q26: 2957 | R26: 3741 | S26: 4847 | T26: 407 | U26: 467 | V26: 496 | W26: 741 | X26: 921 | Y26: 500 | Z26: 109 | AA26: 206 | AB26: 410 | AC26: 964 | AD26: 138 | AE26: 340 | AF26: 218 | AG26: 28 | AH26: 993 | AI26: 6245 | AJ26: 2841 | AK26: 274 | AL26: 2699 | AM26: 6328 | AN26: 0 | AO26: 0 | AP26: 0
A27: Exp | C27: 0 | D27: 0 | E27: 0 | F27: 0 | G27: 0 | H27: 0 | I27: 0 | J27: 328 | K27: 376 | L27: 441 | M27: 525 | N27: 639 | O27: 786 | P27: 985 | Q27: 1241 | R27: 1571 | S27: 2045 | T27: 1588 | U27: 1629 | V27: 1705 | W27: 1828 | X27: 2016 | Y27: 2311 | Z27: 2747 | AA27: 3341 | AB27: 4213 | AC27: 5490 | AD27: 4244 | AE27: 4565 | AF27: 5386 | AG27: 6931 | AH27: 9523 | AI27: 13645 | AJ27: 19978 | AK27: 28883 | AL27: 41253 | AM27: 59404 | AN27: 75000 | AO27: 100000 | AP27: 250000
A28: Total ExP | C28: =SUM($C$27:C27) -> 0 | D28: =SUM($C$27:D27) -> 0 | E28: =SUM($C$27:E27) -> 0 | F28: =SUM($C$27:F27) -> 0 | G28: =SUM($C$27:G27) -> 0 | H28: =SUM($C$27:H27) -> 0 | I28: =SUM($C$27:I27) -> 0 | J28: =SUM($C$27:J27) -> 328 | K28: =SUM($C$27:K27) -> 704 | L28: =SUM($C$27:L27) -> 1145 | M28: =SUM($C$27:M27) -> 1670 | N28: =SUM($C$27:N27) -> 2309 | O28: =SUM($C$27:O27) -> 3095 | P28: =SUM($C$27:P27) -> 4080 | Q28: =SUM($C$27:Q27) -> 5321 | R28: =SUM($C$27:R27) -> 6892 | S28: =SUM($C$27:S27) -> 8937 | T28: =SUM($C$27:T27) -> 10525 | U28: =SUM($C$27:U27) -> 12154 | V28: =SUM($C$27:V27) -> 13859 | W28: =SUM($C$27:W27) -> 15687 | X28: =SUM($C$27:X27) -> 17703 | Y28: =SUM($C$27:Y27) -> 20014 | Z28: =SUM($C$27:Z27) -> 22761 | AA28: =SUM($C$27:AA27) -> 26102 | AB28: =SUM($C$27:AB27) -> 30315 | AC28: =SUM($C$27:AC27) -> 35805 | AD28: =SUM($C$27:AD27) -> 40049 | AE28: =SUM($C$27:AE27) -> 44614 | AF28: =SUM($C$27:AF27) -> 50000 | AG28: =SUM($C$27:AG27) -> 56931 | AH28: =SUM($C$27:AH27) -> 66454 | AI28: =SUM($C$27:AI27) -> 80099 | AJ28: =SUM($C$27:AJ27) -> 100077 | AK28: =SUM($C$27:AK27) -> 128960 | AL28: =SUM($C$27:AL27) -> 170213 | AM28: =SUM($C$27:AM27) -> 229617 | AN28: =SUM($C$27:AN27) -> 304617 | AO28: =SUM($C$27:AO27) -> 404617 | AP28: =SUM($C$27:AP27) -> 654617

Sheet EnchantmentcostChest
C1: Chest
C2: Low | I2: Mid | S2: High | AC2: Top | AM2: "Ultra"
A3: Materials | C3: 1 | D3: 2 | E3: 3 | F3: 4 | G3: 5 | H3: 6 | I3: 10 | J3: 11 | K3: 12 | L3: 13 | M3: 14 | N3: 15 | O3: 16 | P3: 17 | Q3: 18 | R3: 19 | S3: 20 | T3: 21 | U3: 22 | V3: 23 | W3: 24 | X3: 25 | Y3: 26 | Z3: 27 | AA3: 28 | AB3: 29 | AC3: 30 | AD3: 31 | AE3: 32 | AF3: 33 | AG3: 34 | AH3: 35 | AI3: 36 | AJ3: 37 | AK3: 38 | AL3: 39 | AM3: 40 | AN3: 41 | AO3: 42 | AP3: 43
A4: Goldkristall | C4: 7 | D4: 10 | E4: 12 | F4: 14 | G4: 14 | H4: 17 | I4: 6 | J4: 23 | K4: 20 | L4: 28 | M4: 29 | N4: 24 | O4: 24 | P4: 30 | Q4: 34 | R4: 38 | S4: 4 | T4: 0 | U4: 0 | V4: 0 | W4: 0 | X4: 0 | Y4: 0 | Z4: 0 | AA4: 0 | AB4: 0 | AC4: 0 | AD4: 0 | AE4: 0 | AF4: 0 | AG4: 0 | AH4: 0 | AI4: 0 | AJ4: 0 | AK4: 0 | AL4: 0 | AM4: 0 | AN4: 0 | AO4: 0 | AP4: 0
A5: Gewöhnliches Holzstück | C5: 4 | D5: 6 | E5: 7 | F5: 9 | G5: 13 | H5: 19 | I5: 6 | J5: 0 | K5: 0 | L5: 0 | M5: 0 | N5: 0 | O5: 0 | P5: 0 | Q5: 0 | R5: 0 | S5: 0 | T5: 0 | U5: 0 | V5: 0 | W5: 0 | X5: 0 | Y5: 0 | Z5: 0 | AA5: 0 | AB5: 0 | AC5: 0 | AD5: 0 | AE5: 0 | AF5: 0 | AG5: 0 | AH5: 0 | AI5: 0 | AJ5: 0 | AK5: 0 | AL5: 0 | AM5: 0 | AN5: 0 | AO5: 0 | AP5: 0
A6: Minderwertige Erzdevaner-Flüssigkeit | C6: 0 | D6: 0 | E6: 0 | F6: 0 | G6: 0 | H6: 0 | I6: 28 | J6: 0 | K6: 0 | L6: 0 | M6: 0 | N6: 0 | O6: 0 | P6: 0 | Q6: 0 | R6: 0 | S6: 0 | T6: 0 | U6: 0 | V6: 0 | W6: 0 | X6: 0 | Y6: 0 | Z6: 0 | AA6: 0 | AB6: 0 | AC6: 0 | AD6: 0 | AE6: 0 | AF6: 0 | AG6: 0 | AH6: 0 | AI6: 0 | AJ6: 0 | AK6: 0 | AL6: 0 | AM6: 0 | AN6: 0 | AO6: 0 | AP6: 0
A7: Gereinigtes Erzdevaner-Erz | C7: 0 | D7: 0 | E7: 0 | F7: 0 | G7: 0 | H7: 0 | I7: 0 | J7: 2 | K7: 3 | L7: 3 | M7: 4 | N7: 6 | O7: 8 | P7: 10 | Q7: 13 | R7: 17 | S7: 4 | T7: 0 | U7: 0 | V7: 0 | W7: 0 | X7: 0 | Y7: 0 | Z7: 0 | AA7: 0 | AB7: 0 | AC7: 0 | AD7: 0 | AE7: 0 | AF7: 0 | AG7: 0 | AH7: 0 | AI7: 0 | AJ7: 0 | AK7: 0 | AL7: 0 | AM7: 0 | AN7: 0 | AO7: 0 | AP7: 0
A8: Normale Erzdevaner-Flüssigkeit | C8: 0 | D8: 0 | E8: 0 | F8: 0 | G8: 0 | H8: 0 | I8: 0 | J8: 0 | K8: 0 | L8: 0 | M8: 0 | N8: 0 | O8: 0 | P8: 0 | Q8: 0 | R8: 0 | S8: 7 | T8: 0 | U8: 0 | V8: 0 | W8: 0 | X8: 0 | Y8: 0 | Z8: 0 | AA8: 0 | AB8: 0 | AC8: 0 | AD8: 0 | AE8: 0 | AF8: 0 | AG8: 0 | AH8: 0 | AI8: 0 | AJ8: 0 | AK8: 0 | AL8: 0 | AM8: 0 | AN8: 0 | AO8: 0 | AP8: 0
A9: Arboreas Goldstück | C9: 0 | D9: 0 | E9: 0 | F9: 0 | G9: 0 | H9: 0 | I9: 0 | J9: 0 | K9: 0 | L9: 0 | M9: 0 | N9: 0 | O9: 0 | P9: 0 | Q9: 0 | R9: 0 | S9: 0 | T9: 22 | U9: 24 | V9: 24 | W9: 29 | X9: 32 | Y9: 26 | Z9: 34 | AA9: 36 | AB9: 39 | AC9: 1 | AD9: 0 | AE9: 0 | AF9: 0 | AG9: 0 | AH9: 0 | AI9: 0 | AJ9: 0 | AK9: 0 | AL9: 0 | AM9: 0 | AN9: 0 | AO9: 0 | AP9: 0
A10: Unbekannte metallische Flüssigkeit | C10: 0 | D10: 0 | E10: 0 | F10: 0 | G10: 0 | H10: 0 | I10: 0 | J10: 0 | K10: 0 | L10: 0 | M10: 0 | N10: 0 | O10: 0 | P10: 0 | Q10: 0 | R10: 0 | S10: 0 | T10: 3 | U10: 3 | V10: 3 | W10: 3 | X10: 3 | Y10: 3 | Z10: 4 | AA10: 5 | AB10: 7 | AC10: 1 | AD10: 0 | AE10: 0 | AF10: 0 | AG10: 0 | AH10: 0 | AI10: 0 | AJ10: 0 | AK10: 0 | AL10: 0 | AM10: 0 | AN10: 0 | AO10: 0 | AP10: 0
A11: Dunkler Unterwerfer | C11: 0 | D11: 0 | E11: 0 | F11: 0 | G11: 0 | H11: 0 | I11: 0 | J11: 0 | K11: 0 | L11: 0 | M11: 0 | N11: 0 | O11: 0 | P11: 0 | Q11: 0 | R11: 0 | S11: 0 | T11: 2 | U11: 2 | V11: 2 | W11: 2 | X11: 2 | Y11: 2 | Z11: 3 | AA11: 4 | AB11: 6 | AC11: 1 | AD11: 0 | AE11: 0 | AF11: 0 | AG11: 0 | AH11: 0 | AI11: 0 | AJ11: 0 | AK11: 0 | AL11: 0 | AM11: 0 | AN11: 0 | AO11: 0 | AP11: 0
A12: Herausragende Erzdevaner-Flüssigkeit | C12: 0 | D12: 0 | E12: 0 | F12: 0 | G12: 0 | H12: 0 | I12: 0 | J12: 0 | K12: 0 | L12: 0 | M12: 0 | N12: 0 | O12: 0 | P12: 0 | Q12: 0 | R12: 0 | S12: 0 | T12: 0 | U12: 0 | V12: 0 | W12: 0 | X12: 0 | Y12: 0 | Z12: 0 | AA12: 0 | AB12: 0 | AC12: 3 | AD12: 0 | AE12: 0 | AF12: 0 | AG12: 0 | AH12: 0 | AI12: 0 | AJ12: 0 | AK12: 0 | AL12: 0 | AM12: 0 | AN12: 0 | AO12: 0 | AP12: 0
A13: Arboreas Goldbarren | C13: 0 | D13: 0 | E13: 0 | F13: 0 | G13: 0 | H13: 0 | I13: 0 | J13: 0 | K13: 0 | L13: 0 | M13: 0 | N13: 0 | O13: 0 | P13: 0 | Q13: 0 | R13: 0 | S13: 0 | T13: 0 | U13: 0 | V13: 0 | W13: 0 | X13: 0 | Y13: 0 | Z13: 0 | AA13: 0 | AB13: 0 | AC13: 0 | AD13: 11 | AE13: 14 | AF13: 23 | AG13: 33 | AH13: 41 | AI13: 44 | AJ13: 53 | AK13: 62 | AL13: 60 | AM13: 167 | AN13: 0 | AO13: 0 | AP13: 0
A14: Verzauberungsverkzeug des Meisters | C14: 0 | D14: 0 | E14: 0 | F14: 0 | G14: 0 | H14: 0 | I14: 0 | J14: 0 | K14: 0 | L14: 0 | M14: 0 | N14: 0 | O14: 0 | P14: 0 | Q14: 0 | R14: 0 | S14: 0 | T14: 0 | U14: 0 | V14: 0 | W14: 0 | X14: 0 | Y14: 0 | Z14: 0 | AA14: 0 | AB14: 0 | AC14: 0 | AD14: 5 | AE14: 5 | AF14: 5 | AG14: 5 | AH14: 8 | AI14: 7 | AJ14: 12 | AK14: 11 | AL14: 10 | AM14: 20 | AN14: 0 | AO14: 0 | AP14: 0
A15: Blutige Metallstruktur | C15: 0 | D15: 0 | E15: 0 | F15: 0 | G15: 0 | H15: 0 | I15: 0 | J15: 0 | K15: 0 | L15: 0 | M15: 0 | N15: 0 | O15: 0 | P15: 0 | Q15: 0 | R15: 0 | S15: 0 | T15: 0 | U15: 0 | V15: 0 | W15: 0 | X15: 0 | Y15: 0 | Z15: 0 | AA15: 0 | AB15: 0 | AC15: 0 | AD15: 2 | AE15: 2 | AF15: 2 | AG15: 3 | AH15: 4 | AI15: 5 | AJ15: 9 | AK15: 7 | AL15: 7 | AM15: 13 | AN15: 0 | AO15: 0 | AP15: 0
A16: Staub der Stille | C16: 0 | D16: 0 | E16: 0 | F16: 0 | G16: 0 | H16: 0 | I16: 0 | J16: 0 | K16: 0 | L16: 0 | M16: 0 | N16: 0 | O16: 0 | P16: 0 | Q16: 0 | R16: 0 | S16: 0 | T16: 0 | U16: 0 | V16: 0 | W16: 0 | X16: 0 | Y16: 0 | Z16: 0 | AA16: 0 | AB16: 0 | AC16: 0 | AD16: 0 | AE16: 0 | AF16: 0 | AG16: 0 | AH16: 0 | AI16: 4 | AJ16: 6 | AK16: 5 | AL16: 5 | AM16: 10 | AN16: 0 | AO16: 0 | AP16: 0
A17: Rätselhafter Trank | C17: 0 | D17: 0 | E17: 0 | F17: 0 | G17: 0 | H17: 0 | I17: 0 | J17: 0 | K17: 0 | L17: 0 | M17: 0 | N17: 0 | O17: 0 | P17: 0 | Q17: 0 | R17: 0 | S17: 0 | T17: 0 | U17: 0 | V17: 0 | W17: 0 | X17: 0 | Y17: 0 | Z17: 0 | AA17: 0 | AB17: 0 | AC17: 0 | AD17: 0 | AE17: 0 | AF17: 0 | AG17: 0 | AH17: 0 | AI17: 0 | AJ17: 0 | AK17: 2 | AL17: 5 | AM17: 5 | AN17: 0 | AO17: 0 | AP17: 0
A18: Letztes Element | C18: 0 | D18: 0 | E18: 0 | F18: 0 | G18: 0 | H18: 0 | I18: 0 | J18: 0 | K18: 0 | L18: 0 | M18: 0 | N18: 0 | O18: 0 | P18: 0 | Q18: 0 | R18: 0 | S18: 0 | T18: 0 | U18: 0 | V18: 0 | W18: 0 | X18: 0 | Y18: 0 | Z18: 0 | AA18: 0 | AB18: 0 | AC18: 0 | AD18: 0 | AE18: 0 | AF18: 0 | AG18: 0 | AH18: 0 | AI18: 0 | AJ18: 0 | AK18: 0 | AL18: 0 | AM18: 3 | AN18: 0 | AO18: 0 | AP18: 0
A19: Placeholder_2 | C19: 0 | D19: 0 | E19: 0 | F19: 0 | G19: 0 | H19: 0 | I19: 0 | J19: 0 | K19: 0 | L19: 0 | M19: 0 | N19: 0 | O19: 0 | P19: 0 | Q19: 0 | R19: 0 | S19: 0 | T19: 0 | U19: 0 | V19: 0 | W19: 0 | X19: 0 | Y19: 0 | Z19: 0 | AA19: 0 | AB19: 0 | AC19: 0 | AD19: 0 | AE19: 0 | AF19: 0 | AG19: 0 | AH19: 0 | AI19: 0 | AJ19: 0 | AK19: 0 | AL19: 0 | AM19: 0 | AN19: 0 | AO19: 0 | AP19: 0
A20: Placeholder_3 | C20: 0 | D20: 0 | E20: 0 | F20: 0 | G20: 0 | H20: 0 | I20: 0 | J20: 0 | K20: 0 | L20: 0 | M20: 0 | N20: 0 | O20: 0 | P20: 0 | Q20: 0 | R20: 0 | S20: 0 | T20: 0 | U20: 0 | V20: 0 | W20: 0 | X20: 0 | Y20: 0 | Z20: 0 | AA20: 0 | AB20: 0 | AC20: 0 | AD20: 0 | AE20: 0 | AF20: 0 | AG20: 0 | AH20: 0 | AI20: 0 | AJ20: 0 | AK20: 0 | AL20: 0 | AM20: 0 | AN20: 0 | AO20: 0 | AP20: 0
A21: Placeholder_4 | C21: 0 | D21: 0 | E21: 0 | F21: 0 | G21: 0 | H21: 0 | I21: 0 | J21: 0 | K21: 0 | L21: 0 | M21: 0 | N21: 0 | O21: 0 | P21: 0 | Q21: 0 | R21: 0 | S21: 0 | T21: 0 | U21: 0 | V21: 0 | W21: 0 | X21: 0 | Y21: 0 | Z21: 0 | AA21: 0 | AB21: 0 | AC21: 0 | AD21: 0 | AE21: 0 | AF21: 0 | AG21: 0 | AH21: 0 | AI21: 0 | AJ21: 0 | AK21: 0 | AL21: 0 | AM21: 0 | AN21: 0 | AO21: 0 | AP21: 0
A22: Placeholder_5 | C22: 0 | D22: 0 | E22: 0 | F22: 0 | G22: 0 | H22: 0 | I22: 0 | J22: 0 | K22: 0 | L22: 0 | M22: 0 | N22: 0 | O22: 0 | P22: 0 | Q22: 0 | R22: 0 | S22: 0 | T22: 0 | U22: 0 | V22: 0 | W22: 0 | X22: 0 | Y22: 0 | Z22: 0 | AA22: 0 | AB22: 0 | AC22: 0 | AD22: 0 | AE22: 0 | AF22: 0 | AG22: 0 | AH22: 0 | AI22: 0 | AJ22: 0 | AK22: 0 | AL22: 0 | AM22: 0 | AN22: 0 | AO22: 0 | AP22: 0
A23: Smaragd | C23: 0 | D23: 0 | E23: 0 | F23: 0 | G23: 0 | H23: 0 | I23: 0 | J23: 0 | K23: 0 | L23: 0 | M23: 0 | N23: 0 | O23: 0 | P23: 0 | Q23: 0 | R23: 0 | S23: 0 | T23: 2 | U23: 2 | V23: 2 | W23: 2 | X23: 2 | Y23: 2 | Z23: 3 | AA23: 3 | AB23: 4 | AC23: 6 | AD23: 3 | AE23: 3 | AF23: 4 | AG23: 5 | AH23: 6 | AI23: 0 | AJ23: 0 | AK23: 0 | AL23: 0 | AM23: 0 | AN23: 0 | AO23: 0 | AP23: 0
A24: Diamant | C24: 0 | D24: 0 | E24: 0 | F24: 0 | G24: 0 | H24: 0 | I24: 0 | J24: 0 | K24: 0 | L24: 0 | M24: 0 | N24: 0 | O24: 0 | P24: 0 | Q24: 0 | R24: 0 | S24: 0 | T24: 0 | U24: 0 | V24: 0 | W24: 0 | X24: 0 | Y24: 0 | Z24: 0 | AA24: 0 | AB24: 0 | AC24: 0 | AD24: 0 | AE24: 0 | AF24: 0 | AG24: 0 | AH24: 0 | AI24: 1 | AJ24: 1 | AK24: 2 | AL24: 3 | AM24: 4 | AN24: 0 | AO24: 0 | AP24: 0
A25: Basic Success % | C25: 1 | D25: 1 | E25: 1 | F25: 1 | G25: 1 | H25: 1 | I25: 1 | J25: 0.5 | K25: 0.5 | L25: 0.5 | M25: 0.5 | N25: 0.5 | O25: 0.5 | P25: 0.5 | Q25: 0.5 | R25: 0.5 | S25: 0.5 | T25: 0.3 | U25: 0.3 | V25: 0.28 | W25: 0.28 | X25: 0.26 | Y25: 0.26 | Z25: 0.24 | AA25: 0.24 | AB25: 0.22 | AC25: 0.22 | AD25: 0.15 | AE25: 0.14 | AF25: 0.13 | AG25: 0.12 | AH25: 0.11 | AI25: 0.1 | AJ25: 0.09 | AK25: 0.07 | AL25: 0.05 | AM25: 0.05 | AN25: 0.05 | AO25: 0.05 | AP25: 0.05
A26: Gold | C26: 261 | D26: 386 | E26: 454 | F26: 566 | G26: 737 | H26: 1033 | I26: 1534 | J26: 553 | K26: 643 | L26: 746 | M26: 887 | N26: 1080 | O26: 1337 | P26: 1671 | Q26: 2109 | R26: 2674 | S26: 3566 | T26: 160 | U26: 220 | V26: 220 | W26: 370 | X26: 460 | Y26: 280 | Z26: 160 | AA26: 866 | AB26: 586 | AC26: 600 | AD26: 368 | AE26: 570 | AF26: 178 | AG26: 415 | AH26: 518 | AI26: 1633 | AJ26: 6334 | AK26: 1586 | AL26: 1474 | AM26: 1017 | AN26: 0 | AO26: 0 | AP26: 0
A27: Exp | C27: 0 | D27: 0 | E27: 0 | F27: 0 | G27: 0 | H27: 0 | I27: 0 | J27: 328 | K27: 376 | L27: 441 | M27: 525 | N27: 639 | O27: 786 | P27: 985 | Q27: 1241 | R27: 1571 | S27: 2045 | T27: 1588 | U27: 1629 | V27: 1705 | W27: 1828 | X27: 2016 | Y27: 2311 | Z27: 2747 | AA27: 3341 | AB27: 4213 | AC27: 5490 | AD27: 4244 | AE27: 4565 | AF27: 5386 | AG27: 6931 | AH27: 9523 | AI27: 13645 | AJ27: 19978 | AK27: 28883 | AL27: 41253 | AM27: 59404 | AN27: 75000 | AO27: 100000 | AP27: 250000

Sheet EnchantmentcostGlovesBoots
C1: Handwear/Footwear
C2: Low | I2: Mid | S2: High | AC2: Top | AM2: "Ultra"
A3: Materials | C3: 1 | D3: 2 | E3: 3 | F3: 4 | G3: 5 | H3: 6 | I3: 10 | J3: 11 | K3: 12 | L3: 13 | M3: 14 | N3: 15 | O3: 16 | P3: 17 | Q3: 18 | R3: 19 | S3: 20 | T3: 21 | U3: 22 | V3: 23 | W3: 24 | X3: 25 | Y3: 26 | Z3: 27 | AA3: 28 | AB3: 29 | AC3: 30 | AD3: 31 | AE3: 32 | AF3: 33 | AG3: 34 | AH3: 35 | AI3: 36 | AJ3: 37 | AK3: 38 | AL3: 39 | AM3: 40 | AN3: 41 | AO3: 42 | AP3: 43
A4: Goldkristall | C4: 6 | D4: 7 | E4: 8 | F4: 12 | G4: 13 | H4: 15 | I4: 5 | J4: 15 | K4: 20 | L4: 17 | M4: 15 | N4: 18 | O4: 23 | P4: 24 | Q4: 31 | R4: 26 | S4: 4 | T4: 0 | U4: 0 | V4: 0 | W4: 0 | X4: 0 | Y4: 0 | Z4: 0 | AA4: 0 | AB4: 0 | AC4: 0 | AD4: 0 | AE4: 0 | AF4: 0 | AG4: 0 | AH4: 0 | AI4: 0 | AJ4: 0 | AK4: 0 | AL4: 0 | AM4: 0 | AN4: 0 | AO4: 0 | AP4: 0
A5: Gewöhnliches Holzstück | C5: 3 | D5: 5 | E5: 6 | F5: 7 | G5: 10 | H5: 15 | I5: 5 | J5: 0 | K5: 0 | L5: 0 | M5: 0 | N5: 0 | O5: 0 | P5: 0 | Q5: 0 | R5: 0 | S5: 0 | T5: 0 | U5: 0 | V5: 0 | W5: 0 | X5: 0 | Y5: 0 | Z5: 0 | AA5: 0 | AB5: 0 | AC5: 0 | AD5: 0 | AE5: 0 | AF5: 0 | AG5: 0 | AH5: 0 | AI5: 0 | AJ5: 0 | AK5: 0 | AL5: 0 | AM5: 0 | AN5: 0 | AO5: 0 | AP5: 0
A6: Minderwertige Erzdevaner-Flüssigkeit | C6: 0 | D6: 0 | E6: 0 | F6: 0 | G6: 0 | H6: 0 | I6: 22 | J6: 0 | K6: 0 | L6: 0 | M6: 0 | N6: 0 | O6: 0 | P6: 0 | Q6: 0 | R6: 0 | S6: 0 | T6: 0 | U6: 0 | V6: 0 | W6: 0 | X6: 0 | Y6: 0 | Z6: 0 | AA6: 0 | AB6: 0 | AC6: 0 | AD6: 0 | AE6: 0 | AF6: 0 | AG6: 0 | AH6: 0 | AI6: 0 | AJ6: 0 | AK6: 0 | AL6: 0 | AM6: 0 | AN6: 0 | AO6: 0 | AP6: 0
A7: Gereinigtes Erzdevaner-Erz | C7: 0 | D7: 0 | E7: 0 | F7: 0 | G7: 0 | H7: 0 | I7: 0 | J7: 2 | K7: 2 | L7: 3 | M7: 4 | N7: 5 | O7: 6 | P7: 8 | Q7: 10 | R7: 14 | S7: 4 | T7: 0 | U7: 0 | V7: 0 | W7: 0 | X7: 0 | Y7: 0 | Z7: 0 | AA7: 0 | AB7: 0 | AC7: 0 | AD7: 0 | AE7: 0 | AF7: 0 | AG7: 0 | AH7: 0 | AI7: 0 | AJ7: 0 | AK7: 0 | AL7: 0 | AM7: 0 | AN7: 0 | AO7: 0 | AP7: 0
A8: Normale Erzdevaner-Flüssigkeit | C8: 0 | D8: 0 | E8: 0 | F8: 0 | G8: 0 | H8: 0 | I8: 0 | J8: 0 | K8: 0 | L8: 0 | M8: 0 | N8: 0 | O8: 0 | P8: 0 | Q8: 0 | R8: 0 | S8: 5 | T8: 0 | U8: 0 | V8: 0 | W8: 0 | X8: 0 | Y8: 0 | Z8: 0 | AA8: 0 | AB8: 0 | AC8: 0 | AD8: 0 | AE8: 0 | AF8: 0 | AG8: 0 | AH8: 0 | AI8: 0 | AJ8: 0 | AK8: 0 | AL8: 0 | AM8: 0 | AN8: 0 | AO8: 0 | AP8: 0
A9: Arboreas Goldstück | C9: 0 | D9: 0 | E9: 0 | F9: 0 | G9: 0 | H9: 0 | I9: 0 | J9: 0 | K9: 0 | L9: 0 | M9: 0 | N9: 0 | O9: 0 | P9: 0 | Q9: 0 | R9: 0 | S9: 0 | T9: 15 | U9: 16 | V9: 17 | W9: 20 | X9: 23 | Y9: 24 | Z9: 20 | AA9: 17 | AB9: 33 | AC9: 2 | AD9: 0 | AE9: 0 | AF9: 0 | AG9: 0 | AH9: 0 | AI9: 0 | AJ9: 0 | AK9: 0 | AL9: 0 | AM9: 0 | AN9: 0 | AO9: 0 | AP9: 0
A10: Unbekannte metallische Flüssigkeit | C10: 0 | D10: 0 | E10: 0 | F10: 0 | G10: 0 | H10: 0 | I10: 0 | J10: 0 | K10: 0 | L10: 0 | M10: 0 | N10: 0 | O10: 0 | P10: 0 | Q10: 0 | R10: 0 | S10: 0 | T10: 2 | U10: 2 | V10: 2 | W10: 2 | X10: 2 | Y10: 3 | Z10: 3 | AA10: 4 | AB10: 5 | AC10: 1 | AD10: 0 | AE10: 0 | AF10: 0 | AG10: 0 | AH10: 0 | AI10: 0 | AJ10: 0 | AK10: 0 | AL10: 0 | AM10: 0 | AN10: 0 | AO10: 0 | AP10: 0
A11: Dunkler Unterwerfer | C11: 0 | D11: 0 | E11: 0 | F11: 0 | G11: 0 | H11: 0 | I11: 0 | J11: 0 | K11: 0 | L11: 0 | M11: 0 | N11: 0 | O11: 0 | P11: 0 | Q11: 0 | R11: 0 | S11: 0 | T11: 2 | U11: 2 | V11: 2 | W11: 2 | X11: 2 | Y11: 2 | Z11: 3 | AA11: 4 | AB11: 5 | AC11: 2 | AD11: 0 | AE11: 0 | AF11: 0 | AG11: 0 | AH11: 0 | AI11: 0 | AJ11: 0 | AK11: 0 | AL11: 0 | AM11: 0 | AN11: 0 | AO11: 0 | AP11: 0
A12: Herausragende Erzdevaner-Flüssigkeit | C12: 0 | D12: 0 | E12: 0 | F12: 0 | G12: 0 | H12: 0 | I12: 0 | J12: 0 | K12: 0 | L12: 0 | M12: 0 | N12: 0 | O12: 0 | P12: 0 | Q12: 0 | R12: 0 | S12: 0 | T12: 0 | U12: 0 | V12: 0 | W12: 0 | X12: 0 | Y12: 0 | Z12: 0 | AA12: 0 | AB12: 0 | AC12: 2 | AD12: 0 | AE12: 0 | AF12: 0 | AG12: 0 | AH12: 0 | AI12: 0 | AJ12: 0 | AK12: 0 | AL12: 0 | AM12: 0 | AN12: 0 | AO12: 0 | AP12: 0
A13: Arboreas Goldbarren | C13: 0 | D13: 0 | E13: 0 | F13: 0 | G13: 0 | H13: 0 | I13: 0 | J13: 0 | K13: 0 | L13: 0 | M13: 0 | N13: 0 | O13: 0 | P13: 0 | Q13: 0 | R13: 0 | S13: 0 | T13: 0 | U13: 0 | V13: 0 | W13: 0 | X13: 0 | Y13: 0 | Z13: 0 | AA13: 0 | AB13: 0 | AC13: 0 | AD13: 7 | AE13: 9 | AF13: 12 | AG13: 19 | AH13: 29 | AI13: 36 | AJ13: 44 | AK13: 36 | AL13: 53 | AM13: 123 | AN13: 0 | AO13: 0 | AP13: 0
A14: Verzauberungsverkzeug des Meisters | C14: 0 | D14: 0 | E14: 0 | F14: 0 | G14: 0 | H14: 0 | I14: 0 | J14: 0 | K14: 0 | L14: 0 | M14: 0 | N14: 0 | O14: 0 | P14: 0 | Q14: 0 | R14: 0 | S14: 0 | T14: 0 | U14: 0 | V14: 0 | W14: 0 | X14: 0 | Y14: 0 | Z14: 0 | AA14: 0 | AB14: 0 | AC14: 0 | AD14: 3 | AE14: 3 | AF14: 4 | AG14: 4 | AH14: 4 | AI14: 6 | AJ14: 9 | AK14: 8 | AL14: 9 | AM14: 16 | AN14: 0 | AO14: 0 | AP14: 0
A15: Blutige Metallstruktur | C15: 0 | D15: 0 | E15: 0 | F15: 0 | G15: 0 | H15: 0 | I15: 0 | J15: 0 | K15: 0 | L15: 0 | M15: 0 | N15: 0 | O15: 0 | P15: 0 | Q15: 0 | R15: 0 | S15: 0 | T15: 0 | U15: 0 | V15: 0 | W15: 0 | X15: 0 | Y15: 0 | Z15: 0 | AA15: 0 | AB15: 0 | AC15: 0 | AD15: 2 | AE15: 2 | AF15: 2 | AG15: 3 | AH15: 3 | AI15: 4 | AJ15: 7 | AK15: 5 | AL15: 6 | AM15: 11 | AN15: 0 | AO15: 0 | AP15: 0
A16: Staub der Stille | C16: 0 | D16: 0 | E16: 0 | F16: 0 | G16: 0 | H16: 0 | I16: 0 | J16: 0 | K16: 0 | L16: 0 | M16: 0 | N16: 0 | O16: 0 | P16: 0 | Q16: 0 | R16: 0 | S16: 0 | T16: 0 | U16: 0 | V16: 0 | W16: 0 | X16: 0 | Y16: 0 | Z16: 0 | AA16: 0 | AB16: 0 | AC16: 0 | AD16: 0 | AE16: 0 | AF16: 0 | AG16: 0 | AH16: 0 | AI16: 3 | AJ16: 5 | AK16: 4 | AL16: 4 | AM16: 8 | AN16: 0 | AO16: 0 | AP16: 0
A17: Rätselhafter Trank | C17: 0 | D17: 0 | E17: 0 | F17: 0 | G17: 0 | H17: 0 | I17: 0 | J17: 0 | K17: 0 | L17: 0 | M17: 0 | N17: 0 | O17: 0 | P17: 0 | Q17: 0 | R17: 0 | S17: 0 | T17: 0 | U17: 0 | V17: 0 | W17: 0 | X17: 0 | Y17: 0 | Z17: 0 | AA17: 0 | AB17: 0 | AC17: 0 | AD17: 0 | AE17: 0 | AF17: 0 | AG17: 0 | AH17: 0 | AI17: 0 | AJ17: 0 | AK17: 2 | AL17: 4 | AM17: 4 | AN17: 0 | AO17: 0 | AP17: 0
A18: Letztes Element | C18: 0 | D18: 0 | E18: 0 | F18: 0 | G18: 0 | H18: 0 | I18: 0 | J18: 0 | K18: 0 | L18: 0 | M18: 0 | N18: 0 | O18: 0 | P18: 0 | Q18: 0 | R18: 0 | S18: 0 | T18: 0 | U18: 0 | V18: 0 | W18: 0 | X18: 0 | Y18: 0 | Z18: 0 | AA18: 0 | AB18: 0 | AC18: 0 | AD18: 0 | AE18: 0 | AF18: 0 | AG18: 0 | AH18: 0 | AI18: 0 | AJ18: 0 | AK18: 0 | AL18: 0 | AM18: 2 | AN18: 0 | AO18: 0 | AP18: 0
A19: Placeholder_2 | C19: 0 | D19: 0 | E19: 0 | F19: 0 | G19: 0 | H19: 0 | I19: 0 | J19: 0 | K19: 0 | L19: 0 | M19: 0 | N19: 0 | O19: 0 | P19: 0 | Q19: 0 | R19: 0 | S19: 0 | T19: 0 | U19: 0 | V19: 0 | W19: 0 | X19: 0 | Y19: 0 | Z19: 0 | AA19: 0 | AB19: 0 | AC19: 0 | AD19: 0 | AE19: 0 | AF19: 0 | AG19: 0 | AH19: 0 | AI19: 0 | AJ19: 0 | AK19: 0 | AL19: 0 | AM19: 0 | AN19: 0 | AO19: 0 | AP19: 0
A20: Placeholder_3 | C20: 0 | D20: 0 | E20: 0 | F20: 0 | G20: 0 | H20: 0 | I20: 0 | J20: 0 | K20: 0 | L20: 0 | M20: 0 | N20: 0 | O20: 0 | P20: 0 | Q20: 0 | R20: 0 | S20: 0 | T20: 0 | U20: 0 | V20: 0 | W20: 0 | X20: 0 | Y20: 0 | Z20: 0 | AA20: 0 | AB20: 0 | AC20: 0 | AD20: 0 | AE20: 0 | AF20: 0 | AG20: 0 | AH20: 0 | AI20: 0 | AJ20: 0 | AK20: 0 | AL20: 0 | AM20: 0 | AN20: 0 | AO20: 0 | AP20: 0
A21: Placeholder_4 | C21: 0 | D21: 0 | E21: 0 | F21: 0 | G21: 0 | H21: 0 | I21: 0 | J21: 0 | K21: 0 | L21: 0 | M21: 0 | N21: 0 | O21: 0 | P21: 0 | Q21: 0 | R21: 0 | S21: 0 | T21: 0 | U21: 0 | V21: 0 | W21: 0 | X21: 0 | Y21: 0 | Z21: 0 | AA21: 0 | AB21: 0 | AC21: 0 | AD21: 0 | AE21: 0 | AF21: 0 | AG21: 0 | AH21: 0 | AI21: 0 | AJ21: 0 | AK21: 0 | AL21: 0 | AM21: 0 | AN21: 0 | AO21: 0 | AP21: 0
A22: Placeholder_5 | C22: 0 | D22: 0 | E22: 0 | F22: 0 | G22: 0 | H22: 0 | I22: 0 | J22: 0 | K22: 0 | L22: 0 | M22: 0 | N22: 0 | O22: 0 | P22: 0 | Q22: 0 | R22: 0 | S22: 0 | T22: 0 | U22: 0 | V22: 0 | W22: 0 | X22: 0 | Y22: 0 | Z22: 0 | AA22: 0 | AB22: 0 | AC22: 0 | AD22: 0 | AE22: 0 | AF22: 0 | AG22: 0 | AH22: 0 | AI22: 0 | AJ22: 0 | AK22: 0 | AL22: 0 | AM22: 0 | AN22: 0 | AO22: 0 | AP22: 0
A23: Smaragd | C23: 0 | D23: 0 | E23: 0 | F23: 0 | G23: 0 | H23: 0 | I23: 0 | J23: 0 | K23: 0 | L23: 0 | M23: 0 | N23: 0 | O23: 0 | P23: 0 | Q23: 0 | R23: 0 | S23: 0 | T23: 1 | U23: 1 | V23: 1 | W23: 1 | X23: 1 | Y23: 2 | Z23: 2 | AA23: 3 | AB23: 3 | AC23: 4 | AD23: 2 | AE23: 2 | AF23: 3 | AG23: 4 | AH23: 4 | AI23: 9 | AJ23: 0 | AK23: 0 | AL23: 0 | AM23: 0 | AN23: 0 | AO23: 0 | AP23: 0
A24: Diamant | C24: 0 | D24: 0 | E24: 0 | F24: 0 | G24: 0 | H24: 0 | I24: 0 | J24: 0 | K24: 0 | L24: 0 | M24: 0 | N24: 0 | O24: 0 | P24: 0 | Q24: 0 | R24: 0 | S24: 0 | T24: 0 | U24: 0 | V24: 0 | W24: 0 | X24: 0 | Y24: 0 | Z24: 0 | AA24: 0 | AB24: 0 | AC24: 0 | AD24: 0 | AE24: 0 | AF24: 0 | AG24: 0 | AH24: 0 | AI24: 0 | AJ24: 1 | AK24: 1 | AL24: 2 | AM24: 3 | AN24: 0 | AO24: 0 | AP24: 0
A25: Basic Success % | C25: 1 | D25: 1 | E25: 1 | F25: 1 | G25: 1 | H25: 1 | I25: 1 | J25: 0.5 | K25: 0.5 | L25: 0.5 | M25: 0.5 | N25: 0.5 | O25: 0.5 | P25: 0.5 | Q25: 0.5 | R25: 0.5 | S25: 0.5 | T25: 0.3 | U25: 0.3 | V25: 0.28 | W25: 0.28 | X25: 0.26 | Y25: 0.26 | Z25: 0.24 | AA25: 0.24 | AB25: 0.22 | AC25: 0.22 | AD25: 0.15 | AE25: 0.14 | AF25: 0.13 | AG25: 0.12 | AH25: 0.11 | AI25: 0.1 | AJ25: 0.09 | AK25: 0.07 | AL25: 0.05 | AM25: 0.05 | AN25: 0.05 | AO25: 0.05 | AP25: 0.05
A26: Gold | C26: 206 | D26: 304 | E26: 360 | F26: 454 | G26: 596 | H26: 836 | I26: 1221 | J26: 450 | K26: 514 | L26: 604 | M26: 707 | N26: 874 | O26: 1067 | P26: 1337 | Q26: 1684 | R26: 2134 | S26: 2709 | T26: 736 | U26: 766 | V26: 796 | W26: 886 | X26: 976 | Y26: 280 | Z26: 527 | AA26: 81 | AB26: 679 | AC26: 740 | AD26: 498 | AE26: 633 | AF26: 135 | AG26: 170 | AH26: 845 | AI26: 293 | AJ26: 3070 | AK26: 7273 | AL26: 5968 | AM26: 3118 | AN26: 0 | AO26: 0 | AP26: 0
A27: Exp | C27: 0 | D27: 0 | E27: 0 | F27: 0 | G27: 0 | H27: 0 | I27: 0 | J27: 328 | K27: 376 | L27: 441 | M27: 525 | N27: 639 | O27: 786 | P27: 985 | Q27: 1241 | R27: 1571 | S27: 2045 | T27: 1588 | U27: 1629 | V27: 1705 | W27: 1828 | X27: 2016 | Y27: 2311 | Z27: 2747 | AA27: 3341 | AB27: 4213 | AC27: 5490 | AD27: 4244 | AE27: 4565 | AF27: 5386 | AG27: 6931 | AH27: 9523 | AI27: 13645 | AJ27: 19978 | AK27: 28883 | AL27: 41253 | AM27: 59404 | AN27: 75000 | AO27: 100000 | AP27: 250000

Sheet calculation Stuff, dont change
A1: Low +0 | B1: Low +1 | C1: Low +2 | D1: Low +3 | E1: Low +4 | F1: Low +5 | G1: Low +6 | H1: Mid +0 | I1: Mid +1 | J1: Mid +2 | K1: Mid +3 | L1: Mid +4 | M1: Mid +5 | N1: Mid +6 | O1: Mid +7 | P1: Mid +8 | Q1: Mid +9 | R1: High +0 | S1: High +1 | T1: High +2 | U1: High +3 | V1: High +4 | W1: High +5 | X1: High +6 | Y1: High +7 | Z1: High +8 | AA1: High +9 | AB1: Top +0 | AC1: Top +1 | AD1: Top +2 | AE1: Top +3 | AF1: Top +4 | AG1: Top +5 | AH1: Top +6 | AI1: Top +7 | AJ1: Top +8 | AK1: Top +9 | AL1: Ultra +0 | AM1: Ultra +1 | AN1: Ultra +2 | AO1: Ultra +3
A2: 1 | B2: 1 | C2: 2 | D2: 3 | E2: 4 | F2: 5 | G2: 6 | H2: 7 | I2: 8 | J2: 9 | K2: 10 | L2: 11 | M2: 12 | N2: 13 | O2: 14 | P2: 15 | Q2: 16 | R2: 17 | S2: 18 | T2: 19 | U2: 20 | V2: 21 | W2: 22 | X2: 23 | Y2: 24 | Z2: 25 | AA2: 26 | AB2: 27 | AC2: 28 | AD2: 29 | AE2: 30 | AF2: 31 | AG2: 32 | AH2: 33 | AI2: 34 | AJ2: 35 | AK2: 36 | AL2: 37 | AM2: 38 | AN2: 39 | AO2: 40
B3: 0 | C3: 0 | D3: 0 | E3: 0 | F3: 0 | G3: 0 | H3: 0 | I3: 328 | J3: 376 | K3: 441 | L3: 525 | M3: 639 | N3: 786 | O3: 985 | P3: 1241 | Q3: 1571 | R3: 2045 | S3: 1588 | T3: 1629 | U3: 1705 | V3: 1828 | W3: 2016 | X3: 2311 | Y3: 2747 | Z3: 3341 | AA3: 4213 | AB3: 5490 | AC3: 4244 | AD3: 4565 | AE3: 5386 | AF3: 6931 | AG3: 9523 | AH3: 13645 | AI3: 19978 | AJ3: 28883 | AK3: 41253 | AL3: 59404 | AM3: 75000 | AN3: 100000 | AO3: 250000
N4: Waffe | O4: Rüstung | P4: Schuhe/Handschuhe
A5: Tabelle | B5: y | C5: x | J5: Goldkristall | K5: a | L5: 11 | N5: 1 | O5: 2 | P5: 3
J6: Gewöhnliches Holzstück | K6: b | L6: 12
A7: 0 | B7: =ROUND(INDIRECT("CostCalculation!D"&CostCalculation!$O$10,TRUE)*A7,0) -> 0 | C7: =IF((COUNTIF(INDIRECT("MonteCarlo!"&CostCalculation!$N$10&3,TRUE):INDIRECT("MonteCarlo!"&CostCalculation!$N$10&CostCalculation!$E$4+2,TRUE),"<="&B7))/CostCalculation!$E$4=0,#N/A,(COUNTIF(INDIRECT("MonteCarlo!"&CostCalculation!$N$10&3,TRUE):INDIRECT("MonteCarlo!"&CostCalculation!$N$10&CostCalculation!$E$4+2,TRUE),"<="&B7))/CostCalculation!$E$4) ->  | D7: =B7 -> 0 | E7: =IF((COUNTIF(INDIRECT("MonteCarlo!"&CostCalculation!$N$10&3,TRUE):INDIRECT("MonteCarlo!"&CostCalculation!$N$10&CostCalculation!$E$4+2,TRUE),">"&B7)-COUNTIF(INDIRECT("MonteCarlo!"&CostCalculation!$N$10&3,TRUE):INDIRECT("MonteCarlo!"&CostCalculation!$N$10&CostCalculation!$E$4+2,TRUE),">"&B8))/CostCalculation!$E$4=0,#N/A,(COUNTIF(INDIRECT("MonteCarlo!"&CostCalculation!$N$10&3,TRUE):INDIRECT("MonteCarlo!"&CostCalculation!$N$10&CostCalculation!$E$4+2,TRUE),">"&B7)-COUNTIF(INDIRECT("MonteCarlo!"&CostCalculation!$N$10&3,TRUE):INDIRECT("MonteCarlo!"&CostCalculation!$N$10&CostCalculation!$E$4+2,TRUE),">"&B8))/CostCalculation!$E$4) ->  | J7: Minderwertige Erzdevaner-Flüssigkeit | K7: c | L7: 13
A8: 0.003 | B8: =ROUND(INDIRECT("CostCalculation!D"&CostCalculation!$O$10,TRUE)*A8,0) -> 1471 | C8: =IF((COUNTIF(INDIRECT("MonteCarlo!"&CostCalculation!$N$10&3,TRUE):INDIRECT("MonteCarlo!"&CostCalculation!$N$10&CostCalculation!$E$4+2,TRUE),"<="&B8))/CostCalculation!$E$4=0,#N/A,(COUNTIF(INDIRECT("MonteCarlo!"&CostCalculation!$N$10&3,TRUE):INDIRECT("MonteCarlo!"&CostCalculation!$N$10&CostCalculation!$E$4+2,TRUE),"<="&B8))/CostCalculation!$E$4) ->  | D8: =B8 -> 1471 | E8: =IF((COUNTIF(INDIRECT("MonteCarlo!"&CostCalculation!$N$10&3,TRUE):INDIRECT("MonteCarlo!"&CostCalculation!$N$10&CostCalculation!$E$4+2,TRUE),">"&B8)-COUNTIF(INDIRECT("MonteCarlo!"&CostCalculation!$N$10&3,TRUE):INDIRECT("MonteCarlo!"&CostCalculation!$N$10&CostCalculation!$E$4+2,TRUE),">"&B9))/CostCalculation!$E$4=0,#N/A,(COUNTIF(INDIRECT("MonteCarlo!"&CostCalculation!$N$10&3,TRUE):INDIRECT("MonteCarlo!"&CostCalculation!$N$10&CostCalculation!$E$4+2,TRUE),">"&B8)-COUNTIF(INDIRECT("MonteCarlo!"&CostCalculation!$N$10&3,TRUE):INDIRECT("MonteCarlo!"&CostCalculation!$N$10&CostCalculation!$E$4+2,TRUE),">"&B9))/CostCalculation!$E$4) ->  | J8: Gereinigtes Erzdevaner-Erz | K8: d | L8: 14 | N8: Keine XP | O8: 0
A9: 0.006 | B9: =ROUND(INDIRECT("CostCalculation!D"&CostCalculation!$O$10,TRUE)*A9,0) -> 2941 | C9: =IF((COUNTIF(INDIRECT("MonteCarlo!"&CostCalculation!$N$10&3,TRUE):INDIRECT("MonteCarlo!"&CostCalculation!$N$10&CostCalculation!$E$4+2,TRUE),"<="&B9))/CostCalculation!$E$4=0,#N/A,(COUNTIF(INDIRECT("MonteCarlo!"&CostCalculation!$N$10&3,TRUE):INDIRECT("MonteCarlo!"&CostCalculation!$N$10&CostCalculation!$E$4+2,TRUE),"<="&B9))/CostCalculation!$E$4) ->  | D9: 2941 | E9: =IF((COUNTIF(INDIRECT("MonteCarlo!"&CostCalculation!$N$10&3,TRUE):INDIRECT("MonteCarlo!"&CostCalculation!$N$10&CostCalculation!$E$4+2,TRUE),">"&B9)-COUNTIF(INDIRECT("MonteCarlo!"&CostCalculation!$N$10&3,TRUE):INDIRECT("MonteCarlo!"&CostCalculation!$N$10&CostCalculation!$E$4+2,TRUE),">"&B10))/CostCalculation!$E$4=0,#N/A,(COUNTIF(INDIRECT("MonteCarlo!"&CostCalculation!$N$10&3,TRUE):INDIRECT("MonteCarlo!"&CostCalculation!$N$10&CostCalculation!$E$4+2,TRUE),">"&B9)-COUNTIF(INDIRECT("MonteCarlo!"&CostCalculation!$N$10&3,TRUE):INDIRECT("MonteCarlo!"&CostCalculation!$N$10&CostCalculation!$E$4+2,TRUE),">"&B10))/CostCalculation!$E$4) ->  | J9: Normale Erzdevaner-Flüssigkeit | K9: e | L9: 15 | N9: Volle XP | O9: =CostCalculation!A8+50000 -> 69978
A10: 0.009 | B10: =ROUND(INDIRECT("CostCalculation!D"&CostCalculation!$O$10,TRUE)*A10,0) -> 4412 | C10: =IF((COUNTIF(INDIRECT("MonteCarlo!"&CostCalculation!$N$10&3,TRUE):INDIRECT("MonteCarlo!"&CostCalculation!$N$10&CostCalculation!$E$4+2,TRUE),"<="&B10))/CostCalculation!$E$4=0,#N/A,(COUNTIF(INDIRECT("MonteCarlo!"&CostCalculation!$N$10&3,TRUE):INDIRECT("MonteCarlo!"&CostCalculation!$N$10&CostCalculation!$E$4+2,TRUE),"<="&B10))/CostCalculation!$E$4) ->  | D10: 4412 | E10: =IF((COUNTIF(INDIRECT("MonteCarlo!"&CostCalculation!$N$10&3,TRUE):INDIRECT("MonteCarlo!"&CostCalculation!$N$10&CostCalculation!$E$4+2,TRUE),">"&B10)-COUNTIF(INDIRECT("MonteCarlo!"&CostCalculation!$N$10&3,TRUE):INDIRECT("MonteCarlo!"&CostCalculation!$N$10&CostCalculation!$E$4+2,TRUE),">"&B11))/CostCalculation!$E$4=0,#N/A,(COUNTIF(INDIRECT("MonteCarlo!"&CostCalculation!$N$10&3,TRUE):INDIRECT("MonteCarlo!"&CostCalculation!$N$10&CostCalculation!$E$4+2,TRUE),">"&B10)-COUNTIF(INDIRECT("MonteCarlo!"&CostCalculation!$N$10&3,TRUE):INDIRECT("MonteCarlo!"&CostCalculation!$N$10&CostCalculation!$E$4+2,TRUE),">"&B11))/CostCalculation!$E$4) ->  | J10: Arboreas Goldstück | K10: f | L10: 16 | N10: % XP | O10: =CostCalculation!B8 -> 0.5
A11: 0.012 | B11: =ROUND(INDIRECT("CostCalculation!D"&CostCalculation!$O$10,TRUE)*A11,0) -> 5883 | C11: =IF((COUNTIF(INDIRECT("MonteCarlo!"&CostCalculation!$N$10&3,TRUE):INDIRECT("MonteCarlo!"&CostCalculation!$N$10&CostCalculation!$E$4+2,TRUE),"<="&B11))/CostCalculation!$E$4=0,#N/A,(COUNTIF(INDIRECT("MonteCarlo!"&CostCalculation!$N$10&3,TRUE):INDIRECT("MonteCarlo!"&CostCalculation!$N$10&CostCalculation!$E$4+2,TRUE),"<="&B11))/CostCalculation!$E$4) ->  | D11: 5883 | E11: =IF((COUNTIF(INDIRECT("MonteCarlo!"&CostCalculation!$N$10&3,TRUE):INDIRECT("MonteCarlo!"&CostCalculation!$N$10&CostCalculation!$E$4+2,TRUE),">"&B11)-COUNTIF(INDIRECT("MonteCarlo!"&CostCalculation!$N$10&3,TRUE):INDIRECT("MonteCarlo!"&CostCalculation!$N$10&CostCalculation!$E$4+2,TRUE),">"&B12))/CostCalculation!$E$4=0,#N/A,(COUNTIF(INDIRECT("MonteCarlo!"&CostCalculation!$N$10&3,TRUE):INDIRECT("MonteCarlo!"&CostCalculation!$N$10&CostCalculation!$E$4+2,TRUE),">"&B11)-COUNTIF(INDIRECT("MonteCarlo!"&CostCalculation!$N$10&3,TRUE):INDIRECT("MonteCarlo!"&CostCalculation!$N$10&CostCalculation!$E$4+2,TRUE),">"&B12))/CostCalculation!$E$4) ->  | J11: Unbekannte metallische Flüssigkeit | K11: g | L11: 17 | N11: Absolute XP | O11: =CostCalculation!C8 -> 0
A12: 0.015 | B12: =ROUND(INDIRECT("CostCalculation!D"&CostCalculation!$O$10,TRUE)*A12,0) -> 7354 | C12: =IF((COUNTIF(INDIRECT("MonteCarlo!"&CostCalculation!$N$10&3,TRUE):INDIRECT("MonteCarlo!"&CostCalculation!$N$10&CostCalculation!$E$4+2,TRUE),"<="&B12))/CostCalculation!$E$4=0,#N/A,(COUNTIF(INDIRECT("MonteCarlo!"&CostCalculation!$N$10&3,TRUE):INDIRECT("MonteCarlo!"&CostCalculation!$N$10&CostCalculation!$E$4+2,TRUE),"<="&B12))/CostCalculation!$E$4) ->  | D12: 7354 | E12: =IF((COUNTIF(INDIRECT("MonteCarlo!"&CostCalculation!$N$10&3,TRUE):INDIRECT("MonteCarlo!"&CostCalculation!$N$10&CostCalculation!$E$4+2,TRUE),">"&B12)-COUNTIF(INDIRECT("MonteCarlo!"&CostCalculation!$N$10&3,TRUE):INDIRECT("MonteCarlo!"&CostCalculation!$N$10&CostCalculation!$E$4+2,TRUE),">"&B13))/CostCalculation!$E$4=0,#N/A,(COUNTIF(INDIRECT("MonteCarlo!"&CostCalculation!$N$10&3,TRUE):INDIRECT("MonteCarlo!"&CostCalculation!$N$10&CostCalculation!$E$4+2,TRUE),">"&B12)-COUNTIF(INDIRECT("MonteCarlo!"&CostCalculation!$N$10&3,TRUE):INDIRECT("MonteCarlo!"&CostCalculation!$N$10&CostCalculation!$E$4+2,TRUE),">"&B13))/CostCalculation!$E$4) ->  | J12: Dunkler Unterwerfer | K12: h | L12: 18
A13: 0.018 | B13: =ROUND(INDIRECT("CostCalculation!D"&CostCalculation!$O$10,TRUE)*A13,0) -> 8824 | C13: =IF((COUNTIF(INDIRECT("MonteCarlo!"&CostCalculation!$N$10&3,TRUE):INDIRECT("MonteCarlo!"&CostCalculation!$N$10&CostCalculation!$E$4+2,TRUE),"<="&B13))/CostCalculation!$E$4=0,#N/A,(COUNTIF(INDIRECT("MonteCarlo!"&CostCalculation!$N$10&3,TRUE):INDIRECT("MonteCarlo!"&CostCalculation!$N$10&CostCalculation!$E$4+2,TRUE),"<="&B13))/CostCalculation!$E$4) ->  | D13: 8824 | E13: =IF((COUNTIF(INDIRECT("MonteCarlo!"&CostCalculation!$N$10&3,TRUE):INDIRECT("MonteCarlo!"&CostCalculation!$N$10&CostCalculation!$E$4+2,TRUE),">"&B13)-COUNTIF(INDIRECT("MonteCarlo!"&CostCalculation!$N$10&3,TRUE):INDIRECT("MonteCarlo!"&CostCalculation!$N$10&CostCalculation!$E$4+2,TRUE),">"&B14))/CostCalculation!$E$4=0,#N/A,(COUNTIF(INDIRECT("MonteCarlo!"&CostCalculation!$N$10&3,TRUE):INDIRECT("MonteCarlo!"&CostCalculation!$N$10&CostCalculation!$E$4+2,TRUE),">"&B13)-COUNTIF(INDIRECT("MonteCarlo!"&CostCalculation!$N$10&3,TRUE):INDIRECT("MonteCarlo!"&CostCalculation!$N$10&CostCalculation!$E$4+2,TRUE),">"&B14))/CostCalculation!$E$4) ->  | J13: Herausragende Erzdevaner-Flüssigkeit | K13: i | L13: 19
A14: 0.021 | B14: =ROUND(INDIRECT("CostCalculation!D"&CostCalculation!$O$10,TRUE)*A14,0) -> 10295 | C14: =IF((COUNTIF(INDIRECT("MonteCarlo!"&CostCalculation!$N$10&3,TRUE):INDIRECT("MonteCarlo!"&CostCalculation!$N$10&CostCalculation!$E$4+2,TRUE),"<="&B14))/CostCalculation!$E$4=0,#N/A,(COUNTIF(INDIRECT("MonteCarlo!"&CostCalculation!$N$10&3,TRUE):INDIRECT("MonteCarlo!"&CostCalculation!$N$10&CostCalculation!$E$4+2,TRUE),"<="&B14))/CostCalculation!$E$4) ->  | D14: 10295 | E14: =IF((COUNTIF(INDIRECT("MonteCarlo!"&CostCalculation!$N$10&3,TRUE):INDIRECT("MonteCarlo!"&CostCalculation!$N$10&CostCalculation!$E$4+2,TRUE),">"&B14)-COUNTIF(INDIRECT("MonteCarlo!"&CostCalculation!$N$10&3,TRUE):INDIRECT("MonteCarlo!"&CostCalculation!$N$10&CostCalculation!$E$4+2,TRUE),">"&B15))/CostCalculation!$E$4=0,#N/A,(COUNTIF(INDIRECT("MonteCarlo!"&CostCalculation!$N$10&3,TRUE):INDIRECT("MonteCarlo!"&CostCalculation!$N$10&CostCalculation!$E$4+2,TRUE),">"&B14)-COUNTIF(INDIRECT("MonteCarlo!"&CostCalculation!$N$10&3,TRUE):INDIRECT("MonteCarlo!"&CostCalculation!$N$10&CostCalculation!$E$4+2,TRUE),">"&B15))/CostCalculation!$E$4) ->  | J14: Arboreas Goldbarren | K14: j | L14: 20
A15: 0.024 | B15: =ROUND(INDIRECT("CostCalculation!D"&CostCalculation!$O$10,TRUE)*A15,0) -> 11766 | C15: =IF((COUNTIF(INDIRECT("MonteCarlo!"&CostCalculation!$N$10&3,TRUE):INDIRECT("MonteCarlo!"&CostCalculation!$N$10&CostCalculation!$E$4+2,TRUE),"<="&B15))/CostCalculation!$E$4=0,#N/A,(COUNTIF(INDIRECT("MonteCarlo!"&CostCalculation!$N$10&3,TRUE):INDIRECT("MonteCarlo!"&CostCalculation!$N$10&CostCalculation!$E$4+2,TRUE),"<="&B15))/CostCalculation!$E$4) ->  | D15: 11766 | E15: =IF((COUNTIF(INDIRECT("MonteCarlo!"&CostCalculation!$N$10&3,TRUE):INDIRECT("MonteCarlo!"&CostCalculation!$N$10&CostCalculation!$E$4+2,TRUE),">"&B15)-COUNTIF(INDIRECT("MonteCarlo!"&CostCalculation!$N$10&3,TRUE):INDIRECT("MonteCarlo!"&CostCalculation!$N$10&CostCalculation!$E$4+2,TRUE),">"&B16))/CostCalculation!$E$4=0,#N/A,(COUNTIF(INDIRECT("MonteCarlo!"&CostCalculation!$N$10&3,TRUE):INDIRECT("MonteCarlo!"&CostCalculation!$N$10&CostCalculation!$E$4+2,TRUE),">"&B15)-COUNTIF(INDIRECT("MonteCarlo!"&CostCalculation!$N$10&3,TRUE):INDIRECT("MonteCarlo!"&CostCalculation!$N$10&CostCalculation!$E$4+2,TRUE),">"&B16))/CostCalculation!$E$4) ->  | J15: Verzauberungswerkzeug des Meisters | K15: k | L15: 21
A16: 0.027 | B16: =ROUND(INDIRECT("CostCalculation!D"&CostCalculation!$O$10,TRUE)*A16,0) -> 13237 | C16: =IF((COUNTIF(INDIRECT("MonteCarlo!"&CostCalculation!$N$10&3,TRUE):INDIRECT("MonteCarlo!"&CostCalculation!$N$10&CostCalculation!$E$4+2,TRUE),"<="&B16))/CostCalculation!$E$4=0,#N/A,(COUNTIF(INDIRECT("MonteCarlo!"&CostCalculation!$N$10&3,TRUE):INDIRECT("MonteCarlo!"&CostCalculation!$N$10&CostCalculation!$E$4+2,TRUE),"<="&B16))/CostCalculation!$E$4) ->  | D16: 13237 | E16: =IF((COUNTIF(INDIRECT("MonteCarlo!"&CostCalculation!$N$10&3,TRUE):INDIRECT("MonteCarlo!"&CostCalculation!$N$10&CostCalculation!$E$4+2,TRUE),">"&B16)-COUNTIF(INDIRECT("MonteCarlo!"&CostCalculation!$N$10&3,TRUE):INDIRECT("MonteCarlo!"&CostCalculation!$N$10&CostCalculation!$E$4+2,TRUE),">"&B17))/CostCalculation!$E$4=0,#N/A,(COUNTIF(INDIRECT("MonteCarlo!"&CostCalculation!$N$10&3,TRUE):INDIRECT("MonteCarlo!"&CostCalculation!$N$10&CostCalculation!$E$4+2,TRUE),">"&B16)-COUNTIF(INDIRECT("MonteCarlo!"&CostCalculation!$N$10&3,TRUE):INDIRECT("MonteCarlo!"&CostCalculation!$N$10&CostCalculation!$E$4+2,TRUE),">"&B17))/CostCalculation!$E$4) ->  | J16: Blutige Metallstruktur | K16: l | L16: 22
A17: 0.03 | B17: =ROUND(INDIRECT("CostCalculation!D"&CostCalculation!$O$10,TRUE)*A17,0) -> 14707 | C17: =IF((COUNTIF(INDIRECT("MonteCarlo!"&CostCalculation!$N$10&3,TRUE):INDIRECT("MonteCarlo!"&CostCalculation!$N$10&CostCalculation!$E$4+2,TRUE),"<="&B17))/CostCalculation!$E$4=0,#N/A,(COUNTIF(INDIRECT("MonteCarlo!"&CostCalculation!$N$10&3,TRUE):INDIRECT("MonteCarlo!"&CostCalculation!$N$10&CostCalculation!$E$4+2,TRUE),"<="&B17))/CostCalculation!$E$4) ->  | D17: 14707 | E17: =IF((COUNTIF(INDIRECT("MonteCarlo!"&CostCalculation!$N$10&3,TRUE):INDIRECT("MonteCarlo!"&CostCalculation!$N$10&CostCalculation!$E$4+2,TRUE),">"&B17)-COUNTIF(INDIRECT("MonteCarlo!"&CostCalculation!$N$10&3,TRUE):INDIRECT("MonteCarlo!"&CostCalculation!$N$10&CostCalculation!$E$4+2,TRUE),">"&B18))/CostCalculation!$E$4=0,#N/A,(COUNTIF(INDIRECT("MonteCarlo!"&CostCalculation!$N$10&3,TRUE):INDIRECT("MonteCarlo!"&CostCalculation!$N$10&CostCalculation!$E$4+2,TRUE),">"&B17)-COUNTIF(INDIRECT("MonteCarlo!"&CostCalculation!$N$10&3,TRUE):INDIRECT("MonteCarlo!"&CostCalculation!$N$10&CostCalculation!$E$4+2,TRUE),">"&B18))/CostCalculation!$E$4) ->  | J17: Staub der Stille | K17: m | L17: 23
A18: 0.033 | B18: =ROUND(INDIRECT("CostCalculation!D"&CostCalculation!$O$10,TRUE)*A18,0) -> 16178 | C18: =IF((COUNTIF(INDIRECT("MonteCarlo!"&CostCalculation!$N$10&3,TRUE):INDIRECT("MonteCarlo!"&CostCalculation!$N$10&CostCalculation!$E$4+2,TRUE),"<="&B18))/CostCalculation!$E$4=0,#N/A,(COUNTIF(INDIRECT("MonteCarlo!"&CostCalculation!$N$10&3,TRUE):INDIRECT("MonteCarlo!"&CostCalculation!$N$10&CostCalculation!$E$4+2,TRUE),"<="&B18))/CostCalculation!$E$4) ->  | D18: 16178 | E18: =IF((COUNTIF(INDIRECT("MonteCarlo!"&CostCalculation!$N$10&3,TRUE):INDIRECT("MonteCarlo!"&CostCalculation!$N$10&CostCalculation!$E$4+2,TRUE),">"&B18)-COUNTIF(INDIRECT("MonteCarlo!"&CostCalculation!$N$10&3,TRUE):INDIRECT("MonteCarlo!"&CostCalculation!$N$10&CostCalculation!$E$4+2,TRUE),">"&B19))/CostCalculation!$E$4=0,#N/A,(COUNTIF(INDIRECT("MonteCarlo!"&CostCalculation!$N$10&3,TRUE):INDIRECT("MonteCarlo!"&CostCalculation!$N$10&CostCalculation!$E$4+2,TRUE),">"&B18)-COUNTIF(INDIRECT("MonteCarlo!"&CostCalculation!$N$10&3,TRUE):INDIRECT("MonteCarlo!"&CostCalculation!$N$10&CostCalculation!$E$4+2,TRUE),">"&B19))/CostCalculation!$E$4) ->  | J18: Rätselhafter Trank | K18: n | L18: 24
A19: 0.036 | B19: =ROUND(INDIRECT("CostCalculation!D"&CostCalculation!$O$10,TRUE)*A19,0) -> 17649 | C19: =IF((COUNTIF(INDIRECT("MonteCarlo!"&CostCalculation!$N$10&3,TRUE):INDIRECT("MonteCarlo!"&CostCalculation!$N$10&CostCalculation!$E$4+2,TRUE),"<="&B19))/CostCalculation!$E$4=0,#N/A,(COUNTIF(INDIRECT("MonteCarlo!"&CostCalculation!$N$10&3,TRUE):INDIRECT("MonteCarlo!"&CostCalculation!$N$10&CostCalculation!$E$4+2,TRUE),"<="&B19))/CostCalculation!$E$4) ->  | D19: 17649 | E19: =IF((COUNTIF(INDIRECT("MonteCarlo!"&CostCalculation!$N$10&3,TRUE):INDIRECT("MonteCarlo!"&CostCalculation!$N$10&CostCalculation!$E$4+2,TRUE),">"&B19)-COUNTIF(INDIRECT("MonteCarlo!"&CostCalculation!$N$10&3,TRUE):INDIRECT("MonteCarlo!"&CostCalculation!$N$10&CostCalculation!$E$4+2,TRUE),">"&B20))/CostCalculation!$E$4=0,#N/A,(COUNTIF(INDIRECT("MonteCarlo!"&CostCalculation!$N$10&3,TRUE):INDIRECT("MonteCarlo!"&CostCalculation!$N$10&CostCalculation!$E$4+2,TRUE),">"&B19)-COUNTIF(INDIRECT("MonteCarlo!"&CostCalculation!$N$10&3,TRUE):INDIRECT("MonteCarlo!"&CostCalculation!$N$10&CostCalculation!$E$4+2,TRUE),">"&B20))/CostCalculation!$E$4) ->  | J19: Letztes Element | K19: o | L19: 25
A20: 0.039 | B20: =ROUND(INDIRECT("CostCalculation!D"&CostCalculation!$O$10,TRUE)*A20,0) -> 19120 | C20: =IF((COUNTIF(INDIRECT("MonteCarlo!"&CostCalculation!$N$10&3,TRUE):INDIRECT("MonteCarlo!"&CostCalculation!$N$10&CostCalculation!$E$4+2,TRUE),"<="&B20))/CostCalculation!$E$4=0,#N/A,(COUNTIF(INDIRECT("MonteCarlo!"&CostCalculation!$N$10&3,TRUE):INDIRECT("MonteCarlo!"&CostCalculation!$N$10&CostCalculation!$E$4+2,TRUE),"<="&B20))/CostCalculation!$E$4) ->  | D20: 19120 | E20: =IF((COUNTIF(INDIRECT("MonteCarlo!"&CostCalculation!$N$10&3,TRUE):INDIRECT("MonteCarlo!"&CostCalculation!$N$10&CostCalculation!$E$4+2,TRUE),">"&B20)-COUNTIF(INDIRECT("MonteCarlo!"&CostCalculation!$N$10&3,TRUE):INDIRECT("MonteCarlo!"&CostCalculation!$N$10&CostCalculation!$E$4+2,TRUE),">"&B21))/CostCalculation!$E$4=0,#N/A,(COUNTIF(INDIRECT("MonteCarlo!"&CostCalculation!$N$10&3,TRUE):INDIRECT("MonteCarlo!"&CostCalculation!$N$10&CostCalculation!$E$4+2,TRUE),">"&B20)-COUNTIF(INDIRECT("MonteCarlo!"&CostCalculation!$N$10&3,TRUE):INDIRECT("MonteCarlo!"&CostCalculation!$N$10&CostCalculation!$E$4+2,TRUE),">"&B21))/CostCalculation!$E$4) ->  | J20: Placeholder_2 | K20: p | L20: 26
A21: 0.042 | B21: =ROUND(INDIRECT("CostCalculation!D"&CostCalculation!$O$10,TRUE)*A21,0) -> 20590 | C21: =IF((COUNTIF(INDIRECT("MonteCarlo!"&CostCalculation!$N$10&3,TRUE):INDIRECT("MonteCarlo!"&CostCalculation!$N$10&CostCalculation!$E$4+2,TRUE),"<="&B21))/CostCalculation!$E$4=0,#N/A,(COUNTIF(INDIRECT("MonteCarlo!"&CostCalculation!$N$10&3,TRUE):INDIRECT("MonteCarlo!"&CostCalculation!$N$10&CostCalculation!$E$4+2,TRUE),"<="&B21))/CostCalculation!$E$4) ->  | D21: 20590 | E21: =IF((COUNTIF(INDIRECT("MonteCarlo!"&CostCalculation!$N$10&3,TRUE):INDIRECT("MonteCarlo!"&CostCalculation!$N$10&CostCalculation!$E$4+2,TRUE),">"&B21)-COUNTIF(INDIRECT("MonteCarlo!"&CostCalculation!$N$10&3,TRUE):INDIRECT("MonteCarlo!"&CostCalculation!$N$10&CostCalculation!$E$4+2,TRUE),">"&B22))/CostCalculation!$E$4=0,#N/A,(COUNTIF(INDIRECT("MonteCarlo!"&CostCalculation!$N$10&3,TRUE):INDIRECT("MonteCarlo!"&CostCalculation!$N$10&CostCalculation!$E$4+2,TRUE),">"&B21)-COUNTIF(INDIRECT("MonteCarlo!"&CostCalculation!$N$10&3,TRUE):INDIRECT("MonteCarlo!"&CostCalculation!$N$10&CostCalculation!$E$4+2,TRUE),">"&B22))/CostCalculation!$E$4) ->  | J21: Placeholder_3 | K21: q | L21: 27
A22: 0.045 | B22: =ROUND(INDIRECT("CostCalculation!D"&CostCalculation!$O$10,TRUE)*A22,0) -> 22061 | C22: =IF((COUNTIF(INDIRECT("MonteCarlo!"&CostCalculation!$N$10&3,TRUE):INDIRECT("MonteCarlo!"&CostCalculation!$N$10&CostCalculation!$E$4+2,TRUE),"<="&B22))/CostCalculation!$E$4=0,#N/A,(COUNTIF(INDIRECT("MonteCarlo!"&CostCalculation!$N$10&3,TRUE):INDIRECT("MonteCarlo!"&CostCalculation!$N$10&CostCalculation!$E$4+2,TRUE),"<="&B22))/CostCalculation!$E$4) ->  | D22: 22061 | E22: =IF((COUNTIF(INDIRECT("MonteCarlo!"&CostCalculation!$N$10&3,TRUE):INDIRECT("MonteCarlo!"&CostCalculation!$N$10&CostCalculation!$E$4+2,TRUE),">"&B22)-COUNTIF(INDIRECT("MonteCarlo!"&CostCalculation!$N$10&3,TRUE):INDIRECT("MonteCarlo!"&CostCalculation!$N$10&CostCalculation!$E$4+2,TRUE),">"&B23))/CostCalculation!$E$4=0,#N/A,(COUNTIF(INDIRECT("MonteCarlo!"&CostCalculation!$N$10&3,TRUE):INDIRECT("MonteCarlo!"&CostCalculation!$N$10&CostCalculation!$E$4+2,TRUE),">"&B22)-COUNTIF(INDIRECT("MonteCarlo!"&CostCalculation!$N$10&3,TRUE):INDIRECT("MonteCarlo!"&CostCalculation!$N$10&CostCalculation!$E$4+2,TRUE),">"&B23))/CostCalculation!$E$4) ->  | J22: Placeholder_4 | K22: r | L22: 28
A23: 0.048 | B23: =ROUND(INDIRECT("CostCalculation!D"&CostCalculation!$O$10,TRUE)*A23,0) -> 23532 | C23: =IF((COUNTIF(INDIRECT("MonteCarlo!"&CostCalculation!$N$10&3,TRUE):INDIRECT("MonteCarlo!"&CostCalculation!$N$10&CostCalculation!$E$4+2,TRUE),"<="&B23))/CostCalculation!$E$4=0,#N/A,(COUNTIF(INDIRECT("MonteCarlo!"&CostCalculation!$N$10&3,TRUE):INDIRECT("MonteCarlo!"&CostCalculation!$N$10&CostCalculation!$E$4+2,TRUE),"<="&B23))/CostCalculation!$E$4) ->  | D23: 23532 | E23: =IF((COUNTIF(INDIRECT("MonteCarlo!"&CostCalculation!$N$10&3,TRUE):INDIRECT("MonteCarlo!"&CostCalculation!$N$10&CostCalculation!$E$4+2,TRUE),">"&B23)-COUNTIF(INDIRECT("MonteCarlo!"&CostCalculation!$N$10&3,TRUE):INDIRECT("MonteCarlo!"&CostCalculation!$N$10&CostCalculation!$E$4+2,TRUE),">"&B24))/CostCalculation!$E$4=0,#N/A,(COUNTIF(INDIRECT("MonteCarlo!"&CostCalculation!$N$10&3,TRUE):INDIRECT("MonteCarlo!"&CostCalculation!$N$10&CostCalculation!$E$4+2,TRUE),">"&B23)-COUNTIF(INDIRECT("MonteCarlo!"&CostCalculation!$N$10&3,TRUE):INDIRECT("MonteCarlo!"&CostCalculation!$N$10&CostCalculation!$E$4+2,TRUE),">"&B24))/CostCalculation!$E$4) ->  | J23: Placeholder_5 | K23: s | L23: 29
A24: 0.051 | B24: =ROUND(INDIRECT("CostCalculation!D"&CostCalculation!$O$10,TRUE)*A24,0) -> 25002 | C24: =IF((COUNTIF(INDIRECT("MonteCarlo!"&CostCalculation!$N$10&3,TRUE):INDIRECT("MonteCarlo!"&CostCalculation!$N$10&CostCalculation!$E$4+2,TRUE),"<="&B24))/CostCalculation!$E$4=0,#N/A,(COUNTIF(INDIRECT("MonteCarlo!"&CostCalculation!$N$10&3,TRUE):INDIRECT("MonteCarlo!"&CostCalculation!$N$10&CostCalculation!$E$4+2,TRUE),"<="&B24))/CostCalculation!$E$4) ->  | D24: 25002 | E24: =IF((COUNTIF(INDIRECT("MonteCarlo!"&CostCalculation!$N$10&3,TRUE):INDIRECT("MonteCarlo!"&CostCalculation!$N$10&CostCalculation!$E$4+2,TRUE),">"&B24)-COUNTIF(INDIRECT("MonteCarlo!"&CostCalculation!$N$10&3,TRUE):INDIRECT("MonteCarlo!"&CostCalculation!$N$10&CostCalculation!$E$4+2,TRUE),">"&B25))/CostCalculation!$E$4=0,#N/A,(COUNTIF(INDIRECT("MonteCarlo!"&CostCalculation!$N$10&3,TRUE):INDIRECT("MonteCarlo!"&CostCalculation!$N$10&CostCalculation!$E$4+2,TRUE),">"&B24)-COUNTIF(INDIRECT("MonteCarlo!"&CostCalculation!$N$10&3,TRUE):INDIRECT("MonteCarlo!"&CostCalculation!$N$10&CostCalculation!$E$4+2,TRUE),">"&B25))/CostCalculation!$E$4) ->  | J24: Smaragd | K24: t | L24: 30
A25: 0.054 | B25: =ROUND(INDIRECT("CostCalculation!D"&CostCalculation!$O$10,TRUE)*A25,0) -> 26473 | C25: =IF((COUNTIF(INDIRECT("MonteCarlo!"&CostCalculation!$N$10&3,TRUE):INDIRECT("MonteCarlo!"&CostCalculation!$N$10&CostCalculation!$E$4+2,TRUE),"<="&B25))/CostCalculation!$E$4=0,#N/A,(COUNTIF(INDIRECT("MonteCarlo!"&CostCalculation!$N$10&3,TRUE):INDIRECT("MonteCarlo!"&CostCalculation!$N$10&CostCalculation!$E$4+2,TRUE),"<="&B25))/CostCalculation!$E$4) ->  | D25: 26473 | E25: =IF((COUNTIF(INDIRECT("MonteCarlo!"&CostCalculation!$N$10&3,TRUE):INDIRECT("MonteCarlo!"&CostCalculation!$N$10&CostCalculation!$E$4+2,TRUE),">"&B25)-COUNTIF(INDIRECT("MonteCarlo!"&CostCalculation!$N$10&3,TRUE):INDIRECT("MonteCarlo!"&CostCalculation!$N$10&CostCalculation!$E$4+2,TRUE),">"&B26))/CostCalculation!$E$4=0,#N/A,(COUNTIF(INDIRECT("MonteCarlo!"&CostCalculation!$N$10&3,TRUE):INDIRECT("MonteCarlo!"&CostCalculation!$N$10&CostCalculation!$E$4+2,TRUE),">"&B25)-COUNTIF(INDIRECT("MonteCarlo!"&CostCalculation!$N$10&3,TRUE):INDIRECT("MonteCarlo!"&CostCalculation!$N$10&CostCalculation!$E$4+2,TRUE),">"&B26))/CostCalculation!$E$4) ->  | J25: Diamant | K25: u | L25: 31 | O25: =1/(4*10^-13) -> 2500000000000
A26: 0.057 | B26: =ROUND(INDIRECT("CostCalculation!D"&CostCalculation!$O$10,TRUE)*A26,0) -> 27944 | C26: =IF((COUNTIF(INDIRECT("MonteCarlo!"&CostCalculation!$N$10&3,TRUE):INDIRECT("MonteCarlo!"&CostCalculation!$N$10&CostCalculation!$E$4+2,TRUE),"<="&B26))/CostCalculation!$E$4=0,#N/A,(COUNTIF(INDIRECT("MonteCarlo!"&CostCalculation!$N$10&3,TRUE):INDIRECT("MonteCarlo!"&CostCalculation!$N$10&CostCalculation!$E$4+2,TRUE),"<="&B26))/CostCalculation!$E$4) ->  | D26: 27944 | E26: =IF((COUNTIF(INDIRECT("MonteCarlo!"&CostCalculation!$N$10&3,TRUE):INDIRECT("MonteCarlo!"&CostCalculation!$N$10&CostCalculation!$E$4+2,TRUE),">"&B26)-COUNTIF(INDIRECT("MonteCarlo!"&CostCalculation!$N$10&3,TRUE):INDIRECT("MonteCarlo!"&CostCalculation!$N$10&CostCalculation!$E$4+2,TRUE),">"&B27))/CostCalculation!$E$4=0,#N/A,(COUNTIF(INDIRECT("MonteCarlo!"&CostCalculation!$N$10&3,TRUE):INDIRECT("MonteCarlo!"&CostCalculation!$N$10&CostCalculation!$E$4+2,TRUE),">"&B26)-COUNTIF(INDIRECT("MonteCarlo!"&CostCalculation!$N$10&3,TRUE):INDIRECT("MonteCarlo!"&CostCalculation!$N$10&CostCalculation!$E$4+2,TRUE),">"&B27))/CostCalculation!$E$4) ->  | J26: Gold | K26: v | L26: 32
A27: 0.06 | B27: =ROUND(INDIRECT("CostCalculation!D"&CostCalculation!$O$10,TRUE)*A27,0) -> 29415 | C27: =IF((COUNTIF(INDIRECT("MonteCarlo!"&CostCalculation!$N$10&3,TRUE):INDIRECT("MonteCarlo!"&CostCalculation!$N$10&CostCalculation!$E$4+2,TRUE),"<="&B27))/CostCalculation!$E$4=0,#N/A,(COUNTIF(INDIRECT("MonteCarlo!"&CostCalculation!$N$10&3,TRUE):INDIRECT("MonteCarlo!"&CostCalculation!$N$10&CostCalculation!$E$4+2,TRUE),"<="&B27))/CostCalculation!$E$4) ->  | D27: 29415 | E27: =IF((COUNTIF(INDIRECT("MonteCarlo!"&CostCalculation!$N$10&3,TRUE):INDIRECT("MonteCarlo!"&CostCalculation!$N$10&CostCalculation!$E$4+2,TRUE),">"&B27)-COUNTIF(INDIRECT("MonteCarlo!"&CostCalculation!$N$10&3,TRUE):INDIRECT("MonteCarlo!"&CostCalculation!$N$10&CostCalculation!$E$4+2,TRUE),">"&B28))/CostCalculation!$E$4=0,#N/A,(COUNTIF(INDIRECT("MonteCarlo!"&CostCalculation!$N$10&3,TRUE):INDIRECT("MonteCarlo!"&CostCalculation!$N$10&CostCalculation!$E$4+2,TRUE),">"&B27)-COUNTIF(INDIRECT("MonteCarlo!"&CostCalculation!$N$10&3,TRUE):INDIRECT("MonteCarlo!"&CostCalculation!$N$10&CostCalculation!$E$4+2,TRUE),">"&B28))/CostCalculation!$E$4) ->  | J27: Metamorph | K27: w | L27: 33 | O27: =14*10^6 -> 14000000
A28: 0.063 | B28: =ROUND(INDIRECT("CostCalculation!D"&CostCalculation!$O$10,TRUE)*A28,0) -> 30885 | C28: =IF((COUNTIF(INDIRECT("MonteCarlo!"&CostCalculation!$N$10&3,TRUE):INDIRECT("MonteCarlo!"&CostCalculation!$N$10&CostCalculation!$E$4+2,TRUE),"<="&B28))/CostCalculation!$E$4=0,#N/A,(COUNTIF(INDIRECT("MonteCarlo!"&CostCalculation!$N$10&3,TRUE):INDIRECT("MonteCarlo!"&CostCalculation!$N$10&CostCalculation!$E$4+2,TRUE),"<="&B28))/CostCalculation!$E$4) ->  | D28: 30885 | E28: =IF((COUNTIF(INDIRECT("MonteCarlo!"&CostCalculation!$N$10&3,TRUE):INDIRECT("MonteCarlo!"&CostCalculation!$N$10&CostCalculation!$E$4+2,TRUE),">"&B28)-COUNTIF(INDIRECT("MonteCarlo!"&CostCalculation!$N$10&3,TRUE):INDIRECT("MonteCarlo!"&CostCalculation!$N$10&CostCalculation!$E$4+2,TRUE),">"&B29))/CostCalculation!$E$4=0,#N/A,(COUNTIF(INDIRECT("MonteCarlo!"&CostCalculation!$N$10&3,TRUE):INDIRECT("MonteCarlo!"&CostCalculation!$N$10&CostCalculation!$E$4+2,TRUE),">"&B28)-COUNTIF(INDIRECT("MonteCarlo!"&CostCalculation!$N$10&3,TRUE):INDIRECT("MonteCarlo!"&CostCalculation!$N$10&CostCalculation!$E$4+2,TRUE),">"&B29))/CostCalculation!$E$4) ->  | J28: Goldwert | K28: x | L28: 34 | O28: =O27^2 -> 196000000000000
A29: 0.066 | B29: =ROUND(INDIRECT("CostCalculation!D"&CostCalculation!$O$10,TRUE)*A29,0) -> 32356 | C29: =IF((COUNTIF(INDIRECT("MonteCarlo!"&CostCalculation!$N$10&3,TRUE):INDIRECT("MonteCarlo!"&CostCalculation!$N$10&CostCalculation!$E$4+2,TRUE),"<="&B29))/CostCalculation!$E$4=0,#N/A,(COUNTIF(INDIRECT("MonteCarlo!"&CostCalculation!$N$10&3,TRUE):INDIRECT("MonteCarlo!"&CostCalculation!$N$10&CostCalculation!$E$4+2,TRUE),"<="&B29))/CostCalculation!$E$4) ->  | D29: 32356 | E29: =IF((COUNTIF(INDIRECT("MonteCarlo!"&CostCalculation!$N$10&3,TRUE):INDIRECT("MonteCarlo!"&CostCalculation!$N$10&CostCalculation!$E$4+2,TRUE),">"&B29)-COUNTIF(INDIRECT("MonteCarlo!"&CostCalculation!$N$10&3,TRUE):INDIRECT("MonteCarlo!"&CostCalculation!$N$10&CostCalculation!$E$4+2,TRUE),">"&B30))/CostCalculation!$E$4=0,#N/A,(COUNTIF(INDIRECT("MonteCarlo!"&CostCalculation!$N$10&3,TRUE):INDIRECT("MonteCarlo!"&CostCalculation!$N$10&CostCalculation!$E$4+2,TRUE),">"&B29)-COUNTIF(INDIRECT("MonteCarlo!"&CostCalculation!$N$10&3,TRUE):INDIRECT("MonteCarlo!"&CostCalculation!$N$10&CostCalculation!$E$4+2,TRUE),">"&B30))/CostCalculation!$E$4) -> 0.234
A30: 0.069 | B30: =ROUND(INDIRECT("CostCalculation!D"&CostCalculation!$O$10,TRUE)*A30,0) -> 33827 | C30: =IF((COUNTIF(INDIRECT("MonteCarlo!"&CostCalculation!$N$10&3,TRUE):INDIRECT("MonteCarlo!"&CostCalculation!$N$10&CostCalculation!$E$4+2,TRUE),"<="&B30))/CostCalculation!$E$4=0,#N/A,(COUNTIF(INDIRECT("MonteCarlo!"&CostCalculation!$N$10&3,TRUE):INDIRECT("MonteCarlo!"&CostCalculation!$N$10&CostCalculation!$E$4+2,TRUE),"<="&B30))/CostCalculation!$E$4) -> 0.234 | D30: 33827 | E30: =IF((COUNTIF(INDIRECT("MonteCarlo!"&CostCalculation!$N$10&3,TRUE):INDIRECT("MonteCarlo!"&CostCalculation!$N$10&CostCalculation!$E$4+2,TRUE),">"&B30)-COUNTIF(INDIRECT("MonteCarlo!"&CostCalculation!$N$10&3,TRUE):INDIRECT("MonteCarlo!"&CostCalculation!$N$10&CostCalculation!$E$4+2,TRUE),">"&B31))/CostCalculation!$E$4=0,#N/A,(COUNTIF(INDIRECT("MonteCarlo!"&CostCalculation!$N$10&3,TRUE):INDIRECT("MonteCarlo!"&CostCalculation!$N$10&CostCalculation!$E$4+2,TRUE),">"&B30)-COUNTIF(INDIRECT("MonteCarlo!"&CostCalculation!$N$10&3,TRUE):INDIRECT("MonteCarlo!"&CostCalculation!$N$10&CostCalculation!$E$4+2,TRUE),">"&B31))/CostCalculation!$E$4) -> 
A31: 0.072 | B31: =ROUND(INDIRECT("CostCalculation!D"&CostCalculation!$O$10,TRUE)*A31,0) -> 35298 | C31: =IF((COUNTIF(INDIRECT("MonteCarlo!"&CostCalculation!$N$10&3,TRUE):INDIRECT("MonteCarlo!"&CostCalculation!$N$10&CostCalculation!$E$4+2,TRUE),"<="&B31))/CostCalculation!$E$4=0,#N/A,(COUNTIF(INDIRECT("MonteCarlo!"&CostCalculation!$N$10&3,TRUE):INDIRECT("MonteCarlo!"&CostCalculation!$N$10&CostCalculation!$E$4+2,TRUE),"<="&B31))/CostCalculation!$E$4) -> 0.234 | D31: 35298 | E31: =IF((COUNTIF(INDIRECT("MonteCarlo!"&CostCalculation!$N$10&3,TRUE):INDIRECT("MonteCarlo!"&CostCalculation!$N$10&CostCalculation!$E$4+2,TRUE),">"&B31)-COUNTIF(INDIRECT("MonteCarlo!"&CostCalculation!$N$10&3,TRUE):INDIRECT("MonteCarlo!"&CostCalculation!$N$10&CostCalculation!$E$4+2,TRUE),">"&B32))/CostCalculation!$E$4=0,#N/A,(COUNTIF(INDIRECT("MonteCarlo!"&CostCalculation!$N$10&3,TRUE):INDIRECT("MonteCarlo!"&CostCalculation!$N$10&CostCalculation!$E$4+2,TRUE),">"&B31)-COUNTIF(INDIRECT("MonteCarlo!"&CostCalculation!$N$10&3,TRUE):INDIRECT("MonteCarlo!"&CostCalculation!$N$10&CostCalculation!$E$4+2,TRUE),">"&B32))/CostCalculation!$E$4) -> 
A32: 0.075 | B32: =ROUND(INDIRECT("CostCalculation!D"&CostCalculation!$O$10,TRUE)*A32,0) -> 36768 | C32: =IF((COUNTIF(INDIRECT("MonteCarlo!"&CostCalculation!$N$10&3,TRUE):INDIRECT("MonteCarlo!"&CostCalculation!$N$10&CostCalculation!$E$4+2,TRUE),"<="&B32))/CostCalculation!$E$4=0,#N/A,(COUNTIF(INDIRECT("MonteCarlo!"&CostCalculation!$N$10&3,TRUE):INDIRECT("MonteCarlo!"&CostCalculation!$N$10&CostCalculation!$E$4+2,TRUE),"<="&B32))/CostCalculation!$E$4) -> 0.234 | D32: 36768 | E32: =IF((COUNTIF(INDIRECT("MonteCarlo!"&CostCalculation!$N$10&3,TRUE):INDIRECT("MonteCarlo!"&CostCalculation!$N$10&CostCalculation!$E$4+2,TRUE),">"&B32)-COUNTIF(INDIRECT("MonteCarlo!"&CostCalculation!$N$10&3,TRUE):INDIRECT("MonteCarlo!"&CostCalculation!$N$10&CostCalculation!$E$4+2,TRUE),">"&B33))/CostCalculation!$E$4=0,#N/A,(COUNTIF(INDIRECT("MonteCarlo!"&CostCalculation!$N$10&3,TRUE):INDIRECT("MonteCarlo!"&CostCalculation!$N$10&CostCalculation!$E$4+2,TRUE),">"&B32)-COUNTIF(INDIRECT("MonteCarlo!"&CostCalculation!$N$10&3,TRUE):INDIRECT("MonteCarlo!"&CostCalculation!$N$10&CostCalculation!$E$4+2,TRUE),">"&B33))/CostCalculation!$E$4) -> 
A33: 0.078 | B33: =ROUND(INDIRECT("CostCalculation!D"&CostCalculation!$O$10,TRUE)*A33,0) -> 38239 | C33: =IF((COUNTIF(INDIRECT("MonteCarlo!"&CostCalculation!$N$10&3,TRUE):INDIRECT("MonteCarlo!"&CostCalculation!$N$10&CostCalculation!$E$4+2,TRUE),"<="&B33))/CostCalculation!$E$4=0,#N/A,(COUNTIF(INDIRECT("MonteCarlo!"&CostCalculation!$N$10&3,TRUE):INDIRECT("MonteCarlo!"&CostCalculation!$N$10&CostCalculation!$E$4+2,TRUE),"<="&B33))/CostCalculation!$E$4) -> 0.234 | D33: 38239 | E33: =IF((COUNTIF(INDIRECT("MonteCarlo!"&CostCalculation!$N$10&3,TRUE):INDIRECT("MonteCarlo!"&CostCalculation!$N$10&CostCalculation!$E$4+2,TRUE),">"&B33)-COUNTIF(INDIRECT("MonteCarlo!"&CostCalculation!$N$10&3,TRUE):INDIRECT("MonteCarlo!"&CostCalculation!$N$10&CostCalculation!$E$4+2,TRUE),">"&B34))/CostCalculation!$E$4=0,#N/A,(COUNTIF(INDIRECT("MonteCarlo!"&CostCalculation!$N$10&3,TRUE):INDIRECT("MonteCarlo!"&CostCalculation!$N$10&CostCalculation!$E$4+2,TRUE),">"&B33)-COUNTIF(INDIRECT("MonteCarlo!"&CostCalculation!$N$10&3,TRUE):INDIRECT("MonteCarlo!"&CostCalculation!$N$10&CostCalculation!$E$4+2,TRUE),">"&B34))/CostCalculation!$E$4) -> 
A34: 0.081 | B34: =ROUND(INDIRECT("CostCalculation!D"&CostCalculation!$O$10,TRUE)*A34,0) -> 39710 | C34: =IF((COUNTIF(INDIRECT("MonteCarlo!"&CostCalculation!$N$10&3,TRUE):INDIRECT("MonteCarlo!"&CostCalculation!$N$10&CostCalculation!$E$4+2,TRUE),"<="&B34))/CostCalculation!$E$4=0,#N/A,(COUNTIF(INDIRECT("MonteCarlo!"&CostCalculation!$N$10&3,TRUE):INDIRECT("MonteCarlo!"&CostCalculation!$N$10&CostCalculation!$E$4+2,TRUE),"<="&B34))/CostCalculation!$E$4) -> 0.234 | D34: 39710 | E34: =IF((COUNTIF(INDIRECT("MonteCarlo!"&CostCalculation!$N$10&3,TRUE):INDIRECT("MonteCarlo!"&CostCalculation!$N$10&CostCalculation!$E$4+2,TRUE),">"&B34)-COUNTIF(INDIRECT("MonteCarlo!"&CostCalculation!$N$10&3,TRUE):INDIRECT("MonteCarlo!"&CostCalculation!$N$10&CostCalculation!$E$4+2,TRUE),">"&B35))/CostCalculation!$E$4=0,#N/A,(COUNTIF(INDIRECT("MonteCarlo!"&CostCalculation!$N$10&3,TRUE):INDIRECT("MonteCarlo!"&CostCalculation!$N$10&CostCalculation!$E$4+2,TRUE),">"&B34)-COUNTIF(INDIRECT("MonteCarlo!"&CostCalculation!$N$10&3,TRUE):INDIRECT("MonteCarlo!"&CostCalculation!$N$10&CostCalculation!$E$4+2,TRUE),">"&B35))/CostCalculation!$E$4) -> 
A35: 0.084 | B35: =ROUND(INDIRECT("CostCalculation!D"&CostCalculation!$O$10,TRUE)*A35,0) -> 41181 | C35: =IF((COUNTIF(INDIRECT("MonteCarlo!"&CostCalculation!$N$10&3,TRUE):INDIRECT("MonteCarlo!"&CostCalculation!$N$10&CostCalculation!$E$4+2,TRUE),"<="&B35))/CostCalculation!$E$4=0,#N/A,(COUNTIF(INDIRECT("MonteCarlo!"&CostCalculation!$N$10&3,TRUE):INDIRECT("MonteCarlo!"&CostCalculation!$N$10&CostCalculation!$E$4+2,TRUE),"<="&B35))/CostCalculation!$E$4) -> 0.234 | D35: 41181 | E35: =IF((COUNTIF(INDIRECT("MonteCarlo!"&CostCalculation!$N$10&3,TRUE):INDIRECT("MonteCarlo!"&CostCalculation!$N$10&CostCalculation!$E$4+2,TRUE),">"&B35)-COUNTIF(INDIRECT("MonteCarlo!"&CostCalculation!$N$10&3,TRUE):INDIRECT("MonteCarlo!"&CostCalculation!$N$10&CostCalculation!$E$4+2,TRUE),">"&B36))/CostCalculation!$E$4=0,#N/A,(COUNTIF(INDIRECT("MonteCarlo!"&CostCalculation!$N$10&3,TRUE):INDIRECT("MonteCarlo!"&CostCalculation!$N$10&CostCalculation!$E$4+2,TRUE),">"&B35)-COUNTIF(INDIRECT("MonteCarlo!"&CostCalculation!$N$10&3,TRUE):INDIRECT("MonteCarlo!"&CostCalculation!$N$10&CostCalculation!$E$4+2,TRUE),">"&B36))/CostCalculation!$E$4) -> 
A36: 0.087 | B36: =ROUND(INDIRECT("CostCalculation!D"&CostCalculation!$O$10,TRUE)*A36,0) -> 42651 | C36: =IF((COUNTIF(INDIRECT("MonteCarlo!"&CostCalculation!$N$10&3,TRUE):INDIRECT("MonteCarlo!"&CostCalculation!$N$10&CostCalculation!$E$4+2,TRUE),"<="&B36))/CostCalculation!$E$4=0,#N/A,(COUNTIF(INDIRECT("MonteCarlo!"&CostCalculation!$N$10&3,TRUE):INDIRECT("MonteCarlo!"&CostCalculation!$N$10&CostCalculation!$E$4+2,TRUE),"<="&B36))/CostCalculation!$E$4) -> 0.234 | D36: 42651 | E36: =IF((COUNTIF(INDIRECT("MonteCarlo!"&CostCalculation!$N$10&3,TRUE):INDIRECT("MonteCarlo!"&CostCalculation!$N$10&CostCalculation!$E$4+2,TRUE),">"&B36)-COUNTIF(INDIRECT("MonteCarlo!"&CostCalculation!$N$10&3,TRUE):INDIRECT("MonteCarlo!"&CostCalculation!$N$10&CostCalculation!$E$4+2,TRUE),">"&B37))/CostCalculation!$E$4=0,#N/A,(COUNTIF(INDIRECT("MonteCarlo!"&CostCalculation!$N$10&3,TRUE):INDIRECT("MonteCarlo!"&CostCalculation!$N$10&CostCalculation!$E$4+2,TRUE),">"&B36)-COUNTIF(INDIRECT("MonteCarlo!"&CostCalculation!$N$10&3,TRUE):INDIRECT("MonteCarlo!"&CostCalculation!$N$10&CostCalculation!$E$4+2,TRUE),">"&B37))/CostCalculation!$E$4) -> 
A37: 0.09 | B37: =ROUND(INDIRECT("CostCalculation!D"&CostCalculation!$O$10,TRUE)*A37,0) -> 44122 | C37: =IF((COUNTIF(INDIRECT("MonteCarlo!"&CostCalculation!$N$10&3,TRUE):INDIRECT("MonteCarlo!"&CostCalculation!$N$10&CostCalculation!$E$4+2,TRUE),"<="&B37))/CostCalculation!$E$4=0,#N/A,(COUNTIF(INDIRECT("MonteCarlo!"&CostCalculation!$N$10&3,TRUE):INDIRECT("MonteCarlo!"&CostCalculation!$N$10&CostCalculation!$E$4+2,TRUE),"<="&B37))/CostCalculation!$E$4) -> 0.234 | D37: 44122 | E37: =IF((COUNTIF(INDIRECT("MonteCarlo!"&CostCalculation!$N$10&3,TRUE):INDIRECT("MonteCarlo!"&CostCalculation!$N$10&CostCalculation!$E$4+2,TRUE),">"&B37)-COUNTIF(INDIRECT("MonteCarlo!"&CostCalculation!$N$10&3,TRUE):INDIRECT("MonteCarlo!"&CostCalculation!$N$10&CostCalculation!$E$4+2,TRUE),">"&B38))/CostCalculation!$E$4=0,#N/A,(COUNTIF(INDIRECT("MonteCarlo!"&CostCalculation!$N$10&3,TRUE):INDIRECT("MonteCarlo!"&CostCalculation!$N$10&CostCalculation!$E$4+2,TRUE),">"&B37)-COUNTIF(INDIRECT("MonteCarlo!"&CostCalculation!$N$10&3,TRUE):INDIRECT("MonteCarlo!"&CostCalculation!$N$10&CostCalculation!$E$4+2,TRUE),">"&B38))/CostCalculation!$E$4) -> 
A38: 0.093 | B38: =ROUND(INDIRECT("CostCalculation!D"&CostCalculation!$O$10,TRUE)*A38,0) -> 45593 | C38: =IF((COUNTIF(INDIRECT("MonteCarlo!"&CostCalculation!$N$10&3,TRUE):INDIRECT("MonteCarlo!"&CostCalculation!$N$10&CostCalculation!$E$4+2,TRUE),"<="&B38))/CostCalculation!$E$4=0,#N/A,(COUNTIF(INDIRECT("MonteCarlo!"&CostCalculation!$N$10&3,TRUE):INDIRECT("MonteCarlo!"&CostCalculation!$N$10&CostCalculation!$E$4+2,TRUE),"<="&B38))/CostCalculation!$E$4) -> 0.234 | D38: 45593 | E38: =IF((COUNTIF(INDIRECT("MonteCarlo!"&CostCalculation!$N$10&3,TRUE):INDIRECT("MonteCarlo!"&CostCalculation!$N$10&CostCalculation!$E$4+2,TRUE),">"&B38)-COUNTIF(INDIRECT("MonteCarlo!"&CostCalculation!$N$10&3,TRUE):INDIRECT("MonteCarlo!"&CostCalculation!$N$10&CostCalculation!$E$4+2,TRUE),">"&B39))/CostCalculation!$E$4=0,#N/A,(COUNTIF(INDIRECT("MonteCarlo!"&CostCalculation!$N$10&3,TRUE):INDIRECT("MonteCarlo!"&CostCalculation!$N$10&CostCalculation!$E$4+2,TRUE),">"&B38)-COUNTIF(INDIRECT("MonteCarlo!"&CostCalculation!$N$10&3,TRUE):INDIRECT("MonteCarlo!"&CostCalculation!$N$10&CostCalculation!$E$4+2,TRUE),">"&B39))/CostCalculation!$E$4) -> 
A39: 0.096 | B39: =ROUND(INDIRECT("CostCalculation!D"&CostCalculation!$O$10,TRUE)*A39,0) -> 47064 | C39: =IF((COUNTIF(INDIRECT("MonteCarlo!"&CostCalculation!$N$10&3,TRUE):INDIRECT("MonteCarlo!"&CostCalculation!$N$10&CostCalculation!$E$4+2,TRUE),"<="&B39))/CostCalculation!$E$4=0,#N/A,(COUNTIF(INDIRECT("MonteCarlo!"&CostCalculation!$N$10&3,TRUE):INDIRECT("MonteCarlo!"&CostCalculation!$N$10&CostCalculation!$E$4+2,TRUE),"<="&B39))/CostCalculation!$E$4) -> 0.234 | D39: 47064 | E39: =IF((COUNTIF(INDIRECT("MonteCarlo!"&CostCalculation!$N$10&3,TRUE):INDIRECT("MonteCarlo!"&CostCalculation!$N$10&CostCalculation!$E$4+2,TRUE),">"&B39)-COUNTIF(INDIRECT("MonteCarlo!"&CostCalculation!$N$10&3,TRUE):INDIRECT("MonteCarlo!"&CostCalculation!$N$10&CostCalculation!$E$4+2,TRUE),">"&B40))/CostCalculation!$E$4=0,#N/A,(COUNTIF(INDIRECT("MonteCarlo!"&CostCalculation!$N$10&3,TRUE):INDIRECT("MonteCarlo!"&CostCalculation!$N$10&CostCalculation!$E$4+2,TRUE),">"&B39)-COUNTIF(INDIRECT("MonteCarlo!"&CostCalculation!$N$10&3,TRUE):INDIRECT("MonteCarlo!"&CostCalculation!$N$10&CostCalculation!$E$4+2,TRUE),">"&B40))/CostCalculation!$E$4) -> 
A40: 0.099 | B40: =ROUND(INDIRECT("CostCalculation!D"&CostCalculation!$O$10,TRUE)*A40,0) -> 48534 | C40: =IF((COUNTIF(INDIRECT("MonteCarlo!"&CostCalculation!$N$10&3,TRUE):INDIRECT("MonteCarlo!"&CostCalculation!$N$10&CostCalculation!$E$4+2,TRUE),"<="&B40))/CostCalculation!$E$4=0,#N/A,(COUNTIF(INDIRECT("MonteCarlo!"&CostCalculation!$N$10&3,TRUE):INDIRECT("MonteCarlo!"&CostCalculation!$N$10&CostCalculation!$E$4+2,TRUE),"<="&B40))/CostCalculation!$E$4) -> 0.234 | D40: 48534 | E40: =IF((COUNTIF(INDIRECT("MonteCarlo!"&CostCalculation!$N$10&3,TRUE):INDIRECT("MonteCarlo!"&CostCalculation!$N$10&CostCalculation!$E$4+2,TRUE),">"&B40)-COUNTIF(INDIRECT("MonteCarlo!"&CostCalculation!$N$10&3,TRUE):INDIRECT("MonteCarlo!"&CostCalculation!$N$10&CostCalculation!$E$4+2,TRUE),">"&B41))/CostCalculation!$E$4=0,#N/A,(COUNTIF(INDIRECT("MonteCarlo!"&CostCalculation!$N$10&3,TRUE):INDIRECT("MonteCarlo!"&CostCalculation!$N$10&CostCalculation!$E$4+2,TRUE),">"&B40)-COUNTIF(INDIRECT("MonteCarlo!"&CostCalculation!$N$10&3,TRUE):INDIRECT("MonteCarlo!"&CostCalculation!$N$10&CostCalculation!$E$4+2,TRUE),">"&B41))/CostCalculation!$E$4) -> 
A41: 0.102 | B41: =ROUND(INDIRECT("CostCalculation!D"&CostCalculation!$O$10,TRUE)*A41,0) -> 50005 | C41: =IF((COUNTIF(INDIRECT("MonteCarlo!"&CostCalculation!$N$10&3,TRUE):INDIRECT("MonteCarlo!"&CostCalculation!$N$10&CostCalculation!$E$4+2,TRUE),"<="&B41))/CostCalculation!$E$4=0,#N/A,(COUNTIF(INDIRECT("MonteCarlo!"&CostCalculation!$N$10&3,TRUE):INDIRECT("MonteCarlo!"&CostCalculation!$N$10&CostCalculation!$E$4+2,TRUE),"<="&B41))/CostCalculation!$E$4) -> 0.234 | D41: 50005 | E41: =IF((COUNTIF(INDIRECT("MonteCarlo!"&CostCalculation!$N$10&3,TRUE):INDIRECT("MonteCarlo!"&CostCalculation!$N$10&CostCalculation!$E$4+2,TRUE),">"&B41)-COUNTIF(INDIRECT("MonteCarlo!"&CostCalculation!$N$10&3,TRUE):INDIRECT("MonteCarlo!"&CostCalculation!$N$10&CostCalculation!$E$4+2,TRUE),">"&B42))/CostCalculation!$E$4=0,#N/A,(COUNTIF(INDIRECT("MonteCarlo!"&CostCalculation!$N$10&3,TRUE):INDIRECT("MonteCarlo!"&CostCalculation!$N$10&CostCalculation!$E$4+2,TRUE),">"&B41)-COUNTIF(INDIRECT("MonteCarlo!"&CostCalculation!$N$10&3,TRUE):INDIRECT("MonteCarlo!"&CostCalculation!$N$10&CostCalculation!$E$4+2,TRUE),">"&B42))/CostCalculation!$E$4) -> 
A42: 0.105 | B42: =ROUND(INDIRECT("CostCalculation!D"&CostCalculation!$O$10,TRUE)*A42,0) -> 51476 | C42: =IF((COUNTIF(INDIRECT("MonteCarlo!"&CostCalculation!$N$10&3,TRUE):INDIRECT("MonteCarlo!"&CostCalculation!$N$10&CostCalculation!$E$4+2,TRUE),"<="&B42))/CostCalculation!$E$4=0,#N/A,(COUNTIF(INDIRECT("MonteCarlo!"&CostCalculation!$N$10&3,TRUE):INDIRECT("MonteCarlo!"&CostCalculation!$N$10&CostCalculation!$E$4+2,TRUE),"<="&B42))/CostCalculation!$E$4) -> 0.234 | D42: 51476 | E42: =IF((COUNTIF(INDIRECT("MonteCarlo!"&CostCalculation!$N$10&3,TRUE):INDIRECT("MonteCarlo!"&CostCalculation!$N$10&CostCalculation!$E$4+2,TRUE),">"&B42)-COUNTIF(INDIRECT("MonteCarlo!"&CostCalculation!$N$10&3,TRUE):INDIRECT("MonteCarlo!"&CostCalculation!$N$10&CostCalculation!$E$4+2,TRUE),">"&B43))/CostCalculation!$E$4=0,#N/A,(COUNTIF(INDIRECT("MonteCarlo!"&CostCalculation!$N$10&3,TRUE):INDIRECT("MonteCarlo!"&CostCalculation!$N$10&CostCalculation!$E$4+2,TRUE),">"&B42)-COUNTIF(INDIRECT("MonteCarlo!"&CostCalculation!$N$10&3,TRUE):INDIRECT("MonteCarlo!"&CostCalculation!$N$10&CostCalculation!$E$4+2,TRUE),">"&B43))/CostCalculation!$E$4) -> 
A43: 0.108 | B43: =ROUND(INDIRECT("CostCalculation!D"&CostCalculation!$O$10,TRUE)*A43,0) -> 52946 | C43: =IF((COUNTIF(INDIRECT("MonteCarlo!"&CostCalculation!$N$10&3,TRUE):INDIRECT("MonteCarlo!"&CostCalculation!$N$10&CostCalculation!$E$4+2,TRUE),"<="&B43))/CostCalculation!$E$4=0,#N/A,(COUNTIF(INDIRECT("MonteCarlo!"&CostCalculation!$N$10&3,TRUE):INDIRECT("MonteCarlo!"&CostCalculation!$N$10&CostCalculation!$E$4+2,TRUE),"<="&B43))/CostCalculation!$E$4) -> 0.234 | D43: 52946 | E43: =IF((COUNTIF(INDIRECT("MonteCarlo!"&CostCalculation!$N$10&3,TRUE):INDIRECT("MonteCarlo!"&CostCalculation!$N$10&CostCalculation!$E$4+2,TRUE),">"&B43)-COUNTIF(INDIRECT("MonteCarlo!"&CostCalculation!$N$10&3,TRUE):INDIRECT("MonteCarlo!"&CostCalculation!$N$10&CostCalculation!$E$4+2,TRUE),">"&B44))/CostCalculation!$E$4=0,#N/A,(COUNTIF(INDIRECT("MonteCarlo!"&CostCalculation!$N$10&3,TRUE):INDIRECT("MonteCarlo!"&CostCalculation!$N$10&CostCalculation!$E$4+2,TRUE),">"&B43)-COUNTIF(INDIRECT("MonteCarlo!"&CostCalculation!$N$10&3,TRUE):INDIRECT("MonteCarlo!"&CostCalculation!$N$10&CostCalculation!$E$4+2,TRUE),">"&B44))/CostCalculation!$E$4) -> 
A44: 0.111 | B44: =ROUND(INDIRECT("CostCalculation!D"&CostCalculation!$O$10,TRUE)*A44,0) -> 54417 | C44: =IF((COUNTIF(INDIRECT("MonteCarlo!"&CostCalculation!$N$10&3,TRUE):INDIRECT("MonteCarlo!"&CostCalculation!$N$10&CostCalculation!$E$4+2,TRUE),"<="&B44))/CostCalculation!$E$4=0,#N/A,(COUNTIF(INDIRECT("MonteCarlo!"&CostCalculation!$N$10&3,TRUE):INDIRECT("MonteCarlo!"&CostCalculation!$N$10&CostCalculation!$E$4+2,TRUE),"<="&B44))/CostCalculation!$E$4) -> 0.234 | D44: 54417 | E44: =IF((COUNTIF(INDIRECT("MonteCarlo!"&CostCalculation!$N$10&3,TRUE):INDIRECT("MonteCarlo!"&CostCalculation!$N$10&CostCalculation!$E$4+2,TRUE),">"&B44)-COUNTIF(INDIRECT("MonteCarlo!"&CostCalculation!$N$10&3,TRUE):INDIRECT("MonteCarlo!"&CostCalculation!$N$10&CostCalculation!$E$4+2,TRUE),">"&B45))/CostCalculation!$E$4=0,#N/A,(COUNTIF(INDIRECT("MonteCarlo!"&CostCalculation!$N$10&3,TRUE):INDIRECT("MonteCarlo!"&CostCalculation!$N$10&CostCalculation!$E$4+2,TRUE),">"&B44)-COUNTIF(INDIRECT("MonteCarlo!"&CostCalculation!$N$10&3,TRUE):INDIRECT("MonteCarlo!"&CostCalculation!$N$10&CostCalculation!$E$4+2,TRUE),">"&B45))/CostCalculation!$E$4) -> 
A45: 0.114 | B45: =ROUND(INDIRECT("CostCalculation!D"&CostCalculation!$O$10,TRUE)*A45,0) -> 55888 | C45: =IF((COUNTIF(INDIRECT("MonteCarlo!"&CostCalculation!$N$10&3,TRUE):INDIRECT("MonteCarlo!"&CostCalculation!$N$10&CostCalculation!$E$4+2,TRUE),"<="&B45))/CostCalculation!$E$4=0,#N/A,(COUNTIF(INDIRECT("MonteCarlo!"&CostCalculation!$N$10&3,TRUE):INDIRECT("MonteCarlo!"&CostCalculation!$N$10&CostCalculation!$E$4+2,TRUE),"<="&B45))/CostCalculation!$E$4) -> 0.234 | D45: 55888 | E45: =IF((COUNTIF(INDIRECT("MonteCarlo!"&CostCalculation!$N$10&3,TRUE):INDIRECT("MonteCarlo!"&CostCalculation!$N$10&CostCalculation!$E$4+2,TRUE),">"&B45)-COUNTIF(INDIRECT("MonteCarlo!"&CostCalculation!$N$10&3,TRUE):INDIRECT("MonteCarlo!"&CostCalculation!$N$10&CostCalculation!$E$4+2,TRUE),">"&B46))/CostCalculation!$E$4=0,#N/A,(COUNTIF(INDIRECT("MonteCarlo!"&CostCalculation!$N$10&3,TRUE):INDIRECT("MonteCarlo!"&CostCalculation!$N$10&CostCalculation!$E$4+2,TRUE),">"&B45)-COUNTIF(INDIRECT("MonteCarlo!"&CostCalculation!$N$10&3,TRUE):INDIRECT("MonteCarlo!"&CostCalculation!$N$10&CostCalculation!$E$4+2,TRUE),">"&B46))/CostCalculation!$E$4) -> 
A46: 0.117 | B46: =ROUND(INDIRECT("CostCalculation!D"&CostCalculation!$O$10,TRUE)*A46,0) -> 57359 | C46: =IF((COUNTIF(INDIRECT("MonteCarlo!"&CostCalculation!$N$10&3,TRUE):INDIRECT("MonteCarlo!"&CostCalculation!$N$10&CostCalculation!$E$4+2,TRUE),"<="&B46))/CostCalculation!$E$4=0,#N/A,(COUNTIF(INDIRECT("MonteCarlo!"&CostCalculation!$N$10&3,TRUE):INDIRECT("MonteCarlo!"&CostCalculation!$N$10&CostCalculation!$E$4+2,TRUE),"<="&B46))/CostCalculation!$E$4) -> 0.234 | D46: 57359 | E46: =IF((COUNTIF(INDIRECT("MonteCarlo!"&CostCalculation!$N$10&3,TRUE):INDIRECT("MonteCarlo!"&CostCalculation!$N$10&CostCalculation!$E$4+2,TRUE),">"&B46)-COUNTIF(INDIRECT("MonteCarlo!"&CostCalculation!$N$10&3,TRUE):INDIRECT("MonteCarlo!"&CostCalculation!$N$10&CostCalculation!$E$4+2,TRUE),">"&B47))/CostCalculation!$E$4=0,#N/A,(COUNTIF(INDIRECT("MonteCarlo!"&CostCalculation!$N$10&3,TRUE):INDIRECT("MonteCarlo!"&CostCalculation!$N$10&CostCalculation!$E$4+2,TRUE),">"&B46)-COUNTIF(INDIRECT("MonteCarlo!"&CostCalculation!$N$10&3,TRUE):INDIRECT("MonteCarlo!"&CostCalculation!$N$10&CostCalculation!$E$4+2,TRUE),">"&B47))/CostCalculation!$E$4) -> 
A47: 0.12 | B47: =ROUND(INDIRECT("CostCalculation!D"&CostCalculation!$O$10,TRUE)*A47,0) -> 58829 | C47: =IF((COUNTIF(INDIRECT("MonteCarlo!"&CostCalculation!$N$10&3,TRUE):INDIRECT("MonteCarlo!"&CostCalculation!$N$10&CostCalculation!$E$4+2,TRUE),"<="&B47))/CostCalculation!$E$4=0,#N/A,(COUNTIF(INDIRECT("MonteCarlo!"&CostCalculation!$N$10&3,TRUE):INDIRECT("MonteCarlo!"&CostCalculation!$N$10&CostCalculation!$E$4+2,TRUE),"<="&B47))/CostCalculation!$E$4) -> 0.234 | D47: 58829 | E47: =IF((COUNTIF(INDIRECT("MonteCarlo!"&CostCalculation!$N$10&3,TRUE):INDIRECT("MonteCarlo!"&CostCalculation!$N$10&CostCalculation!$E$4+2,TRUE),">"&B47)-COUNTIF(INDIRECT("MonteCarlo!"&CostCalculation!$N$10&3,TRUE):INDIRECT("MonteCarlo!"&CostCalculation!$N$10&CostCalculation!$E$4+2,TRUE),">"&B48))/CostCalculation!$E$4=0,#N/A,(COUNTIF(INDIRECT("MonteCarlo!"&CostCalculation!$N$10&3,TRUE):INDIRECT("MonteCarlo!"&CostCalculation!$N$10&CostCalculation!$E$4+2,TRUE),">"&B47)-COUNTIF(INDIRECT("MonteCarlo!"&CostCalculation!$N$10&3,TRUE):INDIRECT("MonteCarlo!"&CostCalculation!$N$10&CostCalculation!$E$4+2,TRUE),">"&B48))/CostCalculation!$E$4) -> 
A48: 0.123 | B48: =ROUND(INDIRECT("CostCalculation!D"&CostCalculation!$O$10,TRUE)*A48,0) -> 60300 | C48: =IF((COUNTIF(INDIRECT("MonteCarlo!"&CostCalculation!$N$10&3,TRUE):INDIRECT("MonteCarlo!"&CostCalculation!$N$10&CostCalculation!$E$4+2,TRUE),"<="&B48))/CostCalculation!$E$4=0,#N/A,(COUNTIF(INDIRECT("MonteCarlo!"&CostCalculation!$N$10&3,TRUE):INDIRECT("MonteCarlo!"&CostCalculation!$N$10&CostCalculation!$E$4+2,TRUE),"<="&B48))/CostCalculation!$E$4) -> 0.234 | D48: 60300 | E48: =IF((COUNTIF(INDIRECT("MonteCarlo!"&CostCalculation!$N$10&3,TRUE):INDIRECT("MonteCarlo!"&CostCalculation!$N$10&CostCalculation!$E$4+2,TRUE),">"&B48)-COUNTIF(INDIRECT("MonteCarlo!"&CostCalculation!$N$10&3,TRUE):INDIRECT("MonteCarlo!"&CostCalculation!$N$10&CostCalculation!$E$4+2,TRUE),">"&B49))/CostCalculation!$E$4=0,#N/A,(COUNTIF(INDIRECT("MonteCarlo!"&CostCalculation!$N$10&3,TRUE):INDIRECT("MonteCarlo!"&CostCalculation!$N$10&CostCalculation!$E$4+2,TRUE),">"&B48)-COUNTIF(INDIRECT("MonteCarlo!"&CostCalculation!$N$10&3,TRUE):INDIRECT("MonteCarlo!"&CostCalculation!$N$10&CostCalculation!$E$4+2,TRUE),">"&B49))/CostCalculation!$E$4) -> 
A49: 0.126 | B49: =ROUND(INDIRECT("CostCalculation!D"&CostCalculation!$O$10,TRUE)*A49,0) -> 61771 | C49: =IF((COUNTIF(INDIRECT("MonteCarlo!"&CostCalculation!$N$10&3,TRUE):INDIRECT("MonteCarlo!"&CostCalculation!$N$10&CostCalculation!$E$4+2,TRUE),"<="&B49))/CostCalculation!$E$4=0,#N/A,(COUNTIF(INDIRECT("MonteCarlo!"&CostCalculation!$N$10&3,TRUE):INDIRECT("MonteCarlo!"&CostCalculation!$N$10&CostCalculation!$E$4+2,TRUE),"<="&B49))/CostCalculation!$E$4) -> 0.234 | D49: 61771 | E49: =IF((COUNTIF(INDIRECT("MonteCarlo!"&CostCalculation!$N$10&3,TRUE):INDIRECT("MonteCarlo!"&CostCalculation!$N$10&CostCalculation!$E$4+2,TRUE),">"&B49)-COUNTIF(INDIRECT("MonteCarlo!"&CostCalculation!$N$10&3,TRUE):INDIRECT("MonteCarlo!"&CostCalculation!$N$10&CostCalculation!$E$4+2,TRUE),">"&B50))/CostCalculation!$E$4=0,#N/A,(COUNTIF(INDIRECT("MonteCarlo!"&CostCalculation!$N$10&3,TRUE):INDIRECT("MonteCarlo!"&CostCalculation!$N$10&CostCalculation!$E$4+2,TRUE),">"&B49)-COUNTIF(INDIRECT("MonteCarlo!"&CostCalculation!$N$10&3,TRUE):INDIRECT("MonteCarlo!"&CostCalculation!$N$10&CostCalculation!$E$4+2,TRUE),">"&B50))/CostCalculation!$E$4) -> 
A50: 0.129 | B50: =ROUND(INDIRECT("CostCalculation!D"&CostCalculation!$O$10,TRUE)*A50,0) -> 63242 | C50: =IF((COUNTIF(INDIRECT("MonteCarlo!"&CostCalculation!$N$10&3,TRUE):INDIRECT("MonteCarlo!"&CostCalculation!$N$10&CostCalculation!$E$4+2,TRUE),"<="&B50))/CostCalculation!$E$4=0,#N/A,(COUNTIF(INDIRECT("MonteCarlo!"&CostCalculation!$N$10&3,TRUE):INDIRECT("MonteCarlo!"&CostCalculation!$N$10&CostCalculation!$E$4+2,TRUE),"<="&B50))/CostCalculation!$E$4) -> 0.234 | D50: 63242 | E50: =IF((COUNTIF(INDIRECT("MonteCarlo!"&CostCalculation!$N$10&3,TRUE):INDIRECT("MonteCarlo!"&CostCalculation!$N$10&CostCalculation!$E$4+2,TRUE),">"&B50)-COUNTIF(INDIRECT("MonteCarlo!"&CostCalculation!$N$10&3,TRUE):INDIRECT("MonteCarlo!"&CostCalculation!$N$10&CostCalculation!$E$4+2,TRUE),">"&B51))/CostCalculation!$E$4=0,#N/A,(COUNTIF(INDIRECT("MonteCarlo!"&CostCalculation!$N$10&3,TRUE):INDIRECT("MonteCarlo!"&CostCalculation!$N$10&CostCalculation!$E$4+2,TRUE),">"&B50)-COUNTIF(INDIRECT("MonteCarlo!"&CostCalculation!$N$10&3,TRUE):INDIRECT("MonteCarlo!"&CostCalculation!$N$10&CostCalculation!$E$4+2,TRUE),">"&B51))/CostCalculation!$E$4) -> 
A51: 0.132 | B51: =ROUND(INDIRECT("CostCalculation!D"&CostCalculation!$O$10,TRUE)*A51,0) -> 64712 | C51: =IF((COUNTIF(INDIRECT("MonteCarlo!"&CostCalculation!$N$10&3,TRUE):INDIRECT("MonteCarlo!"&CostCalculation!$N$10&CostCalculation!$E$4+2,TRUE),"<="&B51))/CostCalculation!$E$4=0,#N/A,(COUNTIF(INDIRECT("MonteCarlo!"&CostCalculation!$N$10&3,TRUE):INDIRECT("MonteCarlo!"&CostCalculation!$N$10&CostCalculation!$E$4+2,TRUE),"<="&B51))/CostCalculation!$E$4) -> 0.234 | D51: 64712 | E51: =IF((COUNTIF(INDIRECT("MonteCarlo!"&CostCalculation!$N$10&3,TRUE):INDIRECT("MonteCarlo!"&CostCalculation!$N$10&CostCalculation!$E$4+2,TRUE),">"&B51)-COUNTIF(INDIRECT("MonteCarlo!"&CostCalculation!$N$10&3,TRUE):INDIRECT("MonteCarlo!"&CostCalculation!$N$10&CostCalculation!$E$4+2,TRUE),">"&B52))/CostCalculation!$E$4=0,#N/A,(COUNTIF(INDIRECT("MonteCarlo!"&CostCalculation!$N$10&3,TRUE):INDIRECT("MonteCarlo!"&CostCalculation!$N$10&CostCalculation!$E$4+2,TRUE),">"&B51)-COUNTIF(INDIRECT("MonteCarlo!"&CostCalculation!$N$10&3,TRUE):INDIRECT("MonteCarlo!"&CostCalculation!$N$10&CostCalculation!$E$4+2,TRUE),">"&B52))/CostCalculation!$E$4) -> 0.1995
A52: 0.135 | B52: =ROUND(INDIRECT("CostCalculation!D"&CostCalculation!$O$10,TRUE)*A52,0) -> 66183 | C52: =IF((COUNTIF(INDIRECT("MonteCarlo!"&CostCalculation!$N$10&3,TRUE):INDIRECT("MonteCarlo!"&CostCalculation!$N$10&CostCalculation!$E$4+2,TRUE),"<="&B52))/CostCalculation!$E$4=0,#N/A,(COUNTIF(INDIRECT("MonteCarlo!"&CostCalculation!$N$10&3,TRUE):INDIRECT("MonteCarlo!"&CostCalculation!$N$10&CostCalculation!$E$4+2,TRUE),"<="&B52))/CostCalculation!$E$4) -> 0.4335 | D52: 66183 | E52: =IF((COUNTIF(INDIRECT("MonteCarlo!"&CostCalculation!$N$10&3,TRUE):INDIRECT("MonteCarlo!"&CostCalculation!$N$10&CostCalculation!$E$4+2,TRUE),">"&B52)-COUNTIF(INDIRECT("MonteCarlo!"&CostCalculation!$N$10&3,TRUE):INDIRECT("MonteCarlo!"&CostCalculation!$N$10&CostCalculation!$E$4+2,TRUE),">"&B53))/CostCalculation!$E$4=0,#N/A,(COUNTIF(INDIRECT("MonteCarlo!"&CostCalculation!$N$10&3,TRUE):INDIRECT("MonteCarlo!"&CostCalculation!$N$10&CostCalculation!$E$4+2,TRUE),">"&B52)-COUNTIF(INDIRECT("MonteCarlo!"&CostCalculation!$N$10&3,TRUE):INDIRECT("MonteCarlo!"&CostCalculation!$N$10&CostCalculation!$E$4+2,TRUE),">"&B53))/CostCalculation!$E$4) -> 
A53: 0.138 | B53: =ROUND(INDIRECT("CostCalculation!D"&CostCalculation!$O$10,TRUE)*A53,0) -> 67654 | C53: =IF((COUNTIF(INDIRECT("MonteCarlo!"&CostCalculation!$N$10&3,TRUE):INDIRECT("MonteCarlo!"&CostCalculation!$N$10&CostCalculation!$E$4+2,TRUE),"<="&B53))/CostCalculation!$E$4=0,#N/A,(COUNTIF(INDIRECT("MonteCarlo!"&CostCalculation!$N$10&3,TRUE):INDIRECT("MonteCarlo!"&CostCalculation!$N$10&CostCalculation!$E$4+2,TRUE),"<="&B53))/CostCalculation!$E$4) -> 0.4335 | D53: 67654 | E53: =IF((COUNTIF(INDIRECT("MonteCarlo!"&CostCalculation!$N$10&3,TRUE):INDIRECT("MonteCarlo!"&CostCalculation!$N$10&CostCalculation!$E$4+2,TRUE),">"&B53)-COUNTIF(INDIRECT("MonteCarlo!"&CostCalculation!$N$10&3,TRUE):INDIRECT("MonteCarlo!"&CostCalculation!$N$10&CostCalculation!$E$4+2,TRUE),">"&B54))/CostCalculation!$E$4=0,#N/A,(COUNTIF(INDIRECT("MonteCarlo!"&CostCalculation!$N$10&3,TRUE):INDIRECT("MonteCarlo!"&CostCalculation!$N$10&CostCalculation!$E$4+2,TRUE),">"&B53)-COUNTIF(INDIRECT("MonteCarlo!"&CostCalculation!$N$10&3,TRUE):INDIRECT("MonteCarlo!"&CostCalculation!$N$10&CostCalculation!$E$4+2,TRUE),">"&B54))/CostCalculation!$E$4) -> 
A54: 0.141 | B54: =ROUND(INDIRECT("CostCalculation!D"&CostCalculation!$O$10,TRUE)*A54,0) -> 69125 | C54: =IF((COUNTIF(INDIRECT("MonteCarlo!"&CostCalculation!$N$10&3,TRUE):INDIRECT("MonteCarlo!"&CostCalculation!$N$10&CostCalculation!$E$4+2,TRUE),"<="&B54))/CostCalculation!$E$4=0,#N/A,(COUNTIF(INDIRECT("MonteCarlo!"&CostCalculation!$N$10&3,TRUE):INDIRECT("MonteCarlo!"&CostCalculation!$N$10&CostCalculation!$E$4+2,TRUE),"<="&B54))/CostCalculation!$E$4) -> 0.4335 | D54: 69125 | E54: =IF((COUNTIF(INDIRECT("MonteCarlo!"&CostCalculation!$N$10&3,TRUE):INDIRECT("MonteCarlo!"&CostCalculation!$N$10&CostCalculation!$E$4+2,TRUE),">"&B54)-COUNTIF(INDIRECT("MonteCarlo!"&CostCalculation!$N$10&3,TRUE):INDIRECT("MonteCarlo!"&CostCalculation!$N$10&CostCalculation!$E$4+2,TRUE),">"&B55))/CostCalculation!$E$4=0,#N/A,(COUNTIF(INDIRECT("MonteCarlo!"&CostCalculation!$N$10&3,TRUE):INDIRECT("MonteCarlo!"&CostCalculation!$N$10&CostCalculation!$E$4+2,TRUE),">"&B54)-COUNTIF(INDIRECT("MonteCarlo!"&CostCalculation!$N$10&3,TRUE):INDIRECT("MonteCarlo!"&CostCalculation!$N$10&CostCalculation!$E$4+2,TRUE),">"&B55))/CostCalculation!$E$4) -> 
A55: 0.144 | B55: =ROUND(INDIRECT("CostCalculation!D"&CostCalculation!$O$10,TRUE)*A55,0) -> 70595 | C55: =IF((COUNTIF(INDIRECT("MonteCarlo!"&CostCalculation!$N$10&3,TRUE):INDIRECT("MonteCarlo!"&CostCalculation!$N$10&CostCalculation!$E$4+2,TRUE),"<="&B55))/CostCalculation!$E$4=0,#N/A,(COUNTIF(INDIRECT("MonteCarlo!"&CostCalculation!$N$10&3,TRUE):INDIRECT("MonteCarlo!"&CostCalculation!$N$10&CostCalculation!$E$4+2,TRUE),"<="&B55))/CostCalculation!$E$4) -> 0.4335 | D55: 70595 | E55: =IF((COUNTIF(INDIRECT("MonteCarlo!"&CostCalculation!$N$10&3,TRUE):INDIRECT("MonteCarlo!"&CostCalculation!$N$10&CostCalculation!$E$4+2,TRUE),">"&B55)-COUNTIF(INDIRECT("MonteCarlo!"&CostCalculation!$N$10&3,TRUE):INDIRECT("MonteCarlo!"&CostCalculation!$N$10&CostCalculation!$E$4+2,TRUE),">"&B56))/CostCalculation!$E$4=0,#N/A,(COUNTIF(INDIRECT("MonteCarlo!"&CostCalculation!$N$10&3,TRUE):INDIRECT("MonteCarlo!"&CostCalculation!$N$10&CostCalculation!$E$4+2,TRUE),">"&B55)-COUNTIF(INDIRECT("MonteCarlo!"&CostCalculation!$N$10&3,TRUE):INDIRECT("MonteCarlo!"&CostCalculation!$N$10&CostCalculation!$E$4+2,TRUE),">"&B56))/CostCalculation!$E$4) -> 
A56: 0.147 | B56: =ROUND(INDIRECT("CostCalculation!D"&CostCalculation!$O$10,TRUE)*A56,0) -> 72066 | C56: =IF((COUNTIF(INDIRECT("MonteCarlo!"&CostCalculation!$N$10&3,TRUE):INDIRECT("MonteCarlo!"&CostCalculation!$N$10&CostCalculation!$E$4+2,TRUE),"<="&B56))/CostCalculation!$E$4=0,#N/A,(COUNTIF(INDIRECT("MonteCarlo!"&CostCalculation!$N$10&3,TRUE):INDIRECT("MonteCarlo!"&CostCalculation!$N$10&CostCalculation!$E$4+2,TRUE),"<="&B56))/CostCalculation!$E$4) -> 0.4335 | D56: 72066 | E56: =IF((COUNTIF(INDIRECT("MonteCarlo!"&CostCalculation!$N$10&3,TRUE):INDIRECT("MonteCarlo!"&CostCalculation!$N$10&CostCalculation!$E$4+2,TRUE),">"&B56)-COUNTIF(INDIRECT("MonteCarlo!"&CostCalculation!$N$10&3,TRUE):INDIRECT("MonteCarlo!"&CostCalculation!$N$10&CostCalculation!$E$4+2,TRUE),">"&B57))/CostCalculation!$E$4=0,#N/A,(COUNTIF(INDIRECT("MonteCarlo!"&CostCalculation!$N$10&3,TRUE):INDIRECT("MonteCarlo!"&CostCalculation!$N$10&CostCalculation!$E$4+2,TRUE),">"&B56)-COUNTIF(INDIRECT("MonteCarlo!"&CostCalculation!$N$10&3,TRUE):INDIRECT("MonteCarlo!"&CostCalculation!$N$10&CostCalculation!$E$4+2,TRUE),">"&B57))/CostCalculation!$E$4) -> 
A57: 0.15 | B57: =ROUND(INDIRECT("CostCalculation!D"&CostCalculation!$O$10,TRUE)*A57,0) -> 73537 | C57: =IF((COUNTIF(INDIRECT("MonteCarlo!"&CostCalculation!$N$10&3,TRUE):INDIRECT("MonteCarlo!"&CostCalculation!$N$10&CostCalculation!$E$4+2,TRUE),"<="&B57))/CostCalculation!$E$4=0,#N/A,(COUNTIF(INDIRECT("MonteCarlo!"&CostCalculation!$N$10&3,TRUE):INDIRECT("MonteCarlo!"&CostCalculation!$N$10&CostCalculation!$E$4+2,TRUE),"<="&B57))/CostCalculation!$E$4) -> 0.4335 | D57: 73537 | E57: =IF((COUNTIF(INDIRECT("MonteCarlo!"&CostCalculation!$N$10&3,TRUE):INDIRECT("MonteCarlo!"&CostCalculation!$N$10&CostCalculation!$E$4+2,TRUE),">"&B57)-COUNTIF(INDIRECT("MonteCarlo!"&CostCalculation!$N$10&3,TRUE):INDIRECT("MonteCarlo!"&CostCalculation!$N$10&CostCalculation!$E$4+2,TRUE),">"&B58))/CostCalculation!$E$4=0,#N/A,(COUNTIF(INDIRECT("MonteCarlo!"&CostCalculation!$N$10&3,TRUE):INDIRECT("MonteCarlo!"&CostCalculation!$N$10&CostCalculation!$E$4+2,TRUE),">"&B57)-COUNTIF(INDIRECT("MonteCarlo!"&CostCalculation!$N$10&3,TRUE):INDIRECT("MonteCarlo!"&CostCalculation!$N$10&CostCalculation!$E$4+2,TRUE),">"&B58))/CostCalculation!$E$4) -> 
A58: 0.153 | B58: =ROUND(INDIRECT("CostCalculation!D"&CostCalculation!$O$10,TRUE)*A58,0) -> 75007 | C58: =IF((COUNTIF(INDIRECT("MonteCarlo!"&CostCalculation!$N$10&3,TRUE):INDIRECT("MonteCarlo!"&CostCalculation!$N$10&CostCalculation!$E$4+2,TRUE),"<="&B58))/CostCalculation!$E$4=0,#N/A,(COUNTIF(INDIRECT("MonteCarlo!"&CostCalculation!$N$10&3,TRUE):INDIRECT("MonteCarlo!"&CostCalculation!$N$10&CostCalculation!$E$4+2,TRUE),"<="&B58))/CostCalculation!$E$4) -> 0.4335 | D58: 75007 | E58: =IF((COUNTIF(INDIRECT("MonteCarlo!"&CostCalculation!$N$10&3,TRUE):INDIRECT("MonteCarlo!"&CostCalculation!$N$10&CostCalculation!$E$4+2,TRUE),">"&B58)-COUNTIF(INDIRECT("MonteCarlo!"&CostCalculation!$N$10&3,TRUE):INDIRECT("MonteCarlo!"&CostCalculation!$N$10&CostCalculation!$E$4+2,TRUE),">"&B59))/CostCalculation!$E$4=0,#N/A,(COUNTIF(INDIRECT("MonteCarlo!"&CostCalculation!$N$10&3,TRUE):INDIRECT("MonteCarlo!"&CostCalculation!$N$10&CostCalculation!$E$4+2,TRUE),">"&B58)-COUNTIF(INDIRECT("MonteCarlo!"&CostCalculation!$N$10&3,TRUE):INDIRECT("MonteCarlo!"&CostCalculation!$N$10&CostCalculation!$E$4+2,TRUE),">"&B59))/CostCalculation!$E$4) -> 
A59: 0.156 | B59: =ROUND(INDIRECT("CostCalculation!D"&CostCalculation!$O$10,TRUE)*A59,0) -> 76478 | C59: =IF((COUNTIF(INDIRECT("MonteCarlo!"&CostCalculation!$N$10&3,TRUE):INDIRECT("MonteCarlo!"&CostCalculation!$N$10&CostCalculation!$E$4+2,TRUE),"<="&B59))/CostCalculation!$E$4=0,#N/A,(COUNTIF(INDIRECT("MonteCarlo!"&CostCalculation!$N$10&3,TRUE):INDIRECT("MonteCarlo!"&CostCalculation!$N$10&CostCalculation!$E$4+2,TRUE),"<="&B59))/CostCalculation!$E$4) -> 0.4335 | D59: 76478 | E59: =IF((COUNTIF(INDIRECT("MonteCarlo!"&CostCalculation!$N$10&3,TRUE):INDIRECT("MonteCarlo!"&CostCalculation!$N$10&CostCalculation!$E$4+2,TRUE),">"&B59)-COUNTIF(INDIRECT("MonteCarlo!"&CostCalculation!$N$10&3,TRUE):INDIRECT("MonteCarlo!"&CostCalculation!$N$10&CostCalculation!$E$4+2,TRUE),">"&B60))/CostCalculation!$E$4=0,#N/A,(COUNTIF(INDIRECT("MonteCarlo!"&CostCalculation!$N$10&3,TRUE):INDIRECT("MonteCarlo!"&CostCalculation!$N$10&CostCalculation!$E$4+2,TRUE),">"&B59)-COUNTIF(INDIRECT("MonteCarlo!"&CostCalculation!$N$10&3,TRUE):INDIRECT("MonteCarlo!"&CostCalculation!$N$10&CostCalculation!$E$4+2,TRUE),">"&B60))/CostCalculation!$E$4) -> 
A60: 0.159 | B60: =ROUND(INDIRECT("CostCalculation!D"&CostCalculation!$O$10,TRUE)*A60,0) -> 77949 | C60: =IF((COUNTIF(INDIRECT("MonteCarlo!"&CostCalculation!$N$10&3,TRUE):INDIRECT("MonteCarlo!"&CostCalculation!$N$10&CostCalculation!$E$4+2,TRUE),"<="&B60))/CostCalculation!$E$4=0,#N/A,(COUNTIF(INDIRECT("MonteCarlo!"&CostCalculation!$N$10&3,TRUE):INDIRECT("MonteCarlo!"&CostCalculation!$N$10&CostCalculation!$E$4+2,TRUE),"<="&B60))/CostCalculation!$E$4) -> 0.4335 | D60: 77949 | E60: =IF((COUNTIF(INDIRECT("MonteCarlo!"&CostCalculation!$N$10&3,TRUE):INDIRECT("MonteCarlo!"&CostCalculation!$N$10&CostCalculation!$E$4+2,TRUE),">"&B60)-COUNTIF(INDIRECT("MonteCarlo!"&CostCalculation!$N$10&3,TRUE):INDIRECT("MonteCarlo!"&CostCalculation!$N$10&CostCalculation!$E$4+2,TRUE),">"&B61))/CostCalculation!$E$4=0,#N/A,(COUNTIF(INDIRECT("MonteCarlo!"&CostCalculation!$N$10&3,TRUE):INDIRECT("MonteCarlo!"&CostCalculation!$N$10&CostCalculation!$E$4+2,TRUE),">"&B60)-COUNTIF(INDIRECT("MonteCarlo!"&CostCalculation!$N$10&3,TRUE):INDIRECT("MonteCarlo!"&CostCalculation!$N$10&CostCalculation!$E$4+2,TRUE),">"&B61))/CostCalculation!$E$4) -> 
A61: 0.162 | B61: =ROUND(INDIRECT("CostCalculation!D"&CostCalculation!$O$10,TRUE)*A61,0) -> 79420 | C61: =IF((COUNTIF(INDIRECT("MonteCarlo!"&CostCalculation!$N$10&3,TRUE):INDIRECT("MonteCarlo!"&CostCalculation!$N$10&CostCalculation!$E$4+2,TRUE),"<="&B61))/CostCalculation!$E$4=0,#N/A,(COUNTIF(INDIRECT("MonteCarlo!"&CostCalculation!$N$10&3,TRUE):INDIRECT("MonteCarlo!"&CostCalculation!$N$10&CostCalculation!$E$4+2,TRUE),"<="&B61))/CostCalculation!$E$4) -> 0.4335 | D61: 79420 | E61: =IF((COUNTIF(INDIRECT("MonteCarlo!"&CostCalculation!$N$10&3,TRUE):INDIRECT("MonteCarlo!"&CostCalculation!$N$10&CostCalculation!$E$4+2,TRUE),">"&B61)-COUNTIF(INDIRECT("MonteCarlo!"&CostCalculation!$N$10&3,TRUE):INDIRECT("MonteCarlo!"&CostCalculation!$N$10&CostCalculation!$E$4+2,TRUE),">"&B62))/CostCalculation!$E$4=0,#N/A,(COUNTIF(INDIRECT("MonteCarlo!"&CostCalculation!$N$10&3,TRUE):INDIRECT("MonteCarlo!"&CostCalculation!$N$10&CostCalculation!$E$4+2,TRUE),">"&B61)-COUNTIF(INDIRECT("MonteCarlo!"&CostCalculation!$N$10&3,TRUE):INDIRECT("MonteCarlo!"&CostCalculation!$N$10&CostCalculation!$E$4+2,TRUE),">"&B62))/CostCalculation!$E$4) -> 
A62: 0.165 | B62: =ROUND(INDIRECT("CostCalculation!D"&CostCalculation!$O$10,TRUE)*A62,0) -> 80890 | C62: =IF((COUNTIF(INDIRECT("MonteCarlo!"&CostCalculation!$N$10&3,TRUE):INDIRECT("MonteCarlo!"&CostCalculation!$N$10&CostCalculation!$E$4+2,TRUE),"<="&B62))/CostCalculation!$E$4=0,#N/A,(COUNTIF(INDIRECT("MonteCarlo!"&CostCalculation!$N$10&3,TRUE):INDIRECT("MonteCarlo!"&CostCalculation!$N$10&CostCalculation!$E$4+2,TRUE),"<="&B62))/CostCalculation!$E$4) -> 0.4335 | D62: 80890 | E62: =IF((COUNTIF(INDIRECT("MonteCarlo!"&CostCalculation!$N$10&3,TRUE):INDIRECT("MonteCarlo!"&CostCalculation!$N$10&CostCalculation!$E$4+2,TRUE),">"&B62)-COUNTIF(INDIRECT("MonteCarlo!"&CostCalculation!$N$10&3,TRUE):INDIRECT("MonteCarlo!"&CostCalculation!$N$10&CostCalculation!$E$4+2,TRUE),">"&B63))/CostCalculation!$E$4=0,#N/A,(COUNTIF(INDIRECT("MonteCarlo!"&CostCalculation!$N$10&3,TRUE):INDIRECT("MonteCarlo!"&CostCalculation!$N$10&CostCalculation!$E$4+2,TRUE),">"&B62)-COUNTIF(INDIRECT("MonteCarlo!"&CostCalculation!$N$10&3,TRUE):INDIRECT("MonteCarlo!"&CostCalculation!$N$10&CostCalculation!$E$4+2,TRUE),">"&B63))/CostCalculation!$E$4) -> 
A63: 0.168 | B63: =ROUND(INDIRECT("CostCalculation!D"&CostCalculation!$O$10,TRUE)*A63,0) -> 82361 | C63: =IF((COUNTIF(INDIRECT("MonteCarlo!"&CostCalculation!$N$10&3,TRUE):INDIRECT("MonteCarlo!"&CostCalculation!$N$10&CostCalculation!$E$4+2,TRUE),"<="&B63))/CostCalculation!$E$4=0,#N/A,(COUNTIF(INDIRECT("MonteCarlo!"&CostCalculation!$N$10&3,TRUE):INDIRECT("MonteCarlo!"&CostCalculation!$N$10&CostCalculation!$E$4+2,TRUE),"<="&B63))/CostCalculation!$E$4) -> 0.4335 | D63: 82361 | E63: =IF((COUNTIF(INDIRECT("MonteCarlo!"&CostCalculation!$N$10&3,TRUE):INDIRECT("MonteCarlo!"&CostCalculation!$N$10&CostCalculation!$E$4+2,TRUE),">"&B63)-COUNTIF(INDIRECT("MonteCarlo!"&CostCalculation!$N$10&3,TRUE):INDIRECT("MonteCarlo!"&CostCalculation!$N$10&CostCalculation!$E$4+2,TRUE),">"&B64))/CostCalculation!$E$4=0,#N/A,(COUNTIF(INDIRECT("MonteCarlo!"&CostCalculation!$N$10&3,TRUE):INDIRECT("MonteCarlo!"&CostCalculation!$N$10&CostCalculation!$E$4+2,TRUE),">"&B63)-COUNTIF(INDIRECT("MonteCarlo!"&CostCalculation!$N$10&3,TRUE):INDIRECT("MonteCarlo!"&CostCalculation!$N$10&CostCalculation!$E$4+2,TRUE),">"&B64))/CostCalculation!$E$4) -> 
A64: 0.171 | B64: =ROUND(INDIRECT("CostCalculation!D"&CostCalculation!$O$10,TRUE)*A64,0) -> 83832 | C64: =IF((COUNTIF(INDIRECT("MonteCarlo!"&CostCalculation!$N$10&3,TRUE):INDIRECT("MonteCarlo!"&CostCalculation!$N$10&CostCalculation!$E$4+2,TRUE),"<="&B64))/CostCalculation!$E$4=0,#N/A,(COUNTIF(INDIRECT("MonteCarlo!"&CostCalculation!$N$10&3,TRUE):INDIRECT("MonteCarlo!"&CostCalculation!$N$10&CostCalculation!$E$4+2,TRUE),"<="&B64))/CostCalculation!$E$4) -> 0.4335 | D64: 83832 | E64: =IF((COUNTIF(INDIRECT("MonteCarlo!"&CostCalculation!$N$10&3,TRUE):INDIRECT("MonteCarlo!"&CostCalculation!$N$10&CostCalculation!$E$4+2,TRUE),">"&B64)-COUNTIF(INDIRECT("MonteCarlo!"&CostCalculation!$N$10&3,TRUE):INDIRECT("MonteCarlo!"&CostCalculation!$N$10&CostCalculation!$E$4+2,TRUE),">"&B65))/CostCalculation!$E$4=0,#N/A,(COUNTIF(INDIRECT("MonteCarlo!"&CostCalculation!$N$10&3,TRUE):INDIRECT("MonteCarlo!"&CostCalculation!$N$10&CostCalculation!$E$4+2,TRUE),">"&B64)-COUNTIF(INDIRECT("MonteCarlo!"&CostCalculation!$N$10&3,TRUE):INDIRECT("MonteCarlo!"&CostCalculation!$N$10&CostCalculation!$E$4+2,TRUE),">"&B65))/CostCalculation!$E$4) -> 
A65: 0.174 | B65: =ROUND(INDIRECT("CostCalculation!D"&CostCalculation!$O$10,TRUE)*A65,0) -> 85303 | C65: =IF((COUNTIF(INDIRECT("MonteCarlo!"&CostCalculation!$N$10&3,TRUE):INDIRECT("MonteCarlo!"&CostCalculation!$N$10&CostCalculation!$E$4+2,TRUE),"<="&B65))/CostCalculation!$E$4=0,#N/A,(COUNTIF(INDIRECT("MonteCarlo!"&CostCalculation!$N$10&3,TRUE):INDIRECT("MonteCarlo!"&CostCalculation!$N$10&CostCalculation!$E$4+2,TRUE),"<="&B65))/CostCalculation!$E$4) -> 0.4335 | D65: 85303 | E65: =IF((COUNTIF(INDIRECT("MonteCarlo!"&CostCalculation!$N$10&3,TRUE):INDIRECT("MonteCarlo!"&CostCalculation!$N$10&CostCalculation!$E$4+2,TRUE),">"&B65)-COUNTIF(INDIRECT("MonteCarlo!"&CostCalculation!$N$10&3,TRUE):INDIRECT("MonteCarlo!"&CostCalculation!$N$10&CostCalculation!$E$4+2,TRUE),">"&B66))/CostCalculation!$E$4=0,#N/A,(COUNTIF(INDIRECT("MonteCarlo!"&CostCalculation!$N$10&3,TRUE):INDIRECT("MonteCarlo!"&CostCalculation!$N$10&CostCalculation!$E$4+2,TRUE),">"&B65)-COUNTIF(INDIRECT("MonteCarlo!"&CostCalculation!$N$10&3,TRUE):INDIRECT("MonteCarlo!"&CostCalculation!$N$10&CostCalculation!$E$4+2,TRUE),">"&B66))/CostCalculation!$E$4) -> 
A66: 0.177 | B66: =ROUND(INDIRECT("CostCalculation!D"&CostCalculation!$O$10,TRUE)*A66,0) -> 86773 | C66: =IF((COUNTIF(INDIRECT("MonteCarlo!"&CostCalculation!$N$10&3,TRUE):INDIRECT("MonteCarlo!"&CostCalculation!$N$10&CostCalculation!$E$4+2,TRUE),"<="&B66))/CostCalculation!$E$4=0,#N/A,(COUNTIF(INDIRECT("MonteCarlo!"&CostCalculation!$N$10&3,TRUE):INDIRECT("MonteCarlo!"&CostCalculation!$N$10&CostCalculation!$E$4+2,TRUE),"<="&B66))/CostCalculation!$E$4) -> 0.4335 | D66: 86773 | E66: =IF((COUNTIF(INDIRECT("MonteCarlo!"&CostCalculation!$N$10&3,TRUE):INDIRECT("MonteCarlo!"&CostCalculation!$N$10&CostCalculation!$E$4+2,TRUE),">"&B66)-COUNTIF(INDIRECT("MonteCarlo!"&CostCalculation!$N$10&3,TRUE):INDIRECT("MonteCarlo!"&CostCalculation!$N$10&CostCalculation!$E$4+2,TRUE),">"&B67))/CostCalculation!$E$4=0,#N/A,(COUNTIF(INDIRECT("MonteCarlo!"&CostCalculation!$N$10&3,TRUE):INDIRECT("MonteCarlo!"&CostCalculation!$N$10&CostCalculation!$E$4+2,TRUE),">"&B66)-COUNTIF(INDIRECT("MonteCarlo!"&CostCalculation!$N$10&3,TRUE):INDIRECT("MonteCarlo!"&CostCalculation!$N$10&CostCalculation!$E$4+2,TRUE),">"&B67))/CostCalculation!$E$4) -> 
A67: 0.18 | B67: =ROUND(INDIRECT("CostCalculation!D"&CostCalculation!$O$10,TRUE)*A67,0) -> 88244 | C67: =IF((COUNTIF(INDIRECT("MonteCarlo!"&CostCalculation!$N$10&3,TRUE):INDIRECT("MonteCarlo!"&CostCalculation!$N$10&CostCalculation!$E$4+2,TRUE),"<="&B67))/CostCalculation!$E$4=0,#N/A,(COUNTIF(INDIRECT("MonteCarlo!"&CostCalculation!$N$10&3,TRUE):INDIRECT("MonteCarlo!"&CostCalculation!$N$10&CostCalculation!$E$4+2,TRUE),"<="&B67))/CostCalculation!$E$4) -> 0.4335 | D67: 88244 | E67: =IF((COUNTIF(INDIRECT("MonteCarlo!"&CostCalculation!$N$10&3,TRUE):INDIRECT("MonteCarlo!"&CostCalculation!$N$10&CostCalculation!$E$4+2,TRUE),">"&B67)-COUNTIF(INDIRECT("MonteCarlo!"&CostCalculation!$N$10&3,TRUE):INDIRECT("MonteCarlo!"&CostCalculation!$N$10&CostCalculation!$E$4+2,TRUE),">"&B68))/CostCalculation!$E$4=0,#N/A,(COUNTIF(INDIRECT("MonteCarlo!"&CostCalculation!$N$10&3,TRUE):INDIRECT("MonteCarlo!"&CostCalculation!$N$10&CostCalculation!$E$4+2,TRUE),">"&B67)-COUNTIF(INDIRECT("MonteCarlo!"&CostCalculation!$N$10&3,TRUE):INDIRECT("MonteCarlo!"&CostCalculation!$N$10&CostCalculation!$E$4+2,TRUE),">"&B68))/CostCalculation!$E$4) -> 
A68: 0.183 | B68: =ROUND(INDIRECT("CostCalculation!D"&CostCalculation!$O$10,TRUE)*A68,0) -> 89715 | C68: =IF((COUNTIF(INDIRECT("MonteCarlo!"&CostCalculation!$N$10&3,TRUE):INDIRECT("MonteCarlo!"&CostCalculation!$N$10&CostCalculation!$E$4+2,TRUE),"<="&B68))/CostCalculation!$E$4=0,#N/A,(COUNTIF(INDIRECT("MonteCarlo!"&CostCalculation!$N$10&3,TRUE):INDIRECT("MonteCarlo!"&CostCalculation!$N$10&CostCalculation!$E$4+2,TRUE),"<="&B68))/CostCalculation!$E$4) -> 0.4335 | D68: 89715 | E68: =IF((COUNTIF(INDIRECT("MonteCarlo!"&CostCalculation!$N$10&3,TRUE):INDIRECT("MonteCarlo!"&CostCalculation!$N$10&CostCalculation!$E$4+2,TRUE),">"&B68)-COUNTIF(INDIRECT("MonteCarlo!"&CostCalculation!$N$10&3,TRUE):INDIRECT("MonteCarlo!"&CostCalculation!$N$10&CostCalculation!$E$4+2,TRUE),">"&B69))/CostCalculation!$E$4=0,#N/A,(COUNTIF(INDIRECT("MonteCarlo!"&CostCalculation!$N$10&3,TRUE):INDIRECT("MonteCarlo!"&CostCalculation!$N$10&CostCalculation!$E$4+2,TRUE),">"&B68)-COUNTIF(INDIRECT("MonteCarlo!"&CostCalculation!$N$10&3,TRUE):INDIRECT("MonteCarlo!"&CostCalculation!$N$10&CostCalculation!$E$4+2,TRUE),">"&B69))/CostCalculation!$E$4) -> 
A69: 0.186 | B69: =ROUND(INDIRECT("CostCalculation!D"&CostCalculation!$O$10,TRUE)*A69,0) -> 91186 | C69: =IF((COUNTIF(INDIRECT("MonteCarlo!"&CostCalculation!$N$10&3,TRUE):INDIRECT("MonteCarlo!"&CostCalculation!$N$10&CostCalculation!$E$4+2,TRUE),"<="&B69))/CostCalculation!$E$4=0,#N/A,(COUNTIF(INDIRECT("MonteCarlo!"&CostCalculation!$N$10&3,TRUE):INDIRECT("MonteCarlo!"&CostCalculation!$N$10&CostCalculation!$E$4+2,TRUE),"<="&B69))/CostCalculation!$E$4) -> 0.4335 | D69: 91186 | E69: =IF((COUNTIF(INDIRECT("MonteCarlo!"&CostCalculation!$N$10&3,TRUE):INDIRECT("MonteCarlo!"&CostCalculation!$N$10&CostCalculation!$E$4+2,TRUE),">"&B69)-COUNTIF(INDIRECT("MonteCarlo!"&CostCalculation!$N$10&3,TRUE):INDIRECT("MonteCarlo!"&CostCalculation!$N$10&CostCalculation!$E$4+2,TRUE),">"&B70))/CostCalculation!$E$4=0,#N/A,(COUNTIF(INDIRECT("MonteCarlo!"&CostCalculation!$N$10&3,TRUE):INDIRECT("MonteCarlo!"&CostCalculation!$N$10&CostCalculation!$E$4+2,TRUE),">"&B69)-COUNTIF(INDIRECT("MonteCarlo!"&CostCalculation!$N$10&3,TRUE):INDIRECT("MonteCarlo!"&CostCalculation!$N$10&CostCalculation!$E$4+2,TRUE),">"&B70))/CostCalculation!$E$4) -> 
A70: 0.189 | B70: =ROUND(INDIRECT("CostCalculation!D"&CostCalculation!$O$10,TRUE)*A70,0) -> 92656 | C70: =IF((COUNTIF(INDIRECT("MonteCarlo!"&CostCalculation!$N$10&3,TRUE):INDIRECT("MonteCarlo!"&CostCalculation!$N$10&CostCalculation!$E$4+2,TRUE),"<="&B70))/CostCalculation!$E$4=0,#N/A,(COUNTIF(INDIRECT("MonteCarlo!"&CostCalculation!$N$10&3,TRUE):INDIRECT("MonteCarlo!"&CostCalculation!$N$10&CostCalculation!$E$4+2,TRUE),"<="&B70))/CostCalculation!$E$4) -> 0.4335 | D70: 92656 | E70: =IF((COUNTIF(INDIRECT("MonteCarlo!"&CostCalculation!$N$10&3,TRUE):INDIRECT("MonteCarlo!"&CostCalculation!$N$10&CostCalculation!$E$4+2,TRUE),">"&B70)-COUNTIF(INDIRECT("MonteCarlo!"&CostCalculation!$N$10&3,TRUE):INDIRECT("MonteCarlo!"&CostCalculation!$N$10&CostCalculation!$E$4+2,TRUE),">"&B71))/CostCalculation!$E$4=0,#N/A,(COUNTIF(INDIRECT("MonteCarlo!"&CostCalculation!$N$10&3,TRUE):INDIRECT("MonteCarlo!"&CostCalculation!$N$10&CostCalculation!$E$4+2,TRUE),">"&B70)-COUNTIF(INDIRECT("MonteCarlo!"&CostCalculation!$N$10&3,TRUE):INDIRECT("MonteCarlo!"&CostCalculation!$N$10&CostCalculation!$E$4+2,TRUE),">"&B71))/CostCalculation!$E$4) -> 
A71: 0.192 | B71: =ROUND(INDIRECT("CostCalculation!D"&CostCalculation!$O$10,TRUE)*A71,0) -> 94127 | C71: =IF((COUNTIF(INDIRECT("MonteCarlo!"&CostCalculation!$N$10&3,TRUE):INDIRECT("MonteCarlo!"&CostCalculation!$N$10&CostCalculation!$E$4+2,TRUE),"<="&B71))/CostCalculation!$E$4=0,#N/A,(COUNTIF(INDIRECT("MonteCarlo!"&CostCalculation!$N$10&3,TRUE):INDIRECT("MonteCarlo!"&CostCalculation!$N$10&CostCalculation!$E$4+2,TRUE),"<="&B71))/CostCalculation!$E$4) -> 0.4335 | D71: 94127 | E71: =IF((COUNTIF(INDIRECT("MonteCarlo!"&CostCalculation!$N$10&3,TRUE):INDIRECT("MonteCarlo!"&CostCalculation!$N$10&CostCalculation!$E$4+2,TRUE),">"&B71)-COUNTIF(INDIRECT("MonteCarlo!"&CostCalculation!$N$10&3,TRUE):INDIRECT("MonteCarlo!"&CostCalculation!$N$10&CostCalculation!$E$4+2,TRUE),">"&B72))/CostCalculation!$E$4=0,#N/A,(COUNTIF(INDIRECT("MonteCarlo!"&CostCalculation!$N$10&3,TRUE):INDIRECT("MonteCarlo!"&CostCalculation!$N$10&CostCalculation!$E$4+2,TRUE),">"&B71)-COUNTIF(INDIRECT("MonteCarlo!"&CostCalculation!$N$10&3,TRUE):INDIRECT("MonteCarlo!"&CostCalculation!$N$10&CostCalculation!$E$4+2,TRUE),">"&B72))/CostCalculation!$E$4) -> 
A72: 0.195 | B72: =ROUND(INDIRECT("CostCalculation!D"&CostCalculation!$O$10,TRUE)*A72,0) -> 95598 | C72: =IF((COUNTIF(INDIRECT("MonteCarlo!"&CostCalculation!$N$10&3,TRUE):INDIRECT("MonteCarlo!"&CostCalculation!$N$10&CostCalculation!$E$4+2,TRUE),"<="&B72))/CostCalculation!$E$4=0,#N/A,(COUNTIF(INDIRECT("MonteCarlo!"&CostCalculation!$N$10&3,TRUE):INDIRECT("MonteCarlo!"&CostCalculation!$N$10&CostCalculation!$E$4+2,TRUE),"<="&B72))/CostCalculation!$E$4) -> 0.4335 | D72: =B72 -> 95598 | E72: =IF((COUNTIF(INDIRECT("MonteCarlo!"&CostCalculation!$N$10&3,TRUE):INDIRECT("MonteCarlo!"&CostCalculation!$N$10&CostCalculation!$E$4+2,TRUE),">"&B72)-COUNTIF(INDIRECT("MonteCarlo!"&CostCalculation!$N$10&3,TRUE):INDIRECT("MonteCarlo!"&CostCalculation!$N$10&CostCalculation!$E$4+2,TRUE),">"&B73))/CostCalculation!$E$4=0,#N/A,(COUNTIF(INDIRECT("MonteCarlo!"&CostCalculation!$N$10&3,TRUE):INDIRECT("MonteCarlo!"&CostCalculation!$N$10&CostCalculation!$E$4+2,TRUE),">"&B72)-COUNTIF(INDIRECT("MonteCarlo!"&CostCalculation!$N$10&3,TRUE):INDIRECT("MonteCarlo!"&CostCalculation!$N$10&CostCalculation!$E$4+2,TRUE),">"&B73))/CostCalculation!$E$4) -> 
A73: 0.198 | B73: =ROUND(INDIRECT("CostCalculation!D"&CostCalculation!$O$10,TRUE)*A73,0) -> 97069 | C73: =IF((COUNTIF(INDIRECT("MonteCarlo!"&CostCalculation!$N$10&3,TRUE):INDIRECT("MonteCarlo!"&CostCalculation!$N$10&CostCalculation!$E$4+2,TRUE),"<="&B73))/CostCalculation!$E$4=0,#N/A,(COUNTIF(INDIRECT("MonteCarlo!"&CostCalculation!$N$10&3,TRUE):INDIRECT("MonteCarlo!"&CostCalculation!$N$10&CostCalculation!$E$4+2,TRUE),"<="&B73))/CostCalculation!$E$4) -> 0.4335 | D73: 97069 | E73: =IF((COUNTIF(INDIRECT("MonteCarlo!"&CostCalculation!$N$10&3,TRUE):INDIRECT("MonteCarlo!"&CostCalculation!$N$10&CostCalculation!$E$4+2,TRUE),">"&B73)-COUNTIF(INDIRECT("MonteCarlo!"&CostCalculation!$N$10&3,TRUE):INDIRECT("MonteCarlo!"&CostCalculation!$N$10&CostCalculation!$E$4+2,TRUE),">"&B74))/CostCalculation!$E$4=0,#N/A,(COUNTIF(INDIRECT("MonteCarlo!"&CostCalculation!$N$10&3,TRUE):INDIRECT("MonteCarlo!"&CostCalculation!$N$10&CostCalculation!$E$4+2,TRUE),">"&B73)-COUNTIF(INDIRECT("MonteCarlo!"&CostCalculation!$N$10&3,TRUE):INDIRECT("MonteCarlo!"&CostCalculation!$N$10&CostCalculation!$E$4+2,TRUE),">"&B74))/CostCalculation!$E$4) -> 0.17
A74: 0.201 | B74: =ROUND(INDIRECT("CostCalculation!D"&CostCalculation!$O$10,TRUE)*A74,0) -> 98539 | C74: =IF((COUNTIF(INDIRECT("MonteCarlo!"&CostCalculation!$N$10&3,TRUE):INDIRECT("MonteCarlo!"&CostCalculation!$N$10&CostCalculation!$E$4+2,TRUE),"<="&B74))/CostCalculation!$E$4=0,#N/A,(COUNTIF(INDIRECT("MonteCarlo!"&CostCalculation!$N$10&3,TRUE):INDIRECT("MonteCarlo!"&CostCalculation!$N$10&CostCalculation!$E$4+2,TRUE),"<="&B74))/CostCalculation!$E$4) -> 0.6035 | D74: 98539 | E74: =IF((COUNTIF(INDIRECT("MonteCarlo!"&CostCalculation!$N$10&3,TRUE):INDIRECT("MonteCarlo!"&CostCalculation!$N$10&CostCalculation!$E$4+2,TRUE),">"&B74)-COUNTIF(INDIRECT("MonteCarlo!"&CostCalculation!$N$10&3,TRUE):INDIRECT("MonteCarlo!"&CostCalculation!$N$10&CostCalculation!$E$4+2,TRUE),">"&B75))/CostCalculation!$E$4=0,#N/A,(COUNTIF(INDIRECT("MonteCarlo!"&CostCalculation!$N$10&3,TRUE):INDIRECT("MonteCarlo!"&CostCalculation!$N$10&CostCalculation!$E$4+2,TRUE),">"&B74)-COUNTIF(INDIRECT("MonteCarlo!"&CostCalculation!$N$10&3,TRUE):INDIRECT("MonteCarlo!"&CostCalculation!$N$10&CostCalculation!$E$4+2,TRUE),">"&B75))/CostCalculation!$E$4) -> 
A75: 0.204 | B75: =ROUND(INDIRECT("CostCalculation!D"&CostCalculation!$O$10,TRUE)*A75,0) -> 100010 | C75: =IF((COUNTIF(INDIRECT("MonteCarlo!"&CostCalculation!$N$10&3,TRUE):INDIRECT("MonteCarlo!"&CostCalculation!$N$10&CostCalculation!$E$4+2,TRUE),"<="&B75))/CostCalculation!$E$4=0,#N/A,(COUNTIF(INDIRECT("MonteCarlo!"&CostCalculation!$N$10&3,TRUE):INDIRECT("MonteCarlo!"&CostCalculation!$N$10&CostCalculation!$E$4+2,TRUE),"<="&B75))/CostCalculation!$E$4) -> 0.6035 | D75: 100010 | E75: =IF((COUNTIF(INDIRECT("MonteCarlo!"&CostCalculation!$N$10&3,TRUE):INDIRECT("MonteCarlo!"&CostCalculation!$N$10&CostCalculation!$E$4+2,TRUE),">"&B75)-COUNTIF(INDIRECT("MonteCarlo!"&CostCalculation!$N$10&3,TRUE):INDIRECT("MonteCarlo!"&CostCalculation!$N$10&CostCalculation!$E$4+2,TRUE),">"&B76))/CostCalculation!$E$4=0,#N/A,(COUNTIF(INDIRECT("MonteCarlo!"&CostCalculation!$N$10&3,TRUE):INDIRECT("MonteCarlo!"&CostCalculation!$N$10&CostCalculation!$E$4+2,TRUE),">"&B75)-COUNTIF(INDIRECT("MonteCarlo!"&CostCalculation!$N$10&3,TRUE):INDIRECT("MonteCarlo!"&CostCalculation!$N$10&CostCalculation!$E$4+2,TRUE),">"&B76))/CostCalculation!$E$4) -> 
A76: 0.207 | B76: =ROUND(INDIRECT("CostCalculation!D"&CostCalculation!$O$10,TRUE)*A76,0) -> 101481 | C76: =IF((COUNTIF(INDIRECT("MonteCarlo!"&CostCalculation!$N$10&3,TRUE):INDIRECT("MonteCarlo!"&CostCalculation!$N$10&CostCalculation!$E$4+2,TRUE),"<="&B76))/CostCalculation!$E$4=0,#N/A,(COUNTIF(INDIRECT("MonteCarlo!"&CostCalculation!$N$10&3,TRUE):INDIRECT("MonteCarlo!"&CostCalculation!$N$10&CostCalculation!$E$4+2,TRUE),"<="&B76))/CostCalculation!$E$4) -> 0.6035 | D76: 101481 | E76: =IF((COUNTIF(INDIRECT("MonteCarlo!"&CostCalculation!$N$10&3,TRUE):INDIRECT("MonteCarlo!"&CostCalculation!$N$10&CostCalculation!$E$4+2,TRUE),">"&B76)-COUNTIF(INDIRECT("MonteCarlo!"&CostCalculation!$N$10&3,TRUE):INDIRECT("MonteCarlo!"&CostCalculation!$N$10&CostCalculation!$E$4+2,TRUE),">"&B77))/CostCalculation!$E$4=0,#N/A,(COUNTIF(INDIRECT("MonteCarlo!"&CostCalculation!$N$10&3,TRUE):INDIRECT("MonteCarlo!"&CostCalculation!$N$10&CostCalculation!$E$4+2,TRUE),">"&B76)-COUNTIF(INDIRECT("MonteCarlo!"&CostCalculation!$N$10&3,TRUE):INDIRECT("MonteCarlo!"&CostCalculation!$N$10&CostCalculation!$E$4+2,TRUE),">"&B77))/CostCalculation!$E$4) -> 
A77: 0.21 | B77: =ROUND(INDIRECT("CostCalculation!D"&CostCalculation!$O$10,TRUE)*A77,0) -> 102951 | C77: =IF((COUNTIF(INDIRECT("MonteCarlo!"&CostCalculation!$N$10&3,TRUE):INDIRECT("MonteCarlo!"&CostCalculation!$N$10&CostCalculation!$E$4+2,TRUE),"<="&B77))/CostCalculation!$E$4=0,#N/A,(COUNTIF(INDIRECT("MonteCarlo!"&CostCalculation!$N$10&3,TRUE):INDIRECT("MonteCarlo!"&CostCalculation!$N$10&CostCalculation!$E$4+2,TRUE),"<="&B77))/CostCalculation!$E$4) -> 0.6035 | D77: 102951 | E77: =IF((COUNTIF(INDIRECT("MonteCarlo!"&CostCalculation!$N$10&3,TRUE):INDIRECT("MonteCarlo!"&CostCalculation!$N$10&CostCalculation!$E$4+2,TRUE),">"&B77)-COUNTIF(INDIRECT("MonteCarlo!"&CostCalculation!$N$10&3,TRUE):INDIRECT("MonteCarlo!"&CostCalculation!$N$10&CostCalculation!$E$4+2,TRUE),">"&B78))/CostCalculation!$E$4=0,#N/A,(COUNTIF(INDIRECT("MonteCarlo!"&CostCalculation!$N$10&3,TRUE):INDIRECT("MonteCarlo!"&CostCalculation!$N$10&CostCalculation!$E$4+2,TRUE),">"&B77)-COUNTIF(INDIRECT("MonteCarlo!"&CostCalculation!$N$10&3,TRUE):INDIRECT("MonteCarlo!"&CostCalculation!$N$10&CostCalculation!$E$4+2,TRUE),">"&B78))/CostCalculation!$E$4) -> 
A78: 0.213 | B78: =ROUND(INDIRECT("CostCalculation!D"&CostCalculation!$O$10,TRUE)*A78,0) -> 104422 | C78: =IF((COUNTIF(INDIRECT("MonteCarlo!"&CostCalculation!$N$10&3,TRUE):INDIRECT("MonteCarlo!"&CostCalculation!$N$10&CostCalculation!$E$4+2,TRUE),"<="&B78))/CostCalculation!$E$4=0,#N/A,(COUNTIF(INDIRECT("MonteCarlo!"&CostCalculation!$N$10&3,TRUE):INDIRECT("MonteCarlo!"&CostCalculation!$N$10&CostCalculation!$E$4+2,TRUE),"<="&B78))/CostCalculation!$E$4) -> 0.6035 | D78: 104422 | E78: =IF((COUNTIF(INDIRECT("MonteCarlo!"&CostCalculation!$N$10&3,TRUE):INDIRECT("MonteCarlo!"&CostCalculation!$N$10&CostCalculation!$E$4+2,TRUE),">"&B78)-COUNTIF(INDIRECT("MonteCarlo!"&CostCalculation!$N$10&3,TRUE):INDIRECT("MonteCarlo!"&CostCalculation!$N$10&CostCalculation!$E$4+2,TRUE),">"&B79))/CostCalculation!$E$4=0,#N/A,(COUNTIF(INDIRECT("MonteCarlo!"&CostCalculation!$N$10&3,TRUE):INDIRECT("MonteCarlo!"&CostCalculation!$N$10&CostCalculation!$E$4+2,TRUE),">"&B78)-COUNTIF(INDIRECT("MonteCarlo!"&CostCalculation!$N$10&3,TRUE):INDIRECT("MonteCarlo!"&CostCalculation!$N$10&CostCalculation!$E$4+2,TRUE),">"&B79))/CostCalculation!$E$4) -> 
A79: 0.216 | B79: =ROUND(INDIRECT("CostCalculation!D"&CostCalculation!$O$10,TRUE)*A79,0) -> 105893 | C79: =IF((COUNTIF(INDIRECT("MonteCarlo!"&CostCalculation!$N$10&3,TRUE):INDIRECT("MonteCarlo!"&CostCalculation!$N$10&CostCalculation!$E$4+2,TRUE),"<="&B79))/CostCalculation!$E$4=0,#N/A,(COUNTIF(INDIRECT("MonteCarlo!"&CostCalculation!$N$10&3,TRUE):INDIRECT("MonteCarlo!"&CostCalculation!$N$10&CostCalculation!$E$4+2,TRUE),"<="&B79))/CostCalculation!$E$4) -> 0.6035 | D79: 105893 | E79: =IF((COUNTIF(INDIRECT("MonteCarlo!"&CostCalculation!$N$10&3,TRUE):INDIRECT("MonteCarlo!"&CostCalculation!$N$10&CostCalculation!$E$4+2,TRUE),">"&B79)-COUNTIF(INDIRECT("MonteCarlo!"&CostCalculation!$N$10&3,TRUE):INDIRECT("MonteCarlo!"&CostCalculation!$N$10&CostCalculation!$E$4+2,TRUE),">"&B80))/CostCalculation!$E$4=0,#N/A,(COUNTIF(INDIRECT("MonteCarlo!"&CostCalculation!$N$10&3,TRUE):INDIRECT("MonteCarlo!"&CostCalculation!$N$10&CostCalculation!$E$4+2,TRUE),">"&B79)-COUNTIF(INDIRECT("MonteCarlo!"&CostCalculation!$N$10&3,TRUE):INDIRECT("MonteCarlo!"&CostCalculation!$N$10&CostCalculation!$E$4+2,TRUE),">"&B80))/CostCalculation!$E$4) -> 
A80: 0.219 | B80: =ROUND(INDIRECT("CostCalculation!D"&CostCalculation!$O$10,TRUE)*A80,0) -> 107364 | C80: =IF((COUNTIF(INDIRECT("MonteCarlo!"&CostCalculation!$N$10&3,TRUE):INDIRECT("MonteCarlo!"&CostCalculation!$N$10&CostCalculation!$E$4+2,TRUE),"<="&B80))/CostCalculation!$E$4=0,#N/A,(COUNTIF(INDIRECT("MonteCarlo!"&CostCalculation!$N$10&3,TRUE):INDIRECT("MonteCarlo!"&CostCalculation!$N$10&CostCalculation!$E$4+2,TRUE),"<="&B80))/CostCalculation!$E$4) -> 0.6035 | D80: 107364 | E80: =IF((COUNTIF(INDIRECT("MonteCarlo!"&CostCalculation!$N$10&3,TRUE):INDIRECT("MonteCarlo!"&CostCalculation!$N$10&CostCalculation!$E$4+2,TRUE),">"&B80)-COUNTIF(INDIRECT("MonteCarlo!"&CostCalculation!$N$10&3,TRUE):INDIRECT("MonteCarlo!"&CostCalculation!$N$10&CostCalculation!$E$4+2,TRUE),">"&B81))/CostCalculation!$E$4=0,#N/A,(COUNTIF(INDIRECT("MonteCarlo!"&CostCalculation!$N$10&3,TRUE):INDIRECT("MonteCarlo!"&CostCalculation!$N$10&CostCalculation!$E$4+2,TRUE),">"&B80)-COUNTIF(INDIRECT("MonteCarlo!"&CostCalculation!$N$10&3,TRUE):INDIRECT("MonteCarlo!"&CostCalculation!$N$10&CostCalculation!$E$4+2,TRUE),">"&B81))/CostCalculation!$E$4) -> 
A81: 0.222 | B81: =ROUND(INDIRECT("CostCalculation!D"&CostCalculation!$O$10,TRUE)*A81,0) -> 108834 | C81: =IF((COUNTIF(INDIRECT("MonteCarlo!"&CostCalculation!$N$10&3,TRUE):INDIRECT("MonteCarlo!"&CostCalculation!$N$10&CostCalculation!$E$4+2,TRUE),"<="&B81))/CostCalculation!$E$4=0,#N/A,(COUNTIF(INDIRECT("MonteCarlo!"&CostCalculation!$N$10&3,TRUE):INDIRECT("MonteCarlo!"&CostCalculation!$N$10&CostCalculation!$E$4+2,TRUE),"<="&B81))/CostCalculation!$E$4) -> 0.6035 | D81: 108834 | E81: =IF((COUNTIF(INDIRECT("MonteCarlo!"&CostCalculation!$N$10&3,TRUE):INDIRECT("MonteCarlo!"&CostCalculation!$N$10&CostCalculation!$E$4+2,TRUE),">"&B81)-COUNTIF(INDIRECT("MonteCarlo!"&CostCalculation!$N$10&3,TRUE):INDIRECT("MonteCarlo!"&CostCalculation!$N$10&CostCalculation!$E$4+2,TRUE),">"&B82))/CostCalculation!$E$4=0,#N/A,(COUNTIF(INDIRECT("MonteCarlo!"&CostCalculation!$N$10&3,TRUE):INDIRECT("MonteCarlo!"&CostCalculation!$N$10&CostCalculation!$E$4+2,TRUE),">"&B81)-COUNTIF(INDIRECT("MonteCarlo!"&CostCalculation!$N$10&3,TRUE):INDIRECT("MonteCarlo!"&CostCalculation!$N$10&CostCalculation!$E$4+2,TRUE),">"&B82))/CostCalculation!$E$4) -> 
A82: 0.225 | B82: =ROUND(INDIRECT("CostCalculation!D"&CostCalculation!$O$10,TRUE)*A82,0) -> 110305 | C82: =IF((COUNTIF(INDIRECT("MonteCarlo!"&CostCalculation!$N$10&3,TRUE):INDIRECT("MonteCarlo!"&CostCalculation!$N$10&CostCalculation!$E$4+2,TRUE),"<="&B82))/CostCalculation!$E$4=0,#N/A,(COUNTIF(INDIRECT("MonteCarlo!"&CostCalculation!$N$10&3,TRUE):INDIRECT("MonteCarlo!"&CostCalculation!$N$10&CostCalculation!$E$4+2,TRUE),"<="&B82))/CostCalculation!$E$4) -> 0.6035 | D82: 110305 | E82: =IF((COUNTIF(INDIRECT("MonteCarlo!"&CostCalculation!$N$10&3,TRUE):INDIRECT("MonteCarlo!"&CostCalculation!$N$10&CostCalculation!$E$4+2,TRUE),">"&B82)-COUNTIF(INDIRECT("MonteCarlo!"&CostCalculation!$N$10&3,TRUE):INDIRECT("MonteCarlo!"&CostCalculation!$N$10&CostCalculation!$E$4+2,TRUE),">"&B83))/CostCalculation!$E$4=0,#N/A,(COUNTIF(INDIRECT("MonteCarlo!"&CostCalculation!$N$10&3,TRUE):INDIRECT("MonteCarlo!"&CostCalculation!$N$10&CostCalculation!$E$4+2,TRUE),">"&B82)-COUNTIF(INDIRECT("MonteCarlo!"&CostCalculation!$N$10&3,TRUE):INDIRECT("MonteCarlo!"&CostCalculation!$N$10&CostCalculation!$E$4+2,TRUE),">"&B83))/CostCalculation!$E$4) -> 
A83: 0.228 | B83: =ROUND(INDIRECT("CostCalculation!D"&CostCalculation!$O$10,TRUE)*A83,0) -> 111776 | C83: =IF((COUNTIF(INDIRECT("MonteCarlo!"&CostCalculation!$N$10&3,TRUE):INDIRECT("MonteCarlo!"&CostCalculation!$N$10&CostCalculation!$E$4+2,TRUE),"<="&B83))/CostCalculation!$E$4=0,#N/A,(COUNTIF(INDIRECT("MonteCarlo!"&CostCalculation!$N$10&3,TRUE):INDIRECT("MonteCarlo!"&CostCalculation!$N$10&CostCalculation!$E$4+2,TRUE),"<="&B83))/CostCalculation!$E$4) -> 0.6035 | D83: 111776 | E83: =IF((COUNTIF(INDIRECT("MonteCarlo!"&CostCalculation!$N$10&3,TRUE):INDIRECT("MonteCarlo!"&CostCalculation!$N$10&CostCalculation!$E$4+2,TRUE),">"&B83)-COUNTIF(INDIRECT("MonteCarlo!"&CostCalculation!$N$10&3,TRUE):INDIRECT("MonteCarlo!"&CostCalculation!$N$10&CostCalculation!$E$4+2,TRUE),">"&B84))/CostCalculation!$E$4=0,#N/A,(COUNTIF(INDIRECT("MonteCarlo!"&CostCalculation!$N$10&3,TRUE):INDIRECT("MonteCarlo!"&CostCalculation!$N$10&CostCalculation!$E$4+2,TRUE),">"&B83)-COUNTIF(INDIRECT("MonteCarlo!"&CostCalculation!$N$10&3,TRUE):INDIRECT("MonteCarlo!"&CostCalculation!$N$10&CostCalculation!$E$4+2,TRUE),">"&B84))/CostCalculation!$E$4) -> 
A84: 0.231 | B84: =ROUND(INDIRECT("CostCalculation!D"&CostCalculation!$O$10,TRUE)*A84,0) -> 113247 | C84: =IF((COUNTIF(INDIRECT("MonteCarlo!"&CostCalculation!$N$10&3,TRUE):INDIRECT("MonteCarlo!"&CostCalculation!$N$10&CostCalculation!$E$4+2,TRUE),"<="&B84))/CostCalculation!$E$4=0,#N/A,(COUNTIF(INDIRECT("MonteCarlo!"&CostCalculation!$N$10&3,TRUE):INDIRECT("MonteCarlo!"&CostCalculation!$N$10&CostCalculation!$E$4+2,TRUE),"<="&B84))/CostCalculation!$E$4) -> 0.6035 | D84: 113247 | E84: =IF((COUNTIF(INDIRECT("MonteCarlo!"&CostCalculation!$N$10&3,TRUE):INDIRECT("MonteCarlo!"&CostCalculation!$N$10&CostCalculation!$E$4+2,TRUE),">"&B84)-COUNTIF(INDIRECT("MonteCarlo!"&CostCalculation!$N$10&3,TRUE):INDIRECT("MonteCarlo!"&CostCalculation!$N$10&CostCalculation!$E$4+2,TRUE),">"&B85))/CostCalculation!$E$4=0,#N/A,(COUNTIF(INDIRECT("MonteCarlo!"&CostCalculation!$N$10&3,TRUE):INDIRECT("MonteCarlo!"&CostCalculation!$N$10&CostCalculation!$E$4+2,TRUE),">"&B84)-COUNTIF(INDIRECT("MonteCarlo!"&CostCalculation!$N$10&3,TRUE):INDIRECT("MonteCarlo!"&CostCalculation!$N$10&CostCalculation!$E$4+2,TRUE),">"&B85))/CostCalculation!$E$4) -> 
A85: 0.234 | B85: =ROUND(INDIRECT("CostCalculation!D"&CostCalculation!$O$10,TRUE)*A85,0) -> 114717 | C85: =IF((COUNTIF(INDIRECT("MonteCarlo!"&CostCalculation!$N$10&3,TRUE):INDIRECT("MonteCarlo!"&CostCalculation!$N$10&CostCalculation!$E$4+2,TRUE),"<="&B85))/CostCalculation!$E$4=0,#N/A,(COUNTIF(INDIRECT("MonteCarlo!"&CostCalculation!$N$10&3,TRUE):INDIRECT("MonteCarlo!"&CostCalculation!$N$10&CostCalculation!$E$4+2,TRUE),"<="&B85))/CostCalculation!$E$4) -> 0.6035 | D85: 114717 | E85: =IF((COUNTIF(INDIRECT("MonteCarlo!"&CostCalculation!$N$10&3,TRUE):INDIRECT("MonteCarlo!"&CostCalculation!$N$10&CostCalculation!$E$4+2,TRUE),">"&B85)-COUNTIF(INDIRECT("MonteCarlo!"&CostCalculation!$N$10&3,TRUE):INDIRECT("MonteCarlo!"&CostCalculation!$N$10&CostCalculation!$E$4+2,TRUE),">"&B86))/CostCalculation!$E$4=0,#N/A,(COUNTIF(INDIRECT("MonteCarlo!"&CostCalculation!$N$10&3,TRUE):INDIRECT("MonteCarlo!"&CostCalculation!$N$10&CostCalculation!$E$4+2,TRUE),">"&B85)-COUNTIF(INDIRECT("MonteCarlo!"&CostCalculation!$N$10&3,TRUE):INDIRECT("MonteCarlo!"&CostCalculation!$N$10&CostCalculation!$E$4+2,TRUE),">"&B86))/CostCalculation!$E$4) -> 
A86: 0.237 | B86: =ROUND(INDIRECT("CostCalculation!D"&CostCalculation!$O$10,TRUE)*A86,0) -> 116188 | C86: =IF((COUNTIF(INDIRECT("MonteCarlo!"&CostCalculation!$N$10&3,TRUE):INDIRECT("MonteCarlo!"&CostCalculation!$N$10&CostCalculation!$E$4+2,TRUE),"<="&B86))/CostCalculation!$E$4=0,#N/A,(COUNTIF(INDIRECT("MonteCarlo!"&CostCalculation!$N$10&3,TRUE):INDIRECT("MonteCarlo!"&CostCalculation!$N$10&CostCalculation!$E$4+2,TRUE),"<="&B86))/CostCalculation!$E$4) -> 0.6035 | D86: 116188 | E86: =IF((COUNTIF(INDIRECT("MonteCarlo!"&CostCalculation!$N$10&3,TRUE):INDIRECT("MonteCarlo!"&CostCalculation!$N$10&CostCalculation!$E$4+2,TRUE),">"&B86)-COUNTIF(INDIRECT("MonteCarlo!"&CostCalculation!$N$10&3,TRUE):INDIRECT("MonteCarlo!"&CostCalculation!$N$10&CostCalculation!$E$4+2,TRUE),">"&B87))/CostCalculation!$E$4=0,#N/A,(COUNTIF(INDIRECT("MonteCarlo!"&CostCalculation!$N$10&3,TRUE):INDIRECT("MonteCarlo!"&CostCalculation!$N$10&CostCalculation!$E$4+2,TRUE),">"&B86)-COUNTIF(INDIRECT("MonteCarlo!"&CostCalculation!$N$10&3,TRUE):INDIRECT("MonteCarlo!"&CostCalculation!$N$10&CostCalculation!$E$4+2,TRUE),">"&B87))/CostCalculation!$E$4) -> 
A87: 0.24 | B87: =ROUND(INDIRECT("CostCalculation!D"&CostCalculation!$O$10,TRUE)*A87,0) -> 117659 | C87: =IF((COUNTIF(INDIRECT("MonteCarlo!"&CostCalculation!$N$10&3,TRUE):INDIRECT("MonteCarlo!"&CostCalculation!$N$10&CostCalculation!$E$4+2,TRUE),"<="&B87))/CostCalculation!$E$4=0,#N/A,(COUNTIF(INDIRECT("MonteCarlo!"&CostCalculation!$N$10&3,TRUE):INDIRECT("MonteCarlo!"&CostCalculation!$N$10&CostCalculation!$E$4+2,TRUE),"<="&B87))/CostCalculation!$E$4) -> 0.6035 | D87: 117659 | E87: =IF((COUNTIF(INDIRECT("MonteCarlo!"&CostCalculation!$N$10&3,TRUE):INDIRECT("MonteCarlo!"&CostCalculation!$N$10&CostCalculation!$E$4+2,TRUE),">"&B87)-COUNTIF(INDIRECT("MonteCarlo!"&CostCalculation!$N$10&3,TRUE):INDIRECT("MonteCarlo!"&CostCalculation!$N$10&CostCalculation!$E$4+2,TRUE),">"&B88))/CostCalculation!$E$4=0,#N/A,(COUNTIF(INDIRECT("MonteCarlo!"&CostCalculation!$N$10&3,TRUE):INDIRECT("MonteCarlo!"&CostCalculation!$N$10&CostCalculation!$E$4+2,TRUE),">"&B87)-COUNTIF(INDIRECT("MonteCarlo!"&CostCalculation!$N$10&3,TRUE):INDIRECT("MonteCarlo!"&CostCalculation!$N$10&CostCalculation!$E$4+2,TRUE),">"&B88))/CostCalculation!$E$4) -> 
A88: 0.243 | B88: =ROUND(INDIRECT("CostCalculation!D"&CostCalculation!$O$10,TRUE)*A88,0) -> 119130 | C88: =IF((COUNTIF(INDIRECT("MonteCarlo!"&CostCalculation!$N$10&3,TRUE):INDIRECT("MonteCarlo!"&CostCalculation!$N$10&CostCalculation!$E$4+2,TRUE),"<="&B88))/CostCalculation!$E$4=0,#N/A,(COUNTIF(INDIRECT("MonteCarlo!"&CostCalculation!$N$10&3,TRUE):INDIRECT("MonteCarlo!"&CostCalculation!$N$10&CostCalculation!$E$4+2,TRUE),"<="&B88))/CostCalculation!$E$4) -> 0.6035 | D88: 119130 | E88: =IF((COUNTIF(INDIRECT("MonteCarlo!"&CostCalculation!$N$10&3,TRUE):INDIRECT("MonteCarlo!"&CostCalculation!$N$10&CostCalculation!$E$4+2,TRUE),">"&B88)-COUNTIF(INDIRECT("MonteCarlo!"&CostCalculation!$N$10&3,TRUE):INDIRECT("MonteCarlo!"&CostCalculation!$N$10&CostCalculation!$E$4+2,TRUE),">"&B89))/CostCalculation!$E$4=0,#N/A,(COUNTIF(INDIRECT("MonteCarlo!"&CostCalculation!$N$10&3,TRUE):INDIRECT("MonteCarlo!"&CostCalculation!$N$10&CostCalculation!$E$4+2,TRUE),">"&B88)-COUNTIF(INDIRECT("MonteCarlo!"&CostCalculation!$N$10&3,TRUE):INDIRECT("MonteCarlo!"&CostCalculation!$N$10&CostCalculation!$E$4+2,TRUE),">"&B89))/CostCalculation!$E$4) -> 
A89: 0.246 | B89: =ROUND(INDIRECT("CostCalculation!D"&CostCalculation!$O$10,TRUE)*A89,0) -> 120600 | C89: =IF((COUNTIF(INDIRECT("MonteCarlo!"&CostCalculation!$N$10&3,TRUE):INDIRECT("MonteCarlo!"&CostCalculation!$N$10&CostCalculation!$E$4+2,TRUE),"<="&B89))/CostCalculation!$E$4=0,#N/A,(COUNTIF(INDIRECT("MonteCarlo!"&CostCalculation!$N$10&3,TRUE):INDIRECT("MonteCarlo!"&CostCalculation!$N$10&CostCalculation!$E$4+2,TRUE),"<="&B89))/CostCalculation!$E$4) -> 0.6035 | D89: 120600 | E89: =IF((COUNTIF(INDIRECT("MonteCarlo!"&CostCalculation!$N$10&3,TRUE):INDIRECT("MonteCarlo!"&CostCalculation!$N$10&CostCalculation!$E$4+2,TRUE),">"&B89)-COUNTIF(INDIRECT("MonteCarlo!"&CostCalculation!$N$10&3,TRUE):INDIRECT("MonteCarlo!"&CostCalculation!$N$10&CostCalculation!$E$4+2,TRUE),">"&B90))/CostCalculation!$E$4=0,#N/A,(COUNTIF(INDIRECT("MonteCarlo!"&CostCalculation!$N$10&3,TRUE):INDIRECT("MonteCarlo!"&CostCalculation!$N$10&CostCalculation!$E$4+2,TRUE),">"&B89)-COUNTIF(INDIRECT("MonteCarlo!"&CostCalculation!$N$10&3,TRUE):INDIRECT("MonteCarlo!"&CostCalculation!$N$10&CostCalculation!$E$4+2,TRUE),">"&B90))/CostCalculation!$E$4) -> 
A90: 0.249 | B90: =ROUND(INDIRECT("CostCalculation!D"&CostCalculation!$O$10,TRUE)*A90,0) -> 122071 | C90: =IF((COUNTIF(INDIRECT("MonteCarlo!"&CostCalculation!$N$10&3,TRUE):INDIRECT("MonteCarlo!"&CostCalculation!$N$10&CostCalculation!$E$4+2,TRUE),"<="&B90))/CostCalculation!$E$4=0,#N/A,(COUNTIF(INDIRECT("MonteCarlo!"&CostCalculation!$N$10&3,TRUE):INDIRECT("MonteCarlo!"&CostCalculation!$N$10&CostCalculation!$E$4+2,TRUE),"<="&B90))/CostCalculation!$E$4) -> 0.6035 | D90: 122071 | E90: =IF((COUNTIF(INDIRECT("MonteCarlo!"&CostCalculation!$N$10&3,TRUE):INDIRECT("MonteCarlo!"&CostCalculation!$N$10&CostCalculation!$E$4+2,TRUE),">"&B90)-COUNTIF(INDIRECT("MonteCarlo!"&CostCalculation!$N$10&3,TRUE):INDIRECT("MonteCarlo!"&CostCalculation!$N$10&CostCalculation!$E$4+2,TRUE),">"&B91))/CostCalculation!$E$4=0,#N/A,(COUNTIF(INDIRECT("MonteCarlo!"&CostCalculation!$N$10&3,TRUE):INDIRECT("MonteCarlo!"&CostCalculation!$N$10&CostCalculation!$E$4+2,TRUE),">"&B90)-COUNTIF(INDIRECT("MonteCarlo!"&CostCalculation!$N$10&3,TRUE):INDIRECT("MonteCarlo!"&CostCalculation!$N$10&CostCalculation!$E$4+2,TRUE),">"&B91))/CostCalculation!$E$4) -> 
A91: 0.252 | B91: =ROUND(INDIRECT("CostCalculation!D"&CostCalculation!$O$10,TRUE)*A91,0) -> 123542 | C91: =IF((COUNTIF(INDIRECT("MonteCarlo!"&CostCalculation!$N$10&3,TRUE):INDIRECT("MonteCarlo!"&CostCalculation!$N$10&CostCalculation!$E$4+2,TRUE),"<="&B91))/CostCalculation!$E$4=0,#N/A,(COUNTIF(INDIRECT("MonteCarlo!"&CostCalculation!$N$10&3,TRUE):INDIRECT("MonteCarlo!"&CostCalculation!$N$10&CostCalculation!$E$4+2,TRUE),"<="&B91))/CostCalculation!$E$4) -> 0.6035 | D91: 123542 | E91: =IF((COUNTIF(INDIRECT("MonteCarlo!"&CostCalculation!$N$10&3,TRUE):INDIRECT("MonteCarlo!"&CostCalculation!$N$10&CostCalculation!$E$4+2,TRUE),">"&B91)-COUNTIF(INDIRECT("MonteCarlo!"&CostCalculation!$N$10&3,TRUE):INDIRECT("MonteCarlo!"&CostCalculation!$N$10&CostCalculation!$E$4+2,TRUE),">"&B92))/CostCalculation!$E$4=0,#N/A,(COUNTIF(INDIRECT("MonteCarlo!"&CostCalculation!$N$10&3,TRUE):INDIRECT("MonteCarlo!"&CostCalculation!$N$10&CostCalculation!$E$4+2,TRUE),">"&B91)-COUNTIF(INDIRECT("MonteCarlo!"&CostCalculation!$N$10&3,TRUE):INDIRECT("MonteCarlo!"&CostCalculation!$N$10&CostCalculation!$E$4+2,TRUE),">"&B92))/CostCalculation!$E$4) -> 
A92: 0.255 | B92: =ROUND(INDIRECT("CostCalculation!D"&CostCalculation!$O$10,TRUE)*A92,0) -> 125012 | C92: =IF((COUNTIF(INDIRECT("MonteCarlo!"&CostCalculation!$N$10&3,TRUE):INDIRECT("MonteCarlo!"&CostCalculation!$N$10&CostCalculation!$E$4+2,TRUE),"<="&B92))/CostCalculation!$E$4=0,#N/A,(COUNTIF(INDIRECT("MonteCarlo!"&CostCalculation!$N$10&3,TRUE):INDIRECT("MonteCarlo!"&CostCalculation!$N$10&CostCalculation!$E$4+2,TRUE),"<="&B92))/CostCalculation!$E$4) -> 0.6035 | D92: 125012 | E92: =IF((COUNTIF(INDIRECT("MonteCarlo!"&CostCalculation!$N$10&3,TRUE):INDIRECT("MonteCarlo!"&CostCalculation!$N$10&CostCalculation!$E$4+2,TRUE),">"&B92)-COUNTIF(INDIRECT("MonteCarlo!"&CostCalculation!$N$10&3,TRUE):INDIRECT("MonteCarlo!"&CostCalculation!$N$10&CostCalculation!$E$4+2,TRUE),">"&B93))/CostCalculation!$E$4=0,#N/A,(COUNTIF(INDIRECT("MonteCarlo!"&CostCalculation!$N$10&3,TRUE):INDIRECT("MonteCarlo!"&CostCalculation!$N$10&CostCalculation!$E$4+2,TRUE),">"&B92)-COUNTIF(INDIRECT("MonteCarlo!"&CostCalculation!$N$10&3,TRUE):INDIRECT("MonteCarlo!"&CostCalculation!$N$10&CostCalculation!$E$4+2,TRUE),">"&B93))/CostCalculation!$E$4) -> 
A93: 0.258 | B93: =ROUND(INDIRECT("CostCalculation!D"&CostCalculation!$O$10,TRUE)*A93,0) -> 126483 | C93: =IF((COUNTIF(INDIRECT("MonteCarlo!"&CostCalculation!$N$10&3,TRUE):INDIRECT("MonteCarlo!"&CostCalculation!$N$10&CostCalculation!$E$4+2,TRUE),"<="&B93))/CostCalculation!$E$4=0,#N/A,(COUNTIF(INDIRECT("MonteCarlo!"&CostCalculation!$N$10&3,TRUE):INDIRECT("MonteCarlo!"&CostCalculation!$N$10&CostCalculation!$E$4+2,TRUE),"<="&B93))/CostCalculation!$E$4) -> 0.6035 | D93: 126483 | E93: =IF((COUNTIF(INDIRECT("MonteCarlo!"&CostCalculation!$N$10&3,TRUE):INDIRECT("MonteCarlo!"&CostCalculation!$N$10&CostCalculation!$E$4+2,TRUE),">"&B93)-COUNTIF(INDIRECT("MonteCarlo!"&CostCalculation!$N$10&3,TRUE):INDIRECT("MonteCarlo!"&CostCalculation!$N$10&CostCalculation!$E$4+2,TRUE),">"&B94))/CostCalculation!$E$4=0,#N/A,(COUNTIF(INDIRECT("MonteCarlo!"&CostCalculation!$N$10&3,TRUE):INDIRECT("MonteCarlo!"&CostCalculation!$N$10&CostCalculation!$E$4+2,TRUE),">"&B93)-COUNTIF(INDIRECT("MonteCarlo!"&CostCalculation!$N$10&3,TRUE):INDIRECT("MonteCarlo!"&CostCalculation!$N$10&CostCalculation!$E$4+2,TRUE),">"&B94))/CostCalculation!$E$4) -> 
A94: 0.261 | B94: =ROUND(INDIRECT("CostCalculation!D"&CostCalculation!$O$10,TRUE)*A94,0) -> 127954 | C94: =IF((COUNTIF(INDIRECT("MonteCarlo!"&CostCalculation!$N$10&3,TRUE):INDIRECT("MonteCarlo!"&CostCalculation!$N$10&CostCalculation!$E$4+2,TRUE),"<="&B94))/CostCalculation!$E$4=0,#N/A,(COUNTIF(INDIRECT("MonteCarlo!"&CostCalculation!$N$10&3,TRUE):INDIRECT("MonteCarlo!"&CostCalculation!$N$10&CostCalculation!$E$4+2,TRUE),"<="&B94))/CostCalculation!$E$4) -> 0.6035 | D94: 127954 | E94: =IF((COUNTIF(INDIRECT("MonteCarlo!"&CostCalculation!$N$10&3,TRUE):INDIRECT("MonteCarlo!"&CostCalculation!$N$10&CostCalculation!$E$4+2,TRUE),">"&B94)-COUNTIF(INDIRECT("MonteCarlo!"&CostCalculation!$N$10&3,TRUE):INDIRECT("MonteCarlo!"&CostCalculation!$N$10&CostCalculation!$E$4+2,TRUE),">"&B95))/CostCalculation!$E$4=0,#N/A,(COUNTIF(INDIRECT("MonteCarlo!"&CostCalculation!$N$10&3,TRUE):INDIRECT("MonteCarlo!"&CostCalculation!$N$10&CostCalculation!$E$4+2,TRUE),">"&B94)-COUNTIF(INDIRECT("MonteCarlo!"&CostCalculation!$N$10&3,TRUE):INDIRECT("MonteCarlo!"&CostCalculation!$N$10&CostCalculation!$E$4+2,TRUE),">"&B95))/CostCalculation!$E$4) -> 
A95: 0.264 | B95: =ROUND(INDIRECT("CostCalculation!D"&CostCalculation!$O$10,TRUE)*A95,0) -> 129425 | C95: =IF((COUNTIF(INDIRECT("MonteCarlo!"&CostCalculation!$N$10&3,TRUE):INDIRECT("MonteCarlo!"&CostCalculation!$N$10&CostCalculation!$E$4+2,TRUE),"<="&B95))/CostCalculation!$E$4=0,#N/A,(COUNTIF(INDIRECT("MonteCarlo!"&CostCalculation!$N$10&3,TRUE):INDIRECT("MonteCarlo!"&CostCalculation!$N$10&CostCalculation!$E$4+2,TRUE),"<="&B95))/CostCalculation!$E$4) -> 0.6035 | D95: 129425 | E95: =IF((COUNTIF(INDIRECT("MonteCarlo!"&CostCalculation!$N$10&3,TRUE):INDIRECT("MonteCarlo!"&CostCalculation!$N$10&CostCalculation!$E$4+2,TRUE),">"&B95)-COUNTIF(INDIRECT("MonteCarlo!"&CostCalculation!$N$10&3,TRUE):INDIRECT("MonteCarlo!"&CostCalculation!$N$10&CostCalculation!$E$4+2,TRUE),">"&B96))/CostCalculation!$E$4=0,#N/A,(COUNTIF(INDIRECT("MonteCarlo!"&CostCalculation!$N$10&3,TRUE):INDIRECT("MonteCarlo!"&CostCalculation!$N$10&CostCalculation!$E$4+2,TRUE),">"&B95)-COUNTIF(INDIRECT("MonteCarlo!"&CostCalculation!$N$10&3,TRUE):INDIRECT("MonteCarlo!"&CostCalculation!$N$10&CostCalculation!$E$4+2,TRUE),">"&B96))/CostCalculation!$E$4) -> 0.14
A96: 0.267 | B96: =ROUND(INDIRECT("CostCalculation!D"&CostCalculation!$O$10,TRUE)*A96,0) -> 130895 | C96: =IF((COUNTIF(INDIRECT("MonteCarlo!"&CostCalculation!$N$10&3,TRUE):INDIRECT("MonteCarlo!"&CostCalculation!$N$10&CostCalculation!$E$4+2,TRUE),"<="&B96))/CostCalculation!$E$4=0,#N/A,(COUNTIF(INDIRECT("MonteCarlo!"&CostCalculation!$N$10&3,TRUE):INDIRECT("MonteCarlo!"&CostCalculation!$N$10&CostCalculation!$E$4+2,TRUE),"<="&B96))/CostCalculation!$E$4) -> 0.7435 | D96: 130895 | E96: =IF((COUNTIF(INDIRECT("MonteCarlo!"&CostCalculation!$N$10&3,TRUE):INDIRECT("MonteCarlo!"&CostCalculation!$N$10&CostCalculation!$E$4+2,TRUE),">"&B96)-COUNTIF(INDIRECT("MonteCarlo!"&CostCalculation!$N$10&3,TRUE):INDIRECT("MonteCarlo!"&CostCalculation!$N$10&CostCalculation!$E$4+2,TRUE),">"&B97))/CostCalculation!$E$4=0,#N/A,(COUNTIF(INDIRECT("MonteCarlo!"&CostCalculation!$N$10&3,TRUE):INDIRECT("MonteCarlo!"&CostCalculation!$N$10&CostCalculation!$E$4+2,TRUE),">"&B96)-COUNTIF(INDIRECT("MonteCarlo!"&CostCalculation!$N$10&3,TRUE):INDIRECT("MonteCarlo!"&CostCalculation!$N$10&CostCalculation!$E$4+2,TRUE),">"&B97))/CostCalculation!$E$4) -> 
A97: 0.27 | B97: =ROUND(INDIRECT("CostCalculation!D"&CostCalculation!$O$10,TRUE)*A97,0) -> 132366 | C97: =IF((COUNTIF(INDIRECT("MonteCarlo!"&CostCalculation!$N$10&3,TRUE):INDIRECT("MonteCarlo!"&CostCalculation!$N$10&CostCalculation!$E$4+2,TRUE),"<="&B97))/CostCalculation!$E$4=0,#N/A,(COUNTIF(INDIRECT("MonteCarlo!"&CostCalculation!$N$10&3,TRUE):INDIRECT("MonteCarlo!"&CostCalculation!$N$10&CostCalculation!$E$4+2,TRUE),"<="&B97))/CostCalculation!$E$4) -> 0.7435 | D97: 132366 | E97: =IF((COUNTIF(INDIRECT("MonteCarlo!"&CostCalculation!$N$10&3,TRUE):INDIRECT("MonteCarlo!"&CostCalculation!$N$10&CostCalculation!$E$4+2,TRUE),">"&B97)-COUNTIF(INDIRECT("MonteCarlo!"&CostCalculation!$N$10&3,TRUE):INDIRECT("MonteCarlo!"&CostCalculation!$N$10&CostCalculation!$E$4+2,TRUE),">"&B98))/CostCalculation!$E$4=0,#N/A,(COUNTIF(INDIRECT("MonteCarlo!"&CostCalculation!$N$10&3,TRUE):INDIRECT("MonteCarlo!"&CostCalculation!$N$10&CostCalculation!$E$4+2,TRUE),">"&B97)-COUNTIF(INDIRECT("MonteCarlo!"&CostCalculation!$N$10&3,TRUE):INDIRECT("MonteCarlo!"&CostCalculation!$N$10&CostCalculation!$E$4+2,TRUE),">"&B98))/CostCalculation!$E$4) -> 
A98: 0.273 | B98: =ROUND(INDIRECT("CostCalculation!D"&CostCalculation!$O$10,TRUE)*A98,0) -> 133837 | C98: =IF((COUNTIF(INDIRECT("MonteCarlo!"&CostCalculation!$N$10&3,TRUE):INDIRECT("MonteCarlo!"&CostCalculation!$N$10&CostCalculation!$E$4+2,TRUE),"<="&B98))/CostCalculation!$E$4=0,#N/A,(COUNTIF(INDIRECT("MonteCarlo!"&CostCalculation!$N$10&3,TRUE):INDIRECT("MonteCarlo!"&CostCalculation!$N$10&CostCalculation!$E$4+2,TRUE),"<="&B98))/CostCalculation!$E$4) -> 0.7435 | D98: 133837 | E98: =IF((COUNTIF(INDIRECT("MonteCarlo!"&CostCalculation!$N$10&3,TRUE):INDIRECT("MonteCarlo!"&CostCalculation!$N$10&CostCalculation!$E$4+2,TRUE),">"&B98)-COUNTIF(INDIRECT("MonteCarlo!"&CostCalculation!$N$10&3,TRUE):INDIRECT("MonteCarlo!"&CostCalculation!$N$10&CostCalculation!$E$4+2,TRUE),">"&B99))/CostCalculation!$E$4=0,#N/A,(COUNTIF(INDIRECT("MonteCarlo!"&CostCalculation!$N$10&3,TRUE):INDIRECT("MonteCarlo!"&CostCalculation!$N$10&CostCalculation!$E$4+2,TRUE),">"&B98)-COUNTIF(INDIRECT("MonteCarlo!"&CostCalculation!$N$10&3,TRUE):INDIRECT("MonteCarlo!"&CostCalculation!$N$10&CostCalculation!$E$4+2,TRUE),">"&B99))/CostCalculation!$E$4) -> 
A99: 0.276 | B99: =ROUND(INDIRECT("CostCalculation!D"&CostCalculation!$O$10,TRUE)*A99,0) -> 135308 | C99: =IF((COUNTIF(INDIRECT("MonteCarlo!"&CostCalculation!$N$10&3,TRUE):INDIRECT("MonteCarlo!"&CostCalculation!$N$10&CostCalculation!$E$4+2,TRUE),"<="&B99))/CostCalculation!$E$4=0,#N/A,(COUNTIF(INDIRECT("MonteCarlo!"&CostCalculation!$N$10&3,TRUE):INDIRECT("MonteCarlo!"&CostCalculation!$N$10&CostCalculation!$E$4+2,TRUE),"<="&B99))/CostCalculation!$E$4) -> 0.7435 | D99: 135308 | E99: =IF((COUNTIF(INDIRECT("MonteCarlo!"&CostCalculation!$N$10&3,TRUE):INDIRECT("MonteCarlo!"&CostCalculation!$N$10&CostCalculation!$E$4+2,TRUE),">"&B99)-COUNTIF(INDIRECT("MonteCarlo!"&CostCalculation!$N$10&3,TRUE):INDIRECT("MonteCarlo!"&CostCalculation!$N$10&CostCalculation!$E$4+2,TRUE),">"&B100))/CostCalculation!$E$4=0,#N/A,(COUNTIF(INDIRECT("MonteCarlo!"&CostCalculation!$N$10&3,TRUE):INDIRECT("MonteCarlo!"&CostCalculation!$N$10&CostCalculation!$E$4+2,TRUE),">"&B99)-COUNTIF(INDIRECT("MonteCarlo!"&CostCalculation!$N$10&3,TRUE):INDIRECT("MonteCarlo!"&CostCalculation!$N$10&CostCalculation!$E$4+2,TRUE),">"&B100))/CostCalculation!$E$4) -> 
A100: 0.279 | B100: =ROUND(INDIRECT("CostCalculation!D"&CostCalculation!$O$10,TRUE)*A100,0) -> 136778 | C100: =IF((COUNTIF(INDIRECT("MonteCarlo!"&CostCalculation!$N$10&3,TRUE):INDIRECT("MonteCarlo!"&CostCalculation!$N$10&CostCalculation!$E$4+2,TRUE),"<="&B100))/CostCalculation!$E$4=0,#N/A,(COUNTIF(INDIRECT("MonteCarlo!"&CostCalculation!$N$10&3,TRUE):INDIRECT("MonteCarlo!"&CostCalculation!$N$10&CostCalculation!$E$4+2,TRUE),"<="&B100))/CostCalculation!$E$4) -> 0.7435 | D100: 136778 | E100: =IF((COUNTIF(INDIRECT("MonteCarlo!"&CostCalculation!$N$10&3,TRUE):INDIRECT("MonteCarlo!"&CostCalculation!$N$10&CostCalculation!$E$4+2,TRUE),">"&B100)-COUNTIF(INDIRECT("MonteCarlo!"&CostCalculation!$N$10&3,TRUE):INDIRECT("MonteCarlo!"&CostCalculation!$N$10&CostCalculation!$E$4+2,TRUE),">"&B101))/CostCalculation!$E$4=0,#N/A,(COUNTIF(INDIRECT("MonteCarlo!"&CostCalculation!$N$10&3,TRUE):INDIRECT("MonteCarlo!"&CostCalculation!$N$10&CostCalculation!$E$4+2,TRUE),">"&B100)-COUNTIF(INDIRECT("MonteCarlo!"&CostCalculation!$N$10&3,TRUE):INDIRECT("MonteCarlo!"&CostCalculation!$N$10&CostCalculation!$E$4+2,TRUE),">"&B101))/CostCalculation!$E$4) -> 
A101: 0.282 | B101: =ROUND(INDIRECT("CostCalculation!D"&CostCalculation!$O$10,TRUE)*A101,0) -> 138249 | C101: =IF((COUNTIF(INDIRECT("MonteCarlo!"&CostCalculation!$N$10&3,TRUE):INDIRECT("MonteCarlo!"&CostCalculation!$N$10&CostCalculation!$E$4+2,TRUE),"<="&B101))/CostCalculation!$E$4=0,#N/A,(COUNTIF(INDIRECT("MonteCarlo!"&CostCalculation!$N$10&3,TRUE):INDIRECT("MonteCarlo!"&CostCalculation!$N$10&CostCalculation!$E$4+2,TRUE),"<="&B101))/CostCalculation!$E$4) -> 0.7435 | D101: 138249 | E101: =IF((COUNTIF(INDIRECT("MonteCarlo!"&CostCalculation!$N$10&3,TRUE):INDIRECT("MonteCarlo!"&CostCalculation!$N$10&CostCalculation!$E$4+2,TRUE),">"&B101)-COUNTIF(INDIRECT("MonteCarlo!"&CostCalculation!$N$10&3,TRUE):INDIRECT("MonteCarlo!"&CostCalculation!$N$10&CostCalculation!$E$4+2,TRUE),">"&B102))/CostCalculation!$E$4=0,#N/A,(COUNTIF(INDIRECT("MonteCarlo!"&CostCalculation!$N$10&3,TRUE):INDIRECT("MonteCarlo!"&CostCalculation!$N$10&CostCalculation!$E$4+2,TRUE),">"&B101)-COUNTIF(INDIRECT("MonteCarlo!"&CostCalculation!$N$10&3,TRUE):INDIRECT("MonteCarlo!"&CostCalculation!$N$10&CostCalculation!$E$4+2,TRUE),">"&B102))/CostCalculation!$E$4) -> 
A102: 0.285 | B102: =ROUND(INDIRECT("CostCalculation!D"&CostCalculation!$O$10,TRUE)*A102,0) -> 139720 | C102: =IF((COUNTIF(INDIRECT("MonteCarlo!"&CostCalculation!$N$10&3,TRUE):INDIRECT("MonteCarlo!"&CostCalculation!$N$10&CostCalculation!$E$4+2,TRUE),"<="&B102))/CostCalculation!$E$4=0,#N/A,(COUNTIF(INDIRECT("MonteCarlo!"&CostCalculation!$N$10&3,TRUE):INDIRECT("MonteCarlo!"&CostCalculation!$N$10&CostCalculation!$E$4+2,TRUE),"<="&B102))/CostCalculation!$E$4) -> 0.7435 | D102: 139720 | E102: =IF((COUNTIF(INDIRECT("MonteCarlo!"&CostCalculation!$N$10&3,TRUE):INDIRECT("MonteCarlo!"&CostCalculation!$N$10&CostCalculation!$E$4+2,TRUE),">"&B102)-COUNTIF(INDIRECT("MonteCarlo!"&CostCalculation!$N$10&3,TRUE):INDIRECT("MonteCarlo!"&CostCalculation!$N$10&CostCalculation!$E$4+2,TRUE),">"&B103))/CostCalculation!$E$4=0,#N/A,(COUNTIF(INDIRECT("MonteCarlo!"&CostCalculation!$N$10&3,TRUE):INDIRECT("MonteCarlo!"&CostCalculation!$N$10&CostCalculation!$E$4+2,TRUE),">"&B102)-COUNTIF(INDIRECT("MonteCarlo!"&CostCalculation!$N$10&3,TRUE):INDIRECT("MonteCarlo!"&CostCalculation!$N$10&CostCalculation!$E$4+2,TRUE),">"&B103))/CostCalculation!$E$4) -> 
A103: 0.288 | B103: =ROUND(INDIRECT("CostCalculation!D"&CostCalculation!$O$10,TRUE)*A103,0) -> 141191 | C103: =IF((COUNTIF(INDIRECT("MonteCarlo!"&CostCalculation!$N$10&3,TRUE):INDIRECT("MonteCarlo!"&CostCalculation!$N$10&CostCalculation!$E$4+2,TRUE),"<="&B103))/CostCalculation!$E$4=0,#N/A,(COUNTIF(INDIRECT("MonteCarlo!"&CostCalculation!$N$10&3,TRUE):INDIRECT("MonteCarlo!"&CostCalculation!$N$10&CostCalculation!$E$4+2,TRUE),"<="&B103))/CostCalculation!$E$4) -> 0.7435 | D103: 141191 | E103: =IF((COUNTIF(INDIRECT("MonteCarlo!"&CostCalculation!$N$10&3,TRUE):INDIRECT("MonteCarlo!"&CostCalculation!$N$10&CostCalculation!$E$4+2,TRUE),">"&B103)-COUNTIF(INDIRECT("MonteCarlo!"&CostCalculation!$N$10&3,TRUE):INDIRECT("MonteCarlo!"&CostCalculation!$N$10&CostCalculation!$E$4+2,TRUE),">"&B104))/CostCalculation!$E$4=0,#N/A,(COUNTIF(INDIRECT("MonteCarlo!"&CostCalculation!$N$10&3,TRUE):INDIRECT("MonteCarlo!"&CostCalculation!$N$10&CostCalculation!$E$4+2,TRUE),">"&B103)-COUNTIF(INDIRECT("MonteCarlo!"&CostCalculation!$N$10&3,TRUE):INDIRECT("MonteCarlo!"&CostCalculation!$N$10&CostCalculation!$E$4+2,TRUE),">"&B104))/CostCalculation!$E$4) -> 
A104: 0.291 | B104: =ROUND(INDIRECT("CostCalculation!D"&CostCalculation!$O$10,TRUE)*A104,0) -> 142661 | C104: =IF((COUNTIF(INDIRECT("MonteCarlo!"&CostCalculation!$N$10&3,TRUE):INDIRECT("MonteCarlo!"&CostCalculation!$N$10&CostCalculation!$E$4+2,TRUE),"<="&B104))/CostCalculation!$E$4=0,#N/A,(COUNTIF(INDIRECT("MonteCarlo!"&CostCalculation!$N$10&3,TRUE):INDIRECT("MonteCarlo!"&CostCalculation!$N$10&CostCalculation!$E$4+2,TRUE),"<="&B104))/CostCalculation!$E$4) -> 0.7435 | D104: 142661 | E104: =IF((COUNTIF(INDIRECT("MonteCarlo!"&CostCalculation!$N$10&3,TRUE):INDIRECT("MonteCarlo!"&CostCalculation!$N$10&CostCalculation!$E$4+2,TRUE),">"&B104)-COUNTIF(INDIRECT("MonteCarlo!"&CostCalculation!$N$10&3,TRUE):INDIRECT("MonteCarlo!"&CostCalculation!$N$10&CostCalculation!$E$4+2,TRUE),">"&B105))/CostCalculation!$E$4=0,#N/A,(COUNTIF(INDIRECT("MonteCarlo!"&CostCalculation!$N$10&3,TRUE):INDIRECT("MonteCarlo!"&CostCalculation!$N$10&CostCalculation!$E$4+2,TRUE),">"&B104)-COUNTIF(INDIRECT("MonteCarlo!"&CostCalculation!$N$10&3,TRUE):INDIRECT("MonteCarlo!"&CostCalculation!$N$10&CostCalculation!$E$4+2,TRUE),">"&B105))/CostCalculation!$E$4) -> 
A105: 0.294 | B105: =ROUND(INDIRECT("CostCalculation!D"&CostCalculation!$O$10,TRUE)*A105,0) -> 144132 | C105: =IF((COUNTIF(INDIRECT("MonteCarlo!"&CostCalculation!$N$10&3,TRUE):INDIRECT("MonteCarlo!"&CostCalculation!$N$10&CostCalculation!$E$4+2,TRUE),"<="&B105))/CostCalculation!$E$4=0,#N/A,(COUNTIF(INDIRECT("MonteCarlo!"&CostCalculation!$N$10&3,TRUE):INDIRECT("MonteCarlo!"&CostCalculation!$N$10&CostCalculation!$E$4+2,TRUE),"<="&B105))/CostCalculation!$E$4) -> 0.7435 | D105: 144132 | E105: =IF((COUNTIF(INDIRECT("MonteCarlo!"&CostCalculation!$N$10&3,TRUE):INDIRECT("MonteCarlo!"&CostCalculation!$N$10&CostCalculation!$E$4+2,TRUE),">"&B105)-COUNTIF(INDIRECT("MonteCarlo!"&CostCalculation!$N$10&3,TRUE):INDIRECT("MonteCarlo!"&CostCalculation!$N$10&CostCalculation!$E$4+2,TRUE),">"&B106))/CostCalculation!$E$4=0,#N/A,(COUNTIF(INDIRECT("MonteCarlo!"&CostCalculation!$N$10&3,TRUE):INDIRECT("MonteCarlo!"&CostCalculation!$N$10&CostCalculation!$E$4+2,TRUE),">"&B105)-COUNTIF(INDIRECT("MonteCarlo!"&CostCalculation!$N$10&3,TRUE):INDIRECT("MonteCarlo!"&CostCalculation!$N$10&CostCalculation!$E$4+2,TRUE),">"&B106))/CostCalculation!$E$4) -> 
A106: 0.297 | B106: =ROUND(INDIRECT("CostCalculation!D"&CostCalculation!$O$10,TRUE)*A106,0) -> 145603 | C106: =IF((COUNTIF(INDIRECT("MonteCarlo!"&CostCalculation!$N$10&3,TRUE):INDIRECT("MonteCarlo!"&CostCalculation!$N$10&CostCalculation!$E$4+2,TRUE),"<="&B106))/CostCalculation!$E$4=0,#N/A,(COUNTIF(INDIRECT("MonteCarlo!"&CostCalculation!$N$10&3,TRUE):INDIRECT("MonteCarlo!"&CostCalculation!$N$10&CostCalculation!$E$4+2,TRUE),"<="&B106))/CostCalculation!$E$4) -> 0.7435 | D106: 145603 | E106: =IF((COUNTIF(INDIRECT("MonteCarlo!"&CostCalculation!$N$10&3,TRUE):INDIRECT("MonteCarlo!"&CostCalculation!$N$10&CostCalculation!$E$4+2,TRUE),">"&B106)-COUNTIF(INDIRECT("MonteCarlo!"&CostCalculation!$N$10&3,TRUE):INDIRECT("MonteCarlo!"&CostCalculation!$N$10&CostCalculation!$E$4+2,TRUE),">"&B107))/CostCalculation!$E$4=0,#N/A,(COUNTIF(INDIRECT("MonteCarlo!"&CostCalculation!$N$10&3,TRUE):INDIRECT("MonteCarlo!"&CostCalculation!$N$10&CostCalculation!$E$4+2,TRUE),">"&B106)-COUNTIF(INDIRECT("MonteCarlo!"&CostCalculation!$N$10&3,TRUE):INDIRECT("MonteCarlo!"&CostCalculation!$N$10&CostCalculation!$E$4+2,TRUE),">"&B107))/CostCalculation!$E$4) -> 
A107: 0.3 | B107: =ROUND(INDIRECT("CostCalculation!D"&CostCalculation!$O$10,TRUE)*A107,0) -> 147074 | C107: =IF((COUNTIF(INDIRECT("MonteCarlo!"&CostCalculation!$N$10&3,TRUE):INDIRECT("MonteCarlo!"&CostCalculation!$N$10&CostCalculation!$E$4+2,TRUE),"<="&B107))/CostCalculation!$E$4=0,#N/A,(COUNTIF(INDIRECT("MonteCarlo!"&CostCalculation!$N$10&3,TRUE):INDIRECT("MonteCarlo!"&CostCalculation!$N$10&CostCalculation!$E$4+2,TRUE),"<="&B107))/CostCalculation!$E$4) -> 0.7435 | D107: 147074 | E107: =IF((COUNTIF(INDIRECT("MonteCarlo!"&CostCalculation!$N$10&3,TRUE):INDIRECT("MonteCarlo!"&CostCalculation!$N$10&CostCalculation!$E$4+2,TRUE),">"&B107)-COUNTIF(INDIRECT("MonteCarlo!"&CostCalculation!$N$10&3,TRUE):INDIRECT("MonteCarlo!"&CostCalculation!$N$10&CostCalculation!$E$4+2,TRUE),">"&B108))/CostCalculation!$E$4=0,#N/A,(COUNTIF(INDIRECT("MonteCarlo!"&CostCalculation!$N$10&3,TRUE):INDIRECT("MonteCarlo!"&CostCalculation!$N$10&CostCalculation!$E$4+2,TRUE),">"&B107)-COUNTIF(INDIRECT("MonteCarlo!"&CostCalculation!$N$10&3,TRUE):INDIRECT("MonteCarlo!"&CostCalculation!$N$10&CostCalculation!$E$4+2,TRUE),">"&B108))/CostCalculation!$E$4) -> 
A108: 0.303 | B108: =ROUND(INDIRECT("CostCalculation!D"&CostCalculation!$O$10,TRUE)*A108,0) -> 148544 | C108: =IF((COUNTIF(INDIRECT("MonteCarlo!"&CostCalculation!$N$10&3,TRUE):INDIRECT("MonteCarlo!"&CostCalculation!$N$10&CostCalculation!$E$4+2,TRUE),"<="&B108))/CostCalculation!$E$4=0,#N/A,(COUNTIF(INDIRECT("MonteCarlo!"&CostCalculation!$N$10&3,TRUE):INDIRECT("MonteCarlo!"&CostCalculation!$N$10&CostCalculation!$E$4+2,TRUE),"<="&B108))/CostCalculation!$E$4) -> 0.7435 | D108: 148544 | E108: =IF((COUNTIF(INDIRECT("MonteCarlo!"&CostCalculation!$N$10&3,TRUE):INDIRECT("MonteCarlo!"&CostCalculation!$N$10&CostCalculation!$E$4+2,TRUE),">"&B108)-COUNTIF(INDIRECT("MonteCarlo!"&CostCalculation!$N$10&3,TRUE):INDIRECT("MonteCarlo!"&CostCalculation!$N$10&CostCalculation!$E$4+2,TRUE),">"&B109))/CostCalculation!$E$4=0,#N/A,(COUNTIF(INDIRECT("MonteCarlo!"&CostCalculation!$N$10&3,TRUE):INDIRECT("MonteCarlo!"&CostCalculation!$N$10&CostCalculation!$E$4+2,TRUE),">"&B108)-COUNTIF(INDIRECT("MonteCarlo!"&CostCalculation!$N$10&3,TRUE):INDIRECT("MonteCarlo!"&CostCalculation!$N$10&CostCalculation!$E$4+2,TRUE),">"&B109))/CostCalculation!$E$4) -> 
A109: 0.306 | B109: =ROUND(INDIRECT("CostCalculation!D"&CostCalculation!$O$10,TRUE)*A109,0) -> 150015 | C109: =IF((COUNTIF(INDIRECT("MonteCarlo!"&CostCalculation!$N$10&3,TRUE):INDIRECT("MonteCarlo!"&CostCalculation!$N$10&CostCalculation!$E$4+2,TRUE),"<="&B109))/CostCalculation!$E$4=0,#N/A,(COUNTIF(INDIRECT("MonteCarlo!"&CostCalculation!$N$10&3,TRUE):INDIRECT("MonteCarlo!"&CostCalculation!$N$10&CostCalculation!$E$4+2,TRUE),"<="&B109))/CostCalculation!$E$4) -> 0.7435 | D109: 150015 | E109: =IF((COUNTIF(INDIRECT("MonteCarlo!"&CostCalculation!$N$10&3,TRUE):INDIRECT("MonteCarlo!"&CostCalculation!$N$10&CostCalculation!$E$4+2,TRUE),">"&B109)-COUNTIF(INDIRECT("MonteCarlo!"&CostCalculation!$N$10&3,TRUE):INDIRECT("MonteCarlo!"&CostCalculation!$N$10&CostCalculation!$E$4+2,TRUE),">"&B110))/CostCalculation!$E$4=0,#N/A,(COUNTIF(INDIRECT("MonteCarlo!"&CostCalculation!$N$10&3,TRUE):INDIRECT("MonteCarlo!"&CostCalculation!$N$10&CostCalculation!$E$4+2,TRUE),">"&B109)-COUNTIF(INDIRECT("MonteCarlo!"&CostCalculation!$N$10&3,TRUE):INDIRECT("MonteCarlo!"&CostCalculation!$N$10&CostCalculation!$E$4+2,TRUE),">"&B110))/CostCalculation!$E$4) -> 
A110: 0.309 | B110: =ROUND(INDIRECT("CostCalculation!D"&CostCalculation!$O$10,TRUE)*A110,0) -> 151486 | C110: =IF((COUNTIF(INDIRECT("MonteCarlo!"&CostCalculation!$N$10&3,TRUE):INDIRECT("MonteCarlo!"&CostCalculation!$N$10&CostCalculation!$E$4+2,TRUE),"<="&B110))/CostCalculation!$E$4=0,#N/A,(COUNTIF(INDIRECT("MonteCarlo!"&CostCalculation!$N$10&3,TRUE):INDIRECT("MonteCarlo!"&CostCalculation!$N$10&CostCalculation!$E$4+2,TRUE),"<="&B110))/CostCalculation!$E$4) -> 0.7435 | D110: 151486 | E110: =IF((COUNTIF(INDIRECT("MonteCarlo!"&CostCalculation!$N$10&3,TRUE):INDIRECT("MonteCarlo!"&CostCalculation!$N$10&CostCalculation!$E$4+2,TRUE),">"&B110)-COUNTIF(INDIRECT("MonteCarlo!"&CostCalculation!$N$10&3,TRUE):INDIRECT("MonteCarlo!"&CostCalculation!$N$10&CostCalculation!$E$4+2,TRUE),">"&B111))/CostCalculation!$E$4=0,#N/A,(COUNTIF(INDIRECT("MonteCarlo!"&CostCalculation!$N$10&3,TRUE):INDIRECT("MonteCarlo!"&CostCalculation!$N$10&CostCalculation!$E$4+2,TRUE),">"&B110)-COUNTIF(INDIRECT("MonteCarlo!"&CostCalculation!$N$10&3,TRUE):INDIRECT("MonteCarlo!"&CostCalculation!$N$10&CostCalculation!$E$4+2,TRUE),">"&B111))/CostCalculation!$E$4) -> 
A111: 0.312 | B111: =ROUND(INDIRECT("CostCalculation!D"&CostCalculation!$O$10,TRUE)*A111,0) -> 152956 | C111: =IF((COUNTIF(INDIRECT("MonteCarlo!"&CostCalculation!$N$10&3,TRUE):INDIRECT("MonteCarlo!"&CostCalculation!$N$10&CostCalculation!$E$4+2,TRUE),"<="&B111))/CostCalculation!$E$4=0,#N/A,(COUNTIF(INDIRECT("MonteCarlo!"&CostCalculation!$N$10&3,TRUE):INDIRECT("MonteCarlo!"&CostCalculation!$N$10&CostCalculation!$E$4+2,TRUE),"<="&B111))/CostCalculation!$E$4) -> 0.7435 | D111: 152956 | E111: =IF((COUNTIF(INDIRECT("MonteCarlo!"&CostCalculation!$N$10&3,TRUE):INDIRECT("MonteCarlo!"&CostCalculation!$N$10&CostCalculation!$E$4+2,TRUE),">"&B111)-COUNTIF(INDIRECT("MonteCarlo!"&CostCalculation!$N$10&3,TRUE):INDIRECT("MonteCarlo!"&CostCalculation!$N$10&CostCalculation!$E$4+2,TRUE),">"&B112))/CostCalculation!$E$4=0,#N/A,(COUNTIF(INDIRECT("MonteCarlo!"&CostCalculation!$N$10&3,TRUE):INDIRECT("MonteCarlo!"&CostCalculation!$N$10&CostCalculation!$E$4+2,TRUE),">"&B111)-COUNTIF(INDIRECT("MonteCarlo!"&CostCalculation!$N$10&3,TRUE):INDIRECT("MonteCarlo!"&CostCalculation!$N$10&CostCalculation!$E$4+2,TRUE),">"&B112))/CostCalculation!$E$4) -> 
A112: 0.315 | B112: =ROUND(INDIRECT("CostCalculation!D"&CostCalculation!$O$10,TRUE)*A112,0) -> 154427 | C112: =IF((COUNTIF(INDIRECT("MonteCarlo!"&CostCalculation!$N$10&3,TRUE):INDIRECT("MonteCarlo!"&CostCalculation!$N$10&CostCalculation!$E$4+2,TRUE),"<="&B112))/CostCalculation!$E$4=0,#N/A,(COUNTIF(INDIRECT("MonteCarlo!"&CostCalculation!$N$10&3,TRUE):INDIRECT("MonteCarlo!"&CostCalculation!$N$10&CostCalculation!$E$4+2,TRUE),"<="&B112))/CostCalculation!$E$4) -> 0.7435 | D112: 154427 | E112: =IF((COUNTIF(INDIRECT("MonteCarlo!"&CostCalculation!$N$10&3,TRUE):INDIRECT("MonteCarlo!"&CostCalculation!$N$10&CostCalculation!$E$4+2,TRUE),">"&B112)-COUNTIF(INDIRECT("MonteCarlo!"&CostCalculation!$N$10&3,TRUE):INDIRECT("MonteCarlo!"&CostCalculation!$N$10&CostCalculation!$E$4+2,TRUE),">"&B113))/CostCalculation!$E$4=0,#N/A,(COUNTIF(INDIRECT("MonteCarlo!"&CostCalculation!$N$10&3,TRUE):INDIRECT("MonteCarlo!"&CostCalculation!$N$10&CostCalculation!$E$4+2,TRUE),">"&B112)-COUNTIF(INDIRECT("MonteCarlo!"&CostCalculation!$N$10&3,TRUE):INDIRECT("MonteCarlo!"&CostCalculation!$N$10&CostCalculation!$E$4+2,TRUE),">"&B113))/CostCalculation!$E$4) -> 
A113: 0.318 | B113: =ROUND(INDIRECT("CostCalculation!D"&CostCalculation!$O$10,TRUE)*A113,0) -> 155898 | C113: =IF((COUNTIF(INDIRECT("MonteCarlo!"&CostCalculation!$N$10&3,TRUE):INDIRECT("MonteCarlo!"&CostCalculation!$N$10&CostCalculation!$E$4+2,TRUE),"<="&B113))/CostCalculation!$E$4=0,#N/A,(COUNTIF(INDIRECT("MonteCarlo!"&CostCalculation!$N$10&3,TRUE):INDIRECT("MonteCarlo!"&CostCalculation!$N$10&CostCalculation!$E$4+2,TRUE),"<="&B113))/CostCalculation!$E$4) -> 0.7435 | D113: 155898 | E113: =IF((COUNTIF(INDIRECT("MonteCarlo!"&CostCalculation!$N$10&3,TRUE):INDIRECT("MonteCarlo!"&CostCalculation!$N$10&CostCalculation!$E$4+2,TRUE),">"&B113)-COUNTIF(INDIRECT("MonteCarlo!"&CostCalculation!$N$10&3,TRUE):INDIRECT("MonteCarlo!"&CostCalculation!$N$10&CostCalculation!$E$4+2,TRUE),">"&B114))/CostCalculation!$E$4=0,#N/A,(COUNTIF(INDIRECT("MonteCarlo!"&CostCalculation!$N$10&3,TRUE):INDIRECT("MonteCarlo!"&CostCalculation!$N$10&CostCalculation!$E$4+2,TRUE),">"&B113)-COUNTIF(INDIRECT("MonteCarlo!"&CostCalculation!$N$10&3,TRUE):INDIRECT("MonteCarlo!"&CostCalculation!$N$10&CostCalculation!$E$4+2,TRUE),">"&B114))/CostCalculation!$E$4) -> 
A114: 0.321 | B114: =ROUND(INDIRECT("CostCalculation!D"&CostCalculation!$O$10,TRUE)*A114,0) -> 157369 | C114: =IF((COUNTIF(INDIRECT("MonteCarlo!"&CostCalculation!$N$10&3,TRUE):INDIRECT("MonteCarlo!"&CostCalculation!$N$10&CostCalculation!$E$4+2,TRUE),"<="&B114))/CostCalculation!$E$4=0,#N/A,(COUNTIF(INDIRECT("MonteCarlo!"&CostCalculation!$N$10&3,TRUE):INDIRECT("MonteCarlo!"&CostCalculation!$N$10&CostCalculation!$E$4+2,TRUE),"<="&B114))/CostCalculation!$E$4) -> 0.7435 | D114: 157369 | E114: =IF((COUNTIF(INDIRECT("MonteCarlo!"&CostCalculation!$N$10&3,TRUE):INDIRECT("MonteCarlo!"&CostCalculation!$N$10&CostCalculation!$E$4+2,TRUE),">"&B114)-COUNTIF(INDIRECT("MonteCarlo!"&CostCalculation!$N$10&3,TRUE):INDIRECT("MonteCarlo!"&CostCalculation!$N$10&CostCalculation!$E$4+2,TRUE),">"&B115))/CostCalculation!$E$4=0,#N/A,(COUNTIF(INDIRECT("MonteCarlo!"&CostCalculation!$N$10&3,TRUE):INDIRECT("MonteCarlo!"&CostCalculation!$N$10&CostCalculation!$E$4+2,TRUE),">"&B114)-COUNTIF(INDIRECT("MonteCarlo!"&CostCalculation!$N$10&3,TRUE):INDIRECT("MonteCarlo!"&CostCalculation!$N$10&CostCalculation!$E$4+2,TRUE),">"&B115))/CostCalculation!$E$4) -> 
A115: 0.324 | B115: =ROUND(INDIRECT("CostCalculation!D"&CostCalculation!$O$10,TRUE)*A115,0) -> 158839 | C115: =IF((COUNTIF(INDIRECT("MonteCarlo!"&CostCalculation!$N$10&3,TRUE):INDIRECT("MonteCarlo!"&CostCalculation!$N$10&CostCalculation!$E$4+2,TRUE),"<="&B115))/CostCalculation!$E$4=0,#N/A,(COUNTIF(INDIRECT("MonteCarlo!"&CostCalculation!$N$10&3,TRUE):INDIRECT("MonteCarlo!"&CostCalculation!$N$10&CostCalculation!$E$4+2,TRUE),"<="&B115))/CostCalculation!$E$4) -> 0.7435 | D115: 158839 | E115: =IF((COUNTIF(INDIRECT("MonteCarlo!"&CostCalculation!$N$10&3,TRUE):INDIRECT("MonteCarlo!"&CostCalculation!$N$10&CostCalculation!$E$4+2,TRUE),">"&B115)-COUNTIF(INDIRECT("MonteCarlo!"&CostCalculation!$N$10&3,TRUE):INDIRECT("MonteCarlo!"&CostCalculation!$N$10&CostCalculation!$E$4+2,TRUE),">"&B116))/CostCalculation!$E$4=0,#N/A,(COUNTIF(INDIRECT("MonteCarlo!"&CostCalculation!$N$10&3,TRUE):INDIRECT("MonteCarlo!"&CostCalculation!$N$10&CostCalculation!$E$4+2,TRUE),">"&B115)-COUNTIF(INDIRECT("MonteCarlo!"&CostCalculation!$N$10&3,TRUE):INDIRECT("MonteCarlo!"&CostCalculation!$N$10&CostCalculation!$E$4+2,TRUE),">"&B116))/CostCalculation!$E$4) -> 
A116: 0.327 | B116: =ROUND(INDIRECT("CostCalculation!D"&CostCalculation!$O$10,TRUE)*A116,0) -> 160310 | C116: =IF((COUNTIF(INDIRECT("MonteCarlo!"&CostCalculation!$N$10&3,TRUE):INDIRECT("MonteCarlo!"&CostCalculation!$N$10&CostCalculation!$E$4+2,TRUE),"<="&B116))/CostCalculation!$E$4=0,#N/A,(COUNTIF(INDIRECT("MonteCarlo!"&CostCalculation!$N$10&3,TRUE):INDIRECT("MonteCarlo!"&CostCalculation!$N$10&CostCalculation!$E$4+2,TRUE),"<="&B116))/CostCalculation!$E$4) -> 0.7435 | D116: 160310 | E116: =IF((COUNTIF(INDIRECT("MonteCarlo!"&CostCalculation!$N$10&3,TRUE):INDIRECT("MonteCarlo!"&CostCalculation!$N$10&CostCalculation!$E$4+2,TRUE),">"&B116)-COUNTIF(INDIRECT("MonteCarlo!"&CostCalculation!$N$10&3,TRUE):INDIRECT("MonteCarlo!"&CostCalculation!$N$10&CostCalculation!$E$4+2,TRUE),">"&B117))/CostCalculation!$E$4=0,#N/A,(COUNTIF(INDIRECT("MonteCarlo!"&CostCalculation!$N$10&3,TRUE):INDIRECT("MonteCarlo!"&CostCalculation!$N$10&CostCalculation!$E$4+2,TRUE),">"&B116)-COUNTIF(INDIRECT("MonteCarlo!"&CostCalculation!$N$10&3,TRUE):INDIRECT("MonteCarlo!"&CostCalculation!$N$10&CostCalculation!$E$4+2,TRUE),">"&B117))/CostCalculation!$E$4) -> 
A117: 0.33 | B117: =ROUND(INDIRECT("CostCalculation!D"&CostCalculation!$O$10,TRUE)*A117,0) -> 161781 | C117: =IF((COUNTIF(INDIRECT("MonteCarlo!"&CostCalculation!$N$10&3,TRUE):INDIRECT("MonteCarlo!"&CostCalculation!$N$10&CostCalculation!$E$4+2,TRUE),"<="&B117))/CostCalculation!$E$4=0,#N/A,(COUNTIF(INDIRECT("MonteCarlo!"&CostCalculation!$N$10&3,TRUE):INDIRECT("MonteCarlo!"&CostCalculation!$N$10&CostCalculation!$E$4+2,TRUE),"<="&B117))/CostCalculation!$E$4) -> 0.7435 | D117: 161781 | E117: =IF((COUNTIF(INDIRECT("MonteCarlo!"&CostCalculation!$N$10&3,TRUE):INDIRECT("MonteCarlo!"&CostCalculation!$N$10&CostCalculation!$E$4+2,TRUE),">"&B117)-COUNTIF(INDIRECT("MonteCarlo!"&CostCalculation!$N$10&3,TRUE):INDIRECT("MonteCarlo!"&CostCalculation!$N$10&CostCalculation!$E$4+2,TRUE),">"&B118))/CostCalculation!$E$4=0,#N/A,(COUNTIF(INDIRECT("MonteCarlo!"&CostCalculation!$N$10&3,TRUE):INDIRECT("MonteCarlo!"&CostCalculation!$N$10&CostCalculation!$E$4+2,TRUE),">"&B117)-COUNTIF(INDIRECT("MonteCarlo!"&CostCalculation!$N$10&3,TRUE):INDIRECT("MonteCarlo!"&CostCalculation!$N$10&CostCalculation!$E$4+2,TRUE),">"&B118))/CostCalculation!$E$4) -> 
A118: 0.333 | B118: =ROUND(INDIRECT("CostCalculation!D"&CostCalculation!$O$10,TRUE)*A118,0) -> 163252 | C118: =IF((COUNTIF(INDIRECT("MonteCarlo!"&CostCalculation!$N$10&3,TRUE):INDIRECT("MonteCarlo!"&CostCalculation!$N$10&CostCalculation!$E$4+2,TRUE),"<="&B118))/CostCalculation!$E$4=0,#N/A,(COUNTIF(INDIRECT("MonteCarlo!"&CostCalculation!$N$10&3,TRUE):INDIRECT("MonteCarlo!"&CostCalculation!$N$10&CostCalculation!$E$4+2,TRUE),"<="&B118))/CostCalculation!$E$4) -> 0.7435 | D118: 163252 | E118: =IF((COUNTIF(INDIRECT("MonteCarlo!"&CostCalculation!$N$10&3,TRUE):INDIRECT("MonteCarlo!"&CostCalculation!$N$10&CostCalculation!$E$4+2,TRUE),">"&B118)-COUNTIF(INDIRECT("MonteCarlo!"&CostCalculation!$N$10&3,TRUE):INDIRECT("MonteCarlo!"&CostCalculation!$N$10&CostCalculation!$E$4+2,TRUE),">"&B119))/CostCalculation!$E$4=0,#N/A,(COUNTIF(INDIRECT("MonteCarlo!"&CostCalculation!$N$10&3,TRUE):INDIRECT("MonteCarlo!"&CostCalculation!$N$10&CostCalculation!$E$4+2,TRUE),">"&B118)-COUNTIF(INDIRECT("MonteCarlo!"&CostCalculation!$N$10&3,TRUE):INDIRECT("MonteCarlo!"&CostCalculation!$N$10&CostCalculation!$E$4+2,TRUE),">"&B119))/CostCalculation!$E$4) -> 0.1005
A119: 0.336 | B119: =ROUND(INDIRECT("CostCalculation!D"&CostCalculation!$O$10,TRUE)*A119,0) -> 164722 | C119: =IF((COUNTIF(INDIRECT("MonteCarlo!"&CostCalculation!$N$10&3,TRUE):INDIRECT("MonteCarlo!"&CostCalculation!$N$10&CostCalculation!$E$4+2,TRUE),"<="&B119))/CostCalculation!$E$4=0,#N/A,(COUNTIF(INDIRECT("MonteCarlo!"&CostCalculation!$N$10&3,TRUE):INDIRECT("MonteCarlo!"&CostCalculation!$N$10&CostCalculation!$E$4+2,TRUE),"<="&B119))/CostCalculation!$E$4) -> 0.844 | D119: 164722 | E119: =IF((COUNTIF(INDIRECT("MonteCarlo!"&CostCalculation!$N$10&3,TRUE):INDIRECT("MonteCarlo!"&CostCalculation!$N$10&CostCalculation!$E$4+2,TRUE),">"&B119)-COUNTIF(INDIRECT("MonteCarlo!"&CostCalculation!$N$10&3,TRUE):INDIRECT("MonteCarlo!"&CostCalculation!$N$10&CostCalculation!$E$4+2,TRUE),">"&B120))/CostCalculation!$E$4=0,#N/A,(COUNTIF(INDIRECT("MonteCarlo!"&CostCalculation!$N$10&3,TRUE):INDIRECT("MonteCarlo!"&CostCalculation!$N$10&CostCalculation!$E$4+2,TRUE),">"&B119)-COUNTIF(INDIRECT("MonteCarlo!"&CostCalculation!$N$10&3,TRUE):INDIRECT("MonteCarlo!"&CostCalculation!$N$10&CostCalculation!$E$4+2,TRUE),">"&B120))/CostCalculation!$E$4) -> 
A120: 0.339 | B120: =ROUND(INDIRECT("CostCalculation!D"&CostCalculation!$O$10,TRUE)*A120,0) -> 166193 | C120: =IF((COUNTIF(INDIRECT("MonteCarlo!"&CostCalculation!$N$10&3,TRUE):INDIRECT("MonteCarlo!"&CostCalculation!$N$10&CostCalculation!$E$4+2,TRUE),"<="&B120))/CostCalculation!$E$4=0,#N/A,(COUNTIF(INDIRECT("MonteCarlo!"&CostCalculation!$N$10&3,TRUE):INDIRECT("MonteCarlo!"&CostCalculation!$N$10&CostCalculation!$E$4+2,TRUE),"<="&B120))/CostCalculation!$E$4) -> 0.844 | D120: 166193 | E120: =IF((COUNTIF(INDIRECT("MonteCarlo!"&CostCalculation!$N$10&3,TRUE):INDIRECT("MonteCarlo!"&CostCalculation!$N$10&CostCalculation!$E$4+2,TRUE),">"&B120)-COUNTIF(INDIRECT("MonteCarlo!"&CostCalculation!$N$10&3,TRUE):INDIRECT("MonteCarlo!"&CostCalculation!$N$10&CostCalculation!$E$4+2,TRUE),">"&B121))/CostCalculation!$E$4=0,#N/A,(COUNTIF(INDIRECT("MonteCarlo!"&CostCalculation!$N$10&3,TRUE):INDIRECT("MonteCarlo!"&CostCalculation!$N$10&CostCalculation!$E$4+2,TRUE),">"&B120)-COUNTIF(INDIRECT("MonteCarlo!"&CostCalculation!$N$10&3,TRUE):INDIRECT("MonteCarlo!"&CostCalculation!$N$10&CostCalculation!$E$4+2,TRUE),">"&B121))/CostCalculation!$E$4) -> 
A121: 0.342 | B121: =ROUND(INDIRECT("CostCalculation!D"&CostCalculation!$O$10,TRUE)*A121,0) -> 167664 | C121: =IF((COUNTIF(INDIRECT("MonteCarlo!"&CostCalculation!$N$10&3,TRUE):INDIRECT("MonteCarlo!"&CostCalculation!$N$10&CostCalculation!$E$4+2,TRUE),"<="&B121))/CostCalculation!$E$4=0,#N/A,(COUNTIF(INDIRECT("MonteCarlo!"&CostCalculation!$N$10&3,TRUE):INDIRECT("MonteCarlo!"&CostCalculation!$N$10&CostCalculation!$E$4+2,TRUE),"<="&B121))/CostCalculation!$E$4) -> 0.844 | D121: 167664 | E121: =IF((COUNTIF(INDIRECT("MonteCarlo!"&CostCalculation!$N$10&3,TRUE):INDIRECT("MonteCarlo!"&CostCalculation!$N$10&CostCalculation!$E$4+2,TRUE),">"&B121)-COUNTIF(INDIRECT("MonteCarlo!"&CostCalculation!$N$10&3,TRUE):INDIRECT("MonteCarlo!"&CostCalculation!$N$10&CostCalculation!$E$4+2,TRUE),">"&B122))/CostCalculation!$E$4=0,#N/A,(COUNTIF(INDIRECT("MonteCarlo!"&CostCalculation!$N$10&3,TRUE):INDIRECT("MonteCarlo!"&CostCalculation!$N$10&CostCalculation!$E$4+2,TRUE),">"&B121)-COUNTIF(INDIRECT("MonteCarlo!"&CostCalculation!$N$10&3,TRUE):INDIRECT("MonteCarlo!"&CostCalculation!$N$10&CostCalculation!$E$4+2,TRUE),">"&B122))/CostCalculation!$E$4) -> 
A122: 0.345 | B122: =ROUND(INDIRECT("CostCalculation!D"&CostCalculation!$O$10,TRUE)*A122,0) -> 169135 | C122: =IF((COUNTIF(INDIRECT("MonteCarlo!"&CostCalculation!$N$10&3,TRUE):INDIRECT("MonteCarlo!"&CostCalculation!$N$10&CostCalculation!$E$4+2,TRUE),"<="&B122))/CostCalculation!$E$4=0,#N/A,(COUNTIF(INDIRECT("MonteCarlo!"&CostCalculation!$N$10&3,TRUE):INDIRECT("MonteCarlo!"&CostCalculation!$N$10&CostCalculation!$E$4+2,TRUE),"<="&B122))/CostCalculation!$E$4) -> 0.844 | D122: 169135 | E122: =IF((COUNTIF(INDIRECT("MonteCarlo!"&CostCalculation!$N$10&3,TRUE):INDIRECT("MonteCarlo!"&CostCalculation!$N$10&CostCalculation!$E$4+2,TRUE),">"&B122)-COUNTIF(INDIRECT("MonteCarlo!"&CostCalculation!$N$10&3,TRUE):INDIRECT("MonteCarlo!"&CostCalculation!$N$10&CostCalculation!$E$4+2,TRUE),">"&B123))/CostCalculation!$E$4=0,#N/A,(COUNTIF(INDIRECT("MonteCarlo!"&CostCalculation!$N$10&3,TRUE):INDIRECT("MonteCarlo!"&CostCalculation!$N$10&CostCalculation!$E$4+2,TRUE),">"&B122)-COUNTIF(INDIRECT("MonteCarlo!"&CostCalculation!$N$10&3,TRUE):INDIRECT("MonteCarlo!"&CostCalculation!$N$10&CostCalculation!$E$4+2,TRUE),">"&B123))/CostCalculation!$E$4) -> 
A123: 0.348 | B123: =ROUND(INDIRECT("CostCalculation!D"&CostCalculation!$O$10,TRUE)*A123,0) -> 170605 | C123: =IF((COUNTIF(INDIRECT("MonteCarlo!"&CostCalculation!$N$10&3,TRUE):INDIRECT("MonteCarlo!"&CostCalculation!$N$10&CostCalculation!$E$4+2,TRUE),"<="&B123))/CostCalculation!$E$4=0,#N/A,(COUNTIF(INDIRECT("MonteCarlo!"&CostCalculation!$N$10&3,TRUE):INDIRECT("MonteCarlo!"&CostCalculation!$N$10&CostCalculation!$E$4+2,TRUE),"<="&B123))/CostCalculation!$E$4) -> 0.844 | D123: 170605 | E123: =IF((COUNTIF(INDIRECT("MonteCarlo!"&CostCalculation!$N$10&3,TRUE):INDIRECT("MonteCarlo!"&CostCalculation!$N$10&CostCalculation!$E$4+2,TRUE),">"&B123)-COUNTIF(INDIRECT("MonteCarlo!"&CostCalculation!$N$10&3,TRUE):INDIRECT("MonteCarlo!"&CostCalculation!$N$10&CostCalculation!$E$4+2,TRUE),">"&B124))/CostCalculation!$E$4=0,#N/A,(COUNTIF(INDIRECT("MonteCarlo!"&CostCalculation!$N$10&3,TRUE):INDIRECT("MonteCarlo!"&CostCalculation!$N$10&CostCalculation!$E$4+2,TRUE),">"&B123)-COUNTIF(INDIRECT("MonteCarlo!"&CostCalculation!$N$10&3,TRUE):INDIRECT("MonteCarlo!"&CostCalculation!$N$10&CostCalculation!$E$4+2,TRUE),">"&B124))/CostCalculation!$E$4) -> 
A124: 0.351 | B124: =ROUND(INDIRECT("CostCalculation!D"&CostCalculation!$O$10,TRUE)*A124,0) -> 172076 | C124: =IF((COUNTIF(INDIRECT("MonteCarlo!"&CostCalculation!$N$10&3,TRUE):INDIRECT("MonteCarlo!"&CostCalculation!$N$10&CostCalculation!$E$4+2,TRUE),"<="&B124))/CostCalculation!$E$4=0,#N/A,(COUNTIF(INDIRECT("MonteCarlo!"&CostCalculation!$N$10&3,TRUE):INDIRECT("MonteCarlo!"&CostCalculation!$N$10&CostCalculation!$E$4+2,TRUE),"<="&B124))/CostCalculation!$E$4) -> 0.844 | D124: 172076 | E124: =IF((COUNTIF(INDIRECT("MonteCarlo!"&CostCalculation!$N$10&3,TRUE):INDIRECT("MonteCarlo!"&CostCalculation!$N$10&CostCalculation!$E$4+2,TRUE),">"&B124)-COUNTIF(INDIRECT("MonteCarlo!"&CostCalculation!$N$10&3,TRUE):INDIRECT("MonteCarlo!"&CostCalculation!$N$10&CostCalculation!$E$4+2,TRUE),">"&B125))/CostCalculation!$E$4=0,#N/A,(COUNTIF(INDIRECT("MonteCarlo!"&CostCalculation!$N$10&3,TRUE):INDIRECT("MonteCarlo!"&CostCalculation!$N$10&CostCalculation!$E$4+2,TRUE),">"&B124)-COUNTIF(INDIRECT("MonteCarlo!"&CostCalculation!$N$10&3,TRUE):INDIRECT("MonteCarlo!"&CostCalculation!$N$10&CostCalculation!$E$4+2,TRUE),">"&B125))/CostCalculation!$E$4) -> 
A125: 0.354 | B125: =ROUND(INDIRECT("CostCalculation!D"&CostCalculation!$O$10,TRUE)*A125,0) -> 173547 | C125: =IF((COUNTIF(INDIRECT("MonteCarlo!"&CostCalculation!$N$10&3,TRUE):INDIRECT("MonteCarlo!"&CostCalculation!$N$10&CostCalculation!$E$4+2,TRUE),"<="&B125))/CostCalculation!$E$4=0,#N/A,(COUNTIF(INDIRECT("MonteCarlo!"&CostCalculation!$N$10&3,TRUE):INDIRECT("MonteCarlo!"&CostCalculation!$N$10&CostCalculation!$E$4+2,TRUE),"<="&B125))/CostCalculation!$E$4) -> 0.844 | D125: 173547 | E125: =IF((COUNTIF(INDIRECT("MonteCarlo!"&CostCalculation!$N$10&3,TRUE):INDIRECT("MonteCarlo!"&CostCalculation!$N$10&CostCalculation!$E$4+2,TRUE),">"&B125)-COUNTIF(INDIRECT("MonteCarlo!"&CostCalculation!$N$10&3,TRUE):INDIRECT("MonteCarlo!"&CostCalculation!$N$10&CostCalculation!$E$4+2,TRUE),">"&B126))/CostCalculation!$E$4=0,#N/A,(COUNTIF(INDIRECT("MonteCarlo!"&CostCalculation!$N$10&3,TRUE):INDIRECT("MonteCarlo!"&CostCalculation!$N$10&CostCalculation!$E$4+2,TRUE),">"&B125)-COUNTIF(INDIRECT("MonteCarlo!"&CostCalculation!$N$10&3,TRUE):INDIRECT("MonteCarlo!"&CostCalculation!$N$10&CostCalculation!$E$4+2,TRUE),">"&B126))/CostCalculation!$E$4) -> 
A126: 0.357 | B126: =ROUND(INDIRECT("CostCalculation!D"&CostCalculation!$O$10,TRUE)*A126,0) -> 175017 | C126: =IF((COUNTIF(INDIRECT("MonteCarlo!"&CostCalculation!$N$10&3,TRUE):INDIRECT("MonteCarlo!"&CostCalculation!$N$10&CostCalculation!$E$4+2,TRUE),"<="&B126))/CostCalculation!$E$4=0,#N/A,(COUNTIF(INDIRECT("MonteCarlo!"&CostCalculation!$N$10&3,TRUE):INDIRECT("MonteCarlo!"&CostCalculation!$N$10&CostCalculation!$E$4+2,TRUE),"<="&B126))/CostCalculation!$E$4) -> 0.844 | D126: 175017 | E126: =IF((COUNTIF(INDIRECT("MonteCarlo!"&CostCalculation!$N$10&3,TRUE):INDIRECT("MonteCarlo!"&CostCalculation!$N$10&CostCalculation!$E$4+2,TRUE),">"&B126)-COUNTIF(INDIRECT("MonteCarlo!"&CostCalculation!$N$10&3,TRUE):INDIRECT("MonteCarlo!"&CostCalculation!$N$10&CostCalculation!$E$4+2,TRUE),">"&B127))/CostCalculation!$E$4=0,#N/A,(COUNTIF(INDIRECT("MonteCarlo!"&CostCalculation!$N$10&3,TRUE):INDIRECT("MonteCarlo!"&CostCalculation!$N$10&CostCalculation!$E$4+2,TRUE),">"&B126)-COUNTIF(INDIRECT("MonteCarlo!"&CostCalculation!$N$10&3,TRUE):INDIRECT("MonteCarlo!"&CostCalculation!$N$10&CostCalculation!$E$4+2,TRUE),">"&B127))/CostCalculation!$E$4) -> 
A127: 0.36 | B127: =ROUND(INDIRECT("CostCalculation!D"&CostCalculation!$O$10,TRUE)*A127,0) -> 176488 | C127: =IF((COUNTIF(INDIRECT("MonteCarlo!"&CostCalculation!$N$10&3,TRUE):INDIRECT("MonteCarlo!"&CostCalculation!$N$10&CostCalculation!$E$4+2,TRUE),"<="&B127))/CostCalculation!$E$4=0,#N/A,(COUNTIF(INDIRECT("MonteCarlo!"&CostCalculation!$N$10&3,TRUE):INDIRECT("MonteCarlo!"&CostCalculation!$N$10&CostCalculation!$E$4+2,TRUE),"<="&B127))/CostCalculation!$E$4) -> 0.844 | D127: 176488 | E127: =IF((COUNTIF(INDIRECT("MonteCarlo!"&CostCalculation!$N$10&3,TRUE):INDIRECT("MonteCarlo!"&CostCalculation!$N$10&CostCalculation!$E$4+2,TRUE),">"&B127)-COUNTIF(INDIRECT("MonteCarlo!"&CostCalculation!$N$10&3,TRUE):INDIRECT("MonteCarlo!"&CostCalculation!$N$10&CostCalculation!$E$4+2,TRUE),">"&B128))/CostCalculation!$E$4=0,#N/A,(COUNTIF(INDIRECT("MonteCarlo!"&CostCalculation!$N$10&3,TRUE):INDIRECT("MonteCarlo!"&CostCalculation!$N$10&CostCalculation!$E$4+2,TRUE),">"&B127)-COUNTIF(INDIRECT("MonteCarlo!"&CostCalculation!$N$10&3,TRUE):INDIRECT("MonteCarlo!"&CostCalculation!$N$10&CostCalculation!$E$4+2,TRUE),">"&B128))/CostCalculation!$E$4) -> 
A128: 0.363 | B128: =ROUND(INDIRECT("CostCalculation!D"&CostCalculation!$O$10,TRUE)*A128,0) -> 177959 | C128: =IF((COUNTIF(INDIRECT("MonteCarlo!"&CostCalculation!$N$10&3,TRUE):INDIRECT("MonteCarlo!"&CostCalculation!$N$10&CostCalculation!$E$4+2,TRUE),"<="&B128))/CostCalculation!$E$4=0,#N/A,(COUNTIF(INDIRECT("MonteCarlo!"&CostCalculation!$N$10&3,TRUE):INDIRECT("MonteCarlo!"&CostCalculation!$N$10&CostCalculation!$E$4+2,TRUE),"<="&B128))/CostCalculation!$E$4) -> 0.844 | D128: 177959 | E128: =IF((COUNTIF(INDIRECT("MonteCarlo!"&CostCalculation!$N$10&3,TRUE):INDIRECT("MonteCarlo!"&CostCalculation!$N$10&CostCalculation!$E$4+2,TRUE),">"&B128)-COUNTIF(INDIRECT("MonteCarlo!"&CostCalculation!$N$10&3,TRUE):INDIRECT("MonteCarlo!"&CostCalculation!$N$10&CostCalculation!$E$4+2,TRUE),">"&B129))/CostCalculation!$E$4=0,#N/A,(COUNTIF(INDIRECT("MonteCarlo!"&CostCalculation!$N$10&3,TRUE):INDIRECT("MonteCarlo!"&CostCalculation!$N$10&CostCalculation!$E$4+2,TRUE),">"&B128)-COUNTIF(INDIRECT("MonteCarlo!"&CostCalculation!$N$10&3,TRUE):INDIRECT("MonteCarlo!"&CostCalculation!$N$10&CostCalculation!$E$4+2,TRUE),">"&B129))/CostCalculation!$E$4) -> 
A129: 0.366 | B129: =ROUND(INDIRECT("CostCalculation!D"&CostCalculation!$O$10,TRUE)*A129,0) -> 179430 | C129: =IF((COUNTIF(INDIRECT("MonteCarlo!"&CostCalculation!$N$10&3,TRUE):INDIRECT("MonteCarlo!"&CostCalculation!$N$10&CostCalculation!$E$4+2,TRUE),"<="&B129))/CostCalculation!$E$4=0,#N/A,(COUNTIF(INDIRECT("MonteCarlo!"&CostCalculation!$N$10&3,TRUE):INDIRECT("MonteCarlo!"&CostCalculation!$N$10&CostCalculation!$E$4+2,TRUE),"<="&B129))/CostCalculation!$E$4) -> 0.844 | D129: 179430 | E129: =IF((COUNTIF(INDIRECT("MonteCarlo!"&CostCalculation!$N$10&3,TRUE):INDIRECT("MonteCarlo!"&CostCalculation!$N$10&CostCalculation!$E$4+2,TRUE),">"&B129)-COUNTIF(INDIRECT("MonteCarlo!"&CostCalculation!$N$10&3,TRUE):INDIRECT("MonteCarlo!"&CostCalculation!$N$10&CostCalculation!$E$4+2,TRUE),">"&B130))/CostCalculation!$E$4=0,#N/A,(COUNTIF(INDIRECT("MonteCarlo!"&CostCalculation!$N$10&3,TRUE):INDIRECT("MonteCarlo!"&CostCalculation!$N$10&CostCalculation!$E$4+2,TRUE),">"&B129)-COUNTIF(INDIRECT("MonteCarlo!"&CostCalculation!$N$10&3,TRUE):INDIRECT("MonteCarlo!"&CostCalculation!$N$10&CostCalculation!$E$4+2,TRUE),">"&B130))/CostCalculation!$E$4) -> 
A130: 0.369 | B130: =ROUND(INDIRECT("CostCalculation!D"&CostCalculation!$O$10,TRUE)*A130,0) -> 180900 | C130: =IF((COUNTIF(INDIRECT("MonteCarlo!"&CostCalculation!$N$10&3,TRUE):INDIRECT("MonteCarlo!"&CostCalculation!$N$10&CostCalculation!$E$4+2,TRUE),"<="&B130))/CostCalculation!$E$4=0,#N/A,(COUNTIF(INDIRECT("MonteCarlo!"&CostCalculation!$N$10&3,TRUE):INDIRECT("MonteCarlo!"&CostCalculation!$N$10&CostCalculation!$E$4+2,TRUE),"<="&B130))/CostCalculation!$E$4) -> 0.844 | D130: 180900 | E130: =IF((COUNTIF(INDIRECT("MonteCarlo!"&CostCalculation!$N$10&3,TRUE):INDIRECT("MonteCarlo!"&CostCalculation!$N$10&CostCalculation!$E$4+2,TRUE),">"&B130)-COUNTIF(INDIRECT("MonteCarlo!"&CostCalculation!$N$10&3,TRUE):INDIRECT("MonteCarlo!"&CostCalculation!$N$10&CostCalculation!$E$4+2,TRUE),">"&B131))/CostCalculation!$E$4=0,#N/A,(COUNTIF(INDIRECT("MonteCarlo!"&CostCalculation!$N$10&3,TRUE):INDIRECT("MonteCarlo!"&CostCalculation!$N$10&CostCalculation!$E$4+2,TRUE),">"&B130)-COUNTIF(INDIRECT("MonteCarlo!"&CostCalculation!$N$10&3,TRUE):INDIRECT("MonteCarlo!"&CostCalculation!$N$10&CostCalculation!$E$4+2,TRUE),">"&B131))/CostCalculation!$E$4) -> 
A131: 0.372 | B131: =ROUND(INDIRECT("CostCalculation!D"&CostCalculation!$O$10,TRUE)*A131,0) -> 182371 | C131: =IF((COUNTIF(INDIRECT("MonteCarlo!"&CostCalculation!$N$10&3,TRUE):INDIRECT("MonteCarlo!"&CostCalculation!$N$10&CostCalculation!$E$4+2,TRUE),"<="&B131))/CostCalculation!$E$4=0,#N/A,(COUNTIF(INDIRECT("MonteCarlo!"&CostCalculation!$N$10&3,TRUE):INDIRECT("MonteCarlo!"&CostCalculation!$N$10&CostCalculation!$E$4+2,TRUE),"<="&B131))/CostCalculation!$E$4) -> 0.844 | D131: 182371 | E131: =IF((COUNTIF(INDIRECT("MonteCarlo!"&CostCalculation!$N$10&3,TRUE):INDIRECT("MonteCarlo!"&CostCalculation!$N$10&CostCalculation!$E$4+2,TRUE),">"&B131)-COUNTIF(INDIRECT("MonteCarlo!"&CostCalculation!$N$10&3,TRUE):INDIRECT("MonteCarlo!"&CostCalculation!$N$10&CostCalculation!$E$4+2,TRUE),">"&B132))/CostCalculation!$E$4=0,#N/A,(COUNTIF(INDIRECT("MonteCarlo!"&CostCalculation!$N$10&3,TRUE):INDIRECT("MonteCarlo!"&CostCalculation!$N$10&CostCalculation!$E$4+2,TRUE),">"&B131)-COUNTIF(INDIRECT("MonteCarlo!"&CostCalculation!$N$10&3,TRUE):INDIRECT("MonteCarlo!"&CostCalculation!$N$10&CostCalculation!$E$4+2,TRUE),">"&B132))/CostCalculation!$E$4) -> 
A132: 0.375 | B132: =ROUND(INDIRECT("CostCalculation!D"&CostCalculation!$O$10,TRUE)*A132,0) -> 183842 | C132: =IF((COUNTIF(INDIRECT("MonteCarlo!"&CostCalculation!$N$10&3,TRUE):INDIRECT("MonteCarlo!"&CostCalculation!$N$10&CostCalculation!$E$4+2,TRUE),"<="&B132))/CostCalculation!$E$4=0,#N/A,(COUNTIF(INDIRECT("MonteCarlo!"&CostCalculation!$N$10&3,TRUE):INDIRECT("MonteCarlo!"&CostCalculation!$N$10&CostCalculation!$E$4+2,TRUE),"<="&B132))/CostCalculation!$E$4) -> 0.844 | D132: 183842 | E132: =IF((COUNTIF(INDIRECT("MonteCarlo!"&CostCalculation!$N$10&3,TRUE):INDIRECT("MonteCarlo!"&CostCalculation!$N$10&CostCalculation!$E$4+2,TRUE),">"&B132)-COUNTIF(INDIRECT("MonteCarlo!"&CostCalculation!$N$10&3,TRUE):INDIRECT("MonteCarlo!"&CostCalculation!$N$10&CostCalculation!$E$4+2,TRUE),">"&B133))/CostCalculation!$E$4=0,#N/A,(COUNTIF(INDIRECT("MonteCarlo!"&CostCalculation!$N$10&3,TRUE):INDIRECT("MonteCarlo!"&CostCalculation!$N$10&CostCalculation!$E$4+2,TRUE),">"&B132)-COUNTIF(INDIRECT("MonteCarlo!"&CostCalculation!$N$10&3,TRUE):INDIRECT("MonteCarlo!"&CostCalculation!$N$10&CostCalculation!$E$4+2,TRUE),">"&B133))/CostCalculation!$E$4) -> 
A133: 0.378 | B133: =ROUND(INDIRECT("CostCalculation!D"&CostCalculation!$O$10,TRUE)*A133,0) -> 185313 | C133: =IF((COUNTIF(INDIRECT("MonteCarlo!"&CostCalculation!$N$10&3,TRUE):INDIRECT("MonteCarlo!"&CostCalculation!$N$10&CostCalculation!$E$4+2,TRUE),"<="&B133))/CostCalculation!$E$4=0,#N/A,(COUNTIF(INDIRECT("MonteCarlo!"&CostCalculation!$N$10&3,TRUE):INDIRECT("MonteCarlo!"&CostCalculation!$N$10&CostCalculation!$E$4+2,TRUE),"<="&B133))/CostCalculation!$E$4) -> 0.844 | D133: 185313 | E133: =IF((COUNTIF(INDIRECT("MonteCarlo!"&CostCalculation!$N$10&3,TRUE):INDIRECT("MonteCarlo!"&CostCalculation!$N$10&CostCalculation!$E$4+2,TRUE),">"&B133)-COUNTIF(INDIRECT("MonteCarlo!"&CostCalculation!$N$10&3,TRUE):INDIRECT("MonteCarlo!"&CostCalculation!$N$10&CostCalculation!$E$4+2,TRUE),">"&B134))/CostCalculation!$E$4=0,#N/A,(COUNTIF(INDIRECT("MonteCarlo!"&CostCalculation!$N$10&3,TRUE):INDIRECT("MonteCarlo!"&CostCalculation!$N$10&CostCalculation!$E$4+2,TRUE),">"&B133)-COUNTIF(INDIRECT("MonteCarlo!"&CostCalculation!$N$10&3,TRUE):INDIRECT("MonteCarlo!"&CostCalculation!$N$10&CostCalculation!$E$4+2,TRUE),">"&B134))/CostCalculation!$E$4) -> 
A134: 0.381 | B134: =ROUND(INDIRECT("CostCalculation!D"&CostCalculation!$O$10,TRUE)*A134,0) -> 186783 | C134: =IF((COUNTIF(INDIRECT("MonteCarlo!"&CostCalculation!$N$10&3,TRUE):INDIRECT("MonteCarlo!"&CostCalculation!$N$10&CostCalculation!$E$4+2,TRUE),"<="&B134))/CostCalculation!$E$4=0,#N/A,(COUNTIF(INDIRECT("MonteCarlo!"&CostCalculation!$N$10&3,TRUE):INDIRECT("MonteCarlo!"&CostCalculation!$N$10&CostCalculation!$E$4+2,TRUE),"<="&B134))/CostCalculation!$E$4) -> 0.844 | D134: 186783 | E134: =IF((COUNTIF(INDIRECT("MonteCarlo!"&CostCalculation!$N$10&3,TRUE):INDIRECT("MonteCarlo!"&CostCalculation!$N$10&CostCalculation!$E$4+2,TRUE),">"&B134)-COUNTIF(INDIRECT("MonteCarlo!"&CostCalculation!$N$10&3,TRUE):INDIRECT("MonteCarlo!"&CostCalculation!$N$10&CostCalculation!$E$4+2,TRUE),">"&B135))/CostCalculation!$E$4=0,#N/A,(COUNTIF(INDIRECT("MonteCarlo!"&CostCalculation!$N$10&3,TRUE):INDIRECT("MonteCarlo!"&CostCalculation!$N$10&CostCalculation!$E$4+2,TRUE),">"&B134)-COUNTIF(INDIRECT("MonteCarlo!"&CostCalculation!$N$10&3,TRUE):INDIRECT("MonteCarlo!"&CostCalculation!$N$10&CostCalculation!$E$4+2,TRUE),">"&B135))/CostCalculation!$E$4) -> 
A135: 0.384 | B135: =ROUND(INDIRECT("CostCalculation!D"&CostCalculation!$O$10,TRUE)*A135,0) -> 188254 | C135: =IF((COUNTIF(INDIRECT("MonteCarlo!"&CostCalculation!$N$10&3,TRUE):INDIRECT("MonteCarlo!"&CostCalculation!$N$10&CostCalculation!$E$4+2,TRUE),"<="&B135))/CostCalculation!$E$4=0,#N/A,(COUNTIF(INDIRECT("MonteCarlo!"&CostCalculation!$N$10&3,TRUE):INDIRECT("MonteCarlo!"&CostCalculation!$N$10&CostCalculation!$E$4+2,TRUE),"<="&B135))/CostCalculation!$E$4) -> 0.844 | D135: 188254 | E135: =IF((COUNTIF(INDIRECT("MonteCarlo!"&CostCalculation!$N$10&3,TRUE):INDIRECT("MonteCarlo!"&CostCalculation!$N$10&CostCalculation!$E$4+2,TRUE),">"&B135)-COUNTIF(INDIRECT("MonteCarlo!"&CostCalculation!$N$10&3,TRUE):INDIRECT("MonteCarlo!"&CostCalculation!$N$10&CostCalculation!$E$4+2,TRUE),">"&B136))/CostCalculation!$E$4=0,#N/A,(COUNTIF(INDIRECT("MonteCarlo!"&CostCalculation!$N$10&3,TRUE):INDIRECT("MonteCarlo!"&CostCalculation!$N$10&CostCalculation!$E$4+2,TRUE),">"&B135)-COUNTIF(INDIRECT("MonteCarlo!"&CostCalculation!$N$10&3,TRUE):INDIRECT("MonteCarlo!"&CostCalculation!$N$10&CostCalculation!$E$4+2,TRUE),">"&B136))/CostCalculation!$E$4) -> 
A136: 0.387 | B136: =ROUND(INDIRECT("CostCalculation!D"&CostCalculation!$O$10,TRUE)*A136,0) -> 189725 | C136: =IF((COUNTIF(INDIRECT("MonteCarlo!"&CostCalculation!$N$10&3,TRUE):INDIRECT("MonteCarlo!"&CostCalculation!$N$10&CostCalculation!$E$4+2,TRUE),"<="&B136))/CostCalculation!$E$4=0,#N/A,(COUNTIF(INDIRECT("MonteCarlo!"&CostCalculation!$N$10&3,TRUE):INDIRECT("MonteCarlo!"&CostCalculation!$N$10&CostCalculation!$E$4+2,TRUE),"<="&B136))/CostCalculation!$E$4) -> 0.844 | D136: =B136 -> 189725 | E136: =IF((COUNTIF(INDIRECT("MonteCarlo!"&CostCalculation!$N$10&3,TRUE):INDIRECT("MonteCarlo!"&CostCalculation!$N$10&CostCalculation!$E$4+2,TRUE),">"&B136)-COUNTIF(INDIRECT("MonteCarlo!"&CostCalculation!$N$10&3,TRUE):INDIRECT("MonteCarlo!"&CostCalculation!$N$10&CostCalculation!$E$4+2,TRUE),">"&B137))/CostCalculation!$E$4=0,#N/A,(COUNTIF(INDIRECT("MonteCarlo!"&CostCalculation!$N$10&3,TRUE):INDIRECT("MonteCarlo!"&CostCalculation!$N$10&CostCalculation!$E$4+2,TRUE),">"&B136)-COUNTIF(INDIRECT("MonteCarlo!"&CostCalculation!$N$10&3,TRUE):INDIRECT("MonteCarlo!"&CostCalculation!$N$10&CostCalculation!$E$4+2,TRUE),">"&B137))/CostCalculation!$E$4) -> 
A137: 0.39 | B137: =ROUND(INDIRECT("CostCalculation!D"&CostCalculation!$O$10,TRUE)*A137,0) -> 191196 | C137: =IF((COUNTIF(INDIRECT("MonteCarlo!"&CostCalculation!$N$10&3,TRUE):INDIRECT("MonteCarlo!"&CostCalculation!$N$10&CostCalculation!$E$4+2,TRUE),"<="&B137))/CostCalculation!$E$4=0,#N/A,(COUNTIF(INDIRECT("MonteCarlo!"&CostCalculation!$N$10&3,TRUE):INDIRECT("MonteCarlo!"&CostCalculation!$N$10&CostCalculation!$E$4+2,TRUE),"<="&B137))/CostCalculation!$E$4) -> 0.844 | D137: 191196 | E137: =IF((COUNTIF(INDIRECT("MonteCarlo!"&CostCalculation!$N$10&3,TRUE):INDIRECT("MonteCarlo!"&CostCalculation!$N$10&CostCalculation!$E$4+2,TRUE),">"&B137)-COUNTIF(INDIRECT("MonteCarlo!"&CostCalculation!$N$10&3,TRUE):INDIRECT("MonteCarlo!"&CostCalculation!$N$10&CostCalculation!$E$4+2,TRUE),">"&B138))/CostCalculation!$E$4=0,#N/A,(COUNTIF(INDIRECT("MonteCarlo!"&CostCalculation!$N$10&3,TRUE):INDIRECT("MonteCarlo!"&CostCalculation!$N$10&CostCalculation!$E$4+2,TRUE),">"&B137)-COUNTIF(INDIRECT("MonteCarlo!"&CostCalculation!$N$10&3,TRUE):INDIRECT("MonteCarlo!"&CostCalculation!$N$10&CostCalculation!$E$4+2,TRUE),">"&B138))/CostCalculation!$E$4) -> 
A138: 0.393 | B138: =ROUND(INDIRECT("CostCalculation!D"&CostCalculation!$O$10,TRUE)*A138,0) -> 192666 | C138: =IF((COUNTIF(INDIRECT("MonteCarlo!"&CostCalculation!$N$10&3,TRUE):INDIRECT("MonteCarlo!"&CostCalculation!$N$10&CostCalculation!$E$4+2,TRUE),"<="&B138))/CostCalculation!$E$4=0,#N/A,(COUNTIF(INDIRECT("MonteCarlo!"&CostCalculation!$N$10&3,TRUE):INDIRECT("MonteCarlo!"&CostCalculation!$N$10&CostCalculation!$E$4+2,TRUE),"<="&B138))/CostCalculation!$E$4) -> 0.844 | D138: 192666 | E138: =IF((COUNTIF(INDIRECT("MonteCarlo!"&CostCalculation!$N$10&3,TRUE):INDIRECT("MonteCarlo!"&CostCalculation!$N$10&CostCalculation!$E$4+2,TRUE),">"&B138)-COUNTIF(INDIRECT("MonteCarlo!"&CostCalculation!$N$10&3,TRUE):INDIRECT("MonteCarlo!"&CostCalculation!$N$10&CostCalculation!$E$4+2,TRUE),">"&B139))/CostCalculation!$E$4=0,#N/A,(COUNTIF(INDIRECT("MonteCarlo!"&CostCalculation!$N$10&3,TRUE):INDIRECT("MonteCarlo!"&CostCalculation!$N$10&CostCalculation!$E$4+2,TRUE),">"&B138)-COUNTIF(INDIRECT("MonteCarlo!"&CostCalculation!$N$10&3,TRUE):INDIRECT("MonteCarlo!"&CostCalculation!$N$10&CostCalculation!$E$4+2,TRUE),">"&B139))/CostCalculation!$E$4) -> 
A139: 0.396 | B139: =ROUND(INDIRECT("CostCalculation!D"&CostCalculation!$O$10,TRUE)*A139,0) -> 194137 | C139: =IF((COUNTIF(INDIRECT("MonteCarlo!"&CostCalculation!$N$10&3,TRUE):INDIRECT("MonteCarlo!"&CostCalculation!$N$10&CostCalculation!$E$4+2,TRUE),"<="&B139))/CostCalculation!$E$4=0,#N/A,(COUNTIF(INDIRECT("MonteCarlo!"&CostCalculation!$N$10&3,TRUE):INDIRECT("MonteCarlo!"&CostCalculation!$N$10&CostCalculation!$E$4+2,TRUE),"<="&B139))/CostCalculation!$E$4) -> 0.844 | D139: 194137 | E139: =IF((COUNTIF(INDIRECT("MonteCarlo!"&CostCalculation!$N$10&3,TRUE):INDIRECT("MonteCarlo!"&CostCalculation!$N$10&CostCalculation!$E$4+2,TRUE),">"&B139)-COUNTIF(INDIRECT("MonteCarlo!"&CostCalculation!$N$10&3,TRUE):INDIRECT("MonteCarlo!"&CostCalculation!$N$10&CostCalculation!$E$4+2,TRUE),">"&B140))/CostCalculation!$E$4=0,#N/A,(COUNTIF(INDIRECT("MonteCarlo!"&CostCalculation!$N$10&3,TRUE):INDIRECT("MonteCarlo!"&CostCalculation!$N$10&CostCalculation!$E$4+2,TRUE),">"&B139)-COUNTIF(INDIRECT("MonteCarlo!"&CostCalculation!$N$10&3,TRUE):INDIRECT("MonteCarlo!"&CostCalculation!$N$10&CostCalculation!$E$4+2,TRUE),">"&B140))/CostCalculation!$E$4) -> 
A140: 0.399 | B140: =ROUND(INDIRECT("CostCalculation!D"&CostCalculation!$O$10,TRUE)*A140,0) -> 195608 | C140: =IF((COUNTIF(INDIRECT("MonteCarlo!"&CostCalculation!$N$10&3,TRUE):INDIRECT("MonteCarlo!"&CostCalculation!$N$10&CostCalculation!$E$4+2,TRUE),"<="&B140))/CostCalculation!$E$4=0,#N/A,(COUNTIF(INDIRECT("MonteCarlo!"&CostCalculation!$N$10&3,TRUE):INDIRECT("MonteCarlo!"&CostCalculation!$N$10&CostCalculation!$E$4+2,TRUE),"<="&B140))/CostCalculation!$E$4) -> 0.844 | D140: 195608 | E140: =IF((COUNTIF(INDIRECT("MonteCarlo!"&CostCalculation!$N$10&3,TRUE):INDIRECT("MonteCarlo!"&CostCalculation!$N$10&CostCalculation!$E$4+2,TRUE),">"&B140)-COUNTIF(INDIRECT("MonteCarlo!"&CostCalculation!$N$10&3,TRUE):INDIRECT("MonteCarlo!"&CostCalculation!$N$10&CostCalculation!$E$4+2,TRUE),">"&B141))/CostCalculation!$E$4=0,#N/A,(COUNTIF(INDIRECT("MonteCarlo!"&CostCalculation!$N$10&3,TRUE):INDIRECT("MonteCarlo!"&CostCalculation!$N$10&CostCalculation!$E$4+2,TRUE),">"&B140)-COUNTIF(INDIRECT("MonteCarlo!"&CostCalculation!$N$10&3,TRUE):INDIRECT("MonteCarlo!"&CostCalculation!$N$10&CostCalculation!$E$4+2,TRUE),">"&B141))/CostCalculation!$E$4) -> 0.059
A141: 0.402 | B141: =ROUND(INDIRECT("CostCalculation!D"&CostCalculation!$O$10,TRUE)*A141,0) -> 197078 | C141: =IF((COUNTIF(INDIRECT("MonteCarlo!"&CostCalculation!$N$10&3,TRUE):INDIRECT("MonteCarlo!"&CostCalculation!$N$10&CostCalculation!$E$4+2,TRUE),"<="&B141))/CostCalculation!$E$4=0,#N/A,(COUNTIF(INDIRECT("MonteCarlo!"&CostCalculation!$N$10&3,TRUE):INDIRECT("MonteCarlo!"&CostCalculation!$N$10&CostCalculation!$E$4+2,TRUE),"<="&B141))/CostCalculation!$E$4) -> 0.903 | D141: 197078 | E141: =IF((COUNTIF(INDIRECT("MonteCarlo!"&CostCalculation!$N$10&3,TRUE):INDIRECT("MonteCarlo!"&CostCalculation!$N$10&CostCalculation!$E$4+2,TRUE),">"&B141)-COUNTIF(INDIRECT("MonteCarlo!"&CostCalculation!$N$10&3,TRUE):INDIRECT("MonteCarlo!"&CostCalculation!$N$10&CostCalculation!$E$4+2,TRUE),">"&B142))/CostCalculation!$E$4=0,#N/A,(COUNTIF(INDIRECT("MonteCarlo!"&CostCalculation!$N$10&3,TRUE):INDIRECT("MonteCarlo!"&CostCalculation!$N$10&CostCalculation!$E$4+2,TRUE),">"&B141)-COUNTIF(INDIRECT("MonteCarlo!"&CostCalculation!$N$10&3,TRUE):INDIRECT("MonteCarlo!"&CostCalculation!$N$10&CostCalculation!$E$4+2,TRUE),">"&B142))/CostCalculation!$E$4) -> 
A142: 0.405 | B142: =ROUND(INDIRECT("CostCalculation!D"&CostCalculation!$O$10,TRUE)*A142,0) -> 198549 | C142: =IF((COUNTIF(INDIRECT("MonteCarlo!"&CostCalculation!$N$10&3,TRUE):INDIRECT("MonteCarlo!"&CostCalculation!$N$10&CostCalculation!$E$4+2,TRUE),"<="&B142))/CostCalculation!$E$4=0,#N/A,(COUNTIF(INDIRECT("MonteCarlo!"&CostCalculation!$N$10&3,TRUE):INDIRECT("MonteCarlo!"&CostCalculation!$N$10&CostCalculation!$E$4+2,TRUE),"<="&B142))/CostCalculation!$E$4) -> 0.903 | D142: 198549 | E142: =IF((COUNTIF(INDIRECT("MonteCarlo!"&CostCalculation!$N$10&3,TRUE):INDIRECT("MonteCarlo!"&CostCalculation!$N$10&CostCalculation!$E$4+2,TRUE),">"&B142)-COUNTIF(INDIRECT("MonteCarlo!"&CostCalculation!$N$10&3,TRUE):INDIRECT("MonteCarlo!"&CostCalculation!$N$10&CostCalculation!$E$4+2,TRUE),">"&B143))/CostCalculation!$E$4=0,#N/A,(COUNTIF(INDIRECT("MonteCarlo!"&CostCalculation!$N$10&3,TRUE):INDIRECT("MonteCarlo!"&CostCalculation!$N$10&CostCalculation!$E$4+2,TRUE),">"&B142)-COUNTIF(INDIRECT("MonteCarlo!"&CostCalculation!$N$10&3,TRUE):INDIRECT("MonteCarlo!"&CostCalculation!$N$10&CostCalculation!$E$4+2,TRUE),">"&B143))/CostCalculation!$E$4) -> 
A143: 0.408 | B143: =ROUND(INDIRECT("CostCalculation!D"&CostCalculation!$O$10,TRUE)*A143,0) -> 200020 | C143: =IF((COUNTIF(INDIRECT("MonteCarlo!"&CostCalculation!$N$10&3,TRUE):INDIRECT("MonteCarlo!"&CostCalculation!$N$10&CostCalculation!$E$4+2,TRUE),"<="&B143))/CostCalculation!$E$4=0,#N/A,(COUNTIF(INDIRECT("MonteCarlo!"&CostCalculation!$N$10&3,TRUE):INDIRECT("MonteCarlo!"&CostCalculation!$N$10&CostCalculation!$E$4+2,TRUE),"<="&B143))/CostCalculation!$E$4) -> 0.903 | D143: 200020 | E143: =IF((COUNTIF(INDIRECT("MonteCarlo!"&CostCalculation!$N$10&3,TRUE):INDIRECT("MonteCarlo!"&CostCalculation!$N$10&CostCalculation!$E$4+2,TRUE),">"&B143)-COUNTIF(INDIRECT("MonteCarlo!"&CostCalculation!$N$10&3,TRUE):INDIRECT("MonteCarlo!"&CostCalculation!$N$10&CostCalculation!$E$4+2,TRUE),">"&B144))/CostCalculation!$E$4=0,#N/A,(COUNTIF(INDIRECT("MonteCarlo!"&CostCalculation!$N$10&3,TRUE):INDIRECT("MonteCarlo!"&CostCalculation!$N$10&CostCalculation!$E$4+2,TRUE),">"&B143)-COUNTIF(INDIRECT("MonteCarlo!"&CostCalculation!$N$10&3,TRUE):INDIRECT("MonteCarlo!"&CostCalculation!$N$10&CostCalculation!$E$4+2,TRUE),">"&B144))/CostCalculation!$E$4) -> 
A144: 0.411 | B144: =ROUND(INDIRECT("CostCalculation!D"&CostCalculation!$O$10,TRUE)*A144,0) -> 201491 | C144: =IF((COUNTIF(INDIRECT("MonteCarlo!"&CostCalculation!$N$10&3,TRUE):INDIRECT("MonteCarlo!"&CostCalculation!$N$10&CostCalculation!$E$4+2,TRUE),"<="&B144))/CostCalculation!$E$4=0,#N/A,(COUNTIF(INDIRECT("MonteCarlo!"&CostCalculation!$N$10&3,TRUE):INDIRECT("MonteCarlo!"&CostCalculation!$N$10&CostCalculation!$E$4+2,TRUE),"<="&B144))/CostCalculation!$E$4) -> 0.903 | D144: 201491 | E144: =IF((COUNTIF(INDIRECT("MonteCarlo!"&CostCalculation!$N$10&3,TRUE):INDIRECT("MonteCarlo!"&CostCalculation!$N$10&CostCalculation!$E$4+2,TRUE),">"&B144)-COUNTIF(INDIRECT("MonteCarlo!"&CostCalculation!$N$10&3,TRUE):INDIRECT("MonteCarlo!"&CostCalculation!$N$10&CostCalculation!$E$4+2,TRUE),">"&B145))/CostCalculation!$E$4=0,#N/A,(COUNTIF(INDIRECT("MonteCarlo!"&CostCalculation!$N$10&3,TRUE):INDIRECT("MonteCarlo!"&CostCalculation!$N$10&CostCalculation!$E$4+2,TRUE),">"&B144)-COUNTIF(INDIRECT("MonteCarlo!"&CostCalculation!$N$10&3,TRUE):INDIRECT("MonteCarlo!"&CostCalculation!$N$10&CostCalculation!$E$4+2,TRUE),">"&B145))/CostCalculation!$E$4) -> 
A145: 0.414 | B145: =ROUND(INDIRECT("CostCalculation!D"&CostCalculation!$O$10,TRUE)*A145,0) -> 202961 | C145: =IF((COUNTIF(INDIRECT("MonteCarlo!"&CostCalculation!$N$10&3,TRUE):INDIRECT("MonteCarlo!"&CostCalculation!$N$10&CostCalculation!$E$4+2,TRUE),"<="&B145))/CostCalculation!$E$4=0,#N/A,(COUNTIF(INDIRECT("MonteCarlo!"&CostCalculation!$N$10&3,TRUE):INDIRECT("MonteCarlo!"&CostCalculation!$N$10&CostCalculation!$E$4+2,TRUE),"<="&B145))/CostCalculation!$E$4) -> 0.903 | D145: 202961 | E145: =IF((COUNTIF(INDIRECT("MonteCarlo!"&CostCalculation!$N$10&3,TRUE):INDIRECT("MonteCarlo!"&CostCalculation!$N$10&CostCalculation!$E$4+2,TRUE),">"&B145)-COUNTIF(INDIRECT("MonteCarlo!"&CostCalculation!$N$10&3,TRUE):INDIRECT("MonteCarlo!"&CostCalculation!$N$10&CostCalculation!$E$4+2,TRUE),">"&B146))/CostCalculation!$E$4=0,#N/A,(COUNTIF(INDIRECT("MonteCarlo!"&CostCalculation!$N$10&3,TRUE):INDIRECT("MonteCarlo!"&CostCalculation!$N$10&CostCalculation!$E$4+2,TRUE),">"&B145)-COUNTIF(INDIRECT("MonteCarlo!"&CostCalculation!$N$10&3,TRUE):INDIRECT("MonteCarlo!"&CostCalculation!$N$10&CostCalculation!$E$4+2,TRUE),">"&B146))/CostCalculation!$E$4) -> 
A146: 0.417 | B146: =ROUND(INDIRECT("CostCalculation!D"&CostCalculation!$O$10,TRUE)*A146,0) -> 204432 | C146: =IF((COUNTIF(INDIRECT("MonteCarlo!"&CostCalculation!$N$10&3,TRUE):INDIRECT("MonteCarlo!"&CostCalculation!$N$10&CostCalculation!$E$4+2,TRUE),"<="&B146))/CostCalculation!$E$4=0,#N/A,(COUNTIF(INDIRECT("MonteCarlo!"&CostCalculation!$N$10&3,TRUE):INDIRECT("MonteCarlo!"&CostCalculation!$N$10&CostCalculation!$E$4+2,TRUE),"<="&B146))/CostCalculation!$E$4) -> 0.903 | D146: 204432 | E146: =IF((COUNTIF(INDIRECT("MonteCarlo!"&CostCalculation!$N$10&3,TRUE):INDIRECT("MonteCarlo!"&CostCalculation!$N$10&CostCalculation!$E$4+2,TRUE),">"&B146)-COUNTIF(INDIRECT("MonteCarlo!"&CostCalculation!$N$10&3,TRUE):INDIRECT("MonteCarlo!"&CostCalculation!$N$10&CostCalculation!$E$4+2,TRUE),">"&B147))/CostCalculation!$E$4=0,#N/A,(COUNTIF(INDIRECT("MonteCarlo!"&CostCalculation!$N$10&3,TRUE):INDIRECT("MonteCarlo!"&CostCalculation!$N$10&CostCalculation!$E$4+2,TRUE),">"&B146)-COUNTIF(INDIRECT("MonteCarlo!"&CostCalculation!$N$10&3,TRUE):INDIRECT("MonteCarlo!"&CostCalculation!$N$10&CostCalculation!$E$4+2,TRUE),">"&B147))/CostCalculation!$E$4) -> 
A147: 0.42 | B147: =ROUND(INDIRECT("CostCalculation!D"&CostCalculation!$O$10,TRUE)*A147,0) -> 205903 | C147: =IF((COUNTIF(INDIRECT("MonteCarlo!"&CostCalculation!$N$10&3,TRUE):INDIRECT("MonteCarlo!"&CostCalculation!$N$10&CostCalculation!$E$4+2,TRUE),"<="&B147))/CostCalculation!$E$4=0,#N/A,(COUNTIF(INDIRECT("MonteCarlo!"&CostCalculation!$N$10&3,TRUE):INDIRECT("MonteCarlo!"&CostCalculation!$N$10&CostCalculation!$E$4+2,TRUE),"<="&B147))/CostCalculation!$E$4) -> 0.903 | D147: 205903 | E147: =IF((COUNTIF(INDIRECT("MonteCarlo!"&CostCalculation!$N$10&3,TRUE):INDIRECT("MonteCarlo!"&CostCalculation!$N$10&CostCalculation!$E$4+2,TRUE),">"&B147)-COUNTIF(INDIRECT("MonteCarlo!"&CostCalculation!$N$10&3,TRUE):INDIRECT("MonteCarlo!"&CostCalculation!$N$10&CostCalculation!$E$4+2,TRUE),">"&B148))/CostCalculation!$E$4=0,#N/A,(COUNTIF(INDIRECT("MonteCarlo!"&CostCalculation!$N$10&3,TRUE):INDIRECT("MonteCarlo!"&CostCalculation!$N$10&CostCalculation!$E$4+2,TRUE),">"&B147)-COUNTIF(INDIRECT("MonteCarlo!"&CostCalculation!$N$10&3,TRUE):INDIRECT("MonteCarlo!"&CostCalculation!$N$10&CostCalculation!$E$4+2,TRUE),">"&B148))/CostCalculation!$E$4) -> 
A148: 0.423 | B148: =ROUND(INDIRECT("CostCalculation!D"&CostCalculation!$O$10,TRUE)*A148,0) -> 207374 | C148: =IF((COUNTIF(INDIRECT("MonteCarlo!"&CostCalculation!$N$10&3,TRUE):INDIRECT("MonteCarlo!"&CostCalculation!$N$10&CostCalculation!$E$4+2,TRUE),"<="&B148))/CostCalculation!$E$4=0,#N/A,(COUNTIF(INDIRECT("MonteCarlo!"&CostCalculation!$N$10&3,TRUE):INDIRECT("MonteCarlo!"&CostCalculation!$N$10&CostCalculation!$E$4+2,TRUE),"<="&B148))/CostCalculation!$E$4) -> 0.903 | D148: 207374 | E148: =IF((COUNTIF(INDIRECT("MonteCarlo!"&CostCalculation!$N$10&3,TRUE):INDIRECT("MonteCarlo!"&CostCalculation!$N$10&CostCalculation!$E$4+2,TRUE),">"&B148)-COUNTIF(INDIRECT("MonteCarlo!"&CostCalculation!$N$10&3,TRUE):INDIRECT("MonteCarlo!"&CostCalculation!$N$10&CostCalculation!$E$4+2,TRUE),">"&B149))/CostCalculation!$E$4=0,#N/A,(COUNTIF(INDIRECT("MonteCarlo!"&CostCalculation!$N$10&3,TRUE):INDIRECT("MonteCarlo!"&CostCalculation!$N$10&CostCalculation!$E$4+2,TRUE),">"&B148)-COUNTIF(INDIRECT("MonteCarlo!"&CostCalculation!$N$10&3,TRUE):INDIRECT("MonteCarlo!"&CostCalculation!$N$10&CostCalculation!$E$4+2,TRUE),">"&B149))/CostCalculation!$E$4) -> 
A149: 0.426 | B149: =ROUND(INDIRECT("CostCalculation!D"&CostCalculation!$O$10,TRUE)*A149,0) -> 208844 | C149: =IF((COUNTIF(INDIRECT("MonteCarlo!"&CostCalculation!$N$10&3,TRUE):INDIRECT("MonteCarlo!"&CostCalculation!$N$10&CostCalculation!$E$4+2,TRUE),"<="&B149))/CostCalculation!$E$4=0,#N/A,(COUNTIF(INDIRECT("MonteCarlo!"&CostCalculation!$N$10&3,TRUE):INDIRECT("MonteCarlo!"&CostCalculation!$N$10&CostCalculation!$E$4+2,TRUE),"<="&B149))/CostCalculation!$E$4) -> 0.903 | D149: 208844 | E149: =IF((COUNTIF(INDIRECT("MonteCarlo!"&CostCalculation!$N$10&3,TRUE):INDIRECT("MonteCarlo!"&CostCalculation!$N$10&CostCalculation!$E$4+2,TRUE),">"&B149)-COUNTIF(INDIRECT("MonteCarlo!"&CostCalculation!$N$10&3,TRUE):INDIRECT("MonteCarlo!"&CostCalculation!$N$10&CostCalculation!$E$4+2,TRUE),">"&B150))/CostCalculation!$E$4=0,#N/A,(COUNTIF(INDIRECT("MonteCarlo!"&CostCalculation!$N$10&3,TRUE):INDIRECT("MonteCarlo!"&CostCalculation!$N$10&CostCalculation!$E$4+2,TRUE),">"&B149)-COUNTIF(INDIRECT("MonteCarlo!"&CostCalculation!$N$10&3,TRUE):INDIRECT("MonteCarlo!"&CostCalculation!$N$10&CostCalculation!$E$4+2,TRUE),">"&B150))/CostCalculation!$E$4) -> 
A150: 0.429 | B150: =ROUND(INDIRECT("CostCalculation!D"&CostCalculation!$O$10,TRUE)*A150,0) -> 210315 | C150: =IF((COUNTIF(INDIRECT("MonteCarlo!"&CostCalculation!$N$10&3,TRUE):INDIRECT("MonteCarlo!"&CostCalculation!$N$10&CostCalculation!$E$4+2,TRUE),"<="&B150))/CostCalculation!$E$4=0,#N/A,(COUNTIF(INDIRECT("MonteCarlo!"&CostCalculation!$N$10&3,TRUE):INDIRECT("MonteCarlo!"&CostCalculation!$N$10&CostCalculation!$E$4+2,TRUE),"<="&B150))/CostCalculation!$E$4) -> 0.903 | D150: 210315 | E150: =IF((COUNTIF(INDIRECT("MonteCarlo!"&CostCalculation!$N$10&3,TRUE):INDIRECT("MonteCarlo!"&CostCalculation!$N$10&CostCalculation!$E$4+2,TRUE),">"&B150)-COUNTIF(INDIRECT("MonteCarlo!"&CostCalculation!$N$10&3,TRUE):INDIRECT("MonteCarlo!"&CostCalculation!$N$10&CostCalculation!$E$4+2,TRUE),">"&B151))/CostCalculation!$E$4=0,#N/A,(COUNTIF(INDIRECT("MonteCarlo!"&CostCalculation!$N$10&3,TRUE):INDIRECT("MonteCarlo!"&CostCalculation!$N$10&CostCalculation!$E$4+2,TRUE),">"&B150)-COUNTIF(INDIRECT("MonteCarlo!"&CostCalculation!$N$10&3,TRUE):INDIRECT("MonteCarlo!"&CostCalculation!$N$10&CostCalculation!$E$4+2,TRUE),">"&B151))/CostCalculation!$E$4) -> 
A151: 0.432 | B151: =ROUND(INDIRECT("CostCalculation!D"&CostCalculation!$O$10,TRUE)*A151,0) -> 211786 | C151: =IF((COUNTIF(INDIRECT("MonteCarlo!"&CostCalculation!$N$10&3,TRUE):INDIRECT("MonteCarlo!"&CostCalculation!$N$10&CostCalculation!$E$4+2,TRUE),"<="&B151))/CostCalculation!$E$4=0,#N/A,(COUNTIF(INDIRECT("MonteCarlo!"&CostCalculation!$N$10&3,TRUE):INDIRECT("MonteCarlo!"&CostCalculation!$N$10&CostCalculation!$E$4+2,TRUE),"<="&B151))/CostCalculation!$E$4) -> 0.903 | D151: 211786 | E151: =IF((COUNTIF(INDIRECT("MonteCarlo!"&CostCalculation!$N$10&3,TRUE):INDIRECT("MonteCarlo!"&CostCalculation!$N$10&CostCalculation!$E$4+2,TRUE),">"&B151)-COUNTIF(INDIRECT("MonteCarlo!"&CostCalculation!$N$10&3,TRUE):INDIRECT("MonteCarlo!"&CostCalculation!$N$10&CostCalculation!$E$4+2,TRUE),">"&B152))/CostCalculation!$E$4=0,#N/A,(COUNTIF(INDIRECT("MonteCarlo!"&CostCalculation!$N$10&3,TRUE):INDIRECT("MonteCarlo!"&CostCalculation!$N$10&CostCalculation!$E$4+2,TRUE),">"&B151)-COUNTIF(INDIRECT("MonteCarlo!"&CostCalculation!$N$10&3,TRUE):INDIRECT("MonteCarlo!"&CostCalculation!$N$10&CostCalculation!$E$4+2,TRUE),">"&B152))/CostCalculation!$E$4) -> 
A152: 0.435 | B152: =ROUND(INDIRECT("CostCalculation!D"&CostCalculation!$O$10,TRUE)*A152,0) -> 213257 | C152: =IF((COUNTIF(INDIRECT("MonteCarlo!"&CostCalculation!$N$10&3,TRUE):INDIRECT("MonteCarlo!"&CostCalculation!$N$10&CostCalculation!$E$4+2,TRUE),"<="&B152))/CostCalculation!$E$4=0,#N/A,(COUNTIF(INDIRECT("MonteCarlo!"&CostCalculation!$N$10&3,TRUE):INDIRECT("MonteCarlo!"&CostCalculation!$N$10&CostCalculation!$E$4+2,TRUE),"<="&B152))/CostCalculation!$E$4) -> 0.903 | D152: 213257 | E152: =IF((COUNTIF(INDIRECT("MonteCarlo!"&CostCalculation!$N$10&3,TRUE):INDIRECT("MonteCarlo!"&CostCalculation!$N$10&CostCalculation!$E$4+2,TRUE),">"&B152)-COUNTIF(INDIRECT("MonteCarlo!"&CostCalculation!$N$10&3,TRUE):INDIRECT("MonteCarlo!"&CostCalculation!$N$10&CostCalculation!$E$4+2,TRUE),">"&B153))/CostCalculation!$E$4=0,#N/A,(COUNTIF(INDIRECT("MonteCarlo!"&CostCalculation!$N$10&3,TRUE):INDIRECT("MonteCarlo!"&CostCalculation!$N$10&CostCalculation!$E$4+2,TRUE),">"&B152)-COUNTIF(INDIRECT("MonteCarlo!"&CostCalculation!$N$10&3,TRUE):INDIRECT("MonteCarlo!"&CostCalculation!$N$10&CostCalculation!$E$4+2,TRUE),">"&B153))/CostCalculation!$E$4) -> 
A153: 0.438 | B153: =ROUND(INDIRECT("CostCalculation!D"&CostCalculation!$O$10,TRUE)*A153,0) -> 214727 | C153: =IF((COUNTIF(INDIRECT("MonteCarlo!"&CostCalculation!$N$10&3,TRUE):INDIRECT("MonteCarlo!"&CostCalculation!$N$10&CostCalculation!$E$4+2,TRUE),"<="&B153))/CostCalculation!$E$4=0,#N/A,(COUNTIF(INDIRECT("MonteCarlo!"&CostCalculation!$N$10&3,TRUE):INDIRECT("MonteCarlo!"&CostCalculation!$N$10&CostCalculation!$E$4+2,TRUE),"<="&B153))/CostCalculation!$E$4) -> 0.903 | D153: 214727 | E153: =IF((COUNTIF(INDIRECT("MonteCarlo!"&CostCalculation!$N$10&3,TRUE):INDIRECT("MonteCarlo!"&CostCalculation!$N$10&CostCalculation!$E$4+2,TRUE),">"&B153)-COUNTIF(INDIRECT("MonteCarlo!"&CostCalculation!$N$10&3,TRUE):INDIRECT("MonteCarlo!"&CostCalculation!$N$10&CostCalculation!$E$4+2,TRUE),">"&B154))/CostCalculation!$E$4=0,#N/A,(COUNTIF(INDIRECT("MonteCarlo!"&CostCalculation!$N$10&3,TRUE):INDIRECT("MonteCarlo!"&CostCalculation!$N$10&CostCalculation!$E$4+2,TRUE),">"&B153)-COUNTIF(INDIRECT("MonteCarlo!"&CostCalculation!$N$10&3,TRUE):INDIRECT("MonteCarlo!"&CostCalculation!$N$10&CostCalculation!$E$4+2,TRUE),">"&B154))/CostCalculation!$E$4) -> 
A154: 0.441 | B154: =ROUND(INDIRECT("CostCalculation!D"&CostCalculation!$O$10,TRUE)*A154,0) -> 216198 | C154: =IF((COUNTIF(INDIRECT("MonteCarlo!"&CostCalculation!$N$10&3,TRUE):INDIRECT("MonteCarlo!"&CostCalculation!$N$10&CostCalculation!$E$4+2,TRUE),"<="&B154))/CostCalculation!$E$4=0,#N/A,(COUNTIF(INDIRECT("MonteCarlo!"&CostCalculation!$N$10&3,TRUE):INDIRECT("MonteCarlo!"&CostCalculation!$N$10&CostCalculation!$E$4+2,TRUE),"<="&B154))/CostCalculation!$E$4) -> 0.903 | D154: 216198 | E154: =IF((COUNTIF(INDIRECT("MonteCarlo!"&CostCalculation!$N$10&3,TRUE):INDIRECT("MonteCarlo!"&CostCalculation!$N$10&CostCalculation!$E$4+2,TRUE),">"&B154)-COUNTIF(INDIRECT("MonteCarlo!"&CostCalculation!$N$10&3,TRUE):INDIRECT("MonteCarlo!"&CostCalculation!$N$10&CostCalculation!$E$4+2,TRUE),">"&B155))/CostCalculation!$E$4=0,#N/A,(COUNTIF(INDIRECT("MonteCarlo!"&CostCalculation!$N$10&3,TRUE):INDIRECT("MonteCarlo!"&CostCalculation!$N$10&CostCalculation!$E$4+2,TRUE),">"&B154)-COUNTIF(INDIRECT("MonteCarlo!"&CostCalculation!$N$10&3,TRUE):INDIRECT("MonteCarlo!"&CostCalculation!$N$10&CostCalculation!$E$4+2,TRUE),">"&B155))/CostCalculation!$E$4) -> 
A155: 0.444 | B155: =ROUND(INDIRECT("CostCalculation!D"&CostCalculation!$O$10,TRUE)*A155,0) -> 217669 | C155: =IF((COUNTIF(INDIRECT("MonteCarlo!"&CostCalculation!$N$10&3,TRUE):INDIRECT("MonteCarlo!"&CostCalculation!$N$10&CostCalculation!$E$4+2,TRUE),"<="&B155))/CostCalculation!$E$4=0,#N/A,(COUNTIF(INDIRECT("MonteCarlo!"&CostCalculation!$N$10&3,TRUE):INDIRECT("MonteCarlo!"&CostCalculation!$N$10&CostCalculation!$E$4+2,TRUE),"<="&B155))/CostCalculation!$E$4) -> 0.903 | D155: 217669 | E155: =IF((COUNTIF(INDIRECT("MonteCarlo!"&CostCalculation!$N$10&3,TRUE):INDIRECT("MonteCarlo!"&CostCalculation!$N$10&CostCalculation!$E$4+2,TRUE),">"&B155)-COUNTIF(INDIRECT("MonteCarlo!"&CostCalculation!$N$10&3,TRUE):INDIRECT("MonteCarlo!"&CostCalculation!$N$10&CostCalculation!$E$4+2,TRUE),">"&B156))/CostCalculation!$E$4=0,#N/A,(COUNTIF(INDIRECT("MonteCarlo!"&CostCalculation!$N$10&3,TRUE):INDIRECT("MonteCarlo!"&CostCalculation!$N$10&CostCalculation!$E$4+2,TRUE),">"&B155)-COUNTIF(INDIRECT("MonteCarlo!"&CostCalculation!$N$10&3,TRUE):INDIRECT("MonteCarlo!"&CostCalculation!$N$10&CostCalculation!$E$4+2,TRUE),">"&B156))/CostCalculation!$E$4) -> 
A156: 0.447 | B156: =ROUND(INDIRECT("CostCalculation!D"&CostCalculation!$O$10,TRUE)*A156,0) -> 219140 | C156: =IF((COUNTIF(INDIRECT("MonteCarlo!"&CostCalculation!$N$10&3,TRUE):INDIRECT("MonteCarlo!"&CostCalculation!$N$10&CostCalculation!$E$4+2,TRUE),"<="&B156))/CostCalculation!$E$4=0,#N/A,(COUNTIF(INDIRECT("MonteCarlo!"&CostCalculation!$N$10&3,TRUE):INDIRECT("MonteCarlo!"&CostCalculation!$N$10&CostCalculation!$E$4+2,TRUE),"<="&B156))/CostCalculation!$E$4) -> 0.903 | D156: 219140 | E156: =IF((COUNTIF(INDIRECT("MonteCarlo!"&CostCalculation!$N$10&3,TRUE):INDIRECT("MonteCarlo!"&CostCalculation!$N$10&CostCalculation!$E$4+2,TRUE),">"&B156)-COUNTIF(INDIRECT("MonteCarlo!"&CostCalculation!$N$10&3,TRUE):INDIRECT("MonteCarlo!"&CostCalculation!$N$10&CostCalculation!$E$4+2,TRUE),">"&B157))/CostCalculation!$E$4=0,#N/A,(COUNTIF(INDIRECT("MonteCarlo!"&CostCalculation!$N$10&3,TRUE):INDIRECT("MonteCarlo!"&CostCalculation!$N$10&CostCalculation!$E$4+2,TRUE),">"&B156)-COUNTIF(INDIRECT("MonteCarlo!"&CostCalculation!$N$10&3,TRUE):INDIRECT("MonteCarlo!"&CostCalculation!$N$10&CostCalculation!$E$4+2,TRUE),">"&B157))/CostCalculation!$E$4) -> 
A157: 0.45 | B157: =ROUND(INDIRECT("CostCalculation!D"&CostCalculation!$O$10,TRUE)*A157,0) -> 220610 | C157: =IF((COUNTIF(INDIRECT("MonteCarlo!"&CostCalculation!$N$10&3,TRUE):INDIRECT("MonteCarlo!"&CostCalculation!$N$10&CostCalculation!$E$4+2,TRUE),"<="&B157))/CostCalculation!$E$4=0,#N/A,(COUNTIF(INDIRECT("MonteCarlo!"&CostCalculation!$N$10&3,TRUE):INDIRECT("MonteCarlo!"&CostCalculation!$N$10&CostCalculation!$E$4+2,TRUE),"<="&B157))/CostCalculation!$E$4) -> 0.903 | D157: 220610 | E157: =IF((COUNTIF(INDIRECT("MonteCarlo!"&CostCalculation!$N$10&3,TRUE):INDIRECT("MonteCarlo!"&CostCalculation!$N$10&CostCalculation!$E$4+2,TRUE),">"&B157)-COUNTIF(INDIRECT("MonteCarlo!"&CostCalculation!$N$10&3,TRUE):INDIRECT("MonteCarlo!"&CostCalculation!$N$10&CostCalculation!$E$4+2,TRUE),">"&B158))/CostCalculation!$E$4=0,#N/A,(COUNTIF(INDIRECT("MonteCarlo!"&CostCalculation!$N$10&3,TRUE):INDIRECT("MonteCarlo!"&CostCalculation!$N$10&CostCalculation!$E$4+2,TRUE),">"&B157)-COUNTIF(INDIRECT("MonteCarlo!"&CostCalculation!$N$10&3,TRUE):INDIRECT("MonteCarlo!"&CostCalculation!$N$10&CostCalculation!$E$4+2,TRUE),">"&B158))/CostCalculation!$E$4) -> 
A158: 0.453 | B158: =ROUND(INDIRECT("CostCalculation!D"&CostCalculation!$O$10,TRUE)*A158,0) -> 222081 | C158: =IF((COUNTIF(INDIRECT("MonteCarlo!"&CostCalculation!$N$10&3,TRUE):INDIRECT("MonteCarlo!"&CostCalculation!$N$10&CostCalculation!$E$4+2,TRUE),"<="&B158))/CostCalculation!$E$4=0,#N/A,(COUNTIF(INDIRECT("MonteCarlo!"&CostCalculation!$N$10&3,TRUE):INDIRECT("MonteCarlo!"&CostCalculation!$N$10&CostCalculation!$E$4+2,TRUE),"<="&B158))/CostCalculation!$E$4) -> 0.903 | D158: 222081 | E158: =IF((COUNTIF(INDIRECT("MonteCarlo!"&CostCalculation!$N$10&3,TRUE):INDIRECT("MonteCarlo!"&CostCalculation!$N$10&CostCalculation!$E$4+2,TRUE),">"&B158)-COUNTIF(INDIRECT("MonteCarlo!"&CostCalculation!$N$10&3,TRUE):INDIRECT("MonteCarlo!"&CostCalculation!$N$10&CostCalculation!$E$4+2,TRUE),">"&B159))/CostCalculation!$E$4=0,#N/A,(COUNTIF(INDIRECT("MonteCarlo!"&CostCalculation!$N$10&3,TRUE):INDIRECT("MonteCarlo!"&CostCalculation!$N$10&CostCalculation!$E$4+2,TRUE),">"&B158)-COUNTIF(INDIRECT("MonteCarlo!"&CostCalculation!$N$10&3,TRUE):INDIRECT("MonteCarlo!"&CostCalculation!$N$10&CostCalculation!$E$4+2,TRUE),">"&B159))/CostCalculation!$E$4) -> 
A159: 0.456 | B159: =ROUND(INDIRECT("CostCalculation!D"&CostCalculation!$O$10,TRUE)*A159,0) -> 223552 | C159: =IF((COUNTIF(INDIRECT("MonteCarlo!"&CostCalculation!$N$10&3,TRUE):INDIRECT("MonteCarlo!"&CostCalculation!$N$10&CostCalculation!$E$4+2,TRUE),"<="&B159))/CostCalculation!$E$4=0,#N/A,(COUNTIF(INDIRECT("MonteCarlo!"&CostCalculation!$N$10&3,TRUE):INDIRECT("MonteCarlo!"&CostCalculation!$N$10&CostCalculation!$E$4+2,TRUE),"<="&B159))/CostCalculation!$E$4) -> 0.903 | D159: 223552 | E159: =IF((COUNTIF(INDIRECT("MonteCarlo!"&CostCalculation!$N$10&3,TRUE):INDIRECT("MonteCarlo!"&CostCalculation!$N$10&CostCalculation!$E$4+2,TRUE),">"&B159)-COUNTIF(INDIRECT("MonteCarlo!"&CostCalculation!$N$10&3,TRUE):INDIRECT("MonteCarlo!"&CostCalculation!$N$10&CostCalculation!$E$4+2,TRUE),">"&B160))/CostCalculation!$E$4=0,#N/A,(COUNTIF(INDIRECT("MonteCarlo!"&CostCalculation!$N$10&3,TRUE):INDIRECT("MonteCarlo!"&CostCalculation!$N$10&CostCalculation!$E$4+2,TRUE),">"&B159)-COUNTIF(INDIRECT("MonteCarlo!"&CostCalculation!$N$10&3,TRUE):INDIRECT("MonteCarlo!"&CostCalculation!$N$10&CostCalculation!$E$4+2,TRUE),">"&B160))/CostCalculation!$E$4) -> 
A160: 0.459 | B160: =ROUND(INDIRECT("CostCalculation!D"&CostCalculation!$O$10,TRUE)*A160,0) -> 225022 | C160: =IF((COUNTIF(INDIRECT("MonteCarlo!"&CostCalculation!$N$10&3,TRUE):INDIRECT("MonteCarlo!"&CostCalculation!$N$10&CostCalculation!$E$4+2,TRUE),"<="&B160))/CostCalculation!$E$4=0,#N/A,(COUNTIF(INDIRECT("MonteCarlo!"&CostCalculation!$N$10&3,TRUE):INDIRECT("MonteCarlo!"&CostCalculation!$N$10&CostCalculation!$E$4+2,TRUE),"<="&B160))/CostCalculation!$E$4) -> 0.903 | D160: 225022 | E160: =IF((COUNTIF(INDIRECT("MonteCarlo!"&CostCalculation!$N$10&3,TRUE):INDIRECT("MonteCarlo!"&CostCalculation!$N$10&CostCalculation!$E$4+2,TRUE),">"&B160)-COUNTIF(INDIRECT("MonteCarlo!"&CostCalculation!$N$10&3,TRUE):INDIRECT("MonteCarlo!"&CostCalculation!$N$10&CostCalculation!$E$4+2,TRUE),">"&B161))/CostCalculation!$E$4=0,#N/A,(COUNTIF(INDIRECT("MonteCarlo!"&CostCalculation!$N$10&3,TRUE):INDIRECT("MonteCarlo!"&CostCalculation!$N$10&CostCalculation!$E$4+2,TRUE),">"&B160)-COUNTIF(INDIRECT("MonteCarlo!"&CostCalculation!$N$10&3,TRUE):INDIRECT("MonteCarlo!"&CostCalculation!$N$10&CostCalculation!$E$4+2,TRUE),">"&B161))/CostCalculation!$E$4) -> 
A161: 0.462 | B161: =ROUND(INDIRECT("CostCalculation!D"&CostCalculation!$O$10,TRUE)*A161,0) -> 226493 | C161: =IF((COUNTIF(INDIRECT("MonteCarlo!"&CostCalculation!$N$10&3,TRUE):INDIRECT("MonteCarlo!"&CostCalculation!$N$10&CostCalculation!$E$4+2,TRUE),"<="&B161))/CostCalculation!$E$4=0,#N/A,(COUNTIF(INDIRECT("MonteCarlo!"&CostCalculation!$N$10&3,TRUE):INDIRECT("MonteCarlo!"&CostCalculation!$N$10&CostCalculation!$E$4+2,TRUE),"<="&B161))/CostCalculation!$E$4) -> 0.903 | D161: 226493 | E161: =IF((COUNTIF(INDIRECT("MonteCarlo!"&CostCalculation!$N$10&3,TRUE):INDIRECT("MonteCarlo!"&CostCalculation!$N$10&CostCalculation!$E$4+2,TRUE),">"&B161)-COUNTIF(INDIRECT("MonteCarlo!"&CostCalculation!$N$10&3,TRUE):INDIRECT("MonteCarlo!"&CostCalculation!$N$10&CostCalculation!$E$4+2,TRUE),">"&B162))/CostCalculation!$E$4=0,#N/A,(COUNTIF(INDIRECT("MonteCarlo!"&CostCalculation!$N$10&3,TRUE):INDIRECT("MonteCarlo!"&CostCalculation!$N$10&CostCalculation!$E$4+2,TRUE),">"&B161)-COUNTIF(INDIRECT("MonteCarlo!"&CostCalculation!$N$10&3,TRUE):INDIRECT("MonteCarlo!"&CostCalculation!$N$10&CostCalculation!$E$4+2,TRUE),">"&B162))/CostCalculation!$E$4) -> 
A162: 0.465 | B162: =ROUND(INDIRECT("CostCalculation!D"&CostCalculation!$O$10,TRUE)*A162,0) -> 227964 | C162: =IF((COUNTIF(INDIRECT("MonteCarlo!"&CostCalculation!$N$10&3,TRUE):INDIRECT("MonteCarlo!"&CostCalculation!$N$10&CostCalculation!$E$4+2,TRUE),"<="&B162))/CostCalculation!$E$4=0,#N/A,(COUNTIF(INDIRECT("MonteCarlo!"&CostCalculation!$N$10&3,TRUE):INDIRECT("MonteCarlo!"&CostCalculation!$N$10&CostCalculation!$E$4+2,TRUE),"<="&B162))/CostCalculation!$E$4) -> 0.903 | D162: 227964 | E162: =IF((COUNTIF(INDIRECT("MonteCarlo!"&CostCalculation!$N$10&3,TRUE):INDIRECT("MonteCarlo!"&CostCalculation!$N$10&CostCalculation!$E$4+2,TRUE),">"&B162)-COUNTIF(INDIRECT("MonteCarlo!"&CostCalculation!$N$10&3,TRUE):INDIRECT("MonteCarlo!"&CostCalculation!$N$10&CostCalculation!$E$4+2,TRUE),">"&B163))/CostCalculation!$E$4=0,#N/A,(COUNTIF(INDIRECT("MonteCarlo!"&CostCalculation!$N$10&3,TRUE):INDIRECT("MonteCarlo!"&CostCalculation!$N$10&CostCalculation!$E$4+2,TRUE),">"&B162)-COUNTIF(INDIRECT("MonteCarlo!"&CostCalculation!$N$10&3,TRUE):INDIRECT("MonteCarlo!"&CostCalculation!$N$10&CostCalculation!$E$4+2,TRUE),">"&B163))/CostCalculation!$E$4) -> 0.0455
